Workbook

Sheet Sample Report (hidden)
A2: Date
A3: Hen
A4: Program
A5: Start at 999999
A6: Sequence component 1 | B6: Time 1 | C6: Seqeunce Component 2 | D6: Time 2 | E6: Seqeunce Component 3 | F6: Time 3 | G6: Correct 0 = No 1=Yes | J6: Seqeunce | K6: Time
A7: 12 | B7: 7 | C7: 12 | D7: 42 | E7: 13 | F7: 18 | G7: if 77 new line, if 31 or 41 = yes new line on 77, | J7: =string of Seqeunce compponent 1, 2 & 3 | K7: =time 3
A8: This continues until ther is a 1 on its own to indicate start of summary data
J9: 10-19 =1
A10: Summary Data | J10: 20-29 =2
A11: Correct | B11: Incorrect | C11: Rft | D11: total | E11: Av Correct | F11: Av Incorrect | G11: Percent correct | H11: Time | J11: in this example the seqeunce would be 111
A12: 40 | B12: 33 | C12: 40 | D12: 73 | E12: 23.95 | F12: 15 | G12: 54 | H12: 806

Sheet Summary
A2: Day | B2: Date | C2: Average Response Rate | D2: Target % | E2: RF for non correct sequence | F2: U Value | K2: Block 1 | L2: Block 2 | M2: Block 3 | N2: Block 4 | O2: Block 5 | P2: Block 6
A3: 1 | B3: ='!LB09D30.056'!B2:C2 -> <date> | C3: =('!LB09D30.056'!D7/60)/'!LB09D30.056'!Q3 -> 0.002336448598 | D3: ='!LB09D30.056'!N20/'!LB09D30.056'!Q3 -> 0.2990654206 | E3: =SUM('!LB09D30.056'!L20:Q20)/'!LB09D30.056'!Q3 -> 0.8411214953 | F3: ='!LB09D30.056'!Q16 -> 0.2033925768 | J3: Average Response Rate | K3: =AVERAGE(C3:C7) -> 0.004473076604 | L3: =AVERAGE(C8:C12) -> 0.01003213041 | M3: =AVERAGE(C13:C17) -> 0.01171400469 | N3: =AVERAGE(C18:C22) -> 0.01012493864 | O3: =AVERAGE(C23:C27) -> 0.007051982865 | P3: =AVERAGE(C28:C32) -> 0.006294722313
A4: 2 | B4: ='!LB10B30.056'!B2:C2 -> <date> | C4: =('!LB10B30.056'!D7/60)/'!LB10B30.056'!Q3 -> 0.005128205128 | D4: ='!LB10B30.056'!N20/'!LB10B30.056'!Q3 -> 0.5384615385 | E4: =SUM('!LB10B30.056'!L20:Q20)/'!LB10B30.056'!Q3 -> 1.215384615 | F4: ='!LB10B30.056'!Q16 -> 0.2408391765 | J4: Target % | K4: =AVERAGE(D3:D7) -> 0.4873146568 | L4: =AVERAGE(D8:D12) -> 0.6959630713 | M4: =AVERAGE(D13:D17) -> 0.7998159446 | N4: =AVERAGE(D18:D22) -> 0.8064301459 | O4: =AVERAGE(D23:D27) -> 0.8937376913 | P4: =AVERAGE(D28:D32) -> 0.8012603974
A5: 3 | B5: ='!LB11B50.056'!B2:C2 -> <date> | C5: =('!LB11B50.056'!D7/60)/'!LB11B50.056'!Q3 -> 0.004644808743 | D5: ='!LB11B50.056'!N20/'!LB11B50.056'!Q3 -> 0.6393442623 | E5: =SUM('!LB11B50.056'!L20:Q20)/'!LB11B50.056'!Q3 -> 1.327868852 | F5: ='!LB11B50.056'!Q16 -> 0.2394437051 | J5: CCRF | K5: =AVERAGE(E3:E7) -> 1.120305092 | L5: =AVERAGE(E8:E12) -> 1.331113578 | M5: =AVERAGE(E13:E17) -> 1.424037415 | N5: =AVERAGE(E18:E22) -> 1.391857101 | O5: =AVERAGE(E23:E27) -> 1.497482073 | P5: =AVERAGE(E28:E32) -> 1.44302786
A6: 4 | B6: ='!LB12C30.056'!B2:C2 -> <date> | C6: =('!LB12C30.056'!D7/60)/'!LB12C30.056'!Q3 -> 0.004411764706 | D6: ='!LB12C30.056'!N20/'!LB12C30.056'!Q3 -> 0.5441176471 | E6: =SUM('!LB12C30.056'!L20:Q20)/'!LB12C30.056'!Q3 -> 1.191176471 | F6: ='!LB12C30.056'!Q16 -> 0.2426146173 | J6: U Value | K6: =AVERAGE(F3:F7) -> 0.2337584654 | L6: =AVERAGE(F8:F12) -> 0.1781983991 | M6: =AVERAGE(F13:F17) -> 0.1439390926 | N6: =AVERAGE(F18:F22) -> 0.1360695022 | O6: =AVERAGE(F23:F27) -> 0.1018335585 | P6: =AVERAGE(F28:F32) -> 0.1165985874
A7: 5 | B7: ='!LB13C10.056'!B2:C2 -> <date> | C7: =('!LB13C10.056'!D7/60)/'!LB13C10.056'!Q3 -> 0.005844155844 | D7: ='!LB13C10.056'!N20/'!LB13C10.056'!Q3 -> 0.4155844156 | E7: =SUM('!LB13C10.056'!L20:Q20)/'!LB13C10.056'!Q3 -> 1.025974026 | F7: ='!LB13C10.056'!Q16 -> 0.2425022513
A8: 6 | B8: ='!LB14B20.056'!B2:C2 -> <date> | C8: =('!LB14B20.056'!D7/60)/'!LB14B20.056'!Q3 -> 0.006111111111 | D8: ='!LB14B20.056'!N20/'!LB14B20.056'!Q3 -> 0.3666666667 | E8: =SUM('!LB14B20.056'!L20:Q20)/'!LB14B20.056'!Q3 -> 0.8333333333 | F8: ='!LB14B20.056'!Q16 -> 0.2102705138
A9: 7 | B9: ='!LB15950.056'!B2:C2 -> <date> | C9: =('!LB15950.056'!D7/60)/'!LB15950.056'!Q3 -> 0.01470588235 | D9: ='!LB15950.056'!N20/'!LB15950.056'!Q3 -> 0.7450980392 | E9: =SUM('!LB15950.056'!L20:Q20)/'!LB15950.056'!Q3 -> 1.509803922 | F9: ='!LB15950.056'!Q16 -> 0.1956082552 | G9: =K3 -> 0.004473076604 | H9: 0.01003213041 | I9: 0.01171400469 | J9: 0.01012493864 | K9: 0.007051982865 | L9: 0.006294722313 | M9: =K4 -> 0.4873146568 | N9: 0.6959630713 | O9: 0.7998159446 | P9: 0.8064301459 | Q9: 0.8937376913 | R9: 0.8012603974 | S9: =K6 -> 0.2337584654 | T9: 0.1781983991 | U9: 0.1439390926 | V9: 0.1360695022 | W9: 0.1018335585 | X9: 0.1165985874
A10: 8 | B10: ='!LB16C50.056'!B2:C2 -> <date> | C10: =('!LB16C50.056'!D7/60)/'!LB16C50.056'!Q3 -> 0.008176100629 | D10: ='!LB16C50.056'!N20/'!LB16C50.056'!Q3 -> 0.7169811321 | E10: =SUM('!LB16C50.056'!L20:Q20)/'!LB16C50.056'!Q3 -> 1.283018868 | F10: ='!LB16C50.056'!Q16 -> 0.1846395089
A11: 9 | B11: ='!LB18B30.056'!B2:C2 -> <date> | C11: =('!LB18B30.056'!D7/60)/'!LB18B30.056'!Q3 -> 0.009803921569 | D11: ='!LB18B30.056'!N20/'!LB18B30.056'!Q3 -> 0.7647058824 | E11: =SUM('!LB18B30.056'!L20:Q20)/'!LB18B30.056'!Q3 -> 1.529411765 | F11: ='!LB18B30.056'!Q16 -> 0.1918863871
A12: 10 | B12: ='!LB19C50.056'!B2:C2 -> <date> | C12: =('!LB19C50.056'!D7/60)/'!LB19C50.056'!Q3 -> 0.01136363636 | D12: ='!LB19C50.056'!N20/'!LB19C50.056'!Q3 -> 0.8863636364 | E12: =SUM('!LB19C50.056'!L20:Q20)/'!LB19C50.056'!Q3 -> 1.5 | F12: ='!LB19C50.056'!Q16 -> 0.1085873307
A13: 11 | B13: ='!LB20B50.056'!B2:C2 -> <date> | C13: =('!LB20B50.056'!D7/60)/'!LB20B50.056'!Q3 -> 0.01401515152 | D13: ='!LB20B50.056'!N20/'!LB20B50.056'!Q3 -> 0.8863636364 | E13: =SUM('!LB20B50.056'!L20:Q20)/'!LB20B50.056'!Q3 -> 1.5 | F13: ='!LB20B50.056'!Q16 -> 0.09356062291
A14: 12 | B14: ='!LB21E50.056'!B2:C2 -> <date> | C14: =('!LB21E50.056'!D7/60)/'!LB21E50.056'!Q3 -> 0.008503401361 | D14: ='!LB21E50.056'!N20/'!LB21E50.056'!Q3 -> 0.7755102041 | E14: =SUM('!LB21E50.056'!L20:Q20)/'!LB21E50.056'!Q3 -> 1.551020408 | F14: ='!LB21E50.056'!Q16 -> 0.1368336798
A15: 13 | B15: ='!LB22A10.056'!B2:C2 -> <date> | C15: =('!LB22A10.056'!D7/60)/'!LB22A10.056'!Q3 -> 0.01466666667 | D15: ='!LB22A10.056'!N20/'!LB22A10.056'!Q3 -> 0.76 | E15: =SUM('!LB22A10.056'!L20:Q20)/'!LB22A10.056'!Q3 -> 1.34 | F15: ='!LB22A10.056'!Q16 -> 0.1755972561
A16: 14 | B16: ='!LB23C50.056'!B2:C2 -> <date> | C16: =('!LB23C50.056'!D7/60)/'!LB23C50.056'!Q3 -> 0.007843137255 | D16: ='!LB23C50.056'!N20/'!LB23C50.056'!Q3 -> 0.7647058824 | E16: =SUM('!LB23C50.056'!L20:Q20)/'!LB23C50.056'!Q3 -> 1.333333333 | F16: ='!LB23C50.056'!Q16 -> 0.1559289375
A17: 15 | B17: ='!LB24B50.056'!B2:C2 -> <date> | C17: =('!LB24B50.056'!D7/60)/'!LB24B50.056'!Q3 -> 0.01354166667 | D17: ='!LB24B50.056'!N20/'!LB24B50.056'!Q3 -> 0.8125 | E17: =SUM('!LB24B50.056'!L20:Q20)/'!LB24B50.056'!Q3 -> 1.395833333 | F17: ='!LB24B50.056'!Q16 -> 0.1577749666
A18: 16 | B18: ='!LB25D10.056'!B2:C2 -> <date> | C18: =('!LB25D10.056'!D7/60)/'!LB25D10.056'!Q3 -> 0.006284153005 | D18: ='!LB25D10.056'!N20/'!LB25D10.056'!Q3 -> 0.606557377 | E18: =SUM('!LB25D10.056'!L20:Q20)/'!LB25D10.056'!Q3 -> 1.131147541 | F18: ='!LB25D10.056'!Q16 -> 0.1904988231
A19: 17 | B19: ='!LB26C10.056'!B2:C2 -> <date> | C19: =('!LB26C10.056'!D7/60)/'!LB26C10.056'!Q3 -> 0.01477272727 | D19: ='!LB26C10.056'!N20/'!LB26C10.056'!Q3 -> 0.8863636364 | E19: =SUM('!LB26C10.056'!L20:Q20)/'!LB26C10.056'!Q3 -> 1.5 | F19: ='!LB26C10.056'!Q16 -> 0.1085873307
A20: 18 | B20: ='!LB27C00.056'!B2:C2 -> <date> | C20: =('!LB27C00.056'!D7/60)/'!LB27C00.056'!Q3 -> 0.01326530612 | D20: ='!LB27C00.056'!N20/'!LB27C00.056'!Q3 -> 0.7755102041 | E20: =SUM('!LB27C00.056'!L20:Q20)/'!LB27C00.056'!Q3 -> 1.346938776 | F20: ='!LB27C00.056'!Q16 -> 0.1641832051
A21: 19 | B21: ='!LB28B50.056'!B2:C2 -> <date> | C21: =('!LB28B50.056'!D7/60)/'!LB28B50.056'!Q3 -> 0.004513888889 | D21: ='!LB28B50.056'!N20/'!LB28B50.056'!Q3 -> 0.8125 | E21: =SUM('!LB28B50.056'!L20:Q20)/'!LB28B50.056'!Q3 -> 1.395833333 | F21: ='!LB28B50.056'!Q16 -> 0.1554876562
A22: 20 | B22: ='!LB30C10.056'!B2:C2 -> <date> | C22: =('!LB30C10.056'!D7/60)/'!LB30C10.056'!Q3 -> 0.01178861789 | D22: ='!LB30C10.056'!N20/'!LB30C10.056'!Q3 -> 0.9512195122 | E22: =SUM('!LB30C10.056'!L20:Q20)/'!LB30C10.056'!Q3 -> 1.585365854 | F22: ='!LB30C10.056'!Q16 -> 0.0615904958
A23: 21 | B23: ='!LC01B50.056'!B2:C2 -> <date> | C23: =('!LC01B50.056'!D7/60)/'!LC01B50.056'!Q3 -> 0.006097560976 | D23: ='!LC01B50.056'!N20/'!LC01B50.056'!Q3 -> 0.9512195122 | E23: =SUM('!LC01B50.056'!L20:Q20)/'!LC01B50.056'!Q3 -> 1.585365854 | F23: ='!LC01B50.056'!Q16 -> 0.0615904958
A24: 22 | B24: ='!LC02B00.056'!B2:C2 -> <date> | C24: =('!LC02B00.056'!D7/60)/'!LC02B00.056'!Q3 -> 0.00625 | D24: ='!LC02B00.056'!N20/'!LC02B00.056'!Q3 -> 0.8125 | E24: =SUM('!LC02B00.056'!L20:Q20)/'!LC02B00.056'!Q3 -> 1.395833333 | F24: ='!LC02B00.056'!Q16 -> 0.1700361518
A25: 23 | B25: ='!LC03E10.056'!B2:C2 -> <date> | C25: =('!LC03E10.056'!D7/60)/'!LC03E10.056'!Q3 -> 0.006349206349 | D25: ='!LC03E10.056'!N20/'!LC03E10.056'!Q3 -> 0.9285714286 | E25: =SUM('!LC03E10.056'!L20:Q20)/'!LC03E10.056'!Q3 -> 1.547619048 | F25: ='!LC03E10.056'!Q16 -> 0.06884467244
A26: 24 | B26: ='!LC04D40.056'!B2:C2 -> <date> | C26: =('!LC04D40.056'!D7/60)/'!LC04D40.056'!Q3 -> 0.009420289855 | D26: ='!LC04D40.056'!N20/'!LC04D40.056'!Q3 -> 0.847826087 | E26: =SUM('!LC04D40.056'!L20:Q20)/'!LC04D40.056'!Q3 -> 1.434782609 | F26: ='!LC04D40.056'!Q16 -> 0.1276877237
A27: 25 | B27: ='!LC05D40.056'!B2:C2 -> <date> | C27: =('!LC05D40.056'!D7/60)/'!LC05D40.056'!Q3 -> 0.007142857143 | D27: ='!LC05D40.056'!N20/'!LC05D40.056'!Q3 -> 0.9285714286 | E27: =SUM('!LC05D40.056'!L20:Q20)/'!LC05D40.056'!Q3 -> 1.523809524 | F27: ='!LC05D40.056'!Q16 -> 0.08100874855
A28: 26 | B28: ='!LC06A40.056'!B2:C2 -> <date> | C28: =('!LC06A40.056'!D7/60)/'!LC06A40.056'!Q3 -> 0.006349206349 | D28: ='!LC06A40.056'!N20/'!LC06A40.056'!Q3 -> 0.9285714286 | E28: =SUM('!LC06A40.056'!L20:Q20)/'!LC06A40.056'!Q3 -> 1.547619048 | F28: ='!LC06A40.056'!Q16 -> 0.06884467244
A29: 27 | B29: ='!LC07C50.056'!B2:C2 -> <date> | C29: =('!LC07C50.056'!D7/60)/'!LC07C50.056'!Q3 -> 0.004347826087 | D29: ='!LC07C50.056'!N20/'!LC07C50.056'!Q3 -> 0.8260869565 | E29: =SUM('!LC07C50.056'!L20:Q20)/'!LC07C50.056'!Q3 -> 1.413043478 | F29: ='!LC07C50.056'!Q16 -> 0.1206790769
A30: 28 | B30: ='!LC08A30.056'!B2:C2 -> <date> | C30: =('!LC08A30.056'!D7/60)/'!LC08A30.056'!Q3 -> 0.008187134503 | D30: ='!LC08A30.056'!N20/'!LC08A30.056'!Q3 -> 0.649122807 | E30: =SUM('!LC08A30.056'!L20:Q20)/'!LC08A30.056'!Q3 -> 1.368421053 | F30: ='!LC08A30.056'!Q16 -> 0.160272013
A31: 29
A32: 30

Sheet Start
F1: Use Folder 51 | H1: Auto Clean Up | J1: Correct sequence
F2: FALSE | H2: TRUE | J2: 12
A4: Working with Folder | G4: Process All/Or Pick A number: ALL or an integer
A5: E:\Hen Data\Raw Data\56\phase 4 Any\ | G5: ALL
A6: Filenames:
A7: !LB09D30.056 | G7: Paint Cells
A8: !LB10B30.056 | G8: FALSE
A9: !LB11B50.056
A10: !LB12C30.056
A11: !LB13C10.056
A12: !LB14B20.056
A13: !LB15950.056
A14: !LB16C50.056
A15: !LB18B30.056
A16: !LB19C50.056
A17: !LB20B50.056
A18: !LB21E50.056
A19: !LB22A10.056
A20: !LB23C50.056
A21: !LB24B50.056
A22: !LB25D10.056
A23: !LB26C10.056
A24: !LB27C00.056
A25: !LB28B50.056
A26: !LB30C10.056
A27: !LC01B50.056
A28: !LC02B00.056
A29: !LC03E10.056
A30: !LC04D40.056
A31: !LC05D40.056
A32: !LC06A40.056
A33: !LC07C50.056
A34: !LC08A30.056

Sheet !LB09D30.056
A1: Report for:!LB09D30.056
A2: Date: | B2: <date>
A3: Hen: | B3: <hen> | F3: Correct Sequence | G3: =Start!J2 -> 12 | P3: Total Sequences in Data | Q3: =4994-COUNTBLANK(L7:L5000) -> 107 | V3: Total Sequences in Block Data | W3: =COUNTA(L7:L24) -> 18 | AA3: Total Sequences in Block Data | AB3: =COUNTA(L25:L42) -> 18 | AF3: Total Sequences in Block Data | AG3: =COUNTA(L43:L59) -> 17 | AK3: Total Sequences in Block Data | AL3: =COUNTA(L60:L77) -> 18 | AP3: Total Sequences in Block Data | AQ3: =COUNTA(L78:L95) -> 18 | AU3: Total Sequences in Block Data | AV3: =COUNTA(L96:L113) -> 18
P4: Total Sequences in Summary | Q4: =SUM(O7:O14) -> 107 | V4: Total Sequences in Block Summary | W4: =SUM(U7:U14) -> 18 | AA4: Total Sequences in Block Summary | AB4: =SUM(Z7:Z14) -> 18 | AF4: Total Sequences in Block Summary | AG4: =SUM(AE7:AE14) -> 17 | AK4: Total Sequences in Block Summary | AL4: =SUM(AJ7:AJ14) -> 18 | AP4: Total Sequences in Block Summary | AQ4: =SUM(AO7:AO14) -> 18 | AU4: Total Sequences in Block Summary | AV4: =SUM(AT7:AT14) -> 18
T5: Block 1 | Y5: Block 2 | AD5: Block 3 | AI5: Block 4 | AN5: Block 5 | AS5: Block 6
A6: Sequence Component 1 | B6: Time 1 | C6: Sequence Component 2 | D6: Time 2 | E6: Sequence Component 3 | F6: Time 3 | G6: Sequence Component 4 | H6: Time 4 | I6: Sequence Component 5 | J6: Time 5 | K6: Correct? 0=No 1=Yes | L6: Sequence | N6: Frequency | P6: Relative Frequency | Q6: Variability | T6: Frequency | V6: Relative Frequency | W6: Variability | Y6: Frequency | AA6: Relative Frequency | AB6: Variability | AD6: Frequency | AF6: Relative Frequency | AG6: Variability | AI6: Frequency | AK6: Relative Frequency | AL6: Variability | AN6: Frequency | AP6: Relative Frequency | AQ6: Variability | AS6: Frequency | AU6: Relative Frequency | AV6: Variability
A7: 22 | B7: 9 | C7: 23 | D7: 15 | K7: 0 | L7: 22 | N7: 11 | O7: =COUNTIF($L$7:$L$500,N7) -> 11 | P7: =O7/$Q$4 -> 0.1028037383 | Q7: =IF(P7=0,0,(P7*((LOG(P7))/LOG(2)))) -> -0.3374055051 | T7: =N7 -> 11 | U7: =COUNTIF(L7:L24,T7) -> 0 | V7: =U7/(W4-U8) -> 0 | W7: =IF(V7=0,0,(V7*((LOG(V7))/LOG(2)))) -> 0 | Y7: =N7 -> 11 | Z7: =COUNTIF(L25:L42,Y7) -> 0 | AA7: =Z7/(AB4-Z8) -> 0 | AB7: =IF(AA7=0,0,(AA7*((LOG(AA7))/LOG(2)))) -> 0 | AD7: =N7 -> 11 | AE7: =COUNTIF(L43:L59,AD7) -> 1 | AF7: =AE7/(AG4-AE8) -> 0.0625 | AG7: =IF(AF7=0,0,(AF7*((LOG(AF7))/LOG(2)))) -> -0.25 | AI7: =N7 -> 11 | AJ7: =COUNTIF(L60:L77,AI7) -> 1 | AK7: =AJ7/(AL4-AJ8) -> 0.08333333333 | AL7: =IF(AK7=0,0,(AK7*((LOG(AK7))/LOG(2)))) -> -0.2987468751 | AN7: =N7 -> 11 | AO7: =COUNTIF(L78:L95,AN7) -> 4 | AP7: =AO7/(AQ4-AO8) -> 0.6666666667 | AQ7: =IF(AP7=0,0,(AP7*((LOG(AP7))/LOG(2)))) -> -0.3899750005 | AS7: =N7 -> 11 | AT7: =COUNTIF(L96:L113,AS7) -> 5 | AU7: =AT7/(AV4-AT8) -> 0.625 | AV7: =IF(AU7=0,0,(AU7*((LOG(AU7))/LOG(2)))) -> -0.4237949407
A8: 22 | B8: 117 | C8: 23 | D8: 122 | K8: 0 | L8: 22 | N8: 12 | O8: =COUNTIF($L$7:$L$500,N8) -> 32 | P8: =O8/$Q$4 -> 0.2990654206 | Q8: =IF(P8=0,0,(P8*((LOG(P8))/LOG(2)))) -> -0.5208125567 | T8: =N8 -> 12 | U8: =COUNTIF(L7:L24,T8) -> 2 | Y8: =N8 -> 12 | Z8: =COUNTIF(L25:L42,Y8) -> 1 | AD8: =N8 -> 12 | AE8: =COUNTIF(L43:L59,AD8) -> 1 | AI8: =N8 -> 12 | AJ8: =COUNTIF(L60:L77,AI8) -> 6 | AN8: =N8 -> 12 | AO8: =COUNTIF(L78:L95,AN8) -> 12 | AS8: =N8 -> 12 | AT8: =COUNTIF(L96:L113,AS8) -> 10
A9: 22 | B9: 224 | C9: 23 | D9: 228 | K9: 0 | L9: 22 | N9: 21 | O9: =COUNTIF($L$7:$L$500,N9) -> 1 | P9: =O9/$Q$4 -> 0.009345794393 | Q9: =IF(P9=0,0,(P9*((LOG(P9))/LOG(2)))) -> -0.06300436436 | T9: =N9 -> 21 | U9: =COUNTIF(L7:L24,T9) -> 0 | V9: =U9/(W4-U8) -> 0 | W9: =IF(V9=0,0,(V9*((LOG(V9))/LOG(2)))) -> 0 | Y9: =N9 -> 21 | Z9: =COUNTIF(L25:L42,Y9) -> 0 | AA9: =Z9/(AB4-Z8) -> 0 | AB9: =IF(AA9=0,0,(AA9*((LOG(AA9))/LOG(2)))) -> 0 | AD9: =N9 -> 21 | AE9: =COUNTIF(L43:L59,AD9) -> 1 | AF9: =AE9/(AG4-AE8) -> 0.0625 | AG9: =IF(AF9=0,0,(AF9*((LOG(AF9))/LOG(2)))) -> -0.25 | AI9: =N9 -> 21 | AJ9: =COUNTIF(L60:L77,AI9) -> 0 | AK9: =AJ9/(AL4-AJ8) -> 0 | AL9: =IF(AK9=0,0,(AK9*((LOG(AK9))/LOG(2)))) -> 0 | AN9: =N9 -> 21 | AO9: =COUNTIF(L78:L95,AN9) -> 0 | AP9: =AO9/(AQ4-AO8) -> 0 | AQ9: =IF(AP9=0,0,(AP9*((LOG(AP9))/LOG(2)))) -> 0 | AS9: =N9 -> 21 | AT9: =COUNTIF(L96:L113,AS9) -> 0 | AU9: =AT9/(AV4-AT8) -> 0 | AV9: =IF(AU9=0,0,(AU9*((LOG(AU9))/LOG(2)))) -> 0
A10: 22 | B10: 331 | C10: 23 | D10: 336 | K10: 0 | L10: 22 | N10: 22 | O10: =COUNTIF($L$7:$L$500,N10) -> 63 | P10: =O10/$Q$4 -> 0.5887850467 | Q10: =IF(P10=0,0,(P10*((LOG(P10))/LOG(2)))) -> -0.4499419155 | T10: =N10 -> 22 | U10: =COUNTIF(L7:L24,T10) -> 16 | V10: =U10/(W4-U8) -> 1 | W10: =IF(V10=0,0,(V10*((LOG(V10))/LOG(2)))) -> 0 | Y10: =N10 -> 22 | Z10: =COUNTIF(L25:L42,Y10) -> 17 | AA10: =Z10/(AB4-Z8) -> 1 | AB10: =IF(AA10=0,0,(AA10*((LOG(AA10))/LOG(2)))) -> 0 | AD10: =N10 -> 22 | AE10: =COUNTIF(L43:L59,AD10) -> 14 | AF10: =AE10/(AG4-AE8) -> 0.875 | AG10: =IF(AF10=0,0,(AF10*((LOG(AF10))/LOG(2)))) -> -0.1685644432 | AI10: =N10 -> 22 | AJ10: =COUNTIF(L60:L77,AI10) -> 11 | AK10: =AJ10/(AL4-AJ8) -> 0.9166666667 | AL10: =IF(AK10=0,0,(AK10*((LOG(AK10))/LOG(2)))) -> -0.1150699752 | AN10: =N10 -> 22 | AO10: =COUNTIF(L78:L95,AN10) -> 2 | AP10: =AO10/(AQ4-AO8) -> 0.3333333333 | AQ10: =IF(AP10=0,0,(AP10*((LOG(AP10))/LOG(2)))) -> -0.5283208336 | AS10: =N10 -> 22 | AT10: =COUNTIF(L96:L113,AS10) -> 3 | AU10: =AT10/(AV4-AT8) -> 0.375 | AV10: =IF(AU10=0,0,(AU10*((LOG(AU10))/LOG(2)))) -> -0.5306390622
A11: 22 | B11: 438 | C11: 23 | D11: 443 | K11: 0 | L11: 22 | T11: =N11 -> 0 | U11: =COUNTIF(L7:L24,T11) -> 0 | V11: =U11/(W4-U8) -> 0 | W11: =IF(V11=0,0,(V11*((LOG(V11))/LOG(2)))) -> 0 | Y11: =N11 -> 0 | Z11: =COUNTIF(L25:L42,Y11) -> 0 | AA11: =Z11/(AB4-Z8) -> 0 | AB11: =IF(AA11=0,0,(AA11*((LOG(AA11))/LOG(2)))) -> 0 | AD11: =N11 -> 0 | AE11: =COUNTIF(L43:L59,AD11) -> 0 | AF11: =AE11/(AG4-AE8) -> 0 | AG11: =IF(AF11=0,0,(AF11*((LOG(AF11))/LOG(2)))) -> 0 | AI11: =N11 -> 0 | AJ11: =COUNTIF(L60:L77,AI11) -> 0 | AK11: =AJ11/(AL4-AJ8) -> 0 | AL11: =IF(AK11=0,0,(AK11*((LOG(AK11))/LOG(2)))) -> 0 | AN11: =N11 -> 0 | AO11: =COUNTIF(L78:L95,AN11) -> 0 | AP11: =AO11/(AQ4-AO8) -> 0 | AQ11: =IF(AP11=0,0,(AP11*((LOG(AP11))/LOG(2)))) -> 0 | AS11: =N11 -> 0 | AT11: =COUNTIF(L96:L113,AS11) -> 0 | AU11: =AT11/(AV4-AT8) -> 0 | AV11: =IF(AU11=0,0,(AU11*((LOG(AU11))/LOG(2)))) -> 0
A12: 22 | B12: 552 | C12: 23 | D12: 557 | K12: 0 | L12: 22 | T12: =N12 -> 0 | U12: =COUNTIF(L7:L24,T12) -> 0 | V12: =U12/(W4-U8) -> 0 | W12: =IF(V12=0,0,(V12*((LOG(V12))/LOG(2)))) -> 0 | Y12: =N12 -> 0 | Z12: =COUNTIF(L25:L42,Y12) -> 0 | AA12: =Z12/(AB4-Z8) -> 0 | AB12: =IF(AA12=0,0,(AA12*((LOG(AA12))/LOG(2)))) -> 0 | AD12: =N12 -> 0 | AE12: =COUNTIF(L43:L59,AD12) -> 0 | AF12: =AE12/(AG4-AE8) -> 0 | AG12: =IF(AF12=0,0,(AF12*((LOG(AF12))/LOG(2)))) -> 0 | AI12: =N12 -> 0 | AJ12: =COUNTIF(L60:L77,AI12) -> 0 | AK12: =AJ12/(AL4-AJ8) -> 0 | AL12: =IF(AK12=0,0,(AK12*((LOG(AK12))/LOG(2)))) -> 0 | AN12: =N12 -> 0 | AO12: =COUNTIF(L78:L95,AN12) -> 0 | AP12: =AO12/(AQ4-AO8) -> 0 | AQ12: =IF(AP12=0,0,(AP12*((LOG(AP12))/LOG(2)))) -> 0 | AS12: =N12 -> 0 | AT12: =COUNTIF(L96:L113,AS12) -> 0 | AU12: =AT12/(AV4-AT8) -> 0 | AV12: =IF(AU12=0,0,(AU12*((LOG(AU12))/LOG(2)))) -> 0
A13: 22 | B13: 674 | C13: 23 | D13: 679 | K13: 0 | L13: 22 | T13: =N13 -> 0 | U13: =COUNTIF(L7:L24,T13) -> 0 | V13: =U13/(W4-U8) -> 0 | W13: =IF(V13=0,0,(V13*((LOG(V13))/LOG(2)))) -> 0 | Y13: =N13 -> 0 | Z13: =COUNTIF(L25:L42,Y13) -> 0 | AA13: =Z13/(AB4-Z8) -> 0 | AB13: =IF(AA13=0,0,(AA13*((LOG(AA13))/LOG(2)))) -> 0 | AD13: =N13 -> 0 | AE13: =COUNTIF(L43:L59,AD13) -> 0 | AF13: =AE13/(AG4-AE8) -> 0 | AG13: =IF(AF13=0,0,(AF13*((LOG(AF13))/LOG(2)))) -> 0 | AI13: =N13 -> 0 | AJ13: =COUNTIF(L60:L77,AI13) -> 0 | AK13: =AJ13/(AL4-AJ8) -> 0 | AL13: =IF(AK13=0,0,(AK13*((LOG(AK13))/LOG(2)))) -> 0 | AN13: =N13 -> 0 | AO13: =COUNTIF(L78:L95,AN13) -> 0 | AP13: =AO13/(AQ4-AO8) -> 0 | AQ13: =IF(AP13=0,0,(AP13*((LOG(AP13))/LOG(2)))) -> 0 | AS13: =N13 -> 0 | AT13: =COUNTIF(L96:L113,AS13) -> 0 | AU13: =AT13/(AV4-AT8) -> 0 | AV13: =IF(AU13=0,0,(AU13*((LOG(AU13))/LOG(2)))) -> 0
A14: 22 | B14: 780 | C14: 23 | D14: 786 | K14: 0 | L14: 22 | T14: =N14 -> 0 | U14: =COUNTIF(L7:L24,T14) -> 0 | V14: =U14/(W4-U8) -> 0 | W14: =IF(V14=0,0,(V14*((LOG(V14))/LOG(2)))) -> 0 | Y14: =N14 -> 0 | Z14: =COUNTIF(L25:L42,Y14) -> 0 | AA14: =Z14/(AB4-Z8) -> 0 | AB14: =IF(AA14=0,0,(AA14*((LOG(AA14))/LOG(2)))) -> 0 | AD14: =N14 -> 0 | AE14: =COUNTIF(L43:L59,AD14) -> 0 | AF14: =AE14/(AG4-AE8) -> 0 | AG14: =IF(AF14=0,0,(AF14*((LOG(AF14))/LOG(2)))) -> 0 | AI14: =N14 -> 0 | AJ14: =COUNTIF(L60:L77,AI14) -> 0 | AK14: =AJ14/(AL4-AJ8) -> 0 | AL14: =IF(AK14=0,0,(AK14*((LOG(AK14))/LOG(2)))) -> 0 | AN14: =N14 -> 0 | AO14: =COUNTIF(L78:L95,AN14) -> 0 | AP14: =AO14/(AQ4-AO8) -> 0 | AQ14: =IF(AP14=0,0,(AP14*((LOG(AP14))/LOG(2)))) -> 0 | AS14: =N14 -> 0 | AT14: =COUNTIF(L96:L113,AS14) -> 0 | AU14: =AT14/(AV4-AT8) -> 0 | AV14: =IF(AU14=0,0,(AU14*((LOG(AU14))/LOG(2)))) -> 0
A15: 11 | B15: 886 | C15: 21 | D15: 897 | K15: 0 | L15: 12 | P15: =SUM(P7:P14) -> 1 | Q15: =-SUM(Q7:Q14) -> 1.371164342 | V15: =SUM(V7:V14) -> 1 | W15: =-SUM(W7:W14) -> 0 | AA15: =SUM(AA7:AA14) -> 1 | AB15: =-SUM(AB7:AB14) -> 0 | AF15: =SUM(AF7:AF14) -> 1 | AG15: =-SUM(AG7:AG14) -> 0.6685644432 | AK15: =SUM(AK7:AK14) -> 1 | AL15: =-SUM(AL7:AL14) -> 0.4138168503 | AP15: =SUM(AP7:AP14) -> 1 | AQ15: =-SUM(AQ7:AQ14) -> 0.9182958341 | AU15: =SUM(AU7:AU14) -> 1 | AV15: =-SUM(AV7:AV14) -> 0.9544340029
A16: 22 | B16: 991 | C16: 23 | D16: 996 | K16: 0 | L16: 22 | P16: U= | Q16: =Q15/(LOG(Q4)/LOG(2)) -> 0.2033925768 | V16: U1= | W16: =W15/(LOG(W4)/LOG(2)) -> 0 | AA16: U2= | AB16: =AB15/(LOG(AB4)/LOG(2)) -> 0 | AF16: U3= | AG16: =AG15/(LOG(AG4)/LOG(2)) -> 0.1635646535 | AK16: U4= | AL16: =AL15/(LOG(AL4)/LOG(2)) -> 0.09923843958 | AP16: U5= | AQ16: =AQ15/(LOG(AQ4)/LOG(2)) -> 0.220218789 | AU16: U6= | AV16: =AV15/(LOG(AV4)/LOG(2)) -> 0.2288851724
A17: 22 | B17: 1099 | C17: 23 | D17: 1106 | K17: 0 | L17: 22
A18: 22 | B18: 1208 | C18: 23 | D18: 1213 | K18: 0 | L18: 22
A19: 22 | B19: 1305 | C19: 23 | D19: 1317 | K19: 0 | L19: 22 | N19: Total Target Seq
A20: 22 | B20: 1415 | C20: 23 | D20: 1419 | K20: 0 | L20: 22 | N20: =COUNTIF(L7:L113,G3) -> 32 | P20: 18 | Q20: 18 | R20: 17 | S20: 18 | T20: 18 | U20: 18
A21: 22 | B21: 1522 | C21: 23 | D21: 1527 | K21: 0 | L21: 22 | P21: % of reinforcement given in 6 equal intervals based on number of trials
A22: 11 | B22: 1629 | C22: 21 | D22: 1639 | K22: 0 | L22: 12 | P22: %_1 | Q22: %_2 | R22: %_3 | S22: %_4 | T22: %_5 | U22: %_6
A23: 22 | B23: 1734 | C23: 23 | D23: 1740 | K23: 0 | L23: 22 | O23: target sequence | P23: =$G$3 -> 12 | Q23: =$G$3 -> 12 | R23: =$G$3 -> 12 | S23: =$G$3 -> 12 | T23: =$G$3 -> 12 | U23: =$G$3 -> 12
A24: 22 | B24: 1834 | C24: 23 | D24: 1842 | K24: 0 | L24: 22 | O24: total reinforcement | P24: =U8 -> 2 | Q24: =Z8 -> 1 | R24: =AE8 -> 1 | S24: =AJ8 -> 6 | T24: =AO8 -> 12 | U24: =AT8 -> 10
A25: 22 | B25: 1943 | C25: 23 | D25: 1952 | K25: 0 | L25: 22 | O25: % target
A26: 22 | B26: 2054 | C26: 23 | D26: 2059 | K26: 0 | L26: 22 | O26: CCRF
A27: 22 | B27: 2151 | C27: 23 | D27: 2156 | K27: 0 | L27: 22 | O27: % CCRf
A28: 22 | B28: 2248 | C28: 23 | D28: 2254 | K28: 0 | L28: 22 | O28: average response rate | P28: =D24/P20 -> 102.3333333 | Q28: =(D42-D24)/Q20 -> 103.7777778 | R28: =(D59-D42)/R20 -> 106.1176471 | S28: =(D77-D59)/S20 -> 106.2222222 | T28: =(D95-D77)/T20 -> 102.1666667 | U28: =(D113-D95)/U20 -> 105.3333333
A29: 22 | B29: 2356 | C29: 23 | D29: 2364 | K29: 0 | L29: 22
A30: 22 | B30: 2466 | C30: 23 | D30: 2471 | K30: 0 | L30: 22
A31: 22 | B31: 2575 | C31: 23 | D31: 2580 | K31: 0 | L31: 22
A32: 22 | B32: 2671 | C32: 23 | D32: 2676 | K32: 0 | L32: 22
A33: 22 | B33: 2777 | C33: 23 | D33: 2781 | K33: 0 | L33: 22
A34: 22 | B34: 2871 | C34: 23 | D34: 2875 | K34: 0 | L34: 22
A35: 11 | B35: 2972 | C35: 21 | D35: 2996 | K35: 0 | L35: 12
A36: 22 | B36: 3088 | C36: 23 | D36: 3092 | K36: 0 | L36: 22
A37: 22 | B37: 3190 | C37: 23 | D37: 3194 | K37: 0 | L37: 22
A38: 22 | B38: 3291 | C38: 23 | D38: 3295 | K38: 0 | L38: 22
A39: 22 | B39: 3393 | C39: 23 | D39: 3398 | K39: 0 | L39: 22
A40: 22 | B40: 3497 | C40: 23 | D40: 3501 | K40: 0 | L40: 22
A41: 22 | B41: 3602 | C41: 23 | D41: 3607 | K41: 0 | L41: 22
A42: 22 | B42: 3706 | C42: 23 | D42: 3710 | K42: 0 | L42: 22
A43: 22 | B43: 3808 | C43: 23 | D43: 3812 | K43: 0 | L43: 22
A44: 22 | B44: 3914 | C44: 23 | D44: 3918 | K44: 0 | L44: 22
A45: 22 | B45: 4027 | C45: 23 | D45: 4042 | K45: 0 | L45: 22
A46: 22 | B46: 4135 | C46: 23 | D46: 4139 | K46: 0 | L46: 22
A47: 22 | B47: 4235 | C47: 23 | D47: 4242 | K47: 0 | L47: 22
A48: 22 | B48: 4340 | C48: 23 | D48: 4344 | K48: 0 | L48: 22
A49: 22 | B49: 4444 | C49: 23 | D49: 4449 | K49: 0 | L49: 22
A50: 22 | B50: 4546 | C50: 23 | D50: 4551 | K50: 0 | L50: 22
A51: 22 | B51: 4647 | C51: 23 | D51: 4651 | K51: 0 | L51: 22
A52: 11 | B52: 4757 | C52: 21 | D52: 4767 | K52: 0 | L52: 12
A53: 22 | B53: 4858 | C53: 23 | D53: 4863 | K53: 0 | L53: 22
A54: 22 | B54: 4962 | C54: 14 | D54: 4977 | K54: 0 | L54: 21
A55: 22 | B55: 5079 | C55: 23 | D55: 5083 | K55: 0 | L55: 22
A56: 22 | B56: 5184 | C56: 23 | D56: 5188 | K56: 0 | L56: 22
A57: 22 | B57: 5294 | C57: 23 | D57: 5298 | K57: 0 | L57: 22
A58: 22 | B58: 5400 | C58: 23 | D58: 5404 | K58: 0 | L58: 22
A59: 11 | B59: 5509 | C59: 12 | D59: 5514 | K59: 0 | L59: 11
A60: 22 | B60: 5609 | C60: 23 | D60: 5614 | K60: 0 | L60: 22
A61: 22 | B61: 5714 | C61: 23 | D61: 5719 | K61: 0 | L61: 22
A62: 11 | B62: 5820 | C62: 21 | D62: 5830 | K62: 0 | L62: 12
A63: 22 | B63: 5923 | C63: 23 | D63: 5931 | K63: 0 | L63: 22
A64: 22 | B64: 6030 | C64: 23 | D64: 6035 | K64: 0 | L64: 22
A65: 22 | B65: 6131 | C65: 23 | D65: 6142 | K65: 0 | L65: 22
A66: 22 | B66: 6241 | C66: 23 | D66: 6246 | K66: 0 | L66: 22
A67: 22 | B67: 6342 | C67: 23 | D67: 6348 | K67: 0 | L67: 22
A68: 22 | B68: 6446 | C68: 23 | D68: 6459 | K68: 0 | L68: 22
A69: 22 | B69: 6557 | C69: 23 | D69: 6562 | K69: 0 | L69: 22
A70: 22 | B70: 6657 | C70: 23 | D70: 6662 | K70: 0 | L70: 22
A71: 11 | B71: 6762 | C71: 21 | D71: 6772 | K71: 0 | L71: 12
A72: 11 | B72: 6864 | C72: 12 | D72: 6869 | K72: 0 | L72: 11
A73: 11 | B73: 6967 | C73: 21 | D73: 6994 | K73: 0 | L73: 12
A74: 22 | B74: 7093 | C74: 23 | D74: 7098 | K74: 0 | L74: 22
A75: 11 | B75: 7198 | C75: 21 | D75: 7218 | K75: 0 | L75: 12
A76: 11 | B76: 7308 | C76: 21 | D76: 7327 | K76: 0 | L76: 12
A77: 11 | B77: 7417 | C77: 21 | D77: 7426 | K77: 0 | L77: 12
A78: 11 | B78: 7518 | C78: 21 | D78: 7527 | K78: 0 | L78: 12
A79: 11 | B79: 7615 | C79: 12 | D79: 7624 | K79: 0 | L79: 11
A80: 11 | B80: 7721 | C80: 21 | D80: 7741 | K80: 0 | L80: 12
A81: 11 | B81: 7837 | C81: 21 | D81: 7847 | K81: 0 | L81: 12
A82: 11 | B82: 7935 | C82: 21 | D82: 7961 | K82: 0 | L82: 12
A83: 11 | B83: 8048 | C83: 21 | D83: 8058 | K83: 0 | L83: 12
A84: 11 | B84: 8145 | C84: 21 | D84: 8161 | K84: 0 | L84: 12
A85: 11 | B85: 8247 | C85: 12 | D85: 8252 | K85: 0 | L85: 11
A86: 11 | B86: 8348 | C86: 21 | D86: 8357 | K86: 0 | L86: 12
A87: 11 | B87: 8442 | C87: 21 | D87: 8459 | K87: 0 | L87: 12
A88: 11 | B88: 8548 | C88: 21 | D88: 8565 | K88: 0 | L88: 12
A89: 22 | B89: 8658 | C89: 23 | D89: 8665 | K89: 0 | L89: 22
A90: 11 | B90: 8760 | C90: 21 | D90: 8769 | K90: 0 | L90: 12
A91: 11 | B91: 8854 | C91: 12 | D91: 8860 | K91: 0 | L91: 11
A92: 22 | B92: 8960 | C92: 23 | D92: 8967 | K92: 0 | L92: 22
A93: 11 | B93: 9065 | C93: 21 | D93: 9073 | K93: 0 | L93: 12
A94: 11 | B94: 9163 | C94: 21 | D94: 9173 | K94: 0 | L94: 12
A95: 11 | B95: 9260 | C95: 12 | D95: 9265 | K95: 0 | L95: 11
A96: 11 | B96: 9361 | C96: 12 | D96: 9365 | K96: 0 | L96: 11
A97: 11 | B97: 9462 | C97: 21 | D97: 9479 | K97: 0 | L97: 12
A98: 11 | B98: 9565 | C98: 12 | D98: 9570 | K98: 0 | L98: 11
A99: 22 | B99: 9680 | C99: 23 | D99: 9687 | K99: 0 | L99: 22
A100: 11 | B100: 9792 | C100: 21 | D100: 9802 | K100: 0 | L100: 12
A101: 11 | B101: 9893 | C101: 21 | D101: 9904 | K101: 0 | L101: 12
A102: 11 | B102: 9993 | C102: 21 | D102: 10009 | K102: 0 | L102: 12
A103: 11 | B103: 10096 | C103: 21 | D103: 10122 | K103: 0 | L103: 12
A104: 22 | B104: 10210 | C104: 23 | D104: 10217 | K104: 0 | L104: 22
A105: 11 | B105: 10316 | C105: 21 | D105: 10325 | K105: 0 | L105: 12
A106: 11 | B106: 10414 | C106: 12 | D106: 10420 | K106: 0 | L106: 11
A107: 11 | B107: 10516 | C107: 12 | D107: 10521 | K107: 0 | L107: 11
A108: 11 | B108: 10619 | C108: 21 | D108: 10629 | K108: 0 | L108: 12
A109: 11 | B109: 10725 | C109: 12 | D109: 10734 | K109: 0 | L109: 11
A110: 22 | B110: 10835 | C110: 23 | D110: 10840 | K110: 0 | L110: 22
A111: 11 | B111: 10939 | C111: 21 | D111: 10952 | K111: 0 | L111: 12
A112: 11 | B112: 11042 | C112: 21 | D112: 11055 | K112: 0 | L112: 12
A113: 11 | B113: 11145 | C113: 21 | D113: 11161 | K113: 1 | L113: 12

Sheet !LB10B30.056
A1: Report for:!LB10B30.056
A2: Date: | B2: <date>
A3: Hen: | B3: <hen> | F3: Correct Sequence | G3: =Start!J2 -> 12 | P3: Total Sequences in Data | Q3: =4994-COUNTBLANK(L7:L5000) -> 65 | V3: Total Sequences in Block Data | W3: =COUNTA(L7:L17) -> 11 | AA3: Total Sequences in Block Data | AB3: =COUNTA(L18:L28) -> 11 | AF3: Total Sequences in Block Data | AG3: =COUNTA(L29:L38) -> 10 | AK3: Total Sequences in Block Data | AL3: =COUNTA(L39:L49) -> 11 | AP3: Total Sequences in Block Data | AQ3: =COUNTA(L50:L60) -> 11 | AU3: Total Sequences in Block Data | AV3: =COUNTA(L61:L71) -> 11
P4: Total Sequences in Summary | Q4: =SUM(O7:O14) -> 65 | V4: Total Sequences in Block Summary | W4: =SUM(U7:U14) -> 11 | AA4: Total Sequences in Block Summary | AB4: =SUM(Z7:Z14) -> 11 | AF4: Total Sequences in Block Summary | AG4: =SUM(AE7:AE14) -> 10 | AK4: Total Sequences in Block Summary | AL4: =SUM(AJ7:AJ14) -> 11 | AP4: Total Sequences in Block Summary | AQ4: =SUM(AO7:AO14) -> 11 | AU4: Total Sequences in Block Summary | AV4: =SUM(AT7:AT14) -> 11
T5: Block 1 | Y5: Block 2 | AD5: Block 3 | AI5: Block 4 | AN5: Block 5 | AS5: Block 6
A6: Sequence Component 1 | B6: Time 1 | C6: Sequence Component 2 | D6: Time 2 | E6: Sequence Component 3 | F6: Time 3 | G6: Sequence Component 4 | H6: Time 4 | I6: Sequence Component 5 | J6: Time 5 | K6: Correct? 0=No 1=Yes | L6: Sequence | N6: Frequency | P6: Relative Frequency | Q6: Variability | T6: Frequency | V6: Relative Frequency | W6: Variability | Y6: Frequency | AA6: Relative Frequency | AB6: Variability | AD6: Frequency | AF6: Relative Frequency | AG6: Variability | AI6: Frequency | AK6: Relative Frequency | AL6: Variability | AN6: Frequency | AP6: Relative Frequency | AQ6: Variability | AS6: Frequency | AU6: Relative Frequency | AV6: Variability
A7: 22 | B7: 12 | C7: 23 | D7: 20 | K7: 0 | L7: 22 | N7: 11 | O7: =COUNTIF($L$7:$L$500,N7) -> 2 | P7: =O7/$Q$4 -> 0.03076923077 | Q7: =IF(P7=0,0,(P7*((LOG(P7))/LOG(2)))) -> -0.1545343942 | T7: =N7 -> 11 | U7: =COUNTIF(L7:L17,T7) -> 1 | V7: =U7/(W4-U8) -> 0.1428571429 | W7: =IF(V7=0,0,(V7*((LOG(V7))/LOG(2)))) -> -0.4010507032 | Y7: =N7 -> 11 | Z7: =COUNTIF(L18:L28,Y7) -> 0 | AA7: =Z7/(AB4-Z8) -> 0 | AB7: =IF(AA7=0,0,(AA7*((LOG(AA7))/LOG(2)))) -> 0 | AD7: =N7 -> 11 | AE7: =COUNTIF(L29:L38,AD7) -> 0 | AF7: =AE7/(AG4-AE8) -> 0 | AG7: =IF(AF7=0,0,(AF7*((LOG(AF7))/LOG(2)))) -> 0 | AI7: =N7 -> 11 | AJ7: =COUNTIF(L39:L49,AI7) -> 0 | AK7: =AJ7/(AL4-AJ8) -> 0 | AL7: =IF(AK7=0,0,(AK7*((LOG(AK7))/LOG(2)))) -> 0 | AN7: =N7 -> 11 | AO7: =COUNTIF(L50:L60,AN7) -> 0 | AP7: =AO7/(AQ4-AO8) -> 0 | AQ7: =IF(AP7=0,0,(AP7*((LOG(AP7))/LOG(2)))) -> 0 | AS7: =N7 -> 11 | AT7: =COUNTIF(L61:L71,AS7) -> 1 | AU7: =AT7/(AV4-AT8) -> 1 | AV7: =IF(AU7=0,0,(AU7*((LOG(AU7))/LOG(2)))) -> 0
A8: 22 | B8: 124 | C8: 23 | D8: 133 | K8: 0 | L8: 22 | N8: 12 | O8: =COUNTIF($L$7:$L$500,N8) -> 35 | P8: =O8/$Q$4 -> 0.5384615385 | Q8: =IF(P8=0,0,(P8*((LOG(P8))/LOG(2)))) -> -0.4808918133 | T8: =N8 -> 12 | U8: =COUNTIF(L7:L17,T8) -> 4 | Y8: =N8 -> 12 | Z8: =COUNTIF(L18:L28,Y8) -> 3 | AD8: =N8 -> 12 | AE8: =COUNTIF(L29:L38,AD8) -> 4 | AI8: =N8 -> 12 | AJ8: =COUNTIF(L39:L49,AI8) -> 8 | AN8: =N8 -> 12 | AO8: =COUNTIF(L50:L60,AN8) -> 6 | AS8: =N8 -> 12 | AT8: =COUNTIF(L61:L71,AS8) -> 10
A9: 11 | B9: 235 | C9: 21 | D9: 246 | K9: 0 | L9: 12 | N9: 21 | O9: =COUNTIF($L$7:$L$500,N9) -> 5 | P9: =O9/$Q$4 -> 0.07692307692 | Q9: =IF(P9=0,0,(P9*((LOG(P9))/LOG(2)))) -> -0.2846492091 | T9: =N9 -> 21 | U9: =COUNTIF(L7:L17,T9) -> 0 | V9: =U9/(W4-U8) -> 0 | W9: =IF(V9=0,0,(V9*((LOG(V9))/LOG(2)))) -> 0 | Y9: =N9 -> 21 | Z9: =COUNTIF(L18:L28,Y9) -> 0 | AA9: =Z9/(AB4-Z8) -> 0 | AB9: =IF(AA9=0,0,(AA9*((LOG(AA9))/LOG(2)))) -> 0 | AD9: =N9 -> 21 | AE9: =COUNTIF(L29:L38,AD9) -> 1 | AF9: =AE9/(AG4-AE8) -> 0.1666666667 | AG9: =IF(AF9=0,0,(AF9*((LOG(AF9))/LOG(2)))) -> -0.4308270835 | AI9: =N9 -> 21 | AJ9: =COUNTIF(L39:L49,AI9) -> 2 | AK9: =AJ9/(AL4-AJ8) -> 0.6666666667 | AL9: =IF(AK9=0,0,(AK9*((LOG(AK9))/LOG(2)))) -> -0.3899750005 | AN9: =N9 -> 21 | AO9: =COUNTIF(L50:L60,AN9) -> 2 | AP9: =AO9/(AQ4-AO8) -> 0.4 | AQ9: =IF(AP9=0,0,(AP9*((LOG(AP9))/LOG(2)))) -> -0.528771238 | AS9: =N9 -> 21 | AT9: =COUNTIF(L61:L71,AS9) -> 0 | AU9: =AT9/(AV4-AT8) -> 0 | AV9: =IF(AU9=0,0,(AU9*((LOG(AU9))/LOG(2)))) -> 0
A10: 11 | B10: 344 | C10: 12 | D10: 367 | K10: 0 | L10: 11 | N10: 22 | O10: =COUNTIF($L$7:$L$500,N10) -> 23 | P10: =O10/$Q$4 -> 0.3538461538 | Q10: =IF(P10=0,0,(P10*((LOG(P10))/LOG(2)))) -> -0.5303466879 | T10: =N10 -> 22 | U10: =COUNTIF(L7:L17,T10) -> 6 | V10: =U10/(W4-U8) -> 0.8571428571 | W10: =IF(V10=0,0,(V10*((LOG(V10))/LOG(2)))) -> -0.1906220754 | Y10: =N10 -> 22 | Z10: =COUNTIF(L18:L28,Y10) -> 8 | AA10: =Z10/(AB4-Z8) -> 1 | AB10: =IF(AA10=0,0,(AA10*((LOG(AA10))/LOG(2)))) -> 0 | AD10: =N10 -> 22 | AE10: =COUNTIF(L29:L38,AD10) -> 5 | AF10: =AE10/(AG4-AE8) -> 0.8333333333 | AG10: =IF(AF10=0,0,(AF10*((LOG(AF10))/LOG(2)))) -> -0.2191953382 | AI10: =N10 -> 22 | AJ10: =COUNTIF(L39:L49,AI10) -> 1 | AK10: =AJ10/(AL4-AJ8) -> 0.3333333333 | AL10: =IF(AK10=0,0,(AK10*((LOG(AK10))/LOG(2)))) -> -0.5283208336 | AN10: =N10 -> 22 | AO10: =COUNTIF(L50:L60,AN10) -> 3 | AP10: =AO10/(AQ4-AO8) -> 0.6 | AQ10: =IF(AP10=0,0,(AP10*((LOG(AP10))/LOG(2)))) -> -0.4421793565 | AS10: =N10 -> 22 | AT10: =COUNTIF(L61:L71,AS10) -> 0 | AU10: =AT10/(AV4-AT8) -> 0 | AV10: =IF(AU10=0,0,(AU10*((LOG(AU10))/LOG(2)))) -> 0
A11: 22 | B11: 474 | C11: 23 | D11: 499 | K11: 0 | L11: 22 | T11: =N11 -> 0 | U11: =COUNTIF(L7:L17,T11) -> 0 | V11: =U11/(W4-U8) -> 0 | W11: =IF(V11=0,0,(V11*((LOG(V11))/LOG(2)))) -> 0 | Y11: =N11 -> 0 | Z11: =COUNTIF(L18:L28,Y11) -> 0 | AA11: =Z11/(AB4-Z8) -> 0 | AB11: =IF(AA11=0,0,(AA11*((LOG(AA11))/LOG(2)))) -> 0 | AD11: =N11 -> 0 | AE11: =COUNTIF(L29:L38,AD11) -> 0 | AF11: =AE11/(AG4-AE8) -> 0 | AG11: =IF(AF11=0,0,(AF11*((LOG(AF11))/LOG(2)))) -> 0 | AI11: =N11 -> 0 | AJ11: =COUNTIF(L39:L49,AI11) -> 0 | AK11: =AJ11/(AL4-AJ8) -> 0 | AL11: =IF(AK11=0,0,(AK11*((LOG(AK11))/LOG(2)))) -> 0 | AN11: =N11 -> 0 | AO11: =COUNTIF(L50:L60,AN11) -> 0 | AP11: =AO11/(AQ4-AO8) -> 0 | AQ11: =IF(AP11=0,0,(AP11*((LOG(AP11))/LOG(2)))) -> 0 | AS11: =N11 -> 0 | AT11: =COUNTIF(L61:L71,AS11) -> 0 | AU11: =AT11/(AV4-AT8) -> 0 | AV11: =IF(AU11=0,0,(AU11*((LOG(AU11))/LOG(2)))) -> 0
A12: 11 | B12: 607 | C12: 21 | D12: 617 | K12: 0 | L12: 12 | T12: =N12 -> 0 | U12: =COUNTIF(L7:L17,T12) -> 0 | V12: =U12/(W4-U8) -> 0 | W12: =IF(V12=0,0,(V12*((LOG(V12))/LOG(2)))) -> 0 | Y12: =N12 -> 0 | Z12: =COUNTIF(L18:L28,Y12) -> 0 | AA12: =Z12/(AB4-Z8) -> 0 | AB12: =IF(AA12=0,0,(AA12*((LOG(AA12))/LOG(2)))) -> 0 | AD12: =N12 -> 0 | AE12: =COUNTIF(L29:L38,AD12) -> 0 | AF12: =AE12/(AG4-AE8) -> 0 | AG12: =IF(AF12=0,0,(AF12*((LOG(AF12))/LOG(2)))) -> 0 | AI12: =N12 -> 0 | AJ12: =COUNTIF(L39:L49,AI12) -> 0 | AK12: =AJ12/(AL4-AJ8) -> 0 | AL12: =IF(AK12=0,0,(AK12*((LOG(AK12))/LOG(2)))) -> 0 | AN12: =N12 -> 0 | AO12: =COUNTIF(L50:L60,AN12) -> 0 | AP12: =AO12/(AQ4-AO8) -> 0 | AQ12: =IF(AP12=0,0,(AP12*((LOG(AP12))/LOG(2)))) -> 0 | AS12: =N12 -> 0 | AT12: =COUNTIF(L61:L71,AS12) -> 0 | AU12: =AT12/(AV4-AT8) -> 0 | AV12: =IF(AU12=0,0,(AU12*((LOG(AU12))/LOG(2)))) -> 0
A13: 22 | B13: 714 | C13: 23 | D13: 720 | K13: 0 | L13: 22 | T13: =N13 -> 0 | U13: =COUNTIF(L7:L17,T13) -> 0 | V13: =U13/(W4-U8) -> 0 | W13: =IF(V13=0,0,(V13*((LOG(V13))/LOG(2)))) -> 0 | Y13: =N13 -> 0 | Z13: =COUNTIF(L18:L28,Y13) -> 0 | AA13: =Z13/(AB4-Z8) -> 0 | AB13: =IF(AA13=0,0,(AA13*((LOG(AA13))/LOG(2)))) -> 0 | AD13: =N13 -> 0 | AE13: =COUNTIF(L29:L38,AD13) -> 0 | AF13: =AE13/(AG4-AE8) -> 0 | AG13: =IF(AF13=0,0,(AF13*((LOG(AF13))/LOG(2)))) -> 0 | AI13: =N13 -> 0 | AJ13: =COUNTIF(L39:L49,AI13) -> 0 | AK13: =AJ13/(AL4-AJ8) -> 0 | AL13: =IF(AK13=0,0,(AK13*((LOG(AK13))/LOG(2)))) -> 0 | AN13: =N13 -> 0 | AO13: =COUNTIF(L50:L60,AN13) -> 0 | AP13: =AO13/(AQ4-AO8) -> 0 | AQ13: =IF(AP13=0,0,(AP13*((LOG(AP13))/LOG(2)))) -> 0 | AS13: =N13 -> 0 | AT13: =COUNTIF(L61:L71,AS13) -> 0 | AU13: =AT13/(AV4-AT8) -> 0 | AV13: =IF(AU13=0,0,(AU13*((LOG(AU13))/LOG(2)))) -> 0
A14: 22 | B14: 823 | C14: 23 | D14: 832 | K14: 0 | L14: 22 | T14: =N14 -> 0 | U14: =COUNTIF(L7:L17,T14) -> 0 | V14: =U14/(W4-U8) -> 0 | W14: =IF(V14=0,0,(V14*((LOG(V14))/LOG(2)))) -> 0 | Y14: =N14 -> 0 | Z14: =COUNTIF(L18:L28,Y14) -> 0 | AA14: =Z14/(AB4-Z8) -> 0 | AB14: =IF(AA14=0,0,(AA14*((LOG(AA14))/LOG(2)))) -> 0 | AD14: =N14 -> 0 | AE14: =COUNTIF(L29:L38,AD14) -> 0 | AF14: =AE14/(AG4-AE8) -> 0 | AG14: =IF(AF14=0,0,(AF14*((LOG(AF14))/LOG(2)))) -> 0 | AI14: =N14 -> 0 | AJ14: =COUNTIF(L39:L49,AI14) -> 0 | AK14: =AJ14/(AL4-AJ8) -> 0 | AL14: =IF(AK14=0,0,(AK14*((LOG(AK14))/LOG(2)))) -> 0 | AN14: =N14 -> 0 | AO14: =COUNTIF(L50:L60,AN14) -> 0 | AP14: =AO14/(AQ4-AO8) -> 0 | AQ14: =IF(AP14=0,0,(AP14*((LOG(AP14))/LOG(2)))) -> 0 | AS14: =N14 -> 0 | AT14: =COUNTIF(L61:L71,AS14) -> 0 | AU14: =AT14/(AV4-AT8) -> 0 | AV14: =IF(AU14=0,0,(AU14*((LOG(AU14))/LOG(2)))) -> 0
A15: 11 | B15: 934 | C15: 21 | D15: 951 | K15: 0 | L15: 12 | P15: =SUM(P7:P14) -> 1 | Q15: =-SUM(Q7:Q14) -> 1.450422104 | V15: =SUM(V7:V14) -> 1 | W15: =-SUM(W7:W14) -> 0.5916727786 | AA15: =SUM(AA7:AA14) -> 1 | AB15: =-SUM(AB7:AB14) -> 0 | AF15: =SUM(AF7:AF14) -> 1 | AG15: =-SUM(AG7:AG14) -> 0.6500224216 | AK15: =SUM(AK7:AK14) -> 1 | AL15: =-SUM(AL7:AL14) -> 0.9182958341 | AP15: =SUM(AP7:AP14) -> 1 | AQ15: =-SUM(AQ7:AQ14) -> 0.9709505945 | AU15: =SUM(AU7:AU14) -> 1 | AV15: =-SUM(AV7:AV14) -> 0
A16: 22 | B16: 1048 | C16: 23 | D16: 1054 | K16: 0 | L16: 22 | P16: U= | Q16: =Q15/(LOG(Q4)/LOG(2)) -> 0.2408391765 | V16: U1= | W16: =W15/(LOG(W4)/LOG(2)) -> 0.171031789 | AA16: U2= | AB16: =AB15/(LOG(AB4)/LOG(2)) -> 0 | AF16: U3= | AG16: =AG15/(LOG(AG4)/LOG(2)) -> 0.1956762468 | AK16: U4= | AL16: =AL15/(LOG(AL4)/LOG(2)) -> 0.2654470258 | AP16: U5= | AQ16: =AQ15/(LOG(AQ4)/LOG(2)) -> 0.2806676649 | AU16: U6= | AV16: =AV15/(LOG(AV4)/LOG(2)) -> 0
A17: 11 | B17: 1153 | C17: 21 | D17: 1164 | K17: 0 | L17: 12
A18: 11 | B18: 1255 | C18: 21 | D18: 1267 | K18: 0 | L18: 12
A19: 22 | B19: 1374 | C19: 23 | D19: 1384 | K19: 0 | L19: 22 | N19: Total Target Seq
A20: 22 | B20: 1499 | C20: 23 | D20: 1510 | K20: 0 | L20: 22 | N20: =COUNTIF(L7:L71,G3) -> 35 | P20: 11 | Q20: 11 | R20: 10 | S20: 11 | T20: 11 | U20: 11
A21: 11 | B21: 1614 | C21: 21 | D21: 1624 | K21: 0 | L21: 12 | P21: % of reinforcement given in 6 equal intervals based on number of trials
A22: 22 | B22: 1722 | C22: 23 | D22: 1731 | K22: 0 | L22: 22 | P22: %_1 | Q22: %_2 | R22: %_3 | S22: %_4 | T22: %_5 | U22: %_6
A23: 22 | B23: 1853 | C23: 23 | D23: 1870 | K23: 0 | L23: 22 | O23: target sequence | P23: =$G$3 -> 12 | Q23: =$G$3 -> 12 | R23: =$G$3 -> 12 | S23: =$G$3 -> 12 | T23: =$G$3 -> 12 | U23: =$G$3 -> 12
A24: 22 | B24: 1978 | C24: 23 | D24: 1985 | K24: 0 | L24: 22 | O24: total reinforcement | P24: =U8 -> 4 | Q24: =Z8 -> 3 | R24: =AE8 -> 4 | S24: =AJ8 -> 8 | T24: =AO8 -> 6 | U24: =AT8 -> 10
A25: 22 | B25: 2092 | C25: 23 | D25: 2101 | K25: 0 | L25: 22 | O25: % target
A26: 22 | B26: 2219 | C26: 23 | D26: 2228 | K26: 0 | L26: 22 | O26: CCRF
A27: 11 | B27: 2327 | C27: 21 | D27: 2339 | K27: 0 | L27: 12 | O27: % CCRf
A28: 22 | B28: 2447 | C28: 23 | D28: 2459 | K28: 0 | L28: 22 | O28: average response rate | P28: =D17/P20 -> 105.8181818 | Q28: =(D28-D17)/Q20 -> 117.7272727 | R28: =(D38-D28)/R20 -> 125 | S28: =(D49-D38)/S20 -> 113.9090909 | T28: =(D60-D49)/T20 -> 112.9090909 | U28: =(D71-D60)/U20 -> 102
A29: 22 | B29: 2564 | C29: 23 | D29: 2573 | K29: 0 | L29: 22
A30: 22 | B30: 2689 | C30: 23 | D30: 2703 | K30: 0 | L30: 22
A31: 11 | B31: 2814 | C31: 21 | D31: 2829 | K31: 0 | L31: 12
A32: 11 | B32: 2935 | C32: 21 | D32: 2950 | K32: 0 | L32: 12
A33: 11 | B33: 3046 | C33: 21 | D33: 3076 | K33: 0 | L33: 12
A34: 22 | B34: 3183 | C34: 23 | D34: 3213 | K34: 0 | L34: 22
A35: 22 | B35: 3328 | C35: 23 | D35: 3337 | K35: 0 | L35: 22
A36: 22 | B36: 3449 | C36: 23 | D36: 3464 | K36: 0 | L36: 22
A37: 11 | B37: 3573 | C37: 21 | D37: 3593 | K37: 0 | L37: 12
A38: 22 | B38: 3700 | C38: 14 | D38: 3709 | K38: 0 | L38: 21
A39: 11 | B39: 3815 | C39: 21 | D39: 3827 | K39: 0 | L39: 12
A40: 11 | B40: 3923 | C40: 21 | D40: 3937 | K40: 0 | L40: 12
A41: 22 | B41: 4049 | C41: 23 | D41: 4059 | K41: 0 | L41: 22
A42: 11 | B42: 4168 | C42: 21 | D42: 4179 | K42: 0 | L42: 12
A43: 22 | B43: 4287 | C43: 14 | D43: 4297 | K43: 0 | L43: 21
A44: 11 | B44: 4408 | C44: 21 | D44: 4432 | K44: 0 | L44: 12
A45: 22 | B45: 4533 | C45: 14 | D45: 4546 | K45: 0 | L45: 21
A46: 11 | B46: 4647 | C46: 21 | D46: 4659 | K46: 0 | L46: 12
A47: 11 | B47: 4751 | C47: 21 | D47: 4762 | K47: 0 | L47: 12
A48: 11 | B48: 4851 | C48: 21 | D48: 4862 | K48: 0 | L48: 12
A49: 11 | B49: 4951 | C49: 21 | D49: 4962 | K49: 0 | L49: 12
A50: 11 | B50: 5047 | C50: 21 | D50: 5057 | K50: 0 | L50: 12
A51: 11 | B51: 5143 | C51: 21 | D51: 5154 | K51: 0 | L51: 12
A52: 22 | B52: 5254 | C52: 23 | D52: 5269 | K52: 0 | L52: 22
A53: 11 | B53: 5381 | C53: 21 | D53: 5406 | K53: 0 | L53: 12
A54: 22 | B54: 5507 | C54: 14 | D54: 5522 | K54: 0 | L54: 21
A55: 11 | B55: 5619 | C55: 21 | D55: 5630 | K55: 0 | L55: 12
A56: 11 | B56: 5719 | C56: 21 | D56: 5728 | K56: 0 | L56: 12
A57: 22 | B57: 5837 | C57: 23 | D57: 5858 | K57: 0 | L57: 22
A58: 22 | B58: 5977 | C58: 23 | D58: 5986 | K58: 0 | L58: 22
A59: 11 | B59: 6083 | C59: 21 | D59: 6094 | K59: 0 | L59: 12
A60: 22 | B60: 6194 | C60: 14 | D60: 6204 | K60: 0 | L60: 21
A61: 11 | B61: 6293 | C61: 21 | D61: 6303 | K61: 0 | L61: 12
A62: 11 | B62: 6389 | C62: 21 | D62: 6414 | K62: 0 | L62: 12
A63: 11 | B63: 6504 | C63: 21 | D63: 6514 | K63: 0 | L63: 12
A64: 11 | B64: 6601 | C64: 21 | D64: 6611 | K64: 0 | L64: 12
A65: 11 | B65: 6694 | C65: 12 | D65: 6707 | K65: 0 | L65: 11
A66: 11 | B66: 6802 | C66: 21 | D66: 6813 | K66: 0 | L66: 12
A67: 11 | B67: 6913 | C67: 21 | D67: 6922 | K67: 0 | L67: 12
A68: 11 | B68: 7010 | C68: 21 | D68: 7020 | K68: 0 | L68: 12
A69: 11 | B69: 7105 | C69: 21 | D69: 7124 | K69: 0 | L69: 12
A70: 11 | B70: 7216 | C70: 21 | D70: 7225 | K70: 0 | L70: 12
A71: 11 | B71: 7316 | C71: 21 | D71: 7326 | K71: 1 | L71: 12

Sheet !LB11B50.056
A1: Report for:!LB11B50.056
A2: Date: | B2: <date>
A3: Hen: | B3: <hen> | F3: Correct Sequence | G3: =Start!J2 -> 12 | P3: Total Sequences in Data | Q3: =4994-COUNTBLANK(L7:L5000) -> 61 | V3: Total Sequences in Block Data | W3: =COUNTA(L7:L16) -> 10 | AA3: Total Sequences in Block Data | AB3: =COUNTA(L17:L26) -> 10 | AF3: Total Sequences in Block Data | AG3: =COUNTA(L27:L37) -> 11 | AK3: Total Sequences in Block Data | AL3: =COUNTA(L38:L47) -> 10 | AP3: Total Sequences in Block Data | AQ3: =COUNTA(L48:L57) -> 10 | AU3: Total Sequences in Block Data | AV3: =COUNTA(L58:L67) -> 10
P4: Total Sequences in Summary | Q4: =SUM(O7:O14) -> 61 | V4: Total Sequences in Block Summary | W4: =SUM(U7:U14) -> 10 | AA4: Total Sequences in Block Summary | AB4: =SUM(Z7:Z14) -> 10 | AF4: Total Sequences in Block Summary | AG4: =SUM(AE7:AE14) -> 11 | AK4: Total Sequences in Block Summary | AL4: =SUM(AJ7:AJ14) -> 10 | AP4: Total Sequences in Block Summary | AQ4: =SUM(AO7:AO14) -> 10 | AU4: Total Sequences in Block Summary | AV4: =SUM(AT7:AT14) -> 10
T5: Block 1 | Y5: Block 2 | AD5: Block 3 | AI5: Block 4 | AN5: Block 5 | AS5: Block 6
A6: Sequence Component 1 | B6: Time 1 | C6: Sequence Component 2 | D6: Time 2 | E6: Sequence Component 3 | F6: Time 3 | G6: Sequence Component 4 | H6: Time 4 | I6: Sequence Component 5 | J6: Time 5 | K6: Correct? 0=No 1=Yes | L6: Sequence | N6: Frequency | P6: Relative Frequency | Q6: Variability | T6: Frequency | V6: Relative Frequency | W6: Variability | Y6: Frequency | AA6: Relative Frequency | AB6: Variability | AD6: Frequency | AF6: Relative Frequency | AG6: Variability | AI6: Frequency | AK6: Relative Frequency | AL6: Variability | AN6: Frequency | AP6: Relative Frequency | AQ6: Variability | AS6: Frequency | AU6: Relative Frequency | AV6: Variability
A7: 22 | B7: 12 | C7: 23 | D7: 17 | K7: 0 | L7: 22 | N7: 11 | O7: =COUNTIF($L$7:$L$500,N7) -> 2 | P7: =O7/$Q$4 -> 0.03278688525 | Q7: =IF(P7=0,0,(P7*((LOG(P7))/LOG(2)))) -> -0.1616635193 | T7: =N7 -> 11 | U7: =COUNTIF(L7:L16,T7) -> 1 | V7: =U7/(W4-U8) -> 0.2 | W7: =IF(V7=0,0,(V7*((LOG(V7))/LOG(2)))) -> -0.464385619 | Y7: =N7 -> 11 | Z7: =COUNTIF(L17:L26,Y7) -> 1 | AA7: =Z7/(AB4-Z8) -> 0.2 | AB7: =IF(AA7=0,0,(AA7*((LOG(AA7))/LOG(2)))) -> -0.464385619 | AD7: =N7 -> 11 | AE7: =COUNTIF(L27:L37,AD7) -> 0 | AF7: =AE7/(AG4-AE8) -> 0 | AG7: =IF(AF7=0,0,(AF7*((LOG(AF7))/LOG(2)))) -> 0 | AI7: =N7 -> 11 | AJ7: =COUNTIF(L38:L47,AI7) -> 0 | AK7: =AJ7/(AL4-AJ8) -> 0 | AL7: =IF(AK7=0,0,(AK7*((LOG(AK7))/LOG(2)))) -> 0 | AN7: =N7 -> 11 | AO7: =COUNTIF(L48:L57,AN7) -> 0 | AP7: =AO7/(AQ4-AO8) -> 0 | AQ7: =IF(AP7=0,0,(AP7*((LOG(AP7))/LOG(2)))) -> 0 | AS7: =N7 -> 11 | AT7: =COUNTIF(L58:L67,AS7) -> 0 | AU7: =AT7/(AV4-AT8) -> 0 | AV7: =IF(AU7=0,0,(AU7*((LOG(AU7))/LOG(2)))) -> 0
A8: 22 | B8: 126 | C8: 14 | D8: 141 | K8: 0 | L8: 21 | N8: 12 | O8: =COUNTIF($L$7:$L$500,N8) -> 39 | P8: =O8/$Q$4 -> 0.6393442623 | Q8: =IF(P8=0,0,(P8*((LOG(P8))/LOG(2)))) -> -0.4125913054 | T8: =N8 -> 12 | U8: =COUNTIF(L7:L16,T8) -> 5 | Y8: =N8 -> 12 | Z8: =COUNTIF(L17:L26,Y8) -> 5 | AD8: =N8 -> 12 | AE8: =COUNTIF(L27:L37,AD8) -> 9 | AI8: =N8 -> 12 | AJ8: =COUNTIF(L38:L47,AI8) -> 5 | AN8: =N8 -> 12 | AO8: =COUNTIF(L48:L57,AN8) -> 7 | AS8: =N8 -> 12 | AT8: =COUNTIF(L58:L67,AS8) -> 8
A9: 11 | B9: 236 | C9: 21 | D9: 247 | K9: 0 | L9: 12 | N9: 21 | O9: =COUNTIF($L$7:$L$500,N9) -> 8 | P9: =O9/$Q$4 -> 0.131147541 | Q9: =IF(P9=0,0,(P9*((LOG(P9))/LOG(2)))) -> -0.3843589951 | T9: =N9 -> 21 | U9: =COUNTIF(L7:L16,T9) -> 2 | V9: =U9/(W4-U8) -> 0.4 | W9: =IF(V9=0,0,(V9*((LOG(V9))/LOG(2)))) -> -0.528771238 | Y9: =N9 -> 21 | Z9: =COUNTIF(L17:L26,Y9) -> 0 | AA9: =Z9/(AB4-Z8) -> 0 | AB9: =IF(AA9=0,0,(AA9*((LOG(AA9))/LOG(2)))) -> 0 | AD9: =N9 -> 21 | AE9: =COUNTIF(L27:L37,AD9) -> 0 | AF9: =AE9/(AG4-AE8) -> 0 | AG9: =IF(AF9=0,0,(AF9*((LOG(AF9))/LOG(2)))) -> 0 | AI9: =N9 -> 21 | AJ9: =COUNTIF(L38:L47,AI9) -> 4 | AK9: =AJ9/(AL4-AJ8) -> 0.8 | AL9: =IF(AK9=0,0,(AK9*((LOG(AK9))/LOG(2)))) -> -0.2575424759 | AN9: =N9 -> 21 | AO9: =COUNTIF(L48:L57,AN9) -> 1 | AP9: =AO9/(AQ4-AO8) -> 0.3333333333 | AQ9: =IF(AP9=0,0,(AP9*((LOG(AP9))/LOG(2)))) -> -0.5283208336 | AS9: =N9 -> 21 | AT9: =COUNTIF(L58:L67,AS9) -> 1 | AU9: =AT9/(AV4-AT8) -> 0.5 | AV9: =IF(AU9=0,0,(AU9*((LOG(AU9))/LOG(2)))) -> -0.5
A10: 22 | B10: 337 | C10: 14 | D10: 351 | K10: 0 | L10: 21 | N10: 22 | O10: =COUNTIF($L$7:$L$500,N10) -> 12 | P10: =O10/$Q$4 -> 0.1967213115 | Q10: =IF(P10=0,0,(P10*((LOG(P10))/LOG(2)))) -> -0.4614639023 | T10: =N10 -> 22 | U10: =COUNTIF(L7:L16,T10) -> 2 | V10: =U10/(W4-U8) -> 0.4 | W10: =IF(V10=0,0,(V10*((LOG(V10))/LOG(2)))) -> -0.528771238 | Y10: =N10 -> 22 | Z10: =COUNTIF(L17:L26,Y10) -> 4 | AA10: =Z10/(AB4-Z8) -> 0.8 | AB10: =IF(AA10=0,0,(AA10*((LOG(AA10))/LOG(2)))) -> -0.2575424759 | AD10: =N10 -> 22 | AE10: =COUNTIF(L27:L37,AD10) -> 2 | AF10: =AE10/(AG4-AE8) -> 1 | AG10: =IF(AF10=0,0,(AF10*((LOG(AF10))/LOG(2)))) -> 0 | AI10: =N10 -> 22 | AJ10: =COUNTIF(L38:L47,AI10) -> 1 | AK10: =AJ10/(AL4-AJ8) -> 0.2 | AL10: =IF(AK10=0,0,(AK10*((LOG(AK10))/LOG(2)))) -> -0.464385619 | AN10: =N10 -> 22 | AO10: =COUNTIF(L48:L57,AN10) -> 2 | AP10: =AO10/(AQ4-AO8) -> 0.6666666667 | AQ10: =IF(AP10=0,0,(AP10*((LOG(AP10))/LOG(2)))) -> -0.3899750005 | AS10: =N10 -> 22 | AT10: =COUNTIF(L58:L67,AS10) -> 1 | AU10: =AT10/(AV4-AT8) -> 0.5 | AV10: =IF(AU10=0,0,(AU10*((LOG(AU10))/LOG(2)))) -> -0.5
A11: 11 | B11: 460 | C11: 21 | D11: 470 | K11: 0 | L11: 12 | T11: =N11 -> 0 | U11: =COUNTIF(L7:L16,T11) -> 0 | V11: =U11/(W4-U8) -> 0 | W11: =IF(V11=0,0,(V11*((LOG(V11))/LOG(2)))) -> 0 | Y11: =N11 -> 0 | Z11: =COUNTIF(L17:L26,Y11) -> 0 | AA11: =Z11/(AB4-Z8) -> 0 | AB11: =IF(AA11=0,0,(AA11*((LOG(AA11))/LOG(2)))) -> 0 | AD11: =N11 -> 0 | AE11: =COUNTIF(L27:L37,AD11) -> 0 | AF11: =AE11/(AG4-AE8) -> 0 | AG11: =IF(AF11=0,0,(AF11*((LOG(AF11))/LOG(2)))) -> 0 | AI11: =N11 -> 0 | AJ11: =COUNTIF(L38:L47,AI11) -> 0 | AK11: =AJ11/(AL4-AJ8) -> 0 | AL11: =IF(AK11=0,0,(AK11*((LOG(AK11))/LOG(2)))) -> 0 | AN11: =N11 -> 0 | AO11: =COUNTIF(L48:L57,AN11) -> 0 | AP11: =AO11/(AQ4-AO8) -> 0 | AQ11: =IF(AP11=0,0,(AP11*((LOG(AP11))/LOG(2)))) -> 0 | AS11: =N11 -> 0 | AT11: =COUNTIF(L58:L67,AS11) -> 0 | AU11: =AT11/(AV4-AT8) -> 0 | AV11: =IF(AU11=0,0,(AU11*((LOG(AU11))/LOG(2)))) -> 0
A12: 11 | B12: 563 | C12: 21 | D12: 574 | K12: 0 | L12: 12 | T12: =N12 -> 0 | U12: =COUNTIF(L7:L16,T12) -> 0 | V12: =U12/(W4-U8) -> 0 | W12: =IF(V12=0,0,(V12*((LOG(V12))/LOG(2)))) -> 0 | Y12: =N12 -> 0 | Z12: =COUNTIF(L17:L26,Y12) -> 0 | AA12: =Z12/(AB4-Z8) -> 0 | AB12: =IF(AA12=0,0,(AA12*((LOG(AA12))/LOG(2)))) -> 0 | AD12: =N12 -> 0 | AE12: =COUNTIF(L27:L37,AD12) -> 0 | AF12: =AE12/(AG4-AE8) -> 0 | AG12: =IF(AF12=0,0,(AF12*((LOG(AF12))/LOG(2)))) -> 0 | AI12: =N12 -> 0 | AJ12: =COUNTIF(L38:L47,AI12) -> 0 | AK12: =AJ12/(AL4-AJ8) -> 0 | AL12: =IF(AK12=0,0,(AK12*((LOG(AK12))/LOG(2)))) -> 0 | AN12: =N12 -> 0 | AO12: =COUNTIF(L48:L57,AN12) -> 0 | AP12: =AO12/(AQ4-AO8) -> 0 | AQ12: =IF(AP12=0,0,(AP12*((LOG(AP12))/LOG(2)))) -> 0 | AS12: =N12 -> 0 | AT12: =COUNTIF(L58:L67,AS12) -> 0 | AU12: =AT12/(AV4-AT8) -> 0 | AV12: =IF(AU12=0,0,(AU12*((LOG(AU12))/LOG(2)))) -> 0
A13: 22 | B13: 664 | C13: 23 | D13: 671 | K13: 0 | L13: 22 | T13: =N13 -> 0 | U13: =COUNTIF(L7:L16,T13) -> 0 | V13: =U13/(W4-U8) -> 0 | W13: =IF(V13=0,0,(V13*((LOG(V13))/LOG(2)))) -> 0 | Y13: =N13 -> 0 | Z13: =COUNTIF(L17:L26,Y13) -> 0 | AA13: =Z13/(AB4-Z8) -> 0 | AB13: =IF(AA13=0,0,(AA13*((LOG(AA13))/LOG(2)))) -> 0 | AD13: =N13 -> 0 | AE13: =COUNTIF(L27:L37,AD13) -> 0 | AF13: =AE13/(AG4-AE8) -> 0 | AG13: =IF(AF13=0,0,(AF13*((LOG(AF13))/LOG(2)))) -> 0 | AI13: =N13 -> 0 | AJ13: =COUNTIF(L38:L47,AI13) -> 0 | AK13: =AJ13/(AL4-AJ8) -> 0 | AL13: =IF(AK13=0,0,(AK13*((LOG(AK13))/LOG(2)))) -> 0 | AN13: =N13 -> 0 | AO13: =COUNTIF(L48:L57,AN13) -> 0 | AP13: =AO13/(AQ4-AO8) -> 0 | AQ13: =IF(AP13=0,0,(AP13*((LOG(AP13))/LOG(2)))) -> 0 | AS13: =N13 -> 0 | AT13: =COUNTIF(L58:L67,AS13) -> 0 | AU13: =AT13/(AV4-AT8) -> 0 | AV13: =IF(AU13=0,0,(AU13*((LOG(AU13))/LOG(2)))) -> 0
A14: 11 | B14: 775 | C14: 21 | D14: 792 | K14: 0 | L14: 12 | T14: =N14 -> 0 | U14: =COUNTIF(L7:L16,T14) -> 0 | V14: =U14/(W4-U8) -> 0 | W14: =IF(V14=0,0,(V14*((LOG(V14))/LOG(2)))) -> 0 | Y14: =N14 -> 0 | Z14: =COUNTIF(L17:L26,Y14) -> 0 | AA14: =Z14/(AB4-Z8) -> 0 | AB14: =IF(AA14=0,0,(AA14*((LOG(AA14))/LOG(2)))) -> 0 | AD14: =N14 -> 0 | AE14: =COUNTIF(L27:L37,AD14) -> 0 | AF14: =AE14/(AG4-AE8) -> 0 | AG14: =IF(AF14=0,0,(AF14*((LOG(AF14))/LOG(2)))) -> 0 | AI14: =N14 -> 0 | AJ14: =COUNTIF(L38:L47,AI14) -> 0 | AK14: =AJ14/(AL4-AJ8) -> 0 | AL14: =IF(AK14=0,0,(AK14*((LOG(AK14))/LOG(2)))) -> 0 | AN14: =N14 -> 0 | AO14: =COUNTIF(L48:L57,AN14) -> 0 | AP14: =AO14/(AQ4-AO8) -> 0 | AQ14: =IF(AP14=0,0,(AP14*((LOG(AP14))/LOG(2)))) -> 0 | AS14: =N14 -> 0 | AT14: =COUNTIF(L58:L67,AS14) -> 0 | AU14: =AT14/(AV4-AT8) -> 0 | AV14: =IF(AU14=0,0,(AU14*((LOG(AU14))/LOG(2)))) -> 0
A15: 11 | B15: 884 | C15: 21 | D15: 894 | K15: 0 | L15: 12 | P15: =SUM(P7:P14) -> 1 | Q15: =-SUM(Q7:Q14) -> 1.420077722 | V15: =SUM(V7:V14) -> 1 | W15: =-SUM(W7:W14) -> 1.521928095 | AA15: =SUM(AA7:AA14) -> 1 | AB15: =-SUM(AB7:AB14) -> 0.7219280949 | AF15: =SUM(AF7:AF14) -> 1 | AG15: =-SUM(AG7:AG14) -> 0 | AK15: =SUM(AK7:AK14) -> 1 | AL15: =-SUM(AL7:AL14) -> 0.7219280949 | AP15: =SUM(AP7:AP14) -> 1 | AQ15: =-SUM(AQ7:AQ14) -> 0.9182958341 | AU15: =SUM(AU7:AU14) -> 1 | AV15: =-SUM(AV7:AV14) -> 1
A16: 11 | B16: 982 | C16: 12 | D16: 989 | K16: 0 | L16: 11 | P16: U= | Q16: =Q15/(LOG(Q4)/LOG(2)) -> 0.2394437051 | V16: U1= | W16: =W15/(LOG(W4)/LOG(2)) -> 0.4581460078 | AA16: U2= | AB16: =AB15/(LOG(AB4)/LOG(2)) -> 0.2173220113 | AF16: U3= | AG16: =AG15/(LOG(AG4)/LOG(2)) -> 0 | AK16: U4= | AL16: =AL15/(LOG(AL4)/LOG(2)) -> 0.2173220113 | AP16: U5= | AQ16: =AQ15/(LOG(AQ4)/LOG(2)) -> 0.2764345909 | AU16: U6= | AV16: =AV15/(LOG(AV4)/LOG(2)) -> 0.3010299957
A17: 11 | B17: 1087 | C17: 21 | D17: 1106 | K17: 0 | L17: 12
A18: 11 | B18: 1191 | C18: 21 | D18: 1201 | K18: 0 | L18: 12
A19: 11 | B19: 1290 | C19: 12 | D19: 1294 | K19: 0 | L19: 11 | N19: Total Target Seq
A20: 22 | B20: 1405 | C20: 23 | D20: 1421 | K20: 0 | L20: 22 | N20: =COUNTIF(L7:L67,G3) -> 39 | P20: 10 | Q20: 10 | R20: 11 | S20: 10 | T20: 10 | U20: 10
A21: 22 | B21: 1519 | C21: 23 | D21: 1527 | K21: 0 | L21: 22 | P21: % of reinforcement given in 6 equal intervals based on number of trials
A22: 11 | B22: 1623 | C22: 21 | D22: 1633 | K22: 0 | L22: 12 | P22: %_1 | Q22: %_2 | R22: %_3 | S22: %_4 | T22: %_5 | U22: %_6
A23: 11 | B23: 1720 | C23: 21 | D23: 1733 | K23: 0 | L23: 12 | O23: target sequence | P23: =$G$3 -> 12 | Q23: =$G$3 -> 12 | R23: =$G$3 -> 12 | S23: =$G$3 -> 12 | T23: =$G$3 -> 12 | U23: =$G$3 -> 12
A24: 11 | B24: 1818 | C24: 21 | D24: 1828 | K24: 0 | L24: 12 | O24: total reinforcement | P24: =U8 -> 5 | Q24: =Z8 -> 5 | R24: =AE8 -> 9 | S24: =AJ8 -> 5 | T24: =AO8 -> 7 | U24: =AT8 -> 8
A25: 22 | B25: 1933 | C25: 23 | D25: 1968 | K25: 0 | L25: 22 | O25: % target
A26: 22 | B26: 2083 | C26: 23 | D26: 2096 | K26: 0 | L26: 22 | O26: CCRF
A27: 11 | B27: 2192 | C27: 21 | D27: 2202 | K27: 0 | L27: 12 | O27: % CCRf
A28: 11 | B28: 2293 | C28: 21 | D28: 2302 | K28: 0 | L28: 12 | O28: average response rate | P28: =D16/P20 -> 98.9 | Q28: =(D26-D16)/Q20 -> 110.7 | R28: =(D37-D26)/R20 -> 110.8181818 | S28: =(D47-D37)/S20 -> 142.5 | T28: =(D57-D47)/T20 -> 110.8 | U28: =(D67-D57)/U20 -> 106.9
A29: 11 | B29: 2395 | C29: 21 | D29: 2404 | K29: 0 | L29: 12
A30: 22 | B30: 2504 | C30: 23 | D30: 2514 | K30: 0 | L30: 22
A31: 11 | B31: 2618 | C31: 21 | D31: 2628 | K31: 0 | L31: 12
A32: 11 | B32: 2723 | C32: 21 | D32: 2736 | K32: 0 | L32: 12
A33: 11 | B33: 2824 | C33: 21 | D33: 2835 | K33: 0 | L33: 12
A34: 22 | B34: 2942 | C34: 23 | D34: 3012 | K34: 0 | L34: 22
A35: 11 | B35: 3109 | C35: 21 | D35: 3119 | K35: 0 | L35: 12
A36: 11 | B36: 3206 | C36: 21 | D36: 3216 | K36: 0 | L36: 12
A37: 11 | B37: 3305 | C37: 21 | D37: 3315 | K37: 0 | L37: 12
A38: 22 | B38: 3417 | C38: 23 | D38: 3430 | K38: 0 | L38: 22
A39: 22 | B39: 3537 | C39: 14 | D39: 3649 | K39: 0 | L39: 21
A40: 22 | B40: 3764 | C40: 14 | D40: 3828 | K40: 0 | L40: 21
A41: 11 | B41: 3928 | C41: 21 | D41: 3937 | K41: 0 | L41: 12
A42: 22 | B42: 4041 | C42: 14 | D42: 4106 | K42: 0 | L42: 21
A43: 11 | B43: 4206 | C43: 21 | D43: 4228 | K43: 0 | L43: 12
A44: 11 | B44: 4323 | C44: 21 | D44: 4333 | K44: 0 | L44: 12
A45: 11 | B45: 4453 | C45: 21 | D45: 4464 | K45: 0 | L45: 12
A46: 11 | B46: 4552 | C46: 21 | D46: 4561 | K46: 0 | L46: 12
A47: 22 | B47: 4663 | C47: 14 | D47: 4740 | K47: 0 | L47: 21
A48: 11 | B48: 4836 | C48: 21 | D48: 4846 | K48: 0 | L48: 12
A49: 22 | B49: 4951 | C49: 14 | D49: 4976 | K49: 0 | L49: 21
A50: 11 | B50: 5072 | C50: 21 | D50: 5091 | K50: 0 | L50: 12
A51: 11 | B51: 5185 | C51: 21 | D51: 5200 | K51: 0 | L51: 12
A52: 11 | B52: 5296 | C52: 21 | D52: 5306 | K52: 0 | L52: 12
A53: 11 | B53: 5395 | C53: 21 | D53: 5406 | K53: 0 | L53: 12
A54: 11 | B54: 5498 | C54: 21 | D54: 5506 | K54: 0 | L54: 12
A55: 22 | B55: 5611 | C55: 23 | D55: 5624 | K55: 0 | L55: 22
A56: 11 | B56: 5720 | C56: 21 | D56: 5730 | K56: 0 | L56: 12
A57: 22 | B57: 5836 | C57: 23 | D57: 5848 | K57: 0 | L57: 22
A58: 11 | B58: 5945 | C58: 21 | D58: 5955 | K58: 0 | L58: 12
A59: 22 | B59: 6060 | C59: 23 | D59: 6077 | K59: 0 | L59: 22
A60: 11 | B60: 6172 | C60: 21 | D60: 6182 | K60: 0 | L60: 12
A61: 11 | B61: 6278 | C61: 21 | D61: 6289 | K61: 0 | L61: 12
A62: 11 | B62: 6375 | C62: 21 | D62: 6385 | K62: 0 | L62: 12
A63: 11 | B63: 6472 | C63: 21 | D63: 6482 | K63: 0 | L63: 12
A64: 11 | B64: 6564 | C64: 21 | D64: 6582 | K64: 0 | L64: 12
A65: 11 | B65: 6670 | C65: 21 | D65: 6680 | K65: 0 | L65: 12
A66: 22 | B66: 6780 | C66: 14 | D66: 6800 | K66: 0 | L66: 21
A67: 11 | B67: 6896 | C67: 21 | D67: 6917 | K67: 1 | L67: 12

Sheet !LB12C30.056
A1: Report for:!LB12C30.056
A2: Date: | B2: <date>
A3: Hen: | B3: <hen> | F3: Correct Sequence | G3: =Start!J2 -> 12 | P3: Total Sequences in Data | Q3: =4994-COUNTBLANK(L7:L5000) -> 68 | V3: Total Sequences in Block Data | W3: =COUNTA(L7:L17) -> 11 | AA3: Total Sequences in Block Data | AB3: =COUNTA(L18:L29) -> 12 | AF3: Total Sequences in Block Data | AG3: =COUNTA(L30:L40) -> 11 | AK3: Total Sequences in Block Data | AL3: =COUNTA(L41:L51) -> 11 | AP3: Total Sequences in Block Data | AQ3: =COUNTA(L52:L63) -> 12 | AU3: Total Sequences in Block Data | AV3: =COUNTA(L64:L74) -> 11
P4: Total Sequences in Summary | Q4: =SUM(O7:O14) -> 68 | V4: Total Sequences in Block Summary | W4: =SUM(U7:U14) -> 11 | AA4: Total Sequences in Block Summary | AB4: =SUM(Z7:Z14) -> 12 | AF4: Total Sequences in Block Summary | AG4: =SUM(AE7:AE14) -> 11 | AK4: Total Sequences in Block Summary | AL4: =SUM(AJ7:AJ14) -> 11 | AP4: Total Sequences in Block Summary | AQ4: =SUM(AO7:AO14) -> 12 | AU4: Total Sequences in Block Summary | AV4: =SUM(AT7:AT14) -> 11
T5: Block 1 | Y5: Block 2 | AD5: Block 3 | AI5: Block 4 | AN5: Block 5 | AS5: Block 6
A6: Sequence Component 1 | B6: Time 1 | C6: Sequence Component 2 | D6: Time 2 | E6: Sequence Component 3 | F6: Time 3 | G6: Sequence Component 4 | H6: Time 4 | I6: Sequence Component 5 | J6: Time 5 | K6: Correct? 0=No 1=Yes | L6: Sequence | N6: Frequency | P6: Relative Frequency | Q6: Variability | T6: Frequency | V6: Relative Frequency | W6: Variability | Y6: Frequency | AA6: Relative Frequency | AB6: Variability | AD6: Frequency | AF6: Relative Frequency | AG6: Variability | AI6: Frequency | AK6: Relative Frequency | AL6: Variability | AN6: Frequency | AP6: Relative Frequency | AQ6: Variability | AS6: Frequency | AU6: Relative Frequency | AV6: Variability
A7: 22 | B7: 11 | C7: 23 | D7: 18 | K7: 0 | L7: 22 | N7: 11 | O7: =COUNTIF($L$7:$L$500,N7) -> 1 | P7: =O7/$Q$4 -> 0.01470588235 | Q7: =IF(P7=0,0,(P7*((LOG(P7))/LOG(2)))) -> -0.08952151237 | T7: =N7 -> 11 | U7: =COUNTIF(L7:L17,T7) -> 0 | V7: =U7/(W4-U8) -> 0 | W7: =IF(V7=0,0,(V7*((LOG(V7))/LOG(2)))) -> 0 | Y7: =N7 -> 11 | Z7: =COUNTIF(L18:L29,Y7) -> 0 | AA7: =Z7/(AB4-Z8) -> 0 | AB7: =IF(AA7=0,0,(AA7*((LOG(AA7))/LOG(2)))) -> 0 | AD7: =N7 -> 11 | AE7: =COUNTIF(L30:L40,AD7) -> 0 | AF7: =AE7/(AG4-AE8) -> 0 | AG7: =IF(AF7=0,0,(AF7*((LOG(AF7))/LOG(2)))) -> 0 | AI7: =N7 -> 11 | AJ7: =COUNTIF(L41:L51,AI7) -> 0 | AK7: =AJ7/(AL4-AJ8) -> 0 | AL7: =IF(AK7=0,0,(AK7*((LOG(AK7))/LOG(2)))) -> 0 | AN7: =N7 -> 11 | AO7: =COUNTIF(L52:L63,AN7) -> 1 | AP7: =AO7/(AQ4-AO8) -> 0.25 | AQ7: =IF(AP7=0,0,(AP7*((LOG(AP7))/LOG(2)))) -> -0.5 | AS7: =N7 -> 11 | AT7: =COUNTIF(L64:L74,AS7) -> 0 | AU7: =AT7/(AV4-AT8) ->  | AV7: =IF(AU7=0,0,(AU7*((LOG(AU7))/LOG(2)))) -> 
A8: 11 | B8: 118 | C8: 21 | D8: 169 | K8: 0 | L8: 12 | N8: 12 | O8: =COUNTIF($L$7:$L$500,N8) -> 37 | P8: =O8/$Q$4 -> 0.5441176471 | Q8: =IF(P8=0,0,(P8*((LOG(P8))/LOG(2)))) -> -0.47774045 | T8: =N8 -> 12 | U8: =COUNTIF(L7:L17,T8) -> 4 | Y8: =N8 -> 12 | Z8: =COUNTIF(L18:L29,Y8) -> 4 | AD8: =N8 -> 12 | AE8: =COUNTIF(L30:L40,AD8) -> 2 | AI8: =N8 -> 12 | AJ8: =COUNTIF(L41:L51,AI8) -> 8 | AN8: =N8 -> 12 | AO8: =COUNTIF(L52:L63,AN8) -> 8 | AS8: =N8 -> 12 | AT8: =COUNTIF(L64:L74,AS8) -> 11
A9: 11 | B9: 260 | C9: 21 | D9: 270 | K9: 0 | L9: 12 | N9: 21 | O9: =COUNTIF($L$7:$L$500,N9) -> 9 | P9: =O9/$Q$4 -> 0.1323529412 | Q9: =IF(P9=0,0,(P9*((LOG(P9))/LOG(2)))) -> -0.3861447141 | T9: =N9 -> 21 | U9: =COUNTIF(L7:L17,T9) -> 2 | V9: =U9/(W4-U8) -> 0.2857142857 | W9: =IF(V9=0,0,(V9*((LOG(V9))/LOG(2)))) -> -0.5163871206 | Y9: =N9 -> 21 | Z9: =COUNTIF(L18:L29,Y9) -> 5 | AA9: =Z9/(AB4-Z8) -> 0.625 | AB9: =IF(AA9=0,0,(AA9*((LOG(AA9))/LOG(2)))) -> -0.4237949407 | AD9: =N9 -> 21 | AE9: =COUNTIF(L30:L40,AD9) -> 0 | AF9: =AE9/(AG4-AE8) -> 0 | AG9: =IF(AF9=0,0,(AF9*((LOG(AF9))/LOG(2)))) -> 0 | AI9: =N9 -> 21 | AJ9: =COUNTIF(L41:L51,AI9) -> 0 | AK9: =AJ9/(AL4-AJ8) -> 0 | AL9: =IF(AK9=0,0,(AK9*((LOG(AK9))/LOG(2)))) -> 0 | AN9: =N9 -> 21 | AO9: =COUNTIF(L52:L63,AN9) -> 2 | AP9: =AO9/(AQ4-AO8) -> 0.5 | AQ9: =IF(AP9=0,0,(AP9*((LOG(AP9))/LOG(2)))) -> -0.5 | AS9: =N9 -> 21 | AT9: =COUNTIF(L64:L74,AS9) -> 0 | AU9: =AT9/(AV4-AT8) ->  | AV9: =IF(AU9=0,0,(AU9*((LOG(AU9))/LOG(2)))) -> 
A10: 22 | B10: 371 | C10: 23 | D10: 395 | K10: 0 | L10: 22 | N10: 22 | O10: =COUNTIF($L$7:$L$500,N10) -> 21 | P10: =O10/$Q$4 -> 0.3088235294 | Q10: =IF(P10=0,0,(P10*((LOG(P10))/LOG(2)))) -> -0.523500791 | T10: =N10 -> 22 | U10: =COUNTIF(L7:L17,T10) -> 5 | V10: =U10/(W4-U8) -> 0.7142857143 | W10: =IF(V10=0,0,(V10*((LOG(V10))/LOG(2)))) -> -0.346733448 | Y10: =N10 -> 22 | Z10: =COUNTIF(L18:L29,Y10) -> 3 | AA10: =Z10/(AB4-Z8) -> 0.375 | AB10: =IF(AA10=0,0,(AA10*((LOG(AA10))/LOG(2)))) -> -0.5306390622 | AD10: =N10 -> 22 | AE10: =COUNTIF(L30:L40,AD10) -> 9 | AF10: =AE10/(AG4-AE8) -> 1 | AG10: =IF(AF10=0,0,(AF10*((LOG(AF10))/LOG(2)))) -> 0 | AI10: =N10 -> 22 | AJ10: =COUNTIF(L41:L51,AI10) -> 3 | AK10: =AJ10/(AL4-AJ8) -> 1 | AL10: =IF(AK10=0,0,(AK10*((LOG(AK10))/LOG(2)))) -> 0 | AN10: =N10 -> 22 | AO10: =COUNTIF(L52:L63,AN10) -> 1 | AP10: =AO10/(AQ4-AO8) -> 0.25 | AQ10: =IF(AP10=0,0,(AP10*((LOG(AP10))/LOG(2)))) -> -0.5 | AS10: =N10 -> 22 | AT10: =COUNTIF(L64:L74,AS10) -> 0 | AU10: =AT10/(AV4-AT8) ->  | AV10: =IF(AU10=0,0,(AU10*((LOG(AU10))/LOG(2)))) -> 
A11: 11 | B11: 487 | C11: 21 | D11: 495 | K11: 0 | L11: 12 | T11: =N11 -> 0 | U11: =COUNTIF(L7:L17,T11) -> 0 | V11: =U11/(W4-U8) -> 0 | W11: =IF(V11=0,0,(V11*((LOG(V11))/LOG(2)))) -> 0 | Y11: =N11 -> 0 | Z11: =COUNTIF(L18:L29,Y11) -> 0 | AA11: =Z11/(AB4-Z8) -> 0 | AB11: =IF(AA11=0,0,(AA11*((LOG(AA11))/LOG(2)))) -> 0 | AD11: =N11 -> 0 | AE11: =COUNTIF(L30:L40,AD11) -> 0 | AF11: =AE11/(AG4-AE8) -> 0 | AG11: =IF(AF11=0,0,(AF11*((LOG(AF11))/LOG(2)))) -> 0 | AI11: =N11 -> 0 | AJ11: =COUNTIF(L41:L51,AI11) -> 0 | AK11: =AJ11/(AL4-AJ8) -> 0 | AL11: =IF(AK11=0,0,(AK11*((LOG(AK11))/LOG(2)))) -> 0 | AN11: =N11 -> 0 | AO11: =COUNTIF(L52:L63,AN11) -> 0 | AP11: =AO11/(AQ4-AO8) -> 0 | AQ11: =IF(AP11=0,0,(AP11*((LOG(AP11))/LOG(2)))) -> 0 | AS11: =N11 -> 0 | AT11: =COUNTIF(L64:L74,AS11) -> 0 | AU11: =AT11/(AV4-AT8) ->  | AV11: =IF(AU11=0,0,(AU11*((LOG(AU11))/LOG(2)))) -> 
A12: 22 | B12: 596 | C12: 23 | D12: 609 | K12: 0 | L12: 22 | T12: =N12 -> 0 | U12: =COUNTIF(L7:L17,T12) -> 0 | V12: =U12/(W4-U8) -> 0 | W12: =IF(V12=0,0,(V12*((LOG(V12))/LOG(2)))) -> 0 | Y12: =N12 -> 0 | Z12: =COUNTIF(L18:L29,Y12) -> 0 | AA12: =Z12/(AB4-Z8) -> 0 | AB12: =IF(AA12=0,0,(AA12*((LOG(AA12))/LOG(2)))) -> 0 | AD12: =N12 -> 0 | AE12: =COUNTIF(L30:L40,AD12) -> 0 | AF12: =AE12/(AG4-AE8) -> 0 | AG12: =IF(AF12=0,0,(AF12*((LOG(AF12))/LOG(2)))) -> 0 | AI12: =N12 -> 0 | AJ12: =COUNTIF(L41:L51,AI12) -> 0 | AK12: =AJ12/(AL4-AJ8) -> 0 | AL12: =IF(AK12=0,0,(AK12*((LOG(AK12))/LOG(2)))) -> 0 | AN12: =N12 -> 0 | AO12: =COUNTIF(L52:L63,AN12) -> 0 | AP12: =AO12/(AQ4-AO8) -> 0 | AQ12: =IF(AP12=0,0,(AP12*((LOG(AP12))/LOG(2)))) -> 0 | AS12: =N12 -> 0 | AT12: =COUNTIF(L64:L74,AS12) -> 0 | AU12: =AT12/(AV4-AT8) ->  | AV12: =IF(AU12=0,0,(AU12*((LOG(AU12))/LOG(2)))) -> 
A13: 11 | B13: 707 | C13: 21 | D13: 717 | K13: 0 | L13: 12 | T13: =N13 -> 0 | U13: =COUNTIF(L7:L17,T13) -> 0 | V13: =U13/(W4-U8) -> 0 | W13: =IF(V13=0,0,(V13*((LOG(V13))/LOG(2)))) -> 0 | Y13: =N13 -> 0 | Z13: =COUNTIF(L18:L29,Y13) -> 0 | AA13: =Z13/(AB4-Z8) -> 0 | AB13: =IF(AA13=0,0,(AA13*((LOG(AA13))/LOG(2)))) -> 0 | AD13: =N13 -> 0 | AE13: =COUNTIF(L30:L40,AD13) -> 0 | AF13: =AE13/(AG4-AE8) -> 0 | AG13: =IF(AF13=0,0,(AF13*((LOG(AF13))/LOG(2)))) -> 0 | AI13: =N13 -> 0 | AJ13: =COUNTIF(L41:L51,AI13) -> 0 | AK13: =AJ13/(AL4-AJ8) -> 0 | AL13: =IF(AK13=0,0,(AK13*((LOG(AK13))/LOG(2)))) -> 0 | AN13: =N13 -> 0 | AO13: =COUNTIF(L52:L63,AN13) -> 0 | AP13: =AO13/(AQ4-AO8) -> 0 | AQ13: =IF(AP13=0,0,(AP13*((LOG(AP13))/LOG(2)))) -> 0 | AS13: =N13 -> 0 | AT13: =COUNTIF(L64:L74,AS13) -> 0 | AU13: =AT13/(AV4-AT8) ->  | AV13: =IF(AU13=0,0,(AU13*((LOG(AU13))/LOG(2)))) -> 
A14: 22 | B14: 817 | C14: 23 | D14: 827 | K14: 0 | L14: 22 | T14: =N14 -> 0 | U14: =COUNTIF(L7:L17,T14) -> 0 | V14: =U14/(W4-U8) -> 0 | W14: =IF(V14=0,0,(V14*((LOG(V14))/LOG(2)))) -> 0 | Y14: =N14 -> 0 | Z14: =COUNTIF(L18:L29,Y14) -> 0 | AA14: =Z14/(AB4-Z8) -> 0 | AB14: =IF(AA14=0,0,(AA14*((LOG(AA14))/LOG(2)))) -> 0 | AD14: =N14 -> 0 | AE14: =COUNTIF(L30:L40,AD14) -> 0 | AF14: =AE14/(AG4-AE8) -> 0 | AG14: =IF(AF14=0,0,(AF14*((LOG(AF14))/LOG(2)))) -> 0 | AI14: =N14 -> 0 | AJ14: =COUNTIF(L41:L51,AI14) -> 0 | AK14: =AJ14/(AL4-AJ8) -> 0 | AL14: =IF(AK14=0,0,(AK14*((LOG(AK14))/LOG(2)))) -> 0 | AN14: =N14 -> 0 | AO14: =COUNTIF(L52:L63,AN14) -> 0 | AP14: =AO14/(AQ4-AO8) -> 0 | AQ14: =IF(AP14=0,0,(AP14*((LOG(AP14))/LOG(2)))) -> 0 | AS14: =N14 -> 0 | AT14: =COUNTIF(L64:L74,AS14) -> 0 | AU14: =AT14/(AV4-AT8) ->  | AV14: =IF(AU14=0,0,(AU14*((LOG(AU14))/LOG(2)))) -> 
A15: 22 | B15: 940 | C15: 23 | D15: 953 | K15: 0 | L15: 22 | P15: =SUM(P7:P14) -> 1 | Q15: =-SUM(Q7:Q14) -> 1.476907467 | V15: =SUM(V7:V14) -> 1 | W15: =-SUM(W7:W14) -> 0.8631205686 | AA15: =SUM(AA7:AA14) -> 1 | AB15: =-SUM(AB7:AB14) -> 0.9544340029 | AF15: =SUM(AF7:AF14) -> 1 | AG15: =-SUM(AG7:AG14) -> 0 | AK15: =SUM(AK7:AK14) -> 1 | AL15: =-SUM(AL7:AL14) -> 0 | AP15: =SUM(AP7:AP14) -> 1 | AQ15: =-SUM(AQ7:AQ14) -> 1.5 | AU15: =SUM(AU7:AU14) ->  | AV15: =-SUM(AV7:AV14) -> 
A16: 22 | B16: 1064 | C16: 14 | D16: 1078 | K16: 0 | L16: 21 | P16: U= | Q16: =Q15/(LOG(Q4)/LOG(2)) -> 0.2426146173 | V16: U1= | W16: =W15/(LOG(W4)/LOG(2)) -> 0.2494977972 | AA16: U2= | AB16: =AB15/(LOG(AB4)/LOG(2)) -> 0.2662326322 | AF16: U3= | AG16: =AG15/(LOG(AG4)/LOG(2)) -> 0 | AK16: U4= | AL16: =AL15/(LOG(AL4)/LOG(2)) -> 0 | AP16: U5= | AQ16: =AQ15/(LOG(AQ4)/LOG(2)) -> 0.4184144185 | AU16: U6= | AV16: =AV15/(LOG(AV4)/LOG(2)) -> 
A17: 22 | B17: 1193 | C17: 14 | D17: 1210 | K17: 0 | L17: 21
A18: 11 | B18: 1308 | C18: 21 | D18: 1319 | K18: 0 | L18: 12
A19: 22 | B19: 1420 | C19: 14 | D19: 1435 | K19: 0 | L19: 21 | N19: Total Target Seq
A20: 22 | B20: 1542 | C20: 14 | D20: 1557 | K20: 0 | L20: 21 | N20: =COUNTIF(L7:L74,G3) -> 37 | P20: 11 | Q20: 12 | R20: 11 | S20: 11 | T20: 12 | U20: 11
A21: 22 | B21: 1677 | C21: 14 | D21: 1692 | K21: 0 | L21: 21 | P21: % of reinforcement given in 6 equal intervals based on number of trials
A22: 11 | B22: 1791 | C22: 21 | D22: 1801 | K22: 0 | L22: 12 | P22: %_1 | Q22: %_2 | R22: %_3 | S22: %_4 | T22: %_5 | U22: %_6
A23: 11 | B23: 1887 | C23: 21 | D23: 1901 | K23: 0 | L23: 12 | O23: target sequence | P23: =$G$3 -> 12 | Q23: =$G$3 -> 12 | R23: =$G$3 -> 12 | S23: =$G$3 -> 12 | T23: =$G$3 -> 12 | U23: =$G$3 -> 12
A24: 22 | B24: 2000 | C24: 14 | D24: 2015 | K24: 0 | L24: 21 | O24: total reinforcement | P24: =U8 -> 4 | Q24: =Z8 -> 4 | R24: =AE8 -> 2 | S24: =AJ8 -> 8 | T24: =AO8 -> 8 | U24: =AT8 -> 11
A25: 22 | B25: 2128 | C25: 14 | D25: 2141 | K25: 0 | L25: 21 | O25: % target
A26: 22 | B26: 2259 | C26: 23 | D26: 2268 | K26: 0 | L26: 22 | O26: CCRF
A27: 22 | B27: 2368 | C27: 23 | D27: 2389 | K27: 0 | L27: 22 | O27: % CCRf
A28: 11 | B28: 2486 | C28: 21 | D28: 2495 | K28: 0 | L28: 12 | O28: average response rate | P28: =D17/P20 -> 110 | Q28: =(D29-D17)/Q20 -> 117.5833333 | R28: =(D40-D29)/R20 -> 124.6363636 | S28: =(D51-D40)/S20 -> 111.3636364 | T28: =(D63-D51)/T20 -> 111.5 | U28: =(D74-D63)/U20 -> 100.3636364
A29: 22 | B29: 2596 | C29: 23 | D29: 2621 | K29: 0 | L29: 22
A30: 22 | B30: 2732 | C30: 23 | D30: 2745 | K30: 0 | L30: 22
A31: 22 | B31: 2861 | C31: 23 | D31: 2892 | K31: 0 | L31: 22
A32: 22 | B32: 3004 | C32: 23 | D32: 3013 | K32: 0 | L32: 22
A33: 22 | B33: 3125 | C33: 23 | D33: 3142 | K33: 0 | L33: 22
A34: 22 | B34: 3255 | C34: 23 | D34: 3272 | K34: 0 | L34: 22
A35: 22 | B35: 3371 | C35: 23 | D35: 3381 | K35: 0 | L35: 22
A36: 11 | B36: 3478 | C36: 21 | D36: 3488 | K36: 0 | L36: 12
A37: 11 | B37: 3603 | C37: 21 | D37: 3613 | K37: 0 | L37: 12
A38: 22 | B38: 3721 | C38: 23 | D38: 3733 | K38: 0 | L38: 22
A39: 22 | B39: 3857 | C39: 23 | D39: 3866 | K39: 0 | L39: 22
A40: 22 | B40: 3984 | C40: 23 | D40: 3992 | K40: 0 | L40: 22
A41: 22 | B41: 4104 | C41: 23 | D41: 4113 | K41: 0 | L41: 22
A42: 11 | B42: 4210 | C42: 21 | D42: 4220 | K42: 0 | L42: 12
A43: 11 | B43: 4311 | C43: 21 | D43: 4322 | K43: 0 | L43: 12
A44: 22 | B44: 4432 | C44: 23 | D44: 4450 | K44: 0 | L44: 22
A45: 11 | B45: 4550 | C45: 21 | D45: 4561 | K45: 0 | L45: 12
A46: 11 | B46: 4658 | C46: 21 | D46: 4669 | K46: 0 | L46: 12
A47: 22 | B47: 4773 | C47: 23 | D47: 4787 | K47: 0 | L47: 22
A48: 11 | B48: 4882 | C48: 21 | D48: 4891 | K48: 0 | L48: 12
A49: 11 | B49: 4980 | C49: 21 | D49: 4990 | K49: 0 | L49: 12
A50: 11 | B50: 5075 | C50: 21 | D50: 5089 | K50: 0 | L50: 12
A51: 11 | B51: 5205 | C51: 21 | D51: 5217 | K51: 0 | L51: 12
A52: 11 | B52: 5304 | C52: 21 | D52: 5319 | K52: 0 | L52: 12
A53: 22 | B53: 5435 | C53: 14 | D53: 5472 | K53: 0 | L53: 21
A54: 11 | B54: 5568 | C54: 21 | D54: 5578 | K54: 0 | L54: 12
A55: 11 | B55: 5667 | C55: 21 | D55: 5676 | K55: 0 | L55: 12
A56: 11 | B56: 5770 | C56: 21 | D56: 5779 | K56: 0 | L56: 12
A57: 11 | B57: 5864 | C57: 21 | D57: 5874 | K57: 0 | L57: 12
A58: 22 | B58: 5988 | C58: 14 | D58: 6011 | K58: 0 | L58: 21
A59: 22 | B59: 6117 | C59: 23 | D59: 6136 | K59: 0 | L59: 22
A60: 11 | B60: 6228 | C60: 21 | D60: 6243 | K60: 0 | L60: 12
A61: 11 | B61: 6337 | C61: 21 | D61: 6347 | K61: 0 | L61: 12
A62: 11 | B62: 6432 | C62: 21 | D62: 6442 | K62: 0 | L62: 12
A63: 11 | B63: 6527 | C63: 12 | D63: 6555 | K63: 0 | L63: 11
A64: 11 | B64: 6651 | C64: 21 | D64: 6660 | K64: 0 | L64: 12
A65: 11 | B65: 6755 | C65: 21 | D65: 6765 | K65: 0 | L65: 12
A66: 11 | B66: 6853 | C66: 21 | D66: 6862 | K66: 0 | L66: 12
A67: 11 | B67: 6948 | C67: 21 | D67: 6958 | K67: 0 | L67: 12
A68: 11 | B68: 7043 | C68: 21 | D68: 7052 | K68: 0 | L68: 12
A69: 11 | B69: 7137 | C69: 21 | D69: 7148 | K69: 0 | L69: 12
A70: 11 | B70: 7236 | C70: 21 | D70: 7244 | K70: 0 | L70: 12
A71: 11 | B71: 7329 | C71: 21 | D71: 7339 | K71: 0 | L71: 12
A72: 11 | B72: 7427 | C72: 21 | D72: 7436 | K72: 0 | L72: 12
A73: 11 | B73: 7521 | C73: 21 | D73: 7556 | K73: 0 | L73: 12
A74: 11 | B74: 7641 | C74: 21 | D74: 7659 | K74: 1 | L74: 12

Sheet !LB13C10.056
A1: Report for:!LB13C10.056
A2: Date: | B2: <date>
A3: Hen: | B3: <hen> | F3: Correct Sequence | G3: =Start!J2 -> 12 | P3: Total Sequences in Data | Q3: =4994-COUNTBLANK(L7:L5000) -> 77 | V3: Total Sequences in Block Data | W3: =COUNTA(L7:L19) -> 13 | AA3: Total Sequences in Block Data | AB3: =COUNTA(L20:L32) -> 13 | AF3: Total Sequences in Block Data | AG3: =COUNTA(L33:L44) -> 12 | AK3: Total Sequences in Block Data | AL3: =COUNTA(L45:L57) -> 13 | AP3: Total Sequences in Block Data | AQ3: =COUNTA(L58:L70) -> 13 | AU3: Total Sequences in Block Data | AV3: =COUNTA(L71:L83) -> 13
P4: Total Sequences in Summary | Q4: =SUM(O7:O14) -> 77 | V4: Total Sequences in Block Summary | W4: =SUM(U7:U14) -> 13 | AA4: Total Sequences in Block Summary | AB4: =SUM(Z7:Z14) -> 13 | AF4: Total Sequences in Block Summary | AG4: =SUM(AE7:AE14) -> 12 | AK4: Total Sequences in Block Summary | AL4: =SUM(AJ7:AJ14) -> 13 | AP4: Total Sequences in Block Summary | AQ4: =SUM(AO7:AO14) -> 13 | AU4: Total Sequences in Block Summary | AV4: =SUM(AT7:AT14) -> 13
T5: Block 1 | Y5: Block 2 | AD5: Block 3 | AI5: Block 4 | AN5: Block 5 | AS5: Block 6
A6: Sequence Component 1 | B6: Time 1 | C6: Sequence Component 2 | D6: Time 2 | E6: Sequence Component 3 | F6: Time 3 | G6: Sequence Component 4 | H6: Time 4 | I6: Sequence Component 5 | J6: Time 5 | K6: Correct? 0=No 1=Yes | L6: Sequence | N6: Frequency | P6: Relative Frequency | Q6: Variability | T6: Frequency | V6: Relative Frequency | W6: Variability | Y6: Frequency | AA6: Relative Frequency | AB6: Variability | AD6: Frequency | AF6: Relative Frequency | AG6: Variability | AI6: Frequency | AK6: Relative Frequency | AL6: Variability | AN6: Frequency | AP6: Relative Frequency | AQ6: Variability | AS6: Frequency | AU6: Relative Frequency | AV6: Variability
A7: 11 | B7: 12 | C7: 21 | D7: 27 | K7: 0 | L7: 12 | N7: 11 | O7: =COUNTIF($L$7:$L$500,N7) -> 2 | P7: =O7/$Q$4 -> 0.02597402597 | Q7: =IF(P7=0,0,(P7*((LOG(P7))/LOG(2)))) -> -0.1367996504 | T7: =N7 -> 11 | U7: =COUNTIF(L7:L19,T7) -> 1 | V7: =U7/(W4-U8) -> 0.1428571429 | W7: =IF(V7=0,0,(V7*((LOG(V7))/LOG(2)))) -> -0.4010507032 | Y7: =N7 -> 11 | Z7: =COUNTIF(L20:L32,Y7) -> 0 | AA7: =Z7/(AB4-Z8) -> 0 | AB7: =IF(AA7=0,0,(AA7*((LOG(AA7))/LOG(2)))) -> 0 | AD7: =N7 -> 11 | AE7: =COUNTIF(L33:L44,AD7) -> 0 | AF7: =AE7/(AG4-AE8) -> 0 | AG7: =IF(AF7=0,0,(AF7*((LOG(AF7))/LOG(2)))) -> 0 | AI7: =N7 -> 11 | AJ7: =COUNTIF(L45:L57,AI7) -> 1 | AK7: =AJ7/(AL4-AJ8) -> 0.1428571429 | AL7: =IF(AK7=0,0,(AK7*((LOG(AK7))/LOG(2)))) -> -0.4010507032 | AN7: =N7 -> 11 | AO7: =COUNTIF(L58:L70,AN7) -> 0 | AP7: =AO7/(AQ4-AO8) -> 0 | AQ7: =IF(AP7=0,0,(AP7*((LOG(AP7))/LOG(2)))) -> 0 | AS7: =N7 -> 11 | AT7: =COUNTIF(L71:L83,AS7) -> 0 | AU7: =AT7/(AV4-AT8) -> 0 | AV7: =IF(AU7=0,0,(AU7*((LOG(AU7))/LOG(2)))) -> 0
A8: 22 | B8: 119 | C8: 23 | D8: 140 | K8: 0 | L8: 22 | N8: 12 | O8: =COUNTIF($L$7:$L$500,N8) -> 32 | P8: =O8/$Q$4 -> 0.4155844156 | Q8: =IF(P8=0,0,(P8*((LOG(P8))/LOG(2)))) -> -0.5264567442 | T8: =N8 -> 12 | U8: =COUNTIF(L7:L19,T8) -> 6 | Y8: =N8 -> 12 | Z8: =COUNTIF(L20:L32,Y8) -> 3 | AD8: =N8 -> 12 | AE8: =COUNTIF(L33:L44,AD8) -> 6 | AI8: =N8 -> 12 | AJ8: =COUNTIF(L45:L57,AI8) -> 6 | AN8: =N8 -> 12 | AO8: =COUNTIF(L58:L70,AN8) -> 5 | AS8: =N8 -> 12 | AT8: =COUNTIF(L71:L83,AS8) -> 6
A9: 11 | B9: 242 | C9: 21 | D9: 252 | K9: 0 | L9: 12 | N9: 21 | O9: =COUNTIF($L$7:$L$500,N9) -> 8 | P9: =O9/$Q$4 -> 0.1038961039 | Q9: =IF(P9=0,0,(P9*((LOG(P9))/LOG(2)))) -> -0.3394063938 | T9: =N9 -> 21 | U9: =COUNTIF(L7:L19,T9) -> 4 | V9: =U9/(W4-U8) -> 0.5714285714 | W9: =IF(V9=0,0,(V9*((LOG(V9))/LOG(2)))) -> -0.4613456697 | Y9: =N9 -> 21 | Z9: =COUNTIF(L20:L32,Y9) -> 4 | AA9: =Z9/(AB4-Z8) -> 0.4 | AB9: =IF(AA9=0,0,(AA9*((LOG(AA9))/LOG(2)))) -> -0.528771238 | AD9: =N9 -> 21 | AE9: =COUNTIF(L33:L44,AD9) -> 0 | AF9: =AE9/(AG4-AE8) -> 0 | AG9: =IF(AF9=0,0,(AF9*((LOG(AF9))/LOG(2)))) -> 0 | AI9: =N9 -> 21 | AJ9: =COUNTIF(L45:L57,AI9) -> 0 | AK9: =AJ9/(AL4-AJ8) -> 0 | AL9: =IF(AK9=0,0,(AK9*((LOG(AK9))/LOG(2)))) -> 0 | AN9: =N9 -> 21 | AO9: =COUNTIF(L58:L70,AN9) -> 0 | AP9: =AO9/(AQ4-AO8) -> 0 | AQ9: =IF(AP9=0,0,(AP9*((LOG(AP9))/LOG(2)))) -> 0 | AS9: =N9 -> 21 | AT9: =COUNTIF(L71:L83,AS9) -> 0 | AU9: =AT9/(AV4-AT8) -> 0 | AV9: =IF(AU9=0,0,(AU9*((LOG(AU9))/LOG(2)))) -> 0
A10: 11 | B10: 341 | C10: 12 | D10: 352 | K10: 0 | L10: 11 | N10: 22 | O10: =COUNTIF($L$7:$L$500,N10) -> 35 | P10: =O10/$Q$4 -> 0.4545454545 | Q10: =IF(P10=0,0,(P10*((LOG(P10))/LOG(2)))) -> -0.5170470562 | T10: =N10 -> 22 | U10: =COUNTIF(L7:L19,T10) -> 2 | V10: =U10/(W4-U8) -> 0.2857142857 | W10: =IF(V10=0,0,(V10*((LOG(V10))/LOG(2)))) -> -0.5163871206 | Y10: =N10 -> 22 | Z10: =COUNTIF(L20:L32,Y10) -> 6 | AA10: =Z10/(AB4-Z8) -> 0.6 | AB10: =IF(AA10=0,0,(AA10*((LOG(AA10))/LOG(2)))) -> -0.4421793565 | AD10: =N10 -> 22 | AE10: =COUNTIF(L33:L44,AD10) -> 6 | AF10: =AE10/(AG4-AE8) -> 1 | AG10: =IF(AF10=0,0,(AF10*((LOG(AF10))/LOG(2)))) -> 0 | AI10: =N10 -> 22 | AJ10: =COUNTIF(L45:L57,AI10) -> 6 | AK10: =AJ10/(AL4-AJ8) -> 0.8571428571 | AL10: =IF(AK10=0,0,(AK10*((LOG(AK10))/LOG(2)))) -> -0.1906220754 | AN10: =N10 -> 22 | AO10: =COUNTIF(L58:L70,AN10) -> 8 | AP10: =AO10/(AQ4-AO8) -> 1 | AQ10: =IF(AP10=0,0,(AP10*((LOG(AP10))/LOG(2)))) -> 0 | AS10: =N10 -> 22 | AT10: =COUNTIF(L71:L83,AS10) -> 7 | AU10: =AT10/(AV4-AT8) -> 1 | AV10: =IF(AU10=0,0,(AU10*((LOG(AU10))/LOG(2)))) -> 0
A11: 22 | B11: 453 | C11: 23 | D11: 459 | K11: 0 | L11: 22 | T11: =N11 -> 0 | U11: =COUNTIF(L7:L19,T11) -> 0 | V11: =U11/(W4-U8) -> 0 | W11: =IF(V11=0,0,(V11*((LOG(V11))/LOG(2)))) -> 0 | Y11: =N11 -> 0 | Z11: =COUNTIF(L20:L32,Y11) -> 0 | AA11: =Z11/(AB4-Z8) -> 0 | AB11: =IF(AA11=0,0,(AA11*((LOG(AA11))/LOG(2)))) -> 0 | AD11: =N11 -> 0 | AE11: =COUNTIF(L33:L44,AD11) -> 0 | AF11: =AE11/(AG4-AE8) -> 0 | AG11: =IF(AF11=0,0,(AF11*((LOG(AF11))/LOG(2)))) -> 0 | AI11: =N11 -> 0 | AJ11: =COUNTIF(L45:L57,AI11) -> 0 | AK11: =AJ11/(AL4-AJ8) -> 0 | AL11: =IF(AK11=0,0,(AK11*((LOG(AK11))/LOG(2)))) -> 0 | AN11: =N11 -> 0 | AO11: =COUNTIF(L58:L70,AN11) -> 0 | AP11: =AO11/(AQ4-AO8) -> 0 | AQ11: =IF(AP11=0,0,(AP11*((LOG(AP11))/LOG(2)))) -> 0 | AS11: =N11 -> 0 | AT11: =COUNTIF(L71:L83,AS11) -> 0 | AU11: =AT11/(AV4-AT8) -> 0 | AV11: =IF(AU11=0,0,(AU11*((LOG(AU11))/LOG(2)))) -> 0
A12: 11 | B12: 557 | C12: 21 | D12: 568 | K12: 0 | L12: 12 | T12: =N12 -> 0 | U12: =COUNTIF(L7:L19,T12) -> 0 | V12: =U12/(W4-U8) -> 0 | W12: =IF(V12=0,0,(V12*((LOG(V12))/LOG(2)))) -> 0 | Y12: =N12 -> 0 | Z12: =COUNTIF(L20:L32,Y12) -> 0 | AA12: =Z12/(AB4-Z8) -> 0 | AB12: =IF(AA12=0,0,(AA12*((LOG(AA12))/LOG(2)))) -> 0 | AD12: =N12 -> 0 | AE12: =COUNTIF(L33:L44,AD12) -> 0 | AF12: =AE12/(AG4-AE8) -> 0 | AG12: =IF(AF12=0,0,(AF12*((LOG(AF12))/LOG(2)))) -> 0 | AI12: =N12 -> 0 | AJ12: =COUNTIF(L45:L57,AI12) -> 0 | AK12: =AJ12/(AL4-AJ8) -> 0 | AL12: =IF(AK12=0,0,(AK12*((LOG(AK12))/LOG(2)))) -> 0 | AN12: =N12 -> 0 | AO12: =COUNTIF(L58:L70,AN12) -> 0 | AP12: =AO12/(AQ4-AO8) -> 0 | AQ12: =IF(AP12=0,0,(AP12*((LOG(AP12))/LOG(2)))) -> 0 | AS12: =N12 -> 0 | AT12: =COUNTIF(L71:L83,AS12) -> 0 | AU12: =AT12/(AV4-AT8) -> 0 | AV12: =IF(AU12=0,0,(AU12*((LOG(AU12))/LOG(2)))) -> 0
A13: 11 | B13: 655 | C13: 21 | D13: 667 | K13: 0 | L13: 12 | T13: =N13 -> 0 | U13: =COUNTIF(L7:L19,T13) -> 0 | V13: =U13/(W4-U8) -> 0 | W13: =IF(V13=0,0,(V13*((LOG(V13))/LOG(2)))) -> 0 | Y13: =N13 -> 0 | Z13: =COUNTIF(L20:L32,Y13) -> 0 | AA13: =Z13/(AB4-Z8) -> 0 | AB13: =IF(AA13=0,0,(AA13*((LOG(AA13))/LOG(2)))) -> 0 | AD13: =N13 -> 0 | AE13: =COUNTIF(L33:L44,AD13) -> 0 | AF13: =AE13/(AG4-AE8) -> 0 | AG13: =IF(AF13=0,0,(AF13*((LOG(AF13))/LOG(2)))) -> 0 | AI13: =N13 -> 0 | AJ13: =COUNTIF(L45:L57,AI13) -> 0 | AK13: =AJ13/(AL4-AJ8) -> 0 | AL13: =IF(AK13=0,0,(AK13*((LOG(AK13))/LOG(2)))) -> 0 | AN13: =N13 -> 0 | AO13: =COUNTIF(L58:L70,AN13) -> 0 | AP13: =AO13/(AQ4-AO8) -> 0 | AQ13: =IF(AP13=0,0,(AP13*((LOG(AP13))/LOG(2)))) -> 0 | AS13: =N13 -> 0 | AT13: =COUNTIF(L71:L83,AS13) -> 0 | AU13: =AT13/(AV4-AT8) -> 0 | AV13: =IF(AU13=0,0,(AU13*((LOG(AU13))/LOG(2)))) -> 0
A14: 22 | B14: 769 | C14: 14 | D14: 806 | K14: 0 | L14: 21 | T14: =N14 -> 0 | U14: =COUNTIF(L7:L19,T14) -> 0 | V14: =U14/(W4-U8) -> 0 | W14: =IF(V14=0,0,(V14*((LOG(V14))/LOG(2)))) -> 0 | Y14: =N14 -> 0 | Z14: =COUNTIF(L20:L32,Y14) -> 0 | AA14: =Z14/(AB4-Z8) -> 0 | AB14: =IF(AA14=0,0,(AA14*((LOG(AA14))/LOG(2)))) -> 0 | AD14: =N14 -> 0 | AE14: =COUNTIF(L33:L44,AD14) -> 0 | AF14: =AE14/(AG4-AE8) -> 0 | AG14: =IF(AF14=0,0,(AF14*((LOG(AF14))/LOG(2)))) -> 0 | AI14: =N14 -> 0 | AJ14: =COUNTIF(L45:L57,AI14) -> 0 | AK14: =AJ14/(AL4-AJ8) -> 0 | AL14: =IF(AK14=0,0,(AK14*((LOG(AK14))/LOG(2)))) -> 0 | AN14: =N14 -> 0 | AO14: =COUNTIF(L58:L70,AN14) -> 0 | AP14: =AO14/(AQ4-AO8) -> 0 | AQ14: =IF(AP14=0,0,(AP14*((LOG(AP14))/LOG(2)))) -> 0 | AS14: =N14 -> 0 | AT14: =COUNTIF(L71:L83,AS14) -> 0 | AU14: =AT14/(AV4-AT8) -> 0 | AV14: =IF(AU14=0,0,(AU14*((LOG(AU14))/LOG(2)))) -> 0
A15: 22 | B15: 916 | C15: 14 | D15: 931 | K15: 0 | L15: 21 | P15: =SUM(P7:P14) -> 1 | Q15: =-SUM(Q7:Q14) -> 1.519709845 | V15: =SUM(V7:V14) -> 1 | W15: =-SUM(W7:W14) -> 1.378783493 | AA15: =SUM(AA7:AA14) -> 1 | AB15: =-SUM(AB7:AB14) -> 0.9709505945 | AF15: =SUM(AF7:AF14) -> 1 | AG15: =-SUM(AG7:AG14) -> 0 | AK15: =SUM(AK7:AK14) -> 1 | AL15: =-SUM(AL7:AL14) -> 0.5916727786 | AP15: =SUM(AP7:AP14) -> 1 | AQ15: =-SUM(AQ7:AQ14) -> 0 | AU15: =SUM(AU7:AU14) -> 1 | AV15: =-SUM(AV7:AV14) -> 0
A16: 11 | B16: 1024 | C16: 21 | D16: 1034 | K16: 0 | L16: 12 | P16: U= | Q16: =Q15/(LOG(Q4)/LOG(2)) -> 0.2425022513 | V16: U1= | W16: =W15/(LOG(W4)/LOG(2)) -> 0.3725999066 | AA16: U2= | AB16: =AB15/(LOG(AB4)/LOG(2)) -> 0.2623878967 | AF16: U3= | AG16: =AG15/(LOG(AG4)/LOG(2)) -> 0 | AK16: U4= | AL16: =AL15/(LOG(AL4)/LOG(2)) -> 0.1598925597 | AP16: U5= | AQ16: =AQ15/(LOG(AQ4)/LOG(2)) -> 0 | AU16: U6= | AV16: =AV15/(LOG(AV4)/LOG(2)) -> 0
A17: 22 | B17: 1134 | C17: 14 | D17: 1155 | K17: 0 | L17: 21
A18: 22 | B18: 1262 | C18: 14 | D18: 1282 | K18: 0 | L18: 21
A19: 11 | B19: 1378 | C19: 21 | D19: 1389 | K19: 0 | L19: 12 | N19: Total Target Seq
A20: 22 | B20: 1493 | C20: 14 | D20: 1506 | K20: 0 | L20: 21 | N20: =COUNTIF(L7:L83,G3) -> 32 | P20: 13 | Q20: 13 | R20: 12 | S20: 13 | T20: 13 | U20: 13
A21: 22 | B21: 1617 | C21: 23 | D21: 1639 | K21: 0 | L21: 22 | P21: % of reinforcement given in 6 equal intervals based on number of trials
A22: 22 | B22: 1750 | C22: 14 | D22: 1764 | K22: 0 | L22: 21 | P22: %_1 | Q22: %_2 | R22: %_3 | S22: %_4 | T22: %_5 | U22: %_6
A23: 22 | B23: 1873 | C23: 14 | D23: 1886 | K23: 0 | L23: 21 | O23: target sequence | P23: =$G$3 -> 12 | Q23: =$G$3 -> 12 | R23: =$G$3 -> 12 | S23: =$G$3 -> 12 | T23: =$G$3 -> 12 | U23: =$G$3 -> 12
A24: 11 | B24: 1999 | C24: 21 | D24: 2009 | K24: 0 | L24: 12 | O24: total reinforcement | P24: =U8 -> 6 | Q24: =Z8 -> 3 | R24: =AE8 -> 6 | S24: =AJ8 -> 6 | T24: =AO8 -> 5 | U24: =AT8 -> 6
A25: 11 | B25: 2095 | C25: 21 | D25: 2104 | K25: 0 | L25: 12 | O25: % target
A26: 22 | B26: 2204 | C26: 23 | D26: 2228 | K26: 0 | L26: 22 | O26: CCRF
A27: 22 | B27: 2351 | C27: 14 | D27: 2385 | K27: 0 | L27: 21 | O27: % CCRf
A28: 22 | B28: 2500 | C28: 23 | D28: 2527 | K28: 0 | L28: 22 | O28: average response rate | P28: =D19/P20 -> 106.8461538 | Q28: =(D32-D19)/Q20 -> 123.5384615 | R28: =(D44-D32)/R20 -> 115.1666667 | S28: =(D57-D44)/S20 -> 113.5384615 | T28: =(D70-D57)/T20 -> 114.1538462 | U28: =(D83-D70)/U20 -> 113
A29: 11 | B29: 2622 | C29: 21 | D29: 2633 | K29: 0 | L29: 12
A30: 22 | B30: 2734 | C30: 23 | D30: 2750 | K30: 0 | L30: 22
A31: 22 | B31: 2852 | C31: 23 | D31: 2871 | K31: 0 | L31: 22
A32: 22 | B32: 2983 | C32: 23 | D32: 2995 | K32: 0 | L32: 22
A33: 11 | B33: 3090 | C33: 21 | D33: 3104 | K33: 0 | L33: 12
A34: 11 | B34: 3195 | C34: 21 | D34: 3209 | K34: 0 | L34: 12
A35: 11 | B35: 3295 | C35: 21 | D35: 3305 | K35: 0 | L35: 12
A36: 22 | B36: 3401 | C36: 23 | D36: 3420 | K36: 0 | L36: 22
A37: 11 | B37: 3503 | C37: 21 | D37: 3521 | K37: 0 | L37: 12
A38: 11 | B38: 3604 | C38: 21 | D38: 3627 | K38: 0 | L38: 12
A39: 22 | B39: 3723 | C39: 23 | D39: 3744 | K39: 0 | L39: 22
A40: 22 | B40: 3854 | C40: 23 | D40: 3876 | K40: 0 | L40: 22
A41: 22 | B41: 3985 | C41: 23 | D41: 4004 | K41: 0 | L41: 22
A42: 22 | B42: 4117 | C42: 23 | D42: 4141 | K42: 0 | L42: 22
A43: 11 | B43: 4234 | C43: 21 | D43: 4245 | K43: 0 | L43: 12
A44: 22 | B44: 4350 | C44: 23 | D44: 4377 | K44: 0 | L44: 22
A45: 11 | B45: 4472 | C45: 21 | D45: 4488 | K45: 0 | L45: 12
A46: 22 | B46: 4586 | C46: 23 | D46: 4605 | K46: 0 | L46: 22
A47: 22 | B47: 4711 | C47: 23 | D47: 4734 | K47: 0 | L47: 22
A48: 11 | B48: 4826 | C48: 21 | D48: 4843 | K48: 0 | L48: 12
A49: 11 | B49: 4926 | C49: 12 | D49: 4932 | K49: 0 | L49: 11
A50: 11 | B50: 5027 | C50: 21 | D50: 5037 | K50: 0 | L50: 12
A51: 22 | B51: 5159 | C51: 23 | D51: 5173 | K51: 0 | L51: 22
A52: 11 | B52: 5269 | C52: 21 | D52: 5279 | K52: 0 | L52: 12
A53: 11 | B53: 5365 | C53: 21 | D53: 5375 | K53: 0 | L53: 12
A54: 22 | B54: 5470 | C54: 23 | D54: 5482 | K54: 0 | L54: 22
A55: 11 | B55: 5578 | C55: 21 | D55: 5607 | K55: 0 | L55: 12
A56: 22 | B56: 5717 | C56: 23 | D56: 5736 | K56: 0 | L56: 22
A57: 22 | B57: 5839 | C57: 23 | D57: 5853 | K57: 0 | L57: 22
A58: 11 | B58: 5940 | C58: 21 | D58: 5949 | K58: 0 | L58: 12
A59: 22 | B59: 6053 | C59: 23 | D59: 6067 | K59: 0 | L59: 22
A60: 11 | B60: 6165 | C60: 21 | D60: 6173 | K60: 0 | L60: 12
A61: 22 | B61: 6294 | C61: 23 | D61: 6308 | K61: 0 | L61: 22
A62: 22 | B62: 6447 | C62: 23 | D62: 6467 | K62: 0 | L62: 22
A63: 22 | B63: 6563 | C63: 23 | D63: 6572 | K63: 0 | L63: 22
A64: 11 | B64: 6669 | C64: 21 | D64: 6678 | K64: 0 | L64: 12
A65: 11 | B65: 6764 | C65: 21 | D65: 6774 | K65: 0 | L65: 12
A66: 22 | B66: 6868 | C66: 23 | D66: 6881 | K66: 0 | L66: 22
A67: 22 | B67: 6986 | C67: 23 | D67: 7005 | K67: 0 | L67: 22
A68: 22 | B68: 7104 | C68: 23 | D68: 7115 | K68: 0 | L68: 22
A69: 11 | B69: 7213 | C69: 21 | D69: 7229 | K69: 0 | L69: 12
A70: 22 | B70: 7328 | C70: 23 | D70: 7337 | K70: 0 | L70: 22
A71: 11 | B71: 7434 | C71: 21 | D71: 7443 | K71: 0 | L71: 12
A72: 22 | B72: 7532 | C72: 23 | D72: 7548 | K72: 0 | L72: 22
A73: 11 | B73: 7646 | C73: 21 | D73: 7652 | K73: 0 | L73: 12
A74: 11 | B74: 7742 | C74: 21 | D74: 7752 | K74: 0 | L74: 12
A75: 22 | B75: 7849 | C75: 23 | D75: 7861 | K75: 0 | L75: 22
A76: 22 | B76: 7966 | C76: 23 | D76: 7974 | K76: 0 | L76: 22
A77: 22 | B77: 8080 | C77: 23 | D77: 8114 | K77: 0 | L77: 22
A78: 22 | B78: 8220 | C78: 23 | D78: 8228 | K78: 0 | L78: 22
A79: 11 | B79: 8323 | C79: 21 | D79: 8332 | K79: 0 | L79: 12
A80: 22 | B80: 8428 | C80: 23 | D80: 8437 | K80: 0 | L80: 22
A81: 11 | B81: 8533 | C81: 21 | D81: 8542 | K81: 0 | L81: 12
A82: 22 | B82: 8640 | C82: 23 | D82: 8672 | K82: 0 | L82: 22
A83: 11 | B83: 8759 | C83: 21 | D83: 8806 | K83: 1 | L83: 12

Sheet !LB14B20.056
A1: Report for:!LB14B20.056
A2: Date: | B2: <date>
A3: Hen: | B3: <hen> | F3: Correct Sequence | G3: =Start!J2 -> 12 | P3: Total Sequences in Data | Q3: =4994-COUNTBLANK(L7:L5000) -> 90 | V3: Total Sequences in Block Data | W3: =COUNTA(L7:L21) -> 15 | AA3: Total Sequences in Block Data | AB3: =COUNTA(L22:L36) -> 15 | AF3: Total Sequences in Block Data | AG3: =COUNTA(L37:L51) -> 15 | AK3: Total Sequences in Block Data | AL3: =COUNTA(L52:L66) -> 15 | AP3: Total Sequences in Block Data | AQ3: =COUNTA(L67:L81) -> 15 | AU3: Total Sequences in Block Data | AV3: =COUNTA(L82:L96) -> 15
P4: Total Sequences in Summary | Q4: =SUM(O7:O14) -> 90 | V4: Total Sequences in Block Summary | W4: =SUM(U7:U14) -> 15 | AA4: Total Sequences in Block Summary | AB4: =SUM(Z7:Z14) -> 15 | AF4: Total Sequences in Block Summary | AG4: =SUM(AE7:AE14) -> 15 | AK4: Total Sequences in Block Summary | AL4: =SUM(AJ7:AJ14) -> 15 | AP4: Total Sequences in Block Summary | AQ4: =SUM(AO7:AO14) -> 15 | AU4: Total Sequences in Block Summary | AV4: =SUM(AT7:AT14) -> 15
T5: Block 1 | Y5: Block 2 | AD5: Block 3 | AI5: Block 4 | AN5: Block 5 | AS5: Block 6
A6: Sequence Component 1 | B6: Time 1 | C6: Sequence Component 2 | D6: Time 2 | E6: Sequence Component 3 | F6: Time 3 | G6: Sequence Component 4 | H6: Time 4 | I6: Sequence Component 5 | J6: Time 5 | K6: Correct? 0=No 1=Yes | L6: Sequence | N6: Frequency | P6: Relative Frequency | Q6: Variability | T6: Frequency | V6: Relative Frequency | W6: Variability | Y6: Frequency | AA6: Relative Frequency | AB6: Variability | AD6: Frequency | AF6: Relative Frequency | AG6: Variability | AI6: Frequency | AK6: Relative Frequency | AL6: Variability | AN6: Frequency | AP6: Relative Frequency | AQ6: Variability | AS6: Frequency | AU6: Relative Frequency | AV6: Variability
A7: 22 | B7: 12 | C7: 23 | D7: 33 | K7: 0 | L7: 22 | N7: 11 | O7: =COUNTIF($L$7:$L$500,N7) -> 4 | P7: =O7/$Q$4 -> 0.04444444444 | Q7: =IF(P7=0,0,(P7*((LOG(P7))/LOG(2)))) -> -0.1996379154 | T7: =N7 -> 11 | U7: =COUNTIF(L7:L21,T7) -> 0 | V7: =U7/(W4-U8) -> 0 | W7: =IF(V7=0,0,(V7*((LOG(V7))/LOG(2)))) -> 0 | Y7: =N7 -> 11 | Z7: =COUNTIF(L22:L36,Y7) -> 0 | AA7: =Z7/(AB4-Z8) -> 0 | AB7: =IF(AA7=0,0,(AA7*((LOG(AA7))/LOG(2)))) -> 0 | AD7: =N7 -> 11 | AE7: =COUNTIF(L37:L51,AD7) -> 2 | AF7: =AE7/(AG4-AE8) -> 0.1666666667 | AG7: =IF(AF7=0,0,(AF7*((LOG(AF7))/LOG(2)))) -> -0.4308270835 | AI7: =N7 -> 11 | AJ7: =COUNTIF(L52:L66,AI7) -> 0 | AK7: =AJ7/(AL4-AJ8) -> 0 | AL7: =IF(AK7=0,0,(AK7*((LOG(AK7))/LOG(2)))) -> 0 | AN7: =N7 -> 11 | AO7: =COUNTIF(L67:L81,AN7) -> 0 | AP7: =AO7/(AQ4-AO8) -> 0 | AQ7: =IF(AP7=0,0,(AP7*((LOG(AP7))/LOG(2)))) -> 0 | AS7: =N7 -> 11 | AT7: =COUNTIF(L82:L96,AS7) -> 2 | AU7: =AT7/(AV4-AT8) -> 0.2857142857 | AV7: =IF(AU7=0,0,(AU7*((LOG(AU7))/LOG(2)))) -> -0.5163871206
A8: 22 | B8: 141 | C8: 23 | D8: 162 | K8: 0 | L8: 22 | N8: 12 | O8: =COUNTIF($L$7:$L$500,N8) -> 33 | P8: =O8/$Q$4 -> 0.3666666667 | Q8: =IF(P8=0,0,(P8*((LOG(P8))/LOG(2)))) -> -0.5307349582 | T8: =N8 -> 12 | U8: =COUNTIF(L7:L21,T8) -> 3 | Y8: =N8 -> 12 | Z8: =COUNTIF(L22:L36,Y8) -> 3 | AD8: =N8 -> 12 | AE8: =COUNTIF(L37:L51,AD8) -> 3 | AI8: =N8 -> 12 | AJ8: =COUNTIF(L52:L66,AI8) -> 7 | AN8: =N8 -> 12 | AO8: =COUNTIF(L67:L81,AN8) -> 9 | AS8: =N8 -> 12 | AT8: =COUNTIF(L82:L96,AS8) -> 8
A9: 22 | B9: 262 | C9: 23 | D9: 284 | K9: 0 | L9: 22 | N9: 21 | O9: =COUNTIF($L$7:$L$500,N9) -> 3 | P9: =O9/$Q$4 -> 0.03333333333 | Q9: =IF(P9=0,0,(P9*((LOG(P9))/LOG(2)))) -> -0.1635630199 | T9: =N9 -> 21 | U9: =COUNTIF(L7:L21,T9) -> 1 | V9: =U9/(W4-U8) -> 0.08333333333 | W9: =IF(V9=0,0,(V9*((LOG(V9))/LOG(2)))) -> -0.2987468751 | Y9: =N9 -> 21 | Z9: =COUNTIF(L22:L36,Y9) -> 2 | AA9: =Z9/(AB4-Z8) -> 0.1666666667 | AB9: =IF(AA9=0,0,(AA9*((LOG(AA9))/LOG(2)))) -> -0.4308270835 | AD9: =N9 -> 21 | AE9: =COUNTIF(L37:L51,AD9) -> 0 | AF9: =AE9/(AG4-AE8) -> 0 | AG9: =IF(AF9=0,0,(AF9*((LOG(AF9))/LOG(2)))) -> 0 | AI9: =N9 -> 21 | AJ9: =COUNTIF(L52:L66,AI9) -> 0 | AK9: =AJ9/(AL4-AJ8) -> 0 | AL9: =IF(AK9=0,0,(AK9*((LOG(AK9))/LOG(2)))) -> 0 | AN9: =N9 -> 21 | AO9: =COUNTIF(L67:L81,AN9) -> 0 | AP9: =AO9/(AQ4-AO8) -> 0 | AQ9: =IF(AP9=0,0,(AP9*((LOG(AP9))/LOG(2)))) -> 0 | AS9: =N9 -> 21 | AT9: =COUNTIF(L82:L96,AS9) -> 0 | AU9: =AT9/(AV4-AT8) -> 0 | AV9: =IF(AU9=0,0,(AU9*((LOG(AU9))/LOG(2)))) -> 0
A10: 11 | B10: 390 | C10: 21 | D10: 402 | K10: 0 | L10: 12 | N10: 22 | O10: =COUNTIF($L$7:$L$500,N10) -> 50 | P10: =O10/$Q$4 -> 0.5555555556 | Q10: =IF(P10=0,0,(P10*((LOG(P10))/LOG(2)))) -> -0.4711093925 | T10: =N10 -> 22 | U10: =COUNTIF(L7:L21,T10) -> 11 | V10: =U10/(W4-U8) -> 0.9166666667 | W10: =IF(V10=0,0,(V10*((LOG(V10))/LOG(2)))) -> -0.1150699752 | Y10: =N10 -> 22 | Z10: =COUNTIF(L22:L36,Y10) -> 10 | AA10: =Z10/(AB4-Z8) -> 0.8333333333 | AB10: =IF(AA10=0,0,(AA10*((LOG(AA10))/LOG(2)))) -> -0.2191953382 | AD10: =N10 -> 22 | AE10: =COUNTIF(L37:L51,AD10) -> 10 | AF10: =AE10/(AG4-AE8) -> 0.8333333333 | AG10: =IF(AF10=0,0,(AF10*((LOG(AF10))/LOG(2)))) -> -0.2191953382 | AI10: =N10 -> 22 | AJ10: =COUNTIF(L52:L66,AI10) -> 8 | AK10: =AJ10/(AL4-AJ8) -> 1 | AL10: =IF(AK10=0,0,(AK10*((LOG(AK10))/LOG(2)))) -> 0 | AN10: =N10 -> 22 | AO10: =COUNTIF(L67:L81,AN10) -> 6 | AP10: =AO10/(AQ4-AO8) -> 1 | AQ10: =IF(AP10=0,0,(AP10*((LOG(AP10))/LOG(2)))) -> 0 | AS10: =N10 -> 22 | AT10: =COUNTIF(L82:L96,AS10) -> 5 | AU10: =AT10/(AV4-AT8) -> 0.7142857143 | AV10: =IF(AU10=0,0,(AU10*((LOG(AU10))/LOG(2)))) -> -0.346733448
A11: 22 | B11: 502 | C11: 14 | D11: 546 | K11: 0 | L11: 21 | T11: =N11 -> 0 | U11: =COUNTIF(L7:L21,T11) -> 0 | V11: =U11/(W4-U8) -> 0 | W11: =IF(V11=0,0,(V11*((LOG(V11))/LOG(2)))) -> 0 | Y11: =N11 -> 0 | Z11: =COUNTIF(L22:L36,Y11) -> 0 | AA11: =Z11/(AB4-Z8) -> 0 | AB11: =IF(AA11=0,0,(AA11*((LOG(AA11))/LOG(2)))) -> 0 | AD11: =N11 -> 0 | AE11: =COUNTIF(L37:L51,AD11) -> 0 | AF11: =AE11/(AG4-AE8) -> 0 | AG11: =IF(AF11=0,0,(AF11*((LOG(AF11))/LOG(2)))) -> 0 | AI11: =N11 -> 0 | AJ11: =COUNTIF(L52:L66,AI11) -> 0 | AK11: =AJ11/(AL4-AJ8) -> 0 | AL11: =IF(AK11=0,0,(AK11*((LOG(AK11))/LOG(2)))) -> 0 | AN11: =N11 -> 0 | AO11: =COUNTIF(L67:L81,AN11) -> 0 | AP11: =AO11/(AQ4-AO8) -> 0 | AQ11: =IF(AP11=0,0,(AP11*((LOG(AP11))/LOG(2)))) -> 0 | AS11: =N11 -> 0 | AT11: =COUNTIF(L82:L96,AS11) -> 0 | AU11: =AT11/(AV4-AT8) -> 0 | AV11: =IF(AU11=0,0,(AU11*((LOG(AU11))/LOG(2)))) -> 0
A12: 11 | B12: 645 | C12: 21 | D12: 657 | K12: 0 | L12: 12 | T12: =N12 -> 0 | U12: =COUNTIF(L7:L21,T12) -> 0 | V12: =U12/(W4-U8) -> 0 | W12: =IF(V12=0,0,(V12*((LOG(V12))/LOG(2)))) -> 0 | Y12: =N12 -> 0 | Z12: =COUNTIF(L22:L36,Y12) -> 0 | AA12: =Z12/(AB4-Z8) -> 0 | AB12: =IF(AA12=0,0,(AA12*((LOG(AA12))/LOG(2)))) -> 0 | AD12: =N12 -> 0 | AE12: =COUNTIF(L37:L51,AD12) -> 0 | AF12: =AE12/(AG4-AE8) -> 0 | AG12: =IF(AF12=0,0,(AF12*((LOG(AF12))/LOG(2)))) -> 0 | AI12: =N12 -> 0 | AJ12: =COUNTIF(L52:L66,AI12) -> 0 | AK12: =AJ12/(AL4-AJ8) -> 0 | AL12: =IF(AK12=0,0,(AK12*((LOG(AK12))/LOG(2)))) -> 0 | AN12: =N12 -> 0 | AO12: =COUNTIF(L67:L81,AN12) -> 0 | AP12: =AO12/(AQ4-AO8) -> 0 | AQ12: =IF(AP12=0,0,(AP12*((LOG(AP12))/LOG(2)))) -> 0 | AS12: =N12 -> 0 | AT12: =COUNTIF(L82:L96,AS12) -> 0 | AU12: =AT12/(AV4-AT8) -> 0 | AV12: =IF(AU12=0,0,(AU12*((LOG(AU12))/LOG(2)))) -> 0
A13: 22 | B13: 808 | C13: 23 | D13: 838 | K13: 0 | L13: 22 | T13: =N13 -> 0 | U13: =COUNTIF(L7:L21,T13) -> 0 | V13: =U13/(W4-U8) -> 0 | W13: =IF(V13=0,0,(V13*((LOG(V13))/LOG(2)))) -> 0 | Y13: =N13 -> 0 | Z13: =COUNTIF(L22:L36,Y13) -> 0 | AA13: =Z13/(AB4-Z8) -> 0 | AB13: =IF(AA13=0,0,(AA13*((LOG(AA13))/LOG(2)))) -> 0 | AD13: =N13 -> 0 | AE13: =COUNTIF(L37:L51,AD13) -> 0 | AF13: =AE13/(AG4-AE8) -> 0 | AG13: =IF(AF13=0,0,(AF13*((LOG(AF13))/LOG(2)))) -> 0 | AI13: =N13 -> 0 | AJ13: =COUNTIF(L52:L66,AI13) -> 0 | AK13: =AJ13/(AL4-AJ8) -> 0 | AL13: =IF(AK13=0,0,(AK13*((LOG(AK13))/LOG(2)))) -> 0 | AN13: =N13 -> 0 | AO13: =COUNTIF(L67:L81,AN13) -> 0 | AP13: =AO13/(AQ4-AO8) -> 0 | AQ13: =IF(AP13=0,0,(AP13*((LOG(AP13))/LOG(2)))) -> 0 | AS13: =N13 -> 0 | AT13: =COUNTIF(L82:L96,AS13) -> 0 | AU13: =AT13/(AV4-AT8) -> 0 | AV13: =IF(AU13=0,0,(AU13*((LOG(AU13))/LOG(2)))) -> 0
A14: 22 | B14: 948 | C14: 23 | D14: 960 | K14: 0 | L14: 22 | T14: =N14 -> 0 | U14: =COUNTIF(L7:L21,T14) -> 0 | V14: =U14/(W4-U8) -> 0 | W14: =IF(V14=0,0,(V14*((LOG(V14))/LOG(2)))) -> 0 | Y14: =N14 -> 0 | Z14: =COUNTIF(L22:L36,Y14) -> 0 | AA14: =Z14/(AB4-Z8) -> 0 | AB14: =IF(AA14=0,0,(AA14*((LOG(AA14))/LOG(2)))) -> 0 | AD14: =N14 -> 0 | AE14: =COUNTIF(L37:L51,AD14) -> 0 | AF14: =AE14/(AG4-AE8) -> 0 | AG14: =IF(AF14=0,0,(AF14*((LOG(AF14))/LOG(2)))) -> 0 | AI14: =N14 -> 0 | AJ14: =COUNTIF(L52:L66,AI14) -> 0 | AK14: =AJ14/(AL4-AJ8) -> 0 | AL14: =IF(AK14=0,0,(AK14*((LOG(AK14))/LOG(2)))) -> 0 | AN14: =N14 -> 0 | AO14: =COUNTIF(L67:L81,AN14) -> 0 | AP14: =AO14/(AQ4-AO8) -> 0 | AQ14: =IF(AP14=0,0,(AP14*((LOG(AP14))/LOG(2)))) -> 0 | AS14: =N14 -> 0 | AT14: =COUNTIF(L82:L96,AS14) -> 0 | AU14: =AT14/(AV4-AT8) -> 0 | AV14: =IF(AU14=0,0,(AU14*((LOG(AU14))/LOG(2)))) -> 0
A15: 22 | B15: 1061 | C15: 23 | D15: 1080 | K15: 0 | L15: 22 | P15: =SUM(P7:P14) -> 1 | Q15: =-SUM(Q7:Q14) -> 1.365045286 | V15: =SUM(V7:V14) -> 1 | W15: =-SUM(W7:W14) -> 0.4138168503 | AA15: =SUM(AA7:AA14) -> 1 | AB15: =-SUM(AB7:AB14) -> 0.6500224216 | AF15: =SUM(AF7:AF14) -> 1 | AG15: =-SUM(AG7:AG14) -> 0.6500224216 | AK15: =SUM(AK7:AK14) -> 1 | AL15: =-SUM(AL7:AL14) -> 0 | AP15: =SUM(AP7:AP14) -> 1 | AQ15: =-SUM(AQ7:AQ14) -> 0 | AU15: =SUM(AU7:AU14) -> 1 | AV15: =-SUM(AV7:AV14) -> 0.8631205686
A16: 22 | B16: 1193 | C16: 23 | D16: 1204 | K16: 0 | L16: 22 | P16: U= | Q16: =Q15/(LOG(Q4)/LOG(2)) -> 0.2102705138 | V16: U1= | W16: =W15/(LOG(W4)/LOG(2)) -> 0.1059197436 | AA16: U2= | AB16: =AB15/(LOG(AB4)/LOG(2)) -> 0.1663784551 | AF16: U3= | AG16: =AG15/(LOG(AG4)/LOG(2)) -> 0.1663784551 | AK16: U4= | AL16: =AL15/(LOG(AL4)/LOG(2)) -> 0 | AP16: U5= | AQ16: =AQ15/(LOG(AQ4)/LOG(2)) -> 0 | AU16: U6= | AV16: =AV15/(LOG(AV4)/LOG(2)) -> 0.2209226359
A17: 22 | B17: 1313 | C17: 23 | D17: 1325 | K17: 0 | L17: 22
A18: 22 | B18: 1435 | C18: 23 | D18: 1450 | K18: 0 | L18: 22
A19: 22 | B19: 1557 | C19: 23 | D19: 1572 | K19: 0 | L19: 22 | N19: Total Target Seq
A20: 11 | B20: 1665 | C20: 21 | D20: 1679 | K20: 0 | L20: 12 | N20: =COUNTIF(L7:L96,G3) -> 33 | P20: 15 | Q20: 15 | R20: 15 | S20: 15 | T20: 15 | U20: 15
A21: 22 | B21: 1794 | C21: 23 | D21: 1815 | K21: 0 | L21: 22 | P21: % of reinforcement given in 6 equal intervals based on number of trials
A22: 22 | B22: 1925 | C22: 23 | D22: 1947 | K22: 0 | L22: 22 | P22: %_1 | Q22: %_2 | R22: %_3 | S22: %_4 | T22: %_5 | U22: %_6
A23: 22 | B23: 2061 | C23: 23 | D23: 2103 | K23: 0 | L23: 22 | O23: target sequence | P23: =$G$3 -> 12 | Q23: =$G$3 -> 12 | R23: =$G$3 -> 12 | S23: =$G$3 -> 12 | T23: =$G$3 -> 12 | U23: =$G$3 -> 12
A24: 22 | B24: 2215 | C24: 23 | D24: 2241 | K24: 0 | L24: 22 | O24: total reinforcement | P24: =U8 -> 3 | Q24: =Z8 -> 3 | R24: =AE8 -> 3 | S24: =AJ8 -> 7 | T24: =AO8 -> 9 | U24: =AT8 -> 8
A25: 22 | B25: 2378 | C25: 23 | D25: 2399 | K25: 0 | L25: 22 | O25: % target
A26: 22 | B26: 2510 | C26: 23 | D26: 2538 | K26: 0 | L26: 22 | O26: CCRF
A27: 22 | B27: 2666 | C27: 14 | D27: 2680 | K27: 0 | L27: 21 | O27: % CCRf
A28: 22 | B28: 2792 | C28: 23 | D28: 2809 | K28: 0 | L28: 22 | O28: average response rate | P28: =D21/P20 -> 121 | Q28: =(D36-D21)/Q20 -> 131.6 | R28: =(D51-D36)/R20 -> 127.2 | S28: =(D66-D51)/S20 -> 112.3333333 | T28: =(D81-D66)/T20 -> 112.4 | U28: =(D96-D81)/U20 -> 112.3333333
A29: 22 | B29: 2926 | C29: 23 | D29: 2938 | K29: 0 | L29: 22
A30: 11 | B30: 3035 | C30: 21 | D30: 3053 | K30: 0 | L30: 12
A31: 22 | B31: 3187 | C31: 23 | D31: 3196 | K31: 0 | L31: 22
A32: 22 | B32: 3335 | C32: 14 | D32: 3349 | K32: 0 | L32: 21
A33: 22 | B33: 3459 | C33: 23 | D33: 3467 | K33: 0 | L33: 22
A34: 11 | B34: 3562 | C34: 21 | D34: 3574 | K34: 0 | L34: 12
A35: 11 | B35: 3665 | C35: 21 | D35: 3680 | K35: 0 | L35: 12
A36: 22 | B36: 3780 | C36: 23 | D36: 3789 | K36: 0 | L36: 22
A37: 11 | B37: 3912 | C37: 21 | D37: 3943 | K37: 0 | L37: 12
A38: 11 | B38: 4031 | C38: 21 | D38: 4041 | K38: 0 | L38: 12
A39: 22 | B39: 4174 | C39: 23 | D39: 4188 | K39: 0 | L39: 22
A40: 22 | B40: 4304 | C40: 23 | D40: 4312 | K40: 0 | L40: 22
A41: 22 | B41: 4432 | C41: 23 | D41: 4441 | K41: 0 | L41: 22
A42: 22 | B42: 4540 | C42: 23 | D42: 4549 | K42: 0 | L42: 22
A43: 11 | B43: 4644 | C43: 12 | D43: 4655 | K43: 0 | L43: 11
A44: 22 | B44: 4780 | C44: 23 | D44: 4809 | K44: 0 | L44: 22
A45: 22 | B45: 4925 | C45: 23 | D45: 4934 | K45: 0 | L45: 22
A46: 11 | B46: 5018 | C46: 12 | D46: 5024 | K46: 0 | L46: 11
A47: 22 | B47: 5129 | C47: 23 | D47: 5152 | K47: 0 | L47: 22
A48: 22 | B48: 5252 | C48: 23 | D48: 5290 | K48: 0 | L48: 22
A49: 22 | B49: 5406 | C49: 23 | D49: 5457 | K49: 0 | L49: 22
A50: 22 | B50: 5566 | C50: 23 | D50: 5581 | K50: 0 | L50: 22
A51: 11 | B51: 5669 | C51: 21 | D51: 5697 | K51: 0 | L51: 12
A52: 22 | B52: 5792 | C52: 23 | D52: 5800 | K52: 0 | L52: 22
A53: 11 | B53: 5897 | C53: 21 | D53: 5914 | K53: 0 | L53: 12
A54: 11 | B54: 6000 | C54: 21 | D54: 6010 | K54: 0 | L54: 12
A55: 22 | B55: 6110 | C55: 23 | D55: 6118 | K55: 0 | L55: 22
A56: 22 | B56: 6224 | C56: 23 | D56: 6232 | K56: 0 | L56: 22
A57: 11 | B57: 6328 | C57: 21 | D57: 6338 | K57: 0 | L57: 12
A58: 22 | B58: 6437 | C58: 23 | D58: 6450 | K58: 0 | L58: 22
A59: 11 | B59: 6546 | C59: 21 | D59: 6563 | K59: 0 | L59: 12
A60: 11 | B60: 6651 | C60: 21 | D60: 6669 | K60: 0 | L60: 12
A61: 11 | B61: 6753 | C61: 21 | D61: 6763 | K61: 0 | L61: 12
A62: 22 | B62: 6869 | C62: 23 | D62: 6879 | K62: 0 | L62: 22
A63: 22 | B63: 6990 | C63: 23 | D63: 7003 | K63: 0 | L63: 22
A64: 22 | B64: 7117 | C64: 23 | D64: 7124 | K64: 0 | L64: 22
A65: 11 | B65: 7237 | C65: 21 | D65: 7249 | K65: 0 | L65: 12
A66: 22 | B66: 7363 | C66: 23 | D66: 7382 | K66: 0 | L66: 22
A67: 11 | B67: 7469 | C67: 21 | D67: 7487 | K67: 0 | L67: 12
A68: 22 | B68: 7593 | C68: 23 | D68: 7614 | K68: 0 | L68: 22
A69: 11 | B69: 7709 | C69: 21 | D69: 7744 | K69: 0 | L69: 12
A70: 22 | B70: 7845 | C70: 23 | D70: 7854 | K70: 0 | L70: 22
A71: 11 | B71: 7949 | C71: 21 | D71: 7958 | K71: 0 | L71: 12
A72: 11 | B72: 8043 | C72: 21 | D72: 8057 | K72: 0 | L72: 12
A73: 22 | B73: 8152 | C73: 23 | D73: 8160 | K73: 0 | L73: 22
A74: 22 | B74: 8272 | C74: 23 | D74: 8284 | K74: 0 | L74: 22
A75: 11 | B75: 8402 | C75: 21 | D75: 8411 | K75: 0 | L75: 12
A76: 22 | B76: 8506 | C76: 23 | D76: 8514 | K76: 0 | L76: 22
A77: 11 | B77: 8610 | C77: 21 | D77: 8628 | K77: 0 | L77: 12
A78: 11 | B78: 8716 | C78: 21 | D78: 8741 | K78: 0 | L78: 12
A79: 11 | B79: 8826 | C79: 21 | D79: 8852 | K79: 0 | L79: 12
A80: 11 | B80: 8940 | C80: 21 | D80: 8955 | K80: 0 | L80: 12
A81: 22 | B81: 9051 | C81: 23 | D81: 9068 | K81: 0 | L81: 22
A82: 11 | B82: 9154 | C82: 21 | D82: 9163 | K82: 0 | L82: 12
A83: 22 | B83: 9274 | C83: 23 | D83: 9282 | K83: 0 | L83: 22
A84: 11 | B84: 9377 | C84: 21 | D84: 9387 | K84: 0 | L84: 12
A85: 22 | B85: 9484 | C85: 23 | D85: 9495 | K85: 0 | L85: 22
A86: 11 | B86: 9583 | C86: 21 | D86: 9593 | K86: 0 | L86: 12
A87: 11 | B87: 9680 | C87: 21 | D87: 9690 | K87: 0 | L87: 12
A88: 22 | B88: 9785 | C88: 23 | D88: 9814 | K88: 0 | L88: 22
A89: 11 | B89: 9913 | C89: 21 | D89: 9974 | K89: 0 | L89: 12
A90: 11 | B90: 10074 | C90: 21 | D90: 10098 | K90: 0 | L90: 12
A91: 22 | B91: 10192 | C91: 23 | D91: 10200 | K91: 0 | L91: 22
A92: 11 | B92: 10292 | C92: 12 | D92: 10297 | K92: 0 | L92: 11
A93: 11 | B93: 10395 | C93: 21 | D93: 10435 | K93: 0 | L93: 12
A94: 22 | B94: 10534 | C94: 23 | D94: 10541 | K94: 0 | L94: 22
A95: 11 | B95: 10633 | C95: 12 | D95: 10639 | K95: 0 | L95: 11
A96: 11 | B96: 10734 | C96: 21 | D96: 10753 | K96: 1 | L96: 12

Sheet !LB15950.056
A1: Report for:!LB15950.056
A2: Date: | B2: <date>
A3: Hen: | B3: <hen> | F3: Correct Sequence | G3: =Start!J2 -> 12 | P3: Total Sequences in Data | Q3: =4994-COUNTBLANK(L7:L5000) -> 51 | V3: Total Sequences in Block Data | W3: =COUNTA(L7:L15) -> 9 | AA3: Total Sequences in Block Data | AB3: =COUNTA(L16:L23) -> 8 | AF3: Total Sequences in Block Data | AG3: =COUNTA(L24:L32) -> 9 | AK3: Total Sequences in Block Data | AL3: =COUNTA(L33:L40) -> 8 | AP3: Total Sequences in Block Data | AQ3: =COUNTA(L41:L49) -> 9 | AU3: Total Sequences in Block Data | AV3: =COUNTA(L50:L57) -> 8
P4: Total Sequences in Summary | Q4: =SUM(O7:O14) -> 51 | V4: Total Sequences in Block Summary | W4: =SUM(U7:U14) -> 9 | AA4: Total Sequences in Block Summary | AB4: =SUM(Z7:Z14) -> 8 | AF4: Total Sequences in Block Summary | AG4: =SUM(AE7:AE14) -> 9 | AK4: Total Sequences in Block Summary | AL4: =SUM(AJ7:AJ14) -> 8 | AP4: Total Sequences in Block Summary | AQ4: =SUM(AO7:AO14) -> 9 | AU4: Total Sequences in Block Summary | AV4: =SUM(AT7:AT14) -> 8
T5: Block 1 | Y5: Block 2 | AD5: Block 3 | AI5: Block 4 | AN5: Block 5 | AS5: Block 6
A6: Sequence Component 1 | B6: Time 1 | C6: Sequence Component 2 | D6: Time 2 | E6: Sequence Component 3 | F6: Time 3 | G6: Sequence Component 4 | H6: Time 4 | I6: Sequence Component 5 | J6: Time 5 | K6: Correct? 0=No 1=Yes | L6: Sequence | N6: Frequency | P6: Relative Frequency | Q6: Variability | T6: Frequency | V6: Relative Frequency | W6: Variability | Y6: Frequency | AA6: Relative Frequency | AB6: Variability | AD6: Frequency | AF6: Relative Frequency | AG6: Variability | AI6: Frequency | AK6: Relative Frequency | AL6: Variability | AN6: Frequency | AP6: Relative Frequency | AQ6: Variability | AS6: Frequency | AU6: Relative Frequency | AV6: Variability
A7: 22 | B7: 30 | C7: 23 | D7: 45 | K7: 0 | L7: 22 | N7: 11 | O7: =COUNTIF($L$7:$L$500,N7) -> 3 | P7: =O7/$Q$4 -> 0.05882352941 | Q7: =IF(P7=0,0,(P7*((LOG(P7))/LOG(2)))) -> -0.2404389907 | T7: =N7 -> 11 | U7: =COUNTIF(L7:L15,T7) -> 0 | V7: =U7/(W4-U8) -> 0 | W7: =IF(V7=0,0,(V7*((LOG(V7))/LOG(2)))) -> 0 | Y7: =N7 -> 11 | Z7: =COUNTIF(L16:L23,Y7) -> 1 | AA7: =Z7/(AB4-Z8) -> 0.3333333333 | AB7: =IF(AA7=0,0,(AA7*((LOG(AA7))/LOG(2)))) -> -0.5283208336 | AD7: =N7 -> 11 | AE7: =COUNTIF(L24:L32,AD7) -> 0 | AF7: =AE7/(AG4-AE8) -> 0 | AG7: =IF(AF7=0,0,(AF7*((LOG(AF7))/LOG(2)))) -> 0 | AI7: =N7 -> 11 | AJ7: =COUNTIF(L33:L40,AI7) -> 1 | AK7: =AJ7/(AL4-AJ8) -> 1 | AL7: =IF(AK7=0,0,(AK7*((LOG(AK7))/LOG(2)))) -> 0 | AN7: =N7 -> 11 | AO7: =COUNTIF(L41:L49,AN7) -> 0 | AP7: =AO7/(AQ4-AO8) -> 0 | AQ7: =IF(AP7=0,0,(AP7*((LOG(AP7))/LOG(2)))) -> 0 | AS7: =N7 -> 11 | AT7: =COUNTIF(L50:L57,AS7) -> 1 | AU7: =AT7/(AV4-AT8) -> 0.5 | AV7: =IF(AU7=0,0,(AU7*((LOG(AU7))/LOG(2)))) -> -0.5
A8: 11 | B8: 142 | C8: 21 | D8: 155 | K8: 0 | L8: 12 | N8: 12 | O8: =COUNTIF($L$7:$L$500,N8) -> 38 | P8: =O8/$Q$4 -> 0.7450980392 | Q8: =IF(P8=0,0,(P8*((LOG(P8))/LOG(2)))) -> -0.3162924997 | T8: =N8 -> 12 | U8: =COUNTIF(L7:L15,T8) -> 5 | Y8: =N8 -> 12 | Z8: =COUNTIF(L16:L23,Y8) -> 5 | AD8: =N8 -> 12 | AE8: =COUNTIF(L24:L32,AD8) -> 7 | AI8: =N8 -> 12 | AJ8: =COUNTIF(L33:L40,AI8) -> 7 | AN8: =N8 -> 12 | AO8: =COUNTIF(L41:L49,AN8) -> 8 | AS8: =N8 -> 12 | AT8: =COUNTIF(L50:L57,AS8) -> 6
A9: 11 | B9: 243 | C9: 21 | D9: 255 | K9: 0 | L9: 12 | N9: 21 | O9: =COUNTIF($L$7:$L$500,N9) -> 1 | P9: =O9/$Q$4 -> 0.01960784314 | Q9: =IF(P9=0,0,(P9*((LOG(P9))/LOG(2)))) -> -0.1112240263 | T9: =N9 -> 21 | U9: =COUNTIF(L7:L15,T9) -> 0 | V9: =U9/(W4-U8) -> 0 | W9: =IF(V9=0,0,(V9*((LOG(V9))/LOG(2)))) -> 0 | Y9: =N9 -> 21 | Z9: =COUNTIF(L16:L23,Y9) -> 0 | AA9: =Z9/(AB4-Z8) -> 0 | AB9: =IF(AA9=0,0,(AA9*((LOG(AA9))/LOG(2)))) -> 0 | AD9: =N9 -> 21 | AE9: =COUNTIF(L24:L32,AD9) -> 1 | AF9: =AE9/(AG4-AE8) -> 0.5 | AG9: =IF(AF9=0,0,(AF9*((LOG(AF9))/LOG(2)))) -> -0.5 | AI9: =N9 -> 21 | AJ9: =COUNTIF(L33:L40,AI9) -> 0 | AK9: =AJ9/(AL4-AJ8) -> 0 | AL9: =IF(AK9=0,0,(AK9*((LOG(AK9))/LOG(2)))) -> 0 | AN9: =N9 -> 21 | AO9: =COUNTIF(L41:L49,AN9) -> 0 | AP9: =AO9/(AQ4-AO8) -> 0 | AQ9: =IF(AP9=0,0,(AP9*((LOG(AP9))/LOG(2)))) -> 0 | AS9: =N9 -> 21 | AT9: =COUNTIF(L50:L57,AS9) -> 0 | AU9: =AT9/(AV4-AT8) -> 0 | AV9: =IF(AU9=0,0,(AU9*((LOG(AU9))/LOG(2)))) -> 0
A10: 22 | B10: 359 | C10: 23 | D10: 385 | K10: 0 | L10: 22 | N10: 22 | O10: =COUNTIF($L$7:$L$500,N10) -> 9 | P10: =O10/$Q$4 -> 0.1764705882 | Q10: =IF(P10=0,0,(P10*((LOG(P10))/LOG(2)))) -> -0.4416177072 | T10: =N10 -> 22 | U10: =COUNTIF(L7:L15,T10) -> 4 | V10: =U10/(W4-U8) -> 1 | W10: =IF(V10=0,0,(V10*((LOG(V10))/LOG(2)))) -> 0 | Y10: =N10 -> 22 | Z10: =COUNTIF(L16:L23,Y10) -> 2 | AA10: =Z10/(AB4-Z8) -> 0.6666666667 | AB10: =IF(AA10=0,0,(AA10*((LOG(AA10))/LOG(2)))) -> -0.3899750005 | AD10: =N10 -> 22 | AE10: =COUNTIF(L24:L32,AD10) -> 1 | AF10: =AE10/(AG4-AE8) -> 0.5 | AG10: =IF(AF10=0,0,(AF10*((LOG(AF10))/LOG(2)))) -> -0.5 | AI10: =N10 -> 22 | AJ10: =COUNTIF(L33:L40,AI10) -> 0 | AK10: =AJ10/(AL4-AJ8) -> 0 | AL10: =IF(AK10=0,0,(AK10*((LOG(AK10))/LOG(2)))) -> 0 | AN10: =N10 -> 22 | AO10: =COUNTIF(L41:L49,AN10) -> 1 | AP10: =AO10/(AQ4-AO8) -> 1 | AQ10: =IF(AP10=0,0,(AP10*((LOG(AP10))/LOG(2)))) -> 0 | AS10: =N10 -> 22 | AT10: =COUNTIF(L50:L57,AS10) -> 1 | AU10: =AT10/(AV4-AT8) -> 0.5 | AV10: =IF(AU10=0,0,(AU10*((LOG(AU10))/LOG(2)))) -> -0.5
A11: 11 | B11: 481 | C11: 21 | D11: 492 | K11: 0 | L11: 12 | T11: =N11 -> 0 | U11: =COUNTIF(L7:L15,T11) -> 0 | V11: =U11/(W4-U8) -> 0 | W11: =IF(V11=0,0,(V11*((LOG(V11))/LOG(2)))) -> 0 | Y11: =N11 -> 0 | Z11: =COUNTIF(L16:L23,Y11) -> 0 | AA11: =Z11/(AB4-Z8) -> 0 | AB11: =IF(AA11=0,0,(AA11*((LOG(AA11))/LOG(2)))) -> 0 | AD11: =N11 -> 0 | AE11: =COUNTIF(L24:L32,AD11) -> 0 | AF11: =AE11/(AG4-AE8) -> 0 | AG11: =IF(AF11=0,0,(AF11*((LOG(AF11))/LOG(2)))) -> 0 | AI11: =N11 -> 0 | AJ11: =COUNTIF(L33:L40,AI11) -> 0 | AK11: =AJ11/(AL4-AJ8) -> 0 | AL11: =IF(AK11=0,0,(AK11*((LOG(AK11))/LOG(2)))) -> 0 | AN11: =N11 -> 0 | AO11: =COUNTIF(L41:L49,AN11) -> 0 | AP11: =AO11/(AQ4-AO8) -> 0 | AQ11: =IF(AP11=0,0,(AP11*((LOG(AP11))/LOG(2)))) -> 0 | AS11: =N11 -> 0 | AT11: =COUNTIF(L50:L57,AS11) -> 0 | AU11: =AT11/(AV4-AT8) -> 0 | AV11: =IF(AU11=0,0,(AU11*((LOG(AU11))/LOG(2)))) -> 0
A12: 11 | B12: 577 | C12: 21 | D12: 587 | K12: 0 | L12: 12 | T12: =N12 -> 0 | U12: =COUNTIF(L7:L15,T12) -> 0 | V12: =U12/(W4-U8) -> 0 | W12: =IF(V12=0,0,(V12*((LOG(V12))/LOG(2)))) -> 0 | Y12: =N12 -> 0 | Z12: =COUNTIF(L16:L23,Y12) -> 0 | AA12: =Z12/(AB4-Z8) -> 0 | AB12: =IF(AA12=0,0,(AA12*((LOG(AA12))/LOG(2)))) -> 0 | AD12: =N12 -> 0 | AE12: =COUNTIF(L24:L32,AD12) -> 0 | AF12: =AE12/(AG4-AE8) -> 0 | AG12: =IF(AF12=0,0,(AF12*((LOG(AF12))/LOG(2)))) -> 0 | AI12: =N12 -> 0 | AJ12: =COUNTIF(L33:L40,AI12) -> 0 | AK12: =AJ12/(AL4-AJ8) -> 0 | AL12: =IF(AK12=0,0,(AK12*((LOG(AK12))/LOG(2)))) -> 0 | AN12: =N12 -> 0 | AO12: =COUNTIF(L41:L49,AN12) -> 0 | AP12: =AO12/(AQ4-AO8) -> 0 | AQ12: =IF(AP12=0,0,(AP12*((LOG(AP12))/LOG(2)))) -> 0 | AS12: =N12 -> 0 | AT12: =COUNTIF(L50:L57,AS12) -> 0 | AU12: =AT12/(AV4-AT8) -> 0 | AV12: =IF(AU12=0,0,(AU12*((LOG(AU12))/LOG(2)))) -> 0
A13: 11 | B13: 678 | C13: 21 | D13: 690 | K13: 0 | L13: 12 | T13: =N13 -> 0 | U13: =COUNTIF(L7:L15,T13) -> 0 | V13: =U13/(W4-U8) -> 0 | W13: =IF(V13=0,0,(V13*((LOG(V13))/LOG(2)))) -> 0 | Y13: =N13 -> 0 | Z13: =COUNTIF(L16:L23,Y13) -> 0 | AA13: =Z13/(AB4-Z8) -> 0 | AB13: =IF(AA13=0,0,(AA13*((LOG(AA13))/LOG(2)))) -> 0 | AD13: =N13 -> 0 | AE13: =COUNTIF(L24:L32,AD13) -> 0 | AF13: =AE13/(AG4-AE8) -> 0 | AG13: =IF(AF13=0,0,(AF13*((LOG(AF13))/LOG(2)))) -> 0 | AI13: =N13 -> 0 | AJ13: =COUNTIF(L33:L40,AI13) -> 0 | AK13: =AJ13/(AL4-AJ8) -> 0 | AL13: =IF(AK13=0,0,(AK13*((LOG(AK13))/LOG(2)))) -> 0 | AN13: =N13 -> 0 | AO13: =COUNTIF(L41:L49,AN13) -> 0 | AP13: =AO13/(AQ4-AO8) -> 0 | AQ13: =IF(AP13=0,0,(AP13*((LOG(AP13))/LOG(2)))) -> 0 | AS13: =N13 -> 0 | AT13: =COUNTIF(L50:L57,AS13) -> 0 | AU13: =AT13/(AV4-AT8) -> 0 | AV13: =IF(AU13=0,0,(AU13*((LOG(AU13))/LOG(2)))) -> 0
A14: 22 | B14: 814 | C14: 23 | D14: 852 | K14: 0 | L14: 22 | T14: =N14 -> 0 | U14: =COUNTIF(L7:L15,T14) -> 0 | V14: =U14/(W4-U8) -> 0 | W14: =IF(V14=0,0,(V14*((LOG(V14))/LOG(2)))) -> 0 | Y14: =N14 -> 0 | Z14: =COUNTIF(L16:L23,Y14) -> 0 | AA14: =Z14/(AB4-Z8) -> 0 | AB14: =IF(AA14=0,0,(AA14*((LOG(AA14))/LOG(2)))) -> 0 | AD14: =N14 -> 0 | AE14: =COUNTIF(L24:L32,AD14) -> 0 | AF14: =AE14/(AG4-AE8) -> 0 | AG14: =IF(AF14=0,0,(AF14*((LOG(AF14))/LOG(2)))) -> 0 | AI14: =N14 -> 0 | AJ14: =COUNTIF(L33:L40,AI14) -> 0 | AK14: =AJ14/(AL4-AJ8) -> 0 | AL14: =IF(AK14=0,0,(AK14*((LOG(AK14))/LOG(2)))) -> 0 | AN14: =N14 -> 0 | AO14: =COUNTIF(L41:L49,AN14) -> 0 | AP14: =AO14/(AQ4-AO8) -> 0 | AQ14: =IF(AP14=0,0,(AP14*((LOG(AP14))/LOG(2)))) -> 0 | AS14: =N14 -> 0 | AT14: =COUNTIF(L50:L57,AS14) -> 0 | AU14: =AT14/(AV4-AT8) -> 0 | AV14: =IF(AU14=0,0,(AU14*((LOG(AU14))/LOG(2)))) -> 0
A15: 22 | B15: 966 | C15: 23 | D15: 978 | K15: 0 | L15: 22 | P15: =SUM(P7:P14) -> 1 | Q15: =-SUM(Q7:Q14) -> 1.109573224 | V15: =SUM(V7:V14) -> 1 | W15: =-SUM(W7:W14) -> 0 | AA15: =SUM(AA7:AA14) -> 1 | AB15: =-SUM(AB7:AB14) -> 0.9182958341 | AF15: =SUM(AF7:AF14) -> 1 | AG15: =-SUM(AG7:AG14) -> 1 | AK15: =SUM(AK7:AK14) -> 1 | AL15: =-SUM(AL7:AL14) -> 0 | AP15: =SUM(AP7:AP14) -> 1 | AQ15: =-SUM(AQ7:AQ14) -> 0 | AU15: =SUM(AU7:AU14) -> 1 | AV15: =-SUM(AV7:AV14) -> 1
A16: 11 | B16: 1073 | C16: 21 | D16: 1084 | K16: 0 | L16: 12 | P16: U= | Q16: =Q15/(LOG(Q4)/LOG(2)) -> 0.1956082552 | V16: U1= | W16: =W15/(LOG(W4)/LOG(2)) -> 0 | AA16: U2= | AB16: =AB15/(LOG(AB4)/LOG(2)) -> 0.3060986114 | AF16: U3= | AG16: =AG15/(LOG(AG4)/LOG(2)) -> 0.3154648768 | AK16: U4= | AL16: =AL15/(LOG(AL4)/LOG(2)) -> 0 | AP16: U5= | AQ16: =AQ15/(LOG(AQ4)/LOG(2)) -> 0 | AU16: U6= | AV16: =AV15/(LOG(AV4)/LOG(2)) -> 0.3333333333
A17: 22 | B17: 1192 | C17: 23 | D17: 1203 | K17: 0 | L17: 22
A18: 11 | B18: 1298 | C18: 21 | D18: 1309 | K18: 0 | L18: 12
A19: 11 | B19: 1393 | C19: 12 | D19: 1408 | K19: 0 | L19: 11 | N19: Total Target Seq
A20: 22 | B20: 1515 | C20: 23 | D20: 1534 | K20: 0 | L20: 22 | N20: =COUNTIF(L7:L57,G3) -> 38 | P20: 9 | Q20: 8 | R20: 9 | S20: 8 | T20: 9 | U20: 8
A21: 11 | B21: 1641 | C21: 21 | D21: 1650 | K21: 0 | L21: 12 | P21: % of reinforcement given in 6 equal intervals based on number of trials
A22: 11 | B22: 1738 | C22: 21 | D22: 1757 | K22: 0 | L22: 12 | P22: %_1 | Q22: %_2 | R22: %_3 | S22: %_4 | T22: %_5 | U22: %_6
A23: 11 | B23: 1849 | C23: 21 | D23: 1859 | K23: 0 | L23: 12 | O23: target sequence | P23: =$G$3 -> 12 | Q23: =$G$3 -> 12 | R23: =$G$3 -> 12 | S23: =$G$3 -> 12 | T23: =$G$3 -> 12 | U23: =$G$3 -> 12
A24: 11 | B24: 1945 | C24: 21 | D24: 1959 | K24: 0 | L24: 12 | O24: total reinforcement | P24: =U8 -> 5 | Q24: =Z8 -> 5 | R24: =AE8 -> 7 | S24: =AJ8 -> 7 | T24: =AO8 -> 8 | U24: =AT8 -> 6
A25: 11 | B25: 2045 | C25: 21 | D25: 2054 | K25: 0 | L25: 12 | O25: % target
A26: 22 | B26: 2151 | C26: 23 | D26: 2172 | K26: 0 | L26: 22 | O26: CCRF
A27: 11 | B27: 2270 | C27: 21 | D27: 2280 | K27: 0 | L27: 12 | O27: % CCRf
A28: 11 | B28: 2367 | C28: 21 | D28: 2378 | K28: 0 | L28: 12 | O28: average response rate | P28: =D15/P20 -> 108.6666667 | Q28: =(D23-D15)/Q20 -> 110.125 | R28: =(D32-D23)/R20 -> 104.6666667 | S28: =(D40-D32)/S20 -> 119.125 | T28: =(D49-D40)/T20 -> 104.8888889 | U28: =(D57-D49)/U20 -> 106.125
A29: 11 | B29: 2466 | C29: 21 | D29: 2480 | K29: 0 | L29: 12
A30: 11 | B30: 2567 | C30: 21 | D30: 2578 | K30: 0 | L30: 12
A31: 11 | B31: 2663 | C31: 21 | D31: 2673 | K31: 0 | L31: 12
A32: 22 | B32: 2778 | C32: 14 | D32: 2801 | K32: 0 | L32: 21
A33: 11 | B33: 2897 | C33: 21 | D33: 2915 | K33: 0 | L33: 12
A34: 11 | B34: 3010 | C34: 21 | D34: 3022 | K34: 0 | L34: 12
A35: 11 | B35: 3110 | C35: 21 | D35: 3120 | K35: 0 | L35: 12
A36: 11 | B36: 3206 | C36: 12 | D36: 3330 | K36: 0 | L36: 11
A37: 11 | B37: 3449 | C37: 21 | D37: 3461 | K37: 0 | L37: 12
A38: 11 | B38: 3547 | C38: 21 | D38: 3562 | K38: 0 | L38: 12
A39: 11 | B39: 3648 | C39: 21 | D39: 3658 | K39: 0 | L39: 12
A40: 11 | B40: 3743 | C40: 21 | D40: 3754 | K40: 0 | L40: 12
A41: 11 | B41: 3839 | C41: 21 | D41: 3854 | K41: 0 | L41: 12
A42: 11 | B42: 3939 | C42: 21 | D42: 3949 | K42: 0 | L42: 12
A43: 11 | B43: 4036 | C43: 21 | D43: 4046 | K43: 0 | L43: 12
A44: 11 | B44: 4132 | C44: 21 | D44: 4151 | K44: 0 | L44: 12
A45: 22 | B45: 4248 | C45: 23 | D45: 4267 | K45: 0 | L45: 22
A46: 11 | B46: 4363 | C46: 21 | D46: 4387 | K46: 0 | L46: 12
A47: 11 | B47: 4475 | C47: 21 | D47: 4485 | K47: 0 | L47: 12
A48: 11 | B48: 4567 | C48: 21 | D48: 4583 | K48: 0 | L48: 12
A49: 11 | B49: 4671 | C49: 21 | D49: 4698 | K49: 0 | L49: 12
A50: 11 | B50: 4784 | C50: 21 | D50: 4794 | K50: 0 | L50: 12
A51: 11 | B51: 4876 | C51: 12 | D51: 4882 | K51: 0 | L51: 11
A52: 22 | B52: 4991 | C52: 23 | D52: 5005 | K52: 0 | L52: 22
A53: 11 | B53: 5104 | C53: 21 | D53: 5143 | K53: 0 | L53: 12
A54: 11 | B54: 5228 | C54: 21 | D54: 5241 | K54: 0 | L54: 12
A55: 11 | B55: 5327 | C55: 21 | D55: 5336 | K55: 0 | L55: 12
A56: 11 | B56: 5421 | C56: 21 | D56: 5439 | K56: 0 | L56: 12
A57: 11 | B57: 5534 | C57: 21 | D57: 5547 | K57: 1 | L57: 12

Sheet !LB16C50.056
A1: Report for:!LB16C50.056
A2: Date: | B2: <date>
A3: Hen: | B3: <hen> | F3: Correct Sequence | G3: =Start!J2 -> 12 | P3: Total Sequences in Data | Q3: =4994-COUNTBLANK(L7:L5000) -> 53 | V3: Total Sequences in Block Data | W3: =COUNTA(L7:L15) -> 9 | AA3: Total Sequences in Block Data | AB3: =COUNTA(L16:L24) -> 9 | AF3: Total Sequences in Block Data | AG3: =COUNTA(L25:L32) -> 8 | AK3: Total Sequences in Block Data | AL3: =COUNTA(L33:L41) -> 9 | AP3: Total Sequences in Block Data | AQ3: =COUNTA(L42:L50) -> 9 | AU3: Total Sequences in Block Data | AV3: =COUNTA(L51:L59) -> 9
P4: Total Sequences in Summary | Q4: =SUM(O7:O14) -> 53 | V4: Total Sequences in Block Summary | W4: =SUM(U7:U14) -> 9 | AA4: Total Sequences in Block Summary | AB4: =SUM(Z7:Z14) -> 9 | AF4: Total Sequences in Block Summary | AG4: =SUM(AE7:AE14) -> 8 | AK4: Total Sequences in Block Summary | AL4: =SUM(AJ7:AJ14) -> 9 | AP4: Total Sequences in Block Summary | AQ4: =SUM(AO7:AO14) -> 9 | AU4: Total Sequences in Block Summary | AV4: =SUM(AT7:AT14) -> 9
T5: Block 1 | Y5: Block 2 | AD5: Block 3 | AI5: Block 4 | AN5: Block 5 | AS5: Block 6
A6: Sequence Component 1 | B6: Time 1 | C6: Sequence Component 2 | D6: Time 2 | E6: Sequence Component 3 | F6: Time 3 | G6: Sequence Component 4 | H6: Time 4 | I6: Sequence Component 5 | J6: Time 5 | K6: Correct? 0=No 1=Yes | L6: Sequence | N6: Frequency | P6: Relative Frequency | Q6: Variability | T6: Frequency | V6: Relative Frequency | W6: Variability | Y6: Frequency | AA6: Relative Frequency | AB6: Variability | AD6: Frequency | AF6: Relative Frequency | AG6: Variability | AI6: Frequency | AK6: Relative Frequency | AL6: Variability | AN6: Frequency | AP6: Relative Frequency | AQ6: Variability | AS6: Frequency | AU6: Relative Frequency | AV6: Variability
A7: 11 | B7: 11 | C7: 21 | D7: 26 | K7: 0 | L7: 12 | N7: 11 | O7: =COUNTIF($L$7:$L$500,N7) -> 1 | P7: =O7/$Q$4 -> 0.01886792453 | Q7: =IF(P7=0,0,(P7*((LOG(P7))/LOG(2)))) -> -0.1080739708 | T7: =N7 -> 11 | U7: =COUNTIF(L7:L15,T7) -> 0 | V7: =U7/(W4-U8) -> 0 | W7: =IF(V7=0,0,(V7*((LOG(V7))/LOG(2)))) -> 0 | Y7: =N7 -> 11 | Z7: =COUNTIF(L16:L24,Y7) -> 1 | AA7: =Z7/(AB4-Z8) -> 0.5 | AB7: =IF(AA7=0,0,(AA7*((LOG(AA7))/LOG(2)))) -> -0.5 | AD7: =N7 -> 11 | AE7: =COUNTIF(L25:L32,AD7) -> 0 | AF7: =AE7/(AG4-AE8) -> 0 | AG7: =IF(AF7=0,0,(AF7*((LOG(AF7))/LOG(2)))) -> 0 | AI7: =N7 -> 11 | AJ7: =COUNTIF(L33:L41,AI7) -> 0 | AK7: =AJ7/(AL4-AJ8) -> 0 | AL7: =IF(AK7=0,0,(AK7*((LOG(AK7))/LOG(2)))) -> 0 | AN7: =N7 -> 11 | AO7: =COUNTIF(L42:L50,AN7) -> 0 | AP7: =AO7/(AQ4-AO8) -> 0 | AQ7: =IF(AP7=0,0,(AP7*((LOG(AP7))/LOG(2)))) -> 0 | AS7: =N7 -> 11 | AT7: =COUNTIF(L51:L59,AS7) -> 0 | AU7: =AT7/(AV4-AT8) -> 0 | AV7: =IF(AU7=0,0,(AU7*((LOG(AU7))/LOG(2)))) -> 0
A8: 22 | B8: 126 | C8: 14 | D8: 139 | K8: 0 | L8: 21 | N8: 12 | O8: =COUNTIF($L$7:$L$500,N8) -> 38 | P8: =O8/$Q$4 -> 0.7169811321 | Q8: =IF(P8=0,0,(P8*((LOG(P8))/LOG(2)))) -> -0.3441458823 | T8: =N8 -> 12 | U8: =COUNTIF(L7:L15,T8) -> 5 | Y8: =N8 -> 12 | Z8: =COUNTIF(L16:L24,Y8) -> 7 | AD8: =N8 -> 12 | AE8: =COUNTIF(L25:L32,AD8) -> 5 | AI8: =N8 -> 12 | AJ8: =COUNTIF(L33:L41,AI8) -> 7 | AN8: =N8 -> 12 | AO8: =COUNTIF(L42:L50,AN8) -> 7 | AS8: =N8 -> 12 | AT8: =COUNTIF(L51:L59,AS8) -> 7
A9: 22 | B9: 246 | C9: 23 | D9: 266 | K9: 0 | L9: 22 | N9: 21 | O9: =COUNTIF($L$7:$L$500,N9) -> 1 | P9: =O9/$Q$4 -> 0.01886792453 | Q9: =IF(P9=0,0,(P9*((LOG(P9))/LOG(2)))) -> -0.1080739708 | T9: =N9 -> 21 | U9: =COUNTIF(L7:L15,T9) -> 1 | V9: =U9/(W4-U8) -> 0.25 | W9: =IF(V9=0,0,(V9*((LOG(V9))/LOG(2)))) -> -0.5 | Y9: =N9 -> 21 | Z9: =COUNTIF(L16:L24,Y9) -> 0 | AA9: =Z9/(AB4-Z8) -> 0 | AB9: =IF(AA9=0,0,(AA9*((LOG(AA9))/LOG(2)))) -> 0 | AD9: =N9 -> 21 | AE9: =COUNTIF(L25:L32,AD9) -> 0 | AF9: =AE9/(AG4-AE8) -> 0 | AG9: =IF(AF9=0,0,(AF9*((LOG(AF9))/LOG(2)))) -> 0 | AI9: =N9 -> 21 | AJ9: =COUNTIF(L33:L41,AI9) -> 0 | AK9: =AJ9/(AL4-AJ8) -> 0 | AL9: =IF(AK9=0,0,(AK9*((LOG(AK9))/LOG(2)))) -> 0 | AN9: =N9 -> 21 | AO9: =COUNTIF(L42:L50,AN9) -> 0 | AP9: =AO9/(AQ4-AO8) -> 0 | AQ9: =IF(AP9=0,0,(AP9*((LOG(AP9))/LOG(2)))) -> 0 | AS9: =N9 -> 21 | AT9: =COUNTIF(L51:L59,AS9) -> 0 | AU9: =AT9/(AV4-AT8) -> 0 | AV9: =IF(AU9=0,0,(AU9*((LOG(AU9))/LOG(2)))) -> 0
A10: 11 | B10: 364 | C10: 21 | D10: 371 | K10: 0 | L10: 12 | N10: 22 | O10: =COUNTIF($L$7:$L$500,N10) -> 13 | P10: =O10/$Q$4 -> 0.2452830189 | Q10: =IF(P10=0,0,(P10*((LOG(P10))/LOG(2)))) -> -0.4973065957 | T10: =N10 -> 22 | U10: =COUNTIF(L7:L15,T10) -> 3 | V10: =U10/(W4-U8) -> 0.75 | W10: =IF(V10=0,0,(V10*((LOG(V10))/LOG(2)))) -> -0.3112781245 | Y10: =N10 -> 22 | Z10: =COUNTIF(L16:L24,Y10) -> 1 | AA10: =Z10/(AB4-Z8) -> 0.5 | AB10: =IF(AA10=0,0,(AA10*((LOG(AA10))/LOG(2)))) -> -0.5 | AD10: =N10 -> 22 | AE10: =COUNTIF(L25:L32,AD10) -> 3 | AF10: =AE10/(AG4-AE8) -> 1 | AG10: =IF(AF10=0,0,(AF10*((LOG(AF10))/LOG(2)))) -> 0 | AI10: =N10 -> 22 | AJ10: =COUNTIF(L33:L41,AI10) -> 2 | AK10: =AJ10/(AL4-AJ8) -> 1 | AL10: =IF(AK10=0,0,(AK10*((LOG(AK10))/LOG(2)))) -> 0 | AN10: =N10 -> 22 | AO10: =COUNTIF(L42:L50,AN10) -> 2 | AP10: =AO10/(AQ4-AO8) -> 1 | AQ10: =IF(AP10=0,0,(AP10*((LOG(AP10))/LOG(2)))) -> 0 | AS10: =N10 -> 22 | AT10: =COUNTIF(L51:L59,AS10) -> 2 | AU10: =AT10/(AV4-AT8) -> 1 | AV10: =IF(AU10=0,0,(AU10*((LOG(AU10))/LOG(2)))) -> 0
A11: 11 | B11: 461 | C11: 21 | D11: 478 | K11: 0 | L11: 12 | T11: =N11 -> 0 | U11: =COUNTIF(L7:L15,T11) -> 0 | V11: =U11/(W4-U8) -> 0 | W11: =IF(V11=0,0,(V11*((LOG(V11))/LOG(2)))) -> 0 | Y11: =N11 -> 0 | Z11: =COUNTIF(L16:L24,Y11) -> 0 | AA11: =Z11/(AB4-Z8) -> 0 | AB11: =IF(AA11=0,0,(AA11*((LOG(AA11))/LOG(2)))) -> 0 | AD11: =N11 -> 0 | AE11: =COUNTIF(L25:L32,AD11) -> 0 | AF11: =AE11/(AG4-AE8) -> 0 | AG11: =IF(AF11=0,0,(AF11*((LOG(AF11))/LOG(2)))) -> 0 | AI11: =N11 -> 0 | AJ11: =COUNTIF(L33:L41,AI11) -> 0 | AK11: =AJ11/(AL4-AJ8) -> 0 | AL11: =IF(AK11=0,0,(AK11*((LOG(AK11))/LOG(2)))) -> 0 | AN11: =N11 -> 0 | AO11: =COUNTIF(L42:L50,AN11) -> 0 | AP11: =AO11/(AQ4-AO8) -> 0 | AQ11: =IF(AP11=0,0,(AP11*((LOG(AP11))/LOG(2)))) -> 0 | AS11: =N11 -> 0 | AT11: =COUNTIF(L51:L59,AS11) -> 0 | AU11: =AT11/(AV4-AT8) -> 0 | AV11: =IF(AU11=0,0,(AU11*((LOG(AU11))/LOG(2)))) -> 0
A12: 11 | B12: 564 | C12: 21 | D12: 573 | K12: 0 | L12: 12 | T12: =N12 -> 0 | U12: =COUNTIF(L7:L15,T12) -> 0 | V12: =U12/(W4-U8) -> 0 | W12: =IF(V12=0,0,(V12*((LOG(V12))/LOG(2)))) -> 0 | Y12: =N12 -> 0 | Z12: =COUNTIF(L16:L24,Y12) -> 0 | AA12: =Z12/(AB4-Z8) -> 0 | AB12: =IF(AA12=0,0,(AA12*((LOG(AA12))/LOG(2)))) -> 0 | AD12: =N12 -> 0 | AE12: =COUNTIF(L25:L32,AD12) -> 0 | AF12: =AE12/(AG4-AE8) -> 0 | AG12: =IF(AF12=0,0,(AF12*((LOG(AF12))/LOG(2)))) -> 0 | AI12: =N12 -> 0 | AJ12: =COUNTIF(L33:L41,AI12) -> 0 | AK12: =AJ12/(AL4-AJ8) -> 0 | AL12: =IF(AK12=0,0,(AK12*((LOG(AK12))/LOG(2)))) -> 0 | AN12: =N12 -> 0 | AO12: =COUNTIF(L42:L50,AN12) -> 0 | AP12: =AO12/(AQ4-AO8) -> 0 | AQ12: =IF(AP12=0,0,(AP12*((LOG(AP12))/LOG(2)))) -> 0 | AS12: =N12 -> 0 | AT12: =COUNTIF(L51:L59,AS12) -> 0 | AU12: =AT12/(AV4-AT8) -> 0 | AV12: =IF(AU12=0,0,(AU12*((LOG(AU12))/LOG(2)))) -> 0
A13: 22 | B13: 667 | C13: 23 | D13: 692 | K13: 0 | L13: 22 | T13: =N13 -> 0 | U13: =COUNTIF(L7:L15,T13) -> 0 | V13: =U13/(W4-U8) -> 0 | W13: =IF(V13=0,0,(V13*((LOG(V13))/LOG(2)))) -> 0 | Y13: =N13 -> 0 | Z13: =COUNTIF(L16:L24,Y13) -> 0 | AA13: =Z13/(AB4-Z8) -> 0 | AB13: =IF(AA13=0,0,(AA13*((LOG(AA13))/LOG(2)))) -> 0 | AD13: =N13 -> 0 | AE13: =COUNTIF(L25:L32,AD13) -> 0 | AF13: =AE13/(AG4-AE8) -> 0 | AG13: =IF(AF13=0,0,(AF13*((LOG(AF13))/LOG(2)))) -> 0 | AI13: =N13 -> 0 | AJ13: =COUNTIF(L33:L41,AI13) -> 0 | AK13: =AJ13/(AL4-AJ8) -> 0 | AL13: =IF(AK13=0,0,(AK13*((LOG(AK13))/LOG(2)))) -> 0 | AN13: =N13 -> 0 | AO13: =COUNTIF(L42:L50,AN13) -> 0 | AP13: =AO13/(AQ4-AO8) -> 0 | AQ13: =IF(AP13=0,0,(AP13*((LOG(AP13))/LOG(2)))) -> 0 | AS13: =N13 -> 0 | AT13: =COUNTIF(L51:L59,AS13) -> 0 | AU13: =AT13/(AV4-AT8) -> 0 | AV13: =IF(AU13=0,0,(AU13*((LOG(AU13))/LOG(2)))) -> 0
A14: 11 | B14: 777 | C14: 21 | D14: 787 | K14: 0 | L14: 12 | T14: =N14 -> 0 | U14: =COUNTIF(L7:L15,T14) -> 0 | V14: =U14/(W4-U8) -> 0 | W14: =IF(V14=0,0,(V14*((LOG(V14))/LOG(2)))) -> 0 | Y14: =N14 -> 0 | Z14: =COUNTIF(L16:L24,Y14) -> 0 | AA14: =Z14/(AB4-Z8) -> 0 | AB14: =IF(AA14=0,0,(AA14*((LOG(AA14))/LOG(2)))) -> 0 | AD14: =N14 -> 0 | AE14: =COUNTIF(L25:L32,AD14) -> 0 | AF14: =AE14/(AG4-AE8) -> 0 | AG14: =IF(AF14=0,0,(AF14*((LOG(AF14))/LOG(2)))) -> 0 | AI14: =N14 -> 0 | AJ14: =COUNTIF(L33:L41,AI14) -> 0 | AK14: =AJ14/(AL4-AJ8) -> 0 | AL14: =IF(AK14=0,0,(AK14*((LOG(AK14))/LOG(2)))) -> 0 | AN14: =N14 -> 0 | AO14: =COUNTIF(L42:L50,AN14) -> 0 | AP14: =AO14/(AQ4-AO8) -> 0 | AQ14: =IF(AP14=0,0,(AP14*((LOG(AP14))/LOG(2)))) -> 0 | AS14: =N14 -> 0 | AT14: =COUNTIF(L51:L59,AS14) -> 0 | AU14: =AT14/(AV4-AT8) -> 0 | AV14: =IF(AU14=0,0,(AU14*((LOG(AU14))/LOG(2)))) -> 0
A15: 22 | B15: 876 | C15: 23 | D15: 893 | K15: 0 | L15: 22 | P15: =SUM(P7:P14) -> 1 | Q15: =-SUM(Q7:Q14) -> 1.05760042 | V15: =SUM(V7:V14) -> 1 | W15: =-SUM(W7:W14) -> 0.8112781245 | AA15: =SUM(AA7:AA14) -> 1 | AB15: =-SUM(AB7:AB14) -> 1 | AF15: =SUM(AF7:AF14) -> 1 | AG15: =-SUM(AG7:AG14) -> 0 | AK15: =SUM(AK7:AK14) -> 1 | AL15: =-SUM(AL7:AL14) -> 0 | AP15: =SUM(AP7:AP14) -> 1 | AQ15: =-SUM(AQ7:AQ14) -> 0 | AU15: =SUM(AU7:AU14) -> 1 | AV15: =-SUM(AV7:AV14) -> 0
A16: 11 | B16: 987 | C16: 21 | D16: 998 | K16: 0 | L16: 12 | P16: U= | Q16: =Q15/(LOG(Q4)/LOG(2)) -> 0.1846395089 | V16: U1= | W16: =W15/(LOG(W4)/LOG(2)) -> 0.2559297536 | AA16: U2= | AB16: =AB15/(LOG(AB4)/LOG(2)) -> 0.3154648768 | AF16: U3= | AG16: =AG15/(LOG(AG4)/LOG(2)) -> 0 | AK16: U4= | AL16: =AL15/(LOG(AL4)/LOG(2)) -> 0 | AP16: U5= | AQ16: =AQ15/(LOG(AQ4)/LOG(2)) -> 0 | AU16: U6= | AV16: =AV15/(LOG(AV4)/LOG(2)) -> 0
A17: 22 | B17: 1097 | C17: 23 | D17: 1111 | K17: 0 | L17: 22
A18: 11 | B18: 1207 | C18: 21 | D18: 1216 | K18: 0 | L18: 12
A19: 11 | B19: 1304 | C19: 21 | D19: 1313 | K19: 0 | L19: 12 | N19: Total Target Seq
A20: 11 | B20: 1399 | C20: 21 | D20: 1409 | K20: 0 | L20: 12 | N20: =COUNTIF(L7:L59,G3) -> 38 | P20: 9 | Q20: 9 | R20: 8 | S20: 9 | T20: 9 | U20: 9
A21: 11 | B21: 1490 | C21: 12 | D21: 1508 | K21: 0 | L21: 11 | P21: % of reinforcement given in 6 equal intervals based on number of trials
A22: 11 | B22: 1602 | C22: 21 | D22: 1621 | K22: 0 | L22: 12 | P22: %_1 | Q22: %_2 | R22: %_3 | S22: %_4 | T22: %_5 | U22: %_6
A23: 11 | B23: 1708 | C23: 21 | D23: 1717 | K23: 0 | L23: 12 | O23: target sequence | P23: =$G$3 -> 12 | Q23: =$G$3 -> 12 | R23: =$G$3 -> 12 | S23: =$G$3 -> 12 | T23: =$G$3 -> 12 | U23: =$G$3 -> 12
A24: 11 | B24: 1809 | C24: 21 | D24: 1827 | K24: 0 | L24: 12 | O24: total reinforcement | P24: =U8 -> 5 | Q24: =Z8 -> 7 | R24: =AE8 -> 5 | S24: =AJ8 -> 7 | T24: =AO8 -> 7 | U24: =AT8 -> 7
A25: 11 | B25: 1912 | C25: 21 | D25: 1922 | K25: 0 | L25: 12 | O25: % target
A26: 11 | B26: 2007 | C26: 21 | D26: 2017 | K26: 0 | L26: 12 | O26: CCRF
A27: 11 | B27: 2116 | C27: 21 | D27: 2125 | K27: 0 | L27: 12 | O27: % CCRf
A28: 22 | B28: 2224 | C28: 23 | D28: 2231 | K28: 0 | L28: 22 | O28: average response rate | P28: =D15/P20 -> 99.22222222 | Q28: =(D24-D15)/Q20 -> 103.7777778 | R28: =(D32-D24)/R20 -> 106.125 | S28: =(D41-D32)/S20 -> 114.8888889 | T28: =(D50-D41)/T20 -> 101.7777778 | U28: =(D59-D50)/U20 -> 106.5555556
A29: 11 | B29: 2327 | C29: 21 | D29: 2337 | K29: 0 | L29: 12
A30: 22 | B30: 2439 | C30: 23 | D30: 2451 | K30: 0 | L30: 22
A31: 11 | B31: 2546 | C31: 21 | D31: 2555 | K31: 0 | L31: 12
A32: 22 | B32: 2654 | C32: 23 | D32: 2676 | K32: 0 | L32: 22
A33: 11 | B33: 2772 | C33: 21 | D33: 2789 | K33: 0 | L33: 12
A34: 11 | B34: 2885 | C34: 21 | D34: 2918 | K34: 0 | L34: 12
A35: 11 | B35: 3011 | C35: 21 | D35: 3021 | K35: 0 | L35: 12
A36: 22 | B36: 3119 | C36: 23 | D36: 3128 | K36: 0 | L36: 22
A37: 11 | B37: 3222 | C37: 21 | D37: 3232 | K37: 0 | L37: 12
A38: 11 | B38: 3358 | C38: 21 | D38: 3368 | K38: 0 | L38: 12
A39: 22 | B39: 3467 | C39: 23 | D39: 3480 | K39: 0 | L39: 22
A40: 11 | B40: 3567 | C40: 21 | D40: 3577 | K40: 0 | L40: 12
A41: 11 | B41: 3678 | C41: 21 | D41: 3710 | K41: 0 | L41: 12
A42: 22 | B42: 3803 | C42: 23 | D42: 3812 | K42: 0 | L42: 22
A43: 22 | B43: 3917 | C43: 23 | D43: 3924 | K43: 0 | L43: 22
A44: 11 | B44: 4020 | C44: 21 | D44: 4029 | K44: 0 | L44: 12
A45: 11 | B45: 4117 | C45: 21 | D45: 4127 | K45: 0 | L45: 12
A46: 11 | B46: 4214 | C46: 21 | D46: 4223 | K46: 0 | L46: 12
A47: 11 | B47: 4309 | C47: 21 | D47: 4328 | K47: 0 | L47: 12
A48: 11 | B48: 4421 | C48: 21 | D48: 4430 | K48: 0 | L48: 12
A49: 11 | B49: 4519 | C49: 21 | D49: 4530 | K49: 0 | L49: 12
A50: 11 | B50: 4617 | C50: 21 | D50: 4626 | K50: 0 | L50: 12
A51: 22 | B51: 4720 | C51: 23 | D51: 4740 | K51: 0 | L51: 22
A52: 22 | B52: 4876 | C52: 23 | D52: 4886 | K52: 0 | L52: 22
A53: 11 | B53: 4982 | C53: 21 | D53: 4991 | K53: 0 | L53: 12
A54: 11 | B54: 5090 | C54: 21 | D54: 5101 | K54: 0 | L54: 12
A55: 11 | B55: 5189 | C55: 21 | D55: 5198 | K55: 0 | L55: 12
A56: 11 | B56: 5290 | C56: 21 | D56: 5299 | K56: 0 | L56: 12
A57: 11 | B57: 5385 | C57: 21 | D57: 5394 | K57: 0 | L57: 12
A58: 11 | B58: 5480 | C58: 21 | D58: 5488 | K58: 0 | L58: 12
A59: 11 | B59: 5578 | C59: 21 | D59: 5585 | K59: 1 | L59: 12

Sheet !LB18B30.056
A1: Report for:!LB18B30.056
A2: Date: | B2: <date>
A3: Hen: | B3: <hen> | F3: Correct Sequence | G3: =Start!J2 -> 12 | P3: Total Sequences in Data | Q3: =4994-COUNTBLANK(L7:L5000) -> 51 | V3: Total Sequences in Block Data | W3: =COUNTA(L7:L15) -> 9 | AA3: Total Sequences in Block Data | AB3: =COUNTA(L16:L23) -> 8 | AF3: Total Sequences in Block Data | AG3: =COUNTA(L24:L32) -> 9 | AK3: Total Sequences in Block Data | AL3: =COUNTA(L33:L40) -> 8 | AP3: Total Sequences in Block Data | AQ3: =COUNTA(L41:L49) -> 9 | AU3: Total Sequences in Block Data | AV3: =COUNTA(L50:L57) -> 8
P4: Total Sequences in Summary | Q4: =SUM(O7:O14) -> 51 | V4: Total Sequences in Block Summary | W4: =SUM(U7:U14) -> 9 | AA4: Total Sequences in Block Summary | AB4: =SUM(Z7:Z14) -> 8 | AF4: Total Sequences in Block Summary | AG4: =SUM(AE7:AE14) -> 9 | AK4: Total Sequences in Block Summary | AL4: =SUM(AJ7:AJ14) -> 8 | AP4: Total Sequences in Block Summary | AQ4: =SUM(AO7:AO14) -> 9 | AU4: Total Sequences in Block Summary | AV4: =SUM(AT7:AT14) -> 8
T5: Block 1 | Y5: Block 2 | AD5: Block 3 | AI5: Block 4 | AN5: Block 5 | AS5: Block 6
A6: Sequence Component 1 | B6: Time 1 | C6: Sequence Component 2 | D6: Time 2 | E6: Sequence Component 3 | F6: Time 3 | G6: Sequence Component 4 | H6: Time 4 | I6: Sequence Component 5 | J6: Time 5 | K6: Correct? 0=No 1=Yes | L6: Sequence | N6: Frequency | P6: Relative Frequency | Q6: Variability | T6: Frequency | V6: Relative Frequency | W6: Variability | Y6: Frequency | AA6: Relative Frequency | AB6: Variability | AD6: Frequency | AF6: Relative Frequency | AG6: Variability | AI6: Frequency | AK6: Relative Frequency | AL6: Variability | AN6: Frequency | AP6: Relative Frequency | AQ6: Variability | AS6: Frequency | AU6: Relative Frequency | AV6: Variability
A7: 22 | B7: 13 | C7: 23 | D7: 30 | K7: 0 | L7: 22 | N7: 11 | O7: =COUNTIF($L$7:$L$500,N7) -> 4 | P7: =O7/$Q$4 -> 0.07843137255 | Q7: =IF(P7=0,0,(P7*((LOG(P7))/LOG(2)))) -> -0.2880333602 | T7: =N7 -> 11 | U7: =COUNTIF(L7:L15,T7) -> 0 | V7: =U7/(W4-U8) -> 0 | W7: =IF(V7=0,0,(V7*((LOG(V7))/LOG(2)))) -> 0 | Y7: =N7 -> 11 | Z7: =COUNTIF(L16:L23,Y7) -> 0 | AA7: =Z7/(AB4-Z8) -> 0 | AB7: =IF(AA7=0,0,(AA7*((LOG(AA7))/LOG(2)))) -> 0 | AD7: =N7 -> 11 | AE7: =COUNTIF(L24:L32,AD7) -> 1 | AF7: =AE7/(AG4-AE8) -> 0.3333333333 | AG7: =IF(AF7=0,0,(AF7*((LOG(AF7))/LOG(2)))) -> -0.5283208336 | AI7: =N7 -> 11 | AJ7: =COUNTIF(L33:L40,AI7) -> 1 | AK7: =AJ7/(AL4-AJ8) -> 1 | AL7: =IF(AK7=0,0,(AK7*((LOG(AK7))/LOG(2)))) -> 0 | AN7: =N7 -> 11 | AO7: =COUNTIF(L41:L49,AN7) -> 1 | AP7: =AO7/(AQ4-AO8) -> 0.5 | AQ7: =IF(AP7=0,0,(AP7*((LOG(AP7))/LOG(2)))) -> -0.5 | AS7: =N7 -> 11 | AT7: =COUNTIF(L50:L57,AS7) -> 1 | AU7: =AT7/(AV4-AT8) -> 1 | AV7: =IF(AU7=0,0,(AU7*((LOG(AU7))/LOG(2)))) -> 0
A8: 22 | B8: 137 | C8: 23 | D8: 149 | K8: 0 | L8: 22 | N8: 12 | O8: =COUNTIF($L$7:$L$500,N8) -> 39 | P8: =O8/$Q$4 -> 0.7647058824 | Q8: =IF(P8=0,0,(P8*((LOG(P8))/LOG(2)))) -> -0.2959588588 | T8: =N8 -> 12 | U8: =COUNTIF(L7:L15,T8) -> 6 | Y8: =N8 -> 12 | Z8: =COUNTIF(L16:L23,Y8) -> 6 | AD8: =N8 -> 12 | AE8: =COUNTIF(L24:L32,AD8) -> 6 | AI8: =N8 -> 12 | AJ8: =COUNTIF(L33:L40,AI8) -> 7 | AN8: =N8 -> 12 | AO8: =COUNTIF(L41:L49,AN8) -> 7 | AS8: =N8 -> 12 | AT8: =COUNTIF(L50:L57,AS8) -> 7
A9: 11 | B9: 249 | C9: 21 | D9: 260 | K9: 0 | L9: 12 | N9: 21 | O9: =COUNTIF($L$7:$L$500,N9) -> 1 | P9: =O9/$Q$4 -> 0.01960784314 | Q9: =IF(P9=0,0,(P9*((LOG(P9))/LOG(2)))) -> -0.1112240263 | T9: =N9 -> 21 | U9: =COUNTIF(L7:L15,T9) -> 0 | V9: =U9/(W4-U8) -> 0 | W9: =IF(V9=0,0,(V9*((LOG(V9))/LOG(2)))) -> 0 | Y9: =N9 -> 21 | Z9: =COUNTIF(L16:L23,Y9) -> 0 | AA9: =Z9/(AB4-Z8) -> 0 | AB9: =IF(AA9=0,0,(AA9*((LOG(AA9))/LOG(2)))) -> 0 | AD9: =N9 -> 21 | AE9: =COUNTIF(L24:L32,AD9) -> 0 | AF9: =AE9/(AG4-AE8) -> 0 | AG9: =IF(AF9=0,0,(AF9*((LOG(AF9))/LOG(2)))) -> 0 | AI9: =N9 -> 21 | AJ9: =COUNTIF(L33:L40,AI9) -> 0 | AK9: =AJ9/(AL4-AJ8) -> 0 | AL9: =IF(AK9=0,0,(AK9*((LOG(AK9))/LOG(2)))) -> 0 | AN9: =N9 -> 21 | AO9: =COUNTIF(L41:L49,AN9) -> 1 | AP9: =AO9/(AQ4-AO8) -> 0.5 | AQ9: =IF(AP9=0,0,(AP9*((LOG(AP9))/LOG(2)))) -> -0.5 | AS9: =N9 -> 21 | AT9: =COUNTIF(L50:L57,AS9) -> 0 | AU9: =AT9/(AV4-AT8) -> 0 | AV9: =IF(AU9=0,0,(AU9*((LOG(AU9))/LOG(2)))) -> 0
A10: 11 | B10: 346 | C10: 21 | D10: 358 | K10: 0 | L10: 12 | N10: 22 | O10: =COUNTIF($L$7:$L$500,N10) -> 7 | P10: =O10/$Q$4 -> 0.137254902 | Q10: =IF(P10=0,0,(P10*((LOG(P10))/LOG(2)))) -> -0.3932449596 | T10: =N10 -> 22 | U10: =COUNTIF(L7:L15,T10) -> 3 | V10: =U10/(W4-U8) -> 1 | W10: =IF(V10=0,0,(V10*((LOG(V10))/LOG(2)))) -> 0 | Y10: =N10 -> 22 | Z10: =COUNTIF(L16:L23,Y10) -> 2 | AA10: =Z10/(AB4-Z8) -> 1 | AB10: =IF(AA10=0,0,(AA10*((LOG(AA10))/LOG(2)))) -> 0 | AD10: =N10 -> 22 | AE10: =COUNTIF(L24:L32,AD10) -> 2 | AF10: =AE10/(AG4-AE8) -> 0.6666666667 | AG10: =IF(AF10=0,0,(AF10*((LOG(AF10))/LOG(2)))) -> -0.3899750005 | AI10: =N10 -> 22 | AJ10: =COUNTIF(L33:L40,AI10) -> 0 | AK10: =AJ10/(AL4-AJ8) -> 0 | AL10: =IF(AK10=0,0,(AK10*((LOG(AK10))/LOG(2)))) -> 0 | AN10: =N10 -> 22 | AO10: =COUNTIF(L41:L49,AN10) -> 0 | AP10: =AO10/(AQ4-AO8) -> 0 | AQ10: =IF(AP10=0,0,(AP10*((LOG(AP10))/LOG(2)))) -> 0 | AS10: =N10 -> 22 | AT10: =COUNTIF(L50:L57,AS10) -> 0 | AU10: =AT10/(AV4-AT8) -> 0 | AV10: =IF(AU10=0,0,(AU10*((LOG(AU10))/LOG(2)))) -> 0
A11: 11 | B11: 445 | C11: 21 | D11: 456 | K11: 0 | L11: 12 | T11: =N11 -> 0 | U11: =COUNTIF(L7:L15,T11) -> 0 | V11: =U11/(W4-U8) -> 0 | W11: =IF(V11=0,0,(V11*((LOG(V11))/LOG(2)))) -> 0 | Y11: =N11 -> 0 | Z11: =COUNTIF(L16:L23,Y11) -> 0 | AA11: =Z11/(AB4-Z8) -> 0 | AB11: =IF(AA11=0,0,(AA11*((LOG(AA11))/LOG(2)))) -> 0 | AD11: =N11 -> 0 | AE11: =COUNTIF(L24:L32,AD11) -> 0 | AF11: =AE11/(AG4-AE8) -> 0 | AG11: =IF(AF11=0,0,(AF11*((LOG(AF11))/LOG(2)))) -> 0 | AI11: =N11 -> 0 | AJ11: =COUNTIF(L33:L40,AI11) -> 0 | AK11: =AJ11/(AL4-AJ8) -> 0 | AL11: =IF(AK11=0,0,(AK11*((LOG(AK11))/LOG(2)))) -> 0 | AN11: =N11 -> 0 | AO11: =COUNTIF(L41:L49,AN11) -> 0 | AP11: =AO11/(AQ4-AO8) -> 0 | AQ11: =IF(AP11=0,0,(AP11*((LOG(AP11))/LOG(2)))) -> 0 | AS11: =N11 -> 0 | AT11: =COUNTIF(L50:L57,AS11) -> 0 | AU11: =AT11/(AV4-AT8) -> 0 | AV11: =IF(AU11=0,0,(AU11*((LOG(AU11))/LOG(2)))) -> 0
A12: 11 | B12: 543 | C12: 21 | D12: 554 | K12: 0 | L12: 12 | T12: =N12 -> 0 | U12: =COUNTIF(L7:L15,T12) -> 0 | V12: =U12/(W4-U8) -> 0 | W12: =IF(V12=0,0,(V12*((LOG(V12))/LOG(2)))) -> 0 | Y12: =N12 -> 0 | Z12: =COUNTIF(L16:L23,Y12) -> 0 | AA12: =Z12/(AB4-Z8) -> 0 | AB12: =IF(AA12=0,0,(AA12*((LOG(AA12))/LOG(2)))) -> 0 | AD12: =N12 -> 0 | AE12: =COUNTIF(L24:L32,AD12) -> 0 | AF12: =AE12/(AG4-AE8) -> 0 | AG12: =IF(AF12=0,0,(AF12*((LOG(AF12))/LOG(2)))) -> 0 | AI12: =N12 -> 0 | AJ12: =COUNTIF(L33:L40,AI12) -> 0 | AK12: =AJ12/(AL4-AJ8) -> 0 | AL12: =IF(AK12=0,0,(AK12*((LOG(AK12))/LOG(2)))) -> 0 | AN12: =N12 -> 0 | AO12: =COUNTIF(L41:L49,AN12) -> 0 | AP12: =AO12/(AQ4-AO8) -> 0 | AQ12: =IF(AP12=0,0,(AP12*((LOG(AP12))/LOG(2)))) -> 0 | AS12: =N12 -> 0 | AT12: =COUNTIF(L50:L57,AS12) -> 0 | AU12: =AT12/(AV4-AT8) -> 0 | AV12: =IF(AU12=0,0,(AU12*((LOG(AU12))/LOG(2)))) -> 0
A13: 11 | B13: 644 | C13: 21 | D13: 653 | K13: 0 | L13: 12 | T13: =N13 -> 0 | U13: =COUNTIF(L7:L15,T13) -> 0 | V13: =U13/(W4-U8) -> 0 | W13: =IF(V13=0,0,(V13*((LOG(V13))/LOG(2)))) -> 0 | Y13: =N13 -> 0 | Z13: =COUNTIF(L16:L23,Y13) -> 0 | AA13: =Z13/(AB4-Z8) -> 0 | AB13: =IF(AA13=0,0,(AA13*((LOG(AA13))/LOG(2)))) -> 0 | AD13: =N13 -> 0 | AE13: =COUNTIF(L24:L32,AD13) -> 0 | AF13: =AE13/(AG4-AE8) -> 0 | AG13: =IF(AF13=0,0,(AF13*((LOG(AF13))/LOG(2)))) -> 0 | AI13: =N13 -> 0 | AJ13: =COUNTIF(L33:L40,AI13) -> 0 | AK13: =AJ13/(AL4-AJ8) -> 0 | AL13: =IF(AK13=0,0,(AK13*((LOG(AK13))/LOG(2)))) -> 0 | AN13: =N13 -> 0 | AO13: =COUNTIF(L41:L49,AN13) -> 0 | AP13: =AO13/(AQ4-AO8) -> 0 | AQ13: =IF(AP13=0,0,(AP13*((LOG(AP13))/LOG(2)))) -> 0 | AS13: =N13 -> 0 | AT13: =COUNTIF(L50:L57,AS13) -> 0 | AU13: =AT13/(AV4-AT8) -> 0 | AV13: =IF(AU13=0,0,(AU13*((LOG(AU13))/LOG(2)))) -> 0
A14: 11 | B14: 739 | C14: 21 | D14: 749 | K14: 0 | L14: 12 | T14: =N14 -> 0 | U14: =COUNTIF(L7:L15,T14) -> 0 | V14: =U14/(W4-U8) -> 0 | W14: =IF(V14=0,0,(V14*((LOG(V14))/LOG(2)))) -> 0 | Y14: =N14 -> 0 | Z14: =COUNTIF(L16:L23,Y14) -> 0 | AA14: =Z14/(AB4-Z8) -> 0 | AB14: =IF(AA14=0,0,(AA14*((LOG(AA14))/LOG(2)))) -> 0 | AD14: =N14 -> 0 | AE14: =COUNTIF(L24:L32,AD14) -> 0 | AF14: =AE14/(AG4-AE8) -> 0 | AG14: =IF(AF14=0,0,(AF14*((LOG(AF14))/LOG(2)))) -> 0 | AI14: =N14 -> 0 | AJ14: =COUNTIF(L33:L40,AI14) -> 0 | AK14: =AJ14/(AL4-AJ8) -> 0 | AL14: =IF(AK14=0,0,(AK14*((LOG(AK14))/LOG(2)))) -> 0 | AN14: =N14 -> 0 | AO14: =COUNTIF(L41:L49,AN14) -> 0 | AP14: =AO14/(AQ4-AO8) -> 0 | AQ14: =IF(AP14=0,0,(AP14*((LOG(AP14))/LOG(2)))) -> 0 | AS14: =N14 -> 0 | AT14: =COUNTIF(L50:L57,AS14) -> 0 | AU14: =AT14/(AV4-AT8) -> 0 | AV14: =IF(AU14=0,0,(AU14*((LOG(AU14))/LOG(2)))) -> 0
A15: 22 | B15: 849 | C15: 23 | D15: 890 | K15: 0 | L15: 22 | P15: =SUM(P7:P14) -> 1 | Q15: =-SUM(Q7:Q14) -> 1.088461205 | V15: =SUM(V7:V14) -> 1 | W15: =-SUM(W7:W14) -> 0 | AA15: =SUM(AA7:AA14) -> 1 | AB15: =-SUM(AB7:AB14) -> 0 | AF15: =SUM(AF7:AF14) -> 1 | AG15: =-SUM(AG7:AG14) -> 0.9182958341 | AK15: =SUM(AK7:AK14) -> 1 | AL15: =-SUM(AL7:AL14) -> 0 | AP15: =SUM(AP7:AP14) -> 1 | AQ15: =-SUM(AQ7:AQ14) -> 1 | AU15: =SUM(AU7:AU14) -> 1 | AV15: =-SUM(AV7:AV14) -> 0
A16: 11 | B16: 990 | C16: 21 | D16: 1006 | K16: 0 | L16: 12 | P16: U= | Q16: =Q15/(LOG(Q4)/LOG(2)) -> 0.1918863871 | V16: U1= | W16: =W15/(LOG(W4)/LOG(2)) -> 0 | AA16: U2= | AB16: =AB15/(LOG(AB4)/LOG(2)) -> 0 | AF16: U3= | AG16: =AG15/(LOG(AG4)/LOG(2)) -> 0.2896900821 | AK16: U4= | AL16: =AL15/(LOG(AL4)/LOG(2)) -> 0 | AP16: U5= | AQ16: =AQ15/(LOG(AQ4)/LOG(2)) -> 0.3154648768 | AU16: U6= | AV16: =AV15/(LOG(AV4)/LOG(2)) -> 0
A17: 11 | B17: 1093 | C17: 21 | D17: 1103 | K17: 0 | L17: 12
A18: 11 | B18: 1189 | C18: 21 | D18: 1208 | K18: 0 | L18: 12
A19: 11 | B19: 1294 | C19: 21 | D19: 1304 | K19: 0 | L19: 12 | N19: Total Target Seq
A20: 22 | B20: 1394 | C20: 23 | D20: 1413 | K20: 0 | L20: 22 | N20: =COUNTIF(L7:L57,G3) -> 39 | P20: 9 | Q20: 8 | R20: 9 | S20: 8 | T20: 9 | U20: 8
A21: 11 | B21: 1498 | C21: 21 | D21: 1512 | K21: 0 | L21: 12 | P21: % of reinforcement given in 6 equal intervals based on number of trials
A22: 11 | B22: 1598 | C22: 21 | D22: 1608 | K22: 0 | L22: 12 | P22: %_1 | Q22: %_2 | R22: %_3 | S22: %_4 | T22: %_5 | U22: %_6
A23: 22 | B23: 1700 | C23: 23 | D23: 1719 | K23: 0 | L23: 22 | O23: target sequence | P23: =$G$3 -> 12 | Q23: =$G$3 -> 12 | R23: =$G$3 -> 12 | S23: =$G$3 -> 12 | T23: =$G$3 -> 12 | U23: =$G$3 -> 12
A24: 22 | B24: 1838 | C24: 23 | D24: 1861 | K24: 0 | L24: 22 | O24: total reinforcement | P24: =U8 -> 6 | Q24: =Z8 -> 6 | R24: =AE8 -> 6 | S24: =AJ8 -> 7 | T24: =AO8 -> 7 | U24: =AT8 -> 7
A25: 11 | B25: 1958 | C25: 12 | D25: 1971 | K25: 0 | L25: 11 | O25: % target
A26: 11 | B26: 2066 | C26: 21 | D26: 2077 | K26: 0 | L26: 12 | O26: CCRF
A27: 11 | B27: 2162 | C27: 21 | D27: 2194 | K27: 0 | L27: 12 | O27: % CCRf
A28: 11 | B28: 2284 | C28: 21 | D28: 2295 | K28: 0 | L28: 12 | O28: average response rate | P28: =D15/P20 -> 98.88888889 | Q28: =(D23-D15)/Q20 -> 103.625 | R28: =(D32-D23)/R20 -> 113.2222222 | S28: =(D40-D32)/S20 -> 100.75 | T28: =(D49-D40)/T20 -> 113.3333333 | U28: =(D57-D49)/U20 -> 107
A29: 22 | B29: 2398 | C29: 23 | D29: 2417 | K29: 0 | L29: 22
A30: 11 | B30: 2515 | C30: 21 | D30: 2535 | K30: 0 | L30: 12
A31: 11 | B31: 2620 | C31: 21 | D31: 2630 | K31: 0 | L31: 12
A32: 11 | B32: 2719 | C32: 21 | D32: 2738 | K32: 0 | L32: 12
A33: 11 | B33: 2827 | C33: 21 | D33: 2841 | K33: 0 | L33: 12
A34: 11 | B34: 2929 | C34: 21 | D34: 2939 | K34: 0 | L34: 12
A35: 11 | B35: 3023 | C35: 21 | D35: 3034 | K35: 0 | L35: 12
A36: 11 | B36: 3119 | C36: 21 | D36: 3129 | K36: 0 | L36: 12
A37: 11 | B37: 3217 | C37: 21 | D37: 3226 | K37: 0 | L37: 12
A38: 11 | B38: 3307 | C38: 12 | D38: 3318 | K38: 0 | L38: 11
A39: 11 | B39: 3416 | C39: 21 | D39: 3426 | K39: 0 | L39: 12
A40: 11 | B40: 3528 | C40: 21 | D40: 3544 | K40: 0 | L40: 12
A41: 11 | B41: 3641 | C41: 21 | D41: 3652 | K41: 0 | L41: 12
A42: 11 | B42: 3737 | C42: 21 | D42: 3747 | K42: 0 | L42: 12
A43: 11 | B43: 3848 | C43: 12 | D43: 3854 | K43: 0 | L43: 11
A44: 11 | B44: 3949 | C44: 21 | D44: 3959 | K44: 0 | L44: 12
A45: 11 | B45: 4046 | C45: 21 | D45: 4073 | K45: 0 | L45: 12
A46: 11 | B46: 4167 | C46: 21 | D46: 4177 | K46: 0 | L46: 12
A47: 22 | B47: 4297 | C47: 14 | D47: 4350 | K47: 0 | L47: 21
A48: 11 | B48: 4446 | C48: 21 | D48: 4456 | K48: 0 | L48: 12
A49: 11 | B49: 4553 | C49: 21 | D49: 4564 | K49: 0 | L49: 12
A50: 11 | B50: 4649 | C50: 12 | D50: 4697 | K50: 0 | L50: 11
A51: 11 | B51: 4793 | C51: 21 | D51: 4803 | K51: 0 | L51: 12
A52: 11 | B52: 4888 | C52: 21 | D52: 4898 | K52: 0 | L52: 12
A53: 11 | B53: 4986 | C53: 21 | D53: 5004 | K53: 0 | L53: 12
A54: 11 | B54: 5095 | C54: 21 | D54: 5120 | K54: 0 | L54: 12
A55: 11 | B55: 5214 | C55: 21 | D55: 5227 | K55: 0 | L55: 12
A56: 11 | B56: 5314 | C56: 21 | D56: 5325 | K56: 0 | L56: 12
A57: 11 | B57: 5410 | C57: 21 | D57: 5420 | K57: 1 | L57: 12

Sheet !LB19C50.056
A1: Report for:!LB19C50.056
A2: Date: | B2: <date>
A3: Hen: | B3: <hen> | F3: Correct Sequence | G3: =Start!J2 -> 12 | P3: Total Sequences in Data | Q3: =4994-COUNTBLANK(L7:L5000) -> 44 | V3: Total Sequences in Block Data | W3: =COUNTA(L7:L13) -> 7 | AA3: Total Sequences in Block Data | AB3: =COUNTA(L14:L21) -> 8 | AF3: Total Sequences in Block Data | AG3: =COUNTA(L22:L28) -> 7 | AK3: Total Sequences in Block Data | AL3: =COUNTA(L29:L35) -> 7 | AP3: Total Sequences in Block Data | AQ3: =COUNTA(L36:L43) -> 8 | AU3: Total Sequences in Block Data | AV3: =COUNTA(L44:L50) -> 7
P4: Total Sequences in Summary | Q4: =SUM(O7:O14) -> 44 | V4: Total Sequences in Block Summary | W4: =SUM(U7:U14) -> 7 | AA4: Total Sequences in Block Summary | AB4: =SUM(Z7:Z14) -> 8 | AF4: Total Sequences in Block Summary | AG4: =SUM(AE7:AE14) -> 7 | AK4: Total Sequences in Block Summary | AL4: =SUM(AJ7:AJ14) -> 7 | AP4: Total Sequences in Block Summary | AQ4: =SUM(AO7:AO14) -> 8 | AU4: Total Sequences in Block Summary | AV4: =SUM(AT7:AT14) -> 7
T5: Block 1 | Y5: Block 2 | AD5: Block 3 | AI5: Block 4 | AN5: Block 5 | AS5: Block 6
A6: Sequence Component 1 | B6: Time 1 | C6: Sequence Component 2 | D6: Time 2 | E6: Sequence Component 3 | F6: Time 3 | G6: Sequence Component 4 | H6: Time 4 | I6: Sequence Component 5 | J6: Time 5 | K6: Correct? 0=No 1=Yes | L6: Sequence | N6: Frequency | P6: Relative Frequency | Q6: Variability | T6: Frequency | V6: Relative Frequency | W6: Variability | Y6: Frequency | AA6: Relative Frequency | AB6: Variability | AD6: Frequency | AF6: Relative Frequency | AG6: Variability | AI6: Frequency | AK6: Relative Frequency | AL6: Variability | AN6: Frequency | AP6: Relative Frequency | AQ6: Variability | AS6: Frequency | AU6: Relative Frequency | AV6: Variability
A7: 22 | B7: 16 | C7: 23 | D7: 30 | K7: 0 | L7: 22 | N7: 11 | O7: =COUNTIF($L$7:$L$500,N7) -> 1 | P7: =O7/$Q$4 -> 0.02272727273 | Q7: =IF(P7=0,0,(P7*((LOG(P7))/LOG(2)))) -> -0.1240779913 | T7: =N7 -> 11 | U7: =COUNTIF(L7:L13,T7) -> 0 | V7: =U7/(W4-U8) -> 0 | W7: =IF(V7=0,0,(V7*((LOG(V7))/LOG(2)))) -> 0 | Y7: =N7 -> 11 | Z7: =COUNTIF(L14:L21,Y7) -> 0 | AA7: =Z7/(AB4-Z8) -> 0 | AB7: =IF(AA7=0,0,(AA7*((LOG(AA7))/LOG(2)))) -> 0 | AD7: =N7 -> 11 | AE7: =COUNTIF(L22:L28,AD7) -> 1 | AF7: =AE7/(AG4-AE8) -> 1 | AG7: =IF(AF7=0,0,(AF7*((LOG(AF7))/LOG(2)))) -> 0 | AI7: =N7 -> 11 | AJ7: =COUNTIF(L29:L35,AI7) -> 0 | AK7: =AJ7/(AL4-AJ8) ->  | AL7: =IF(AK7=0,0,(AK7*((LOG(AK7))/LOG(2)))) ->  | AN7: =N7 -> 11 | AO7: =COUNTIF(L36:L43,AN7) -> 0 | AP7: =AO7/(AQ4-AO8) ->  | AQ7: =IF(AP7=0,0,(AP7*((LOG(AP7))/LOG(2)))) ->  | AS7: =N7 -> 11 | AT7: =COUNTIF(L44:L50,AS7) -> 0 | AU7: =AT7/(AV4-AT8) ->  | AV7: =IF(AU7=0,0,(AU7*((LOG(AU7))/LOG(2)))) -> 
A8: 11 | B8: 135 | C8: 21 | D8: 145 | K8: 0 | L8: 12 | N8: 12 | O8: =COUNTIF($L$7:$L$500,N8) -> 39 | P8: =O8/$Q$4 -> 0.8863636364 | Q8: =IF(P8=0,0,(P8*((LOG(P8))/LOG(2)))) -> -0.1542533316 | T8: =N8 -> 12 | U8: =COUNTIF(L7:L13,T8) -> 4 | Y8: =N8 -> 12 | Z8: =COUNTIF(L14:L21,Y8) -> 7 | AD8: =N8 -> 12 | AE8: =COUNTIF(L22:L28,AD8) -> 6 | AI8: =N8 -> 12 | AJ8: =COUNTIF(L29:L35,AI8) -> 7 | AN8: =N8 -> 12 | AO8: =COUNTIF(L36:L43,AN8) -> 8 | AS8: =N8 -> 12 | AT8: =COUNTIF(L44:L50,AS8) -> 7
A9: 11 | B9: 234 | C9: 21 | D9: 240 | K9: 0 | L9: 12 | N9: 21 | O9: =COUNTIF($L$7:$L$500,N9) -> 0 | P9: =O9/$Q$4 -> 0 | Q9: =IF(P9=0,0,(P9*((LOG(P9))/LOG(2)))) -> 0 | T9: =N9 -> 21 | U9: =COUNTIF(L7:L13,T9) -> 0 | V9: =U9/(W4-U8) -> 0 | W9: =IF(V9=0,0,(V9*((LOG(V9))/LOG(2)))) -> 0 | Y9: =N9 -> 21 | Z9: =COUNTIF(L14:L21,Y9) -> 0 | AA9: =Z9/(AB4-Z8) -> 0 | AB9: =IF(AA9=0,0,(AA9*((LOG(AA9))/LOG(2)))) -> 0 | AD9: =N9 -> 21 | AE9: =COUNTIF(L22:L28,AD9) -> 0 | AF9: =AE9/(AG4-AE8) -> 0 | AG9: =IF(AF9=0,0,(AF9*((LOG(AF9))/LOG(2)))) -> 0 | AI9: =N9 -> 21 | AJ9: =COUNTIF(L29:L35,AI9) -> 0 | AK9: =AJ9/(AL4-AJ8) ->  | AL9: =IF(AK9=0,0,(AK9*((LOG(AK9))/LOG(2)))) ->  | AN9: =N9 -> 21 | AO9: =COUNTIF(L36:L43,AN9) -> 0 | AP9: =AO9/(AQ4-AO8) ->  | AQ9: =IF(AP9=0,0,(AP9*((LOG(AP9))/LOG(2)))) ->  | AS9: =N9 -> 21 | AT9: =COUNTIF(L44:L50,AS9) -> 0 | AU9: =AT9/(AV4-AT8) ->  | AV9: =IF(AU9=0,0,(AU9*((LOG(AU9))/LOG(2)))) -> 
A10: 11 | B10: 338 | C10: 21 | D10: 348 | K10: 0 | L10: 12 | N10: 22 | O10: =COUNTIF($L$7:$L$500,N10) -> 4 | P10: =O10/$Q$4 -> 0.09090909091 | Q10: =IF(P10=0,0,(P10*((LOG(P10))/LOG(2)))) -> -0.3144937835 | T10: =N10 -> 22 | U10: =COUNTIF(L7:L13,T10) -> 3 | V10: =U10/(W4-U8) -> 1 | W10: =IF(V10=0,0,(V10*((LOG(V10))/LOG(2)))) -> 0 | Y10: =N10 -> 22 | Z10: =COUNTIF(L14:L21,Y10) -> 1 | AA10: =Z10/(AB4-Z8) -> 1 | AB10: =IF(AA10=0,0,(AA10*((LOG(AA10))/LOG(2)))) -> 0 | AD10: =N10 -> 22 | AE10: =COUNTIF(L22:L28,AD10) -> 0 | AF10: =AE10/(AG4-AE8) -> 0 | AG10: =IF(AF10=0,0,(AF10*((LOG(AF10))/LOG(2)))) -> 0 | AI10: =N10 -> 22 | AJ10: =COUNTIF(L29:L35,AI10) -> 0 | AK10: =AJ10/(AL4-AJ8) ->  | AL10: =IF(AK10=0,0,(AK10*((LOG(AK10))/LOG(2)))) ->  | AN10: =N10 -> 22 | AO10: =COUNTIF(L36:L43,AN10) -> 0 | AP10: =AO10/(AQ4-AO8) ->  | AQ10: =IF(AP10=0,0,(AP10*((LOG(AP10))/LOG(2)))) ->  | AS10: =N10 -> 22 | AT10: =COUNTIF(L44:L50,AS10) -> 0 | AU10: =AT10/(AV4-AT8) ->  | AV10: =IF(AU10=0,0,(AU10*((LOG(AU10))/LOG(2)))) -> 
A11: 22 | B11: 439 | C11: 23 | D11: 453 | K11: 0 | L11: 22 | T11: =N11 -> 0 | U11: =COUNTIF(L7:L13,T11) -> 0 | V11: =U11/(W4-U8) -> 0 | W11: =IF(V11=0,0,(V11*((LOG(V11))/LOG(2)))) -> 0 | Y11: =N11 -> 0 | Z11: =COUNTIF(L14:L21,Y11) -> 0 | AA11: =Z11/(AB4-Z8) -> 0 | AB11: =IF(AA11=0,0,(AA11*((LOG(AA11))/LOG(2)))) -> 0 | AD11: =N11 -> 0 | AE11: =COUNTIF(L22:L28,AD11) -> 0 | AF11: =AE11/(AG4-AE8) -> 0 | AG11: =IF(AF11=0,0,(AF11*((LOG(AF11))/LOG(2)))) -> 0 | AI11: =N11 -> 0 | AJ11: =COUNTIF(L29:L35,AI11) -> 0 | AK11: =AJ11/(AL4-AJ8) ->  | AL11: =IF(AK11=0,0,(AK11*((LOG(AK11))/LOG(2)))) ->  | AN11: =N11 -> 0 | AO11: =COUNTIF(L36:L43,AN11) -> 0 | AP11: =AO11/(AQ4-AO8) ->  | AQ11: =IF(AP11=0,0,(AP11*((LOG(AP11))/LOG(2)))) ->  | AS11: =N11 -> 0 | AT11: =COUNTIF(L44:L50,AS11) -> 0 | AU11: =AT11/(AV4-AT8) ->  | AV11: =IF(AU11=0,0,(AU11*((LOG(AU11))/LOG(2)))) -> 
A12: 22 | B12: 556 | C12: 23 | D12: 578 | K12: 0 | L12: 22 | T12: =N12 -> 0 | U12: =COUNTIF(L7:L13,T12) -> 0 | V12: =U12/(W4-U8) -> 0 | W12: =IF(V12=0,0,(V12*((LOG(V12))/LOG(2)))) -> 0 | Y12: =N12 -> 0 | Z12: =COUNTIF(L14:L21,Y12) -> 0 | AA12: =Z12/(AB4-Z8) -> 0 | AB12: =IF(AA12=0,0,(AA12*((LOG(AA12))/LOG(2)))) -> 0 | AD12: =N12 -> 0 | AE12: =COUNTIF(L22:L28,AD12) -> 0 | AF12: =AE12/(AG4-AE8) -> 0 | AG12: =IF(AF12=0,0,(AF12*((LOG(AF12))/LOG(2)))) -> 0 | AI12: =N12 -> 0 | AJ12: =COUNTIF(L29:L35,AI12) -> 0 | AK12: =AJ12/(AL4-AJ8) ->  | AL12: =IF(AK12=0,0,(AK12*((LOG(AK12))/LOG(2)))) ->  | AN12: =N12 -> 0 | AO12: =COUNTIF(L36:L43,AN12) -> 0 | AP12: =AO12/(AQ4-AO8) ->  | AQ12: =IF(AP12=0,0,(AP12*((LOG(AP12))/LOG(2)))) ->  | AS12: =N12 -> 0 | AT12: =COUNTIF(L44:L50,AS12) -> 0 | AU12: =AT12/(AV4-AT8) ->  | AV12: =IF(AU12=0,0,(AU12*((LOG(AU12))/LOG(2)))) -> 
A13: 11 | B13: 676 | C13: 21 | D13: 691 | K13: 0 | L13: 12 | T13: =N13 -> 0 | U13: =COUNTIF(L7:L13,T13) -> 0 | V13: =U13/(W4-U8) -> 0 | W13: =IF(V13=0,0,(V13*((LOG(V13))/LOG(2)))) -> 0 | Y13: =N13 -> 0 | Z13: =COUNTIF(L14:L21,Y13) -> 0 | AA13: =Z13/(AB4-Z8) -> 0 | AB13: =IF(AA13=0,0,(AA13*((LOG(AA13))/LOG(2)))) -> 0 | AD13: =N13 -> 0 | AE13: =COUNTIF(L22:L28,AD13) -> 0 | AF13: =AE13/(AG4-AE8) -> 0 | AG13: =IF(AF13=0,0,(AF13*((LOG(AF13))/LOG(2)))) -> 0 | AI13: =N13 -> 0 | AJ13: =COUNTIF(L29:L35,AI13) -> 0 | AK13: =AJ13/(AL4-AJ8) ->  | AL13: =IF(AK13=0,0,(AK13*((LOG(AK13))/LOG(2)))) ->  | AN13: =N13 -> 0 | AO13: =COUNTIF(L36:L43,AN13) -> 0 | AP13: =AO13/(AQ4-AO8) ->  | AQ13: =IF(AP13=0,0,(AP13*((LOG(AP13))/LOG(2)))) ->  | AS13: =N13 -> 0 | AT13: =COUNTIF(L44:L50,AS13) -> 0 | AU13: =AT13/(AV4-AT8) ->  | AV13: =IF(AU13=0,0,(AU13*((LOG(AU13))/LOG(2)))) -> 
A14: 22 | B14: 792 | C14: 23 | D14: 801 | K14: 0 | L14: 22 | T14: =N14 -> 0 | U14: =COUNTIF(L7:L13,T14) -> 0 | V14: =U14/(W4-U8) -> 0 | W14: =IF(V14=0,0,(V14*((LOG(V14))/LOG(2)))) -> 0 | Y14: =N14 -> 0 | Z14: =COUNTIF(L14:L21,Y14) -> 0 | AA14: =Z14/(AB4-Z8) -> 0 | AB14: =IF(AA14=0,0,(AA14*((LOG(AA14))/LOG(2)))) -> 0 | AD14: =N14 -> 0 | AE14: =COUNTIF(L22:L28,AD14) -> 0 | AF14: =AE14/(AG4-AE8) -> 0 | AG14: =IF(AF14=0,0,(AF14*((LOG(AF14))/LOG(2)))) -> 0 | AI14: =N14 -> 0 | AJ14: =COUNTIF(L29:L35,AI14) -> 0 | AK14: =AJ14/(AL4-AJ8) ->  | AL14: =IF(AK14=0,0,(AK14*((LOG(AK14))/LOG(2)))) ->  | AN14: =N14 -> 0 | AO14: =COUNTIF(L36:L43,AN14) -> 0 | AP14: =AO14/(AQ4-AO8) ->  | AQ14: =IF(AP14=0,0,(AP14*((LOG(AP14))/LOG(2)))) ->  | AS14: =N14 -> 0 | AT14: =COUNTIF(L44:L50,AS14) -> 0 | AU14: =AT14/(AV4-AT8) ->  | AV14: =IF(AU14=0,0,(AU14*((LOG(AU14))/LOG(2)))) -> 
A15: 11 | B15: 898 | C15: 21 | D15: 908 | K15: 0 | L15: 12 | P15: =SUM(P7:P14) -> 1 | Q15: =-SUM(Q7:Q14) -> 0.5928251065 | V15: =SUM(V7:V14) -> 1 | W15: =-SUM(W7:W14) -> 0 | AA15: =SUM(AA7:AA14) -> 1 | AB15: =-SUM(AB7:AB14) -> 0 | AF15: =SUM(AF7:AF14) -> 1 | AG15: =-SUM(AG7:AG14) -> 0 | AK15: =SUM(AK7:AK14) ->  | AL15: =-SUM(AL7:AL14) ->  | AP15: =SUM(AP7:AP14) ->  | AQ15: =-SUM(AQ7:AQ14) ->  | AU15: =SUM(AU7:AU14) ->  | AV15: =-SUM(AV7:AV14) -> 
A16: 11 | B16: 994 | C16: 21 | D16: 1006 | K16: 0 | L16: 12 | P16: U= | Q16: =Q15/(LOG(Q4)/LOG(2)) -> 0.1085873307 | V16: U1= | W16: =W15/(LOG(W4)/LOG(2)) -> 0 | AA16: U2= | AB16: =AB15/(LOG(AB4)/LOG(2)) -> 0 | AF16: U3= | AG16: =AG15/(LOG(AG4)/LOG(2)) -> 0 | AK16: U4= | AL16: =AL15/(LOG(AL4)/LOG(2)) ->  | AP16: U5= | AQ16: =AQ15/(LOG(AQ4)/LOG(2)) ->  | AU16: U6= | AV16: =AV15/(LOG(AV4)/LOG(2)) -> 
A17: 11 | B17: 1090 | C17: 21 | D17: 1100 | K17: 0 | L17: 12
A18: 11 | B18: 1192 | C18: 21 | D18: 1201 | K18: 0 | L18: 12
A19: 11 | B19: 1287 | C19: 21 | D19: 1296 | K19: 0 | L19: 12 | N19: Total Target Seq
A20: 11 | B20: 1382 | C20: 21 | D20: 1391 | K20: 0 | L20: 12 | N20: =COUNTIF(L7:L50,G3) -> 39 | P20: 7 | Q20: 8 | R20: 7 | S20: 7 | T20: 8 | U20: 7
A21: 11 | B21: 1476 | C21: 21 | D21: 1485 | K21: 0 | L21: 12 | P21: % of reinforcement given in 6 equal intervals based on number of trials
A22: 11 | B22: 1569 | C22: 21 | D22: 1578 | K22: 0 | L22: 12 | P22: %_1 | Q22: %_2 | R22: %_3 | S22: %_4 | T22: %_5 | U22: %_6
A23: 11 | B23: 1659 | C23: 12 | D23: 1664 | K23: 0 | L23: 11 | O23: target sequence | P23: =$G$3 -> 12 | Q23: =$G$3 -> 12 | R23: =$G$3 -> 12 | S23: =$G$3 -> 12 | T23: =$G$3 -> 12 | U23: =$G$3 -> 12
A24: 11 | B24: 1762 | C24: 21 | D24: 1777 | K24: 0 | L24: 12 | O24: total reinforcement | P24: =U8 -> 4 | Q24: =Z8 -> 7 | R24: =AE8 -> 6 | S24: =AJ8 -> 7 | T24: =AO8 -> 8 | U24: =AT8 -> 7
A25: 11 | B25: 1861 | C25: 21 | D25: 1871 | K25: 0 | L25: 12 | O25: % target
A26: 11 | B26: 1961 | C26: 21 | D26: 1970 | K26: 0 | L26: 12 | O26: CCRF
A27: 11 | B27: 2055 | C27: 21 | D27: 2064 | K27: 0 | L27: 12 | O27: % CCRf
A28: 11 | B28: 2147 | C28: 21 | D28: 2157 | K28: 0 | L28: 12 | O28: average response rate | P28: =D13/P20 -> 98.71428571 | Q28: =(D21-D13)/Q20 -> 99.25 | R28: =(D28-D21)/R20 -> 96 | S28: =(D35-D28)/S20 -> 99.71428571 | T28: =(D43-D35)/T20 -> 98.25 | U28: =(D50-D43)/U20 -> 108.5714286
A29: 11 | B29: 2246 | C29: 21 | D29: 2254 | K29: 0 | L29: 12
A30: 11 | B30: 2340 | C30: 21 | D30: 2353 | K30: 0 | L30: 12
A31: 11 | B31: 2439 | C31: 21 | D31: 2448 | K31: 0 | L31: 12
A32: 11 | B32: 2535 | C32: 21 | D32: 2544 | K32: 0 | L32: 12
A33: 11 | B33: 2629 | C33: 21 | D33: 2639 | K33: 0 | L33: 12
A34: 11 | B34: 2724 | C34: 21 | D34: 2756 | K34: 0 | L34: 12
A35: 11 | B35: 2841 | C35: 21 | D35: 2855 | K35: 0 | L35: 12
A36: 11 | B36: 2939 | C36: 21 | D36: 2948 | K36: 0 | L36: 12
A37: 11 | B37: 3047 | C37: 21 | D37: 3055 | K37: 0 | L37: 12
A38: 11 | B38: 3141 | C38: 21 | D38: 3151 | K38: 0 | L38: 12
A39: 11 | B39: 3236 | C39: 21 | D39: 3246 | K39: 0 | L39: 12
A40: 11 | B40: 3335 | C40: 21 | D40: 3345 | K40: 0 | L40: 12
A41: 11 | B41: 3430 | C41: 21 | D41: 3439 | K41: 0 | L41: 12
A42: 11 | B42: 3524 | C42: 21 | D42: 3536 | K42: 0 | L42: 12
A43: 11 | B43: 3623 | C43: 21 | D43: 3641 | K43: 0 | L43: 12
A44: 11 | B44: 3729 | C44: 21 | D44: 3738 | K44: 0 | L44: 12
A45: 11 | B45: 3826 | C45: 21 | D45: 3846 | K45: 0 | L45: 12
A46: 11 | B46: 3937 | C46: 21 | D46: 3973 | K46: 0 | L46: 12
A47: 11 | B47: 4062 | C47: 21 | D47: 4079 | K47: 0 | L47: 12
A48: 11 | B48: 4163 | C48: 21 | D48: 4187 | K48: 0 | L48: 12
A49: 11 | B49: 4272 | C49: 21 | D49: 4308 | K49: 0 | L49: 12
A50: 11 | B50: 4395 | C50: 21 | D50: 4401 | K50: 1 | L50: 12

Sheet !LB20B50.056
A1: Report for:!LB20B50.056
A2: Date: | B2: <date>
A3: Hen: | B3: <hen> | F3: Correct Sequence | G3: =Start!J2 -> 12 | P3: Total Sequences in Data | Q3: =4994-COUNTBLANK(L7:L5000) -> 44 | V3: Total Sequences in Block Data | W3: =COUNTA(L7:L13) -> 7 | AA3: Total Sequences in Block Data | AB3: =COUNTA(L14:L21) -> 8 | AF3: Total Sequences in Block Data | AG3: =COUNTA(L22:L28) -> 7 | AK3: Total Sequences in Block Data | AL3: =COUNTA(L29:L35) -> 7 | AP3: Total Sequences in Block Data | AQ3: =COUNTA(L36:L43) -> 8 | AU3: Total Sequences in Block Data | AV3: =COUNTA(L44:L50) -> 7
P4: Total Sequences in Summary | Q4: =SUM(O7:O14) -> 44 | V4: Total Sequences in Block Summary | W4: =SUM(U7:U14) -> 7 | AA4: Total Sequences in Block Summary | AB4: =SUM(Z7:Z14) -> 8 | AF4: Total Sequences in Block Summary | AG4: =SUM(AE7:AE14) -> 7 | AK4: Total Sequences in Block Summary | AL4: =SUM(AJ7:AJ14) -> 7 | AP4: Total Sequences in Block Summary | AQ4: =SUM(AO7:AO14) -> 8 | AU4: Total Sequences in Block Summary | AV4: =SUM(AT7:AT14) -> 7
T5: Block 1 | Y5: Block 2 | AD5: Block 3 | AI5: Block 4 | AN5: Block 5 | AS5: Block 6
A6: Sequence Component 1 | B6: Time 1 | C6: Sequence Component 2 | D6: Time 2 | E6: Sequence Component 3 | F6: Time 3 | G6: Sequence Component 4 | H6: Time 4 | I6: Sequence Component 5 | J6: Time 5 | K6: Correct? 0=No 1=Yes | L6: Sequence | N6: Frequency | P6: Relative Frequency | Q6: Variability | T6: Frequency | V6: Relative Frequency | W6: Variability | Y6: Frequency | AA6: Relative Frequency | AB6: Variability | AD6: Frequency | AF6: Relative Frequency | AG6: Variability | AI6: Frequency | AK6: Relative Frequency | AL6: Variability | AN6: Frequency | AP6: Relative Frequency | AQ6: Variability | AS6: Frequency | AU6: Relative Frequency | AV6: Variability
A7: 22 | B7: 17 | C7: 23 | D7: 37 | K7: 0 | L7: 22 | N7: 11 | O7: =COUNTIF($L$7:$L$500,N7) -> 0 | P7: =O7/$Q$4 -> 0 | Q7: =IF(P7=0,0,(P7*((LOG(P7))/LOG(2)))) -> 0 | T7: =N7 -> 11 | U7: =COUNTIF(L7:L13,T7) -> 0 | V7: =U7/(W4-U8) -> 0 | W7: =IF(V7=0,0,(V7*((LOG(V7))/LOG(2)))) -> 0 | Y7: =N7 -> 11 | Z7: =COUNTIF(L14:L21,Y7) -> 0 | AA7: =Z7/(AB4-Z8) ->  | AB7: =IF(AA7=0,0,(AA7*((LOG(AA7))/LOG(2)))) ->  | AD7: =N7 -> 11 | AE7: =COUNTIF(L22:L28,AD7) -> 0 | AF7: =AE7/(AG4-AE8) ->  | AG7: =IF(AF7=0,0,(AF7*((LOG(AF7))/LOG(2)))) ->  | AI7: =N7 -> 11 | AJ7: =COUNTIF(L29:L35,AI7) -> 0 | AK7: =AJ7/(AL4-AJ8) -> 0 | AL7: =IF(AK7=0,0,(AK7*((LOG(AK7))/LOG(2)))) -> 0 | AN7: =N7 -> 11 | AO7: =COUNTIF(L36:L43,AN7) -> 0 | AP7: =AO7/(AQ4-AO8) ->  | AQ7: =IF(AP7=0,0,(AP7*((LOG(AP7))/LOG(2)))) ->  | AS7: =N7 -> 11 | AT7: =COUNTIF(L44:L50,AS7) -> 0 | AU7: =AT7/(AV4-AT8) ->  | AV7: =IF(AU7=0,0,(AU7*((LOG(AU7))/LOG(2)))) -> 
A8: 22 | B8: 134 | C8: 23 | D8: 141 | K8: 0 | L8: 22 | N8: 12 | O8: =COUNTIF($L$7:$L$500,N8) -> 39 | P8: =O8/$Q$4 -> 0.8863636364 | Q8: =IF(P8=0,0,(P8*((LOG(P8))/LOG(2)))) -> -0.1542533316 | T8: =N8 -> 12 | U8: =COUNTIF(L7:L13,T8) -> 3 | Y8: =N8 -> 12 | Z8: =COUNTIF(L14:L21,Y8) -> 8 | AD8: =N8 -> 12 | AE8: =COUNTIF(L22:L28,AD8) -> 7 | AI8: =N8 -> 12 | AJ8: =COUNTIF(L29:L35,AI8) -> 6 | AN8: =N8 -> 12 | AO8: =COUNTIF(L36:L43,AN8) -> 8 | AS8: =N8 -> 12 | AT8: =COUNTIF(L44:L50,AS8) -> 7
A9: 22 | B9: 238 | C9: 23 | D9: 255 | K9: 0 | L9: 22 | N9: 21 | O9: =COUNTIF($L$7:$L$500,N9) -> 0 | P9: =O9/$Q$4 -> 0 | Q9: =IF(P9=0,0,(P9*((LOG(P9))/LOG(2)))) -> 0 | T9: =N9 -> 21 | U9: =COUNTIF(L7:L13,T9) -> 0 | V9: =U9/(W4-U8) -> 0 | W9: =IF(V9=0,0,(V9*((LOG(V9))/LOG(2)))) -> 0 | Y9: =N9 -> 21 | Z9: =COUNTIF(L14:L21,Y9) -> 0 | AA9: =Z9/(AB4-Z8) ->  | AB9: =IF(AA9=0,0,(AA9*((LOG(AA9))/LOG(2)))) ->  | AD9: =N9 -> 21 | AE9: =COUNTIF(L22:L28,AD9) -> 0 | AF9: =AE9/(AG4-AE8) ->  | AG9: =IF(AF9=0,0,(AF9*((LOG(AF9))/LOG(2)))) ->  | AI9: =N9 -> 21 | AJ9: =COUNTIF(L29:L35,AI9) -> 0 | AK9: =AJ9/(AL4-AJ8) -> 0 | AL9: =IF(AK9=0,0,(AK9*((LOG(AK9))/LOG(2)))) -> 0 | AN9: =N9 -> 21 | AO9: =COUNTIF(L36:L43,AN9) -> 0 | AP9: =AO9/(AQ4-AO8) ->  | AQ9: =IF(AP9=0,0,(AP9*((LOG(AP9))/LOG(2)))) ->  | AS9: =N9 -> 21 | AT9: =COUNTIF(L44:L50,AS9) -> 0 | AU9: =AT9/(AV4-AT8) ->  | AV9: =IF(AU9=0,0,(AU9*((LOG(AU9))/LOG(2)))) -> 
A10: 11 | B10: 358 | C10: 21 | D10: 368 | K10: 0 | L10: 12 | N10: 22 | O10: =COUNTIF($L$7:$L$500,N10) -> 5 | P10: =O10/$Q$4 -> 0.1136363636 | Q10: =IF(P10=0,0,(P10*((LOG(P10))/LOG(2)))) -> -0.3565344913 | T10: =N10 -> 22 | U10: =COUNTIF(L7:L13,T10) -> 4 | V10: =U10/(W4-U8) -> 1 | W10: =IF(V10=0,0,(V10*((LOG(V10))/LOG(2)))) -> 0 | Y10: =N10 -> 22 | Z10: =COUNTIF(L14:L21,Y10) -> 0 | AA10: =Z10/(AB4-Z8) ->  | AB10: =IF(AA10=0,0,(AA10*((LOG(AA10))/LOG(2)))) ->  | AD10: =N10 -> 22 | AE10: =COUNTIF(L22:L28,AD10) -> 0 | AF10: =AE10/(AG4-AE8) ->  | AG10: =IF(AF10=0,0,(AF10*((LOG(AF10))/LOG(2)))) ->  | AI10: =N10 -> 22 | AJ10: =COUNTIF(L29:L35,AI10) -> 1 | AK10: =AJ10/(AL4-AJ8) -> 1 | AL10: =IF(AK10=0,0,(AK10*((LOG(AK10))/LOG(2)))) -> 0 | AN10: =N10 -> 22 | AO10: =COUNTIF(L36:L43,AN10) -> 0 | AP10: =AO10/(AQ4-AO8) ->  | AQ10: =IF(AP10=0,0,(AP10*((LOG(AP10))/LOG(2)))) ->  | AS10: =N10 -> 22 | AT10: =COUNTIF(L44:L50,AS10) -> 0 | AU10: =AT10/(AV4-AT8) ->  | AV10: =IF(AU10=0,0,(AU10*((LOG(AU10))/LOG(2)))) -> 
A11: 22 | B11: 468 | C11: 23 | D11: 486 | K11: 0 | L11: 22 | T11: =N11 -> 0 | U11: =COUNTIF(L7:L13,T11) -> 0 | V11: =U11/(W4-U8) -> 0 | W11: =IF(V11=0,0,(V11*((LOG(V11))/LOG(2)))) -> 0 | Y11: =N11 -> 0 | Z11: =COUNTIF(L14:L21,Y11) -> 0 | AA11: =Z11/(AB4-Z8) ->  | AB11: =IF(AA11=0,0,(AA11*((LOG(AA11))/LOG(2)))) ->  | AD11: =N11 -> 0 | AE11: =COUNTIF(L22:L28,AD11) -> 0 | AF11: =AE11/(AG4-AE8) ->  | AG11: =IF(AF11=0,0,(AF11*((LOG(AF11))/LOG(2)))) ->  | AI11: =N11 -> 0 | AJ11: =COUNTIF(L29:L35,AI11) -> 0 | AK11: =AJ11/(AL4-AJ8) -> 0 | AL11: =IF(AK11=0,0,(AK11*((LOG(AK11))/LOG(2)))) -> 0 | AN11: =N11 -> 0 | AO11: =COUNTIF(L36:L43,AN11) -> 0 | AP11: =AO11/(AQ4-AO8) ->  | AQ11: =IF(AP11=0,0,(AP11*((LOG(AP11))/LOG(2)))) ->  | AS11: =N11 -> 0 | AT11: =COUNTIF(L44:L50,AS11) -> 0 | AU11: =AT11/(AV4-AT8) ->  | AV11: =IF(AU11=0,0,(AU11*((LOG(AU11))/LOG(2)))) -> 
A12: 11 | B12: 585 | C12: 21 | D12: 597 | K12: 0 | L12: 12 | T12: =N12 -> 0 | U12: =COUNTIF(L7:L13,T12) -> 0 | V12: =U12/(W4-U8) -> 0 | W12: =IF(V12=0,0,(V12*((LOG(V12))/LOG(2)))) -> 0 | Y12: =N12 -> 0 | Z12: =COUNTIF(L14:L21,Y12) -> 0 | AA12: =Z12/(AB4-Z8) ->  | AB12: =IF(AA12=0,0,(AA12*((LOG(AA12))/LOG(2)))) ->  | AD12: =N12 -> 0 | AE12: =COUNTIF(L22:L28,AD12) -> 0 | AF12: =AE12/(AG4-AE8) ->  | AG12: =IF(AF12=0,0,(AF12*((LOG(AF12))/LOG(2)))) ->  | AI12: =N12 -> 0 | AJ12: =COUNTIF(L29:L35,AI12) -> 0 | AK12: =AJ12/(AL4-AJ8) -> 0 | AL12: =IF(AK12=0,0,(AK12*((LOG(AK12))/LOG(2)))) -> 0 | AN12: =N12 -> 0 | AO12: =COUNTIF(L36:L43,AN12) -> 0 | AP12: =AO12/(AQ4-AO8) ->  | AQ12: =IF(AP12=0,0,(AP12*((LOG(AP12))/LOG(2)))) ->  | AS12: =N12 -> 0 | AT12: =COUNTIF(L44:L50,AS12) -> 0 | AU12: =AT12/(AV4-AT8) ->  | AV12: =IF(AU12=0,0,(AU12*((LOG(AU12))/LOG(2)))) -> 
A13: 11 | B13: 682 | C13: 21 | D13: 692 | K13: 0 | L13: 12 | T13: =N13 -> 0 | U13: =COUNTIF(L7:L13,T13) -> 0 | V13: =U13/(W4-U8) -> 0 | W13: =IF(V13=0,0,(V13*((LOG(V13))/LOG(2)))) -> 0 | Y13: =N13 -> 0 | Z13: =COUNTIF(L14:L21,Y13) -> 0 | AA13: =Z13/(AB4-Z8) ->  | AB13: =IF(AA13=0,0,(AA13*((LOG(AA13))/LOG(2)))) ->  | AD13: =N13 -> 0 | AE13: =COUNTIF(L22:L28,AD13) -> 0 | AF13: =AE13/(AG4-AE8) ->  | AG13: =IF(AF13=0,0,(AF13*((LOG(AF13))/LOG(2)))) ->  | AI13: =N13 -> 0 | AJ13: =COUNTIF(L29:L35,AI13) -> 0 | AK13: =AJ13/(AL4-AJ8) -> 0 | AL13: =IF(AK13=0,0,(AK13*((LOG(AK13))/LOG(2)))) -> 0 | AN13: =N13 -> 0 | AO13: =COUNTIF(L36:L43,AN13) -> 0 | AP13: =AO13/(AQ4-AO8) ->  | AQ13: =IF(AP13=0,0,(AP13*((LOG(AP13))/LOG(2)))) ->  | AS13: =N13 -> 0 | AT13: =COUNTIF(L44:L50,AS13) -> 0 | AU13: =AT13/(AV4-AT8) ->  | AV13: =IF(AU13=0,0,(AU13*((LOG(AU13))/LOG(2)))) -> 
A14: 11 | B14: 783 | C14: 21 | D14: 793 | K14: 0 | L14: 12 | T14: =N14 -> 0 | U14: =COUNTIF(L7:L13,T14) -> 0 | V14: =U14/(W4-U8) -> 0 | W14: =IF(V14=0,0,(V14*((LOG(V14))/LOG(2)))) -> 0 | Y14: =N14 -> 0 | Z14: =COUNTIF(L14:L21,Y14) -> 0 | AA14: =Z14/(AB4-Z8) ->  | AB14: =IF(AA14=0,0,(AA14*((LOG(AA14))/LOG(2)))) ->  | AD14: =N14 -> 0 | AE14: =COUNTIF(L22:L28,AD14) -> 0 | AF14: =AE14/(AG4-AE8) ->  | AG14: =IF(AF14=0,0,(AF14*((LOG(AF14))/LOG(2)))) ->  | AI14: =N14 -> 0 | AJ14: =COUNTIF(L29:L35,AI14) -> 0 | AK14: =AJ14/(AL4-AJ8) -> 0 | AL14: =IF(AK14=0,0,(AK14*((LOG(AK14))/LOG(2)))) -> 0 | AN14: =N14 -> 0 | AO14: =COUNTIF(L36:L43,AN14) -> 0 | AP14: =AO14/(AQ4-AO8) ->  | AQ14: =IF(AP14=0,0,(AP14*((LOG(AP14))/LOG(2)))) ->  | AS14: =N14 -> 0 | AT14: =COUNTIF(L44:L50,AS14) -> 0 | AU14: =AT14/(AV4-AT8) ->  | AV14: =IF(AU14=0,0,(AU14*((LOG(AU14))/LOG(2)))) -> 
A15: 11 | B15: 879 | C15: 21 | D15: 890 | K15: 0 | L15: 12 | P15: =SUM(P7:P14) -> 1 | Q15: =-SUM(Q7:Q14) -> 0.510787823 | V15: =SUM(V7:V14) -> 1 | W15: =-SUM(W7:W14) -> 0 | AA15: =SUM(AA7:AA14) ->  | AB15: =-SUM(AB7:AB14) ->  | AF15: =SUM(AF7:AF14) ->  | AG15: =-SUM(AG7:AG14) ->  | AK15: =SUM(AK7:AK14) -> 1 | AL15: =-SUM(AL7:AL14) -> 0 | AP15: =SUM(AP7:AP14) ->  | AQ15: =-SUM(AQ7:AQ14) ->  | AU15: =SUM(AU7:AU14) ->  | AV15: =-SUM(AV7:AV14) -> 
A16: 11 | B16: 975 | C16: 21 | D16: 985 | K16: 0 | L16: 12 | P16: U= | Q16: =Q15/(LOG(Q4)/LOG(2)) -> 0.09356062291 | V16: U1= | W16: =W15/(LOG(W4)/LOG(2)) -> 0 | AA16: U2= | AB16: =AB15/(LOG(AB4)/LOG(2)) ->  | AF16: U3= | AG16: =AG15/(LOG(AG4)/LOG(2)) ->  | AK16: U4= | AL16: =AL15/(LOG(AL4)/LOG(2)) -> 0 | AP16: U5= | AQ16: =AQ15/(LOG(AQ4)/LOG(2)) ->  | AU16: U6= | AV16: =AV15/(LOG(AV4)/LOG(2)) -> 
A17: 11 | B17: 1069 | C17: 21 | D17: 1078 | K17: 0 | L17: 12
A18: 11 | B18: 1167 | C18: 21 | D18: 1176 | K18: 0 | L18: 12
A19: 11 | B19: 1261 | C19: 21 | D19: 1270 | K19: 0 | L19: 12 | N19: Total Target Seq
A20: 11 | B20: 1355 | C20: 21 | D20: 1364 | K20: 0 | L20: 12 | N20: =COUNTIF(L7:L50,G3) -> 39 | P20: 7 | Q20: 8 | R20: 7 | S20: 7 | T20: 8 | U20: 7
A21: 11 | B21: 1449 | C21: 21 | D21: 1458 | K21: 0 | L21: 12 | P21: % of reinforcement given in 6 equal intervals based on number of trials
A22: 11 | B22: 1543 | C22: 21 | D22: 1549 | K22: 0 | L22: 12 | P22: %_1 | Q22: %_2 | R22: %_3 | S22: %_4 | T22: %_5 | U22: %_6
A23: 11 | B23: 1636 | C23: 21 | D23: 1645 | K23: 0 | L23: 12 | O23: target sequence | P23: =$G$3 -> 12 | Q23: =$G$3 -> 12 | R23: =$G$3 -> 12 | S23: =$G$3 -> 12 | T23: =$G$3 -> 12 | U23: =$G$3 -> 12
A24: 11 | B24: 1730 | C24: 21 | D24: 1739 | K24: 0 | L24: 12 | O24: total reinforcement | P24: =U8 -> 3 | Q24: =Z8 -> 8 | R24: =AE8 -> 7 | S24: =AJ8 -> 6 | T24: =AO8 -> 8 | U24: =AT8 -> 7
A25: 11 | B25: 1824 | C25: 21 | D25: 1832 | K25: 0 | L25: 12 | O25: % target
A26: 11 | B26: 1917 | C26: 21 | D26: 1939 | K26: 0 | L26: 12 | O26: CCRF
A27: 11 | B27: 2026 | C27: 21 | D27: 2032 | K27: 0 | L27: 12 | O27: % CCRf
A28: 11 | B28: 2117 | C28: 21 | D28: 2126 | K28: 0 | L28: 12 | O28: average response rate | P28: =D13/P20 -> 98.85714286 | Q28: =(D21-D13)/Q20 -> 95.75 | R28: =(D28-D21)/R20 -> 95.42857143 | S28: =(D35-D28)/S20 -> 103 | T28: =(D43-D35)/T20 -> 96.375 | U28: =(D50-D43)/U20 -> 96.28571429
A29: 22 | B29: 2235 | C29: 23 | D29: 2251 | K29: 0 | L29: 22
A30: 11 | B30: 2338 | C30: 21 | D30: 2346 | K30: 0 | L30: 12
A31: 11 | B31: 2434 | C31: 21 | D31: 2444 | K31: 0 | L31: 12
A32: 11 | B32: 2530 | C32: 21 | D32: 2535 | K32: 0 | L32: 12
A33: 11 | B33: 2622 | C33: 21 | D33: 2631 | K33: 0 | L33: 12
A34: 11 | B34: 2718 | C34: 21 | D34: 2728 | K34: 0 | L34: 12
A35: 11 | B35: 2814 | C35: 21 | D35: 2847 | K35: 0 | L35: 12
A36: 11 | B36: 2937 | C36: 21 | D36: 2945 | K36: 0 | L36: 12
A37: 11 | B37: 3030 | C37: 21 | D37: 3039 | K37: 0 | L37: 12
A38: 11 | B38: 3128 | C38: 21 | D38: 3135 | K38: 0 | L38: 12
A39: 11 | B39: 3221 | C39: 21 | D39: 3231 | K39: 0 | L39: 12
A40: 11 | B40: 3315 | C40: 21 | D40: 3331 | K40: 0 | L40: 12
A41: 11 | B41: 3416 | C41: 21 | D41: 3425 | K41: 0 | L41: 12
A42: 11 | B42: 3510 | C42: 21 | D42: 3519 | K42: 0 | L42: 12
A43: 11 | B43: 3608 | C43: 21 | D43: 3618 | K43: 0 | L43: 12
A44: 11 | B44: 3704 | C44: 21 | D44: 3713 | K44: 0 | L44: 12
A45: 11 | B45: 3798 | C45: 21 | D45: 3807 | K45: 0 | L45: 12
A46: 11 | B46: 3892 | C46: 21 | D46: 3915 | K46: 0 | L46: 12
A47: 11 | B47: 4000 | C47: 21 | D47: 4009 | K47: 0 | L47: 12
A48: 11 | B48: 4096 | C48: 21 | D48: 4102 | K48: 0 | L48: 12
A49: 11 | B49: 4188 | C49: 21 | D49: 4197 | K49: 0 | L49: 12
A50: 11 | B50: 4284 | C50: 21 | D50: 4292 | K50: 1 | L50: 12

Sheet !LB21E50.056
A1: Report for:!LB21E50.056
A2: Date: | B2: <date>
A3: Hen: | B3: <hen> | F3: Correct Sequence | G3: =Start!J2 -> 12 | P3: Total Sequences in Data | Q3: =4994-COUNTBLANK(L7:L5000) -> 49 | V3: Total Sequences in Block Data | W3: =COUNTA(L7:L14) -> 8 | AA3: Total Sequences in Block Data | AB3: =COUNTA(L15:L22) -> 8 | AF3: Total Sequences in Block Data | AG3: =COUNTA(L23:L31) -> 9 | AK3: Total Sequences in Block Data | AL3: =COUNTA(L32:L39) -> 8 | AP3: Total Sequences in Block Data | AQ3: =COUNTA(L40:L47) -> 8 | AU3: Total Sequences in Block Data | AV3: =COUNTA(L48:L55) -> 8
P4: Total Sequences in Summary | Q4: =SUM(O7:O14) -> 49 | V4: Total Sequences in Block Summary | W4: =SUM(U7:U14) -> 8 | AA4: Total Sequences in Block Summary | AB4: =SUM(Z7:Z14) -> 8 | AF4: Total Sequences in Block Summary | AG4: =SUM(AE7:AE14) -> 9 | AK4: Total Sequences in Block Summary | AL4: =SUM(AJ7:AJ14) -> 8 | AP4: Total Sequences in Block Summary | AQ4: =SUM(AO7:AO14) -> 8 | AU4: Total Sequences in Block Summary | AV4: =SUM(AT7:AT14) -> 8
T5: Block 1 | Y5: Block 2 | AD5: Block 3 | AI5: Block 4 | AN5: Block 5 | AS5: Block 6
A6: Sequence Component 1 | B6: Time 1 | C6: Sequence Component 2 | D6: Time 2 | E6: Sequence Component 3 | F6: Time 3 | G6: Sequence Component 4 | H6: Time 4 | I6: Sequence Component 5 | J6: Time 5 | K6: Correct? 0=No 1=Yes | L6: Sequence | N6: Frequency | P6: Relative Frequency | Q6: Variability | T6: Frequency | V6: Relative Frequency | W6: Variability | Y6: Frequency | AA6: Relative Frequency | AB6: Variability | AD6: Frequency | AF6: Relative Frequency | AG6: Variability | AI6: Frequency | AK6: Relative Frequency | AL6: Variability | AN6: Frequency | AP6: Relative Frequency | AQ6: Variability | AS6: Frequency | AU6: Relative Frequency | AV6: Variability
A7: 11 | B7: 15 | C7: 21 | D7: 25 | K7: 0 | L7: 12 | N7: 11 | O7: =COUNTIF($L$7:$L$500,N7) -> 0 | P7: =O7/$Q$4 -> 0 | Q7: =IF(P7=0,0,(P7*((LOG(P7))/LOG(2)))) -> 0 | T7: =N7 -> 11 | U7: =COUNTIF(L7:L14,T7) -> 0 | V7: =U7/(W4-U8) -> 0 | W7: =IF(V7=0,0,(V7*((LOG(V7))/LOG(2)))) -> 0 | Y7: =N7 -> 11 | Z7: =COUNTIF(L15:L22,Y7) -> 0 | AA7: =Z7/(AB4-Z8) -> 0 | AB7: =IF(AA7=0,0,(AA7*((LOG(AA7))/LOG(2)))) -> 0 | AD7: =N7 -> 11 | AE7: =COUNTIF(L23:L31,AD7) -> 0 | AF7: =AE7/(AG4-AE8) -> 0 | AG7: =IF(AF7=0,0,(AF7*((LOG(AF7))/LOG(2)))) -> 0 | AI7: =N7 -> 11 | AJ7: =COUNTIF(L32:L39,AI7) -> 0 | AK7: =AJ7/(AL4-AJ8) ->  | AL7: =IF(AK7=0,0,(AK7*((LOG(AK7))/LOG(2)))) ->  | AN7: =N7 -> 11 | AO7: =COUNTIF(L40:L47,AN7) -> 0 | AP7: =AO7/(AQ4-AO8) -> 0 | AQ7: =IF(AP7=0,0,(AP7*((LOG(AP7))/LOG(2)))) -> 0 | AS7: =N7 -> 11 | AT7: =COUNTIF(L48:L55,AS7) -> 0 | AU7: =AT7/(AV4-AT8) -> 0 | AV7: =IF(AU7=0,0,(AU7*((LOG(AU7))/LOG(2)))) -> 0
A8: 22 | B8: 125 | C8: 23 | D8: 135 | K8: 0 | L8: 22 | N8: 12 | O8: =COUNTIF($L$7:$L$500,N8) -> 38 | P8: =O8/$Q$4 -> 0.7755102041 | Q8: =IF(P8=0,0,(P8*((LOG(P8))/LOG(2)))) -> -0.2844434401 | T8: =N8 -> 12 | U8: =COUNTIF(L7:L14,T8) -> 4 | Y8: =N8 -> 12 | Z8: =COUNTIF(L15:L22,Y8) -> 6 | AD8: =N8 -> 12 | AE8: =COUNTIF(L23:L31,AD8) -> 8 | AI8: =N8 -> 12 | AJ8: =COUNTIF(L32:L39,AI8) -> 8 | AN8: =N8 -> 12 | AO8: =COUNTIF(L40:L47,AN8) -> 6 | AS8: =N8 -> 12 | AT8: =COUNTIF(L48:L55,AS8) -> 6
A9: 22 | B9: 237 | C9: 23 | D9: 257 | K9: 0 | L9: 22 | N9: 21 | O9: =COUNTIF($L$7:$L$500,N9) -> 0 | P9: =O9/$Q$4 -> 0 | Q9: =IF(P9=0,0,(P9*((LOG(P9))/LOG(2)))) -> 0 | T9: =N9 -> 21 | U9: =COUNTIF(L7:L14,T9) -> 0 | V9: =U9/(W4-U8) -> 0 | W9: =IF(V9=0,0,(V9*((LOG(V9))/LOG(2)))) -> 0 | Y9: =N9 -> 21 | Z9: =COUNTIF(L15:L22,Y9) -> 0 | AA9: =Z9/(AB4-Z8) -> 0 | AB9: =IF(AA9=0,0,(AA9*((LOG(AA9))/LOG(2)))) -> 0 | AD9: =N9 -> 21 | AE9: =COUNTIF(L23:L31,AD9) -> 0 | AF9: =AE9/(AG4-AE8) -> 0 | AG9: =IF(AF9=0,0,(AF9*((LOG(AF9))/LOG(2)))) -> 0 | AI9: =N9 -> 21 | AJ9: =COUNTIF(L32:L39,AI9) -> 0 | AK9: =AJ9/(AL4-AJ8) ->  | AL9: =IF(AK9=0,0,(AK9*((LOG(AK9))/LOG(2)))) ->  | AN9: =N9 -> 21 | AO9: =COUNTIF(L40:L47,AN9) -> 0 | AP9: =AO9/(AQ4-AO8) -> 0 | AQ9: =IF(AP9=0,0,(AP9*((LOG(AP9))/LOG(2)))) -> 0 | AS9: =N9 -> 21 | AT9: =COUNTIF(L48:L55,AS9) -> 0 | AU9: =AT9/(AV4-AT8) -> 0 | AV9: =IF(AU9=0,0,(AU9*((LOG(AU9))/LOG(2)))) -> 0
A10: 22 | B10: 367 | C10: 23 | D10: 379 | K10: 0 | L10: 22 | N10: 22 | O10: =COUNTIF($L$7:$L$500,N10) -> 11 | P10: =O10/$Q$4 -> 0.2244897959 | Q10: =IF(P10=0,0,(P10*((LOG(P10))/LOG(2)))) -> -0.483837969 | T10: =N10 -> 22 | U10: =COUNTIF(L7:L14,T10) -> 4 | V10: =U10/(W4-U8) -> 1 | W10: =IF(V10=0,0,(V10*((LOG(V10))/LOG(2)))) -> 0 | Y10: =N10 -> 22 | Z10: =COUNTIF(L15:L22,Y10) -> 2 | AA10: =Z10/(AB4-Z8) -> 1 | AB10: =IF(AA10=0,0,(AA10*((LOG(AA10))/LOG(2)))) -> 0 | AD10: =N10 -> 22 | AE10: =COUNTIF(L23:L31,AD10) -> 1 | AF10: =AE10/(AG4-AE8) -> 1 | AG10: =IF(AF10=0,0,(AF10*((LOG(AF10))/LOG(2)))) -> 0 | AI10: =N10 -> 22 | AJ10: =COUNTIF(L32:L39,AI10) -> 0 | AK10: =AJ10/(AL4-AJ8) ->  | AL10: =IF(AK10=0,0,(AK10*((LOG(AK10))/LOG(2)))) ->  | AN10: =N10 -> 22 | AO10: =COUNTIF(L40:L47,AN10) -> 2 | AP10: =AO10/(AQ4-AO8) -> 1 | AQ10: =IF(AP10=0,0,(AP10*((LOG(AP10))/LOG(2)))) -> 0 | AS10: =N10 -> 22 | AT10: =COUNTIF(L48:L55,AS10) -> 2 | AU10: =AT10/(AV4-AT8) -> 1 | AV10: =IF(AU10=0,0,(AU10*((LOG(AU10))/LOG(2)))) -> 0
A11: 11 | B11: 469 | C11: 21 | D11: 532 | K11: 0 | L11: 12 | T11: =N11 -> 0 | U11: =COUNTIF(L7:L14,T11) -> 0 | V11: =U11/(W4-U8) -> 0 | W11: =IF(V11=0,0,(V11*((LOG(V11))/LOG(2)))) -> 0 | Y11: =N11 -> 0 | Z11: =COUNTIF(L15:L22,Y11) -> 0 | AA11: =Z11/(AB4-Z8) -> 0 | AB11: =IF(AA11=0,0,(AA11*((LOG(AA11))/LOG(2)))) -> 0 | AD11: =N11 -> 0 | AE11: =COUNTIF(L23:L31,AD11) -> 0 | AF11: =AE11/(AG4-AE8) -> 0 | AG11: =IF(AF11=0,0,(AF11*((LOG(AF11))/LOG(2)))) -> 0 | AI11: =N11 -> 0 | AJ11: =COUNTIF(L32:L39,AI11) -> 0 | AK11: =AJ11/(AL4-AJ8) ->  | AL11: =IF(AK11=0,0,(AK11*((LOG(AK11))/LOG(2)))) ->  | AN11: =N11 -> 0 | AO11: =COUNTIF(L40:L47,AN11) -> 0 | AP11: =AO11/(AQ4-AO8) -> 0 | AQ11: =IF(AP11=0,0,(AP11*((LOG(AP11))/LOG(2)))) -> 0 | AS11: =N11 -> 0 | AT11: =COUNTIF(L48:L55,AS11) -> 0 | AU11: =AT11/(AV4-AT8) -> 0 | AV11: =IF(AU11=0,0,(AU11*((LOG(AU11))/LOG(2)))) -> 0
A12: 22 | B12: 635 | C12: 23 | D12: 645 | K12: 0 | L12: 22 | T12: =N12 -> 0 | U12: =COUNTIF(L7:L14,T12) -> 0 | V12: =U12/(W4-U8) -> 0 | W12: =IF(V12=0,0,(V12*((LOG(V12))/LOG(2)))) -> 0 | Y12: =N12 -> 0 | Z12: =COUNTIF(L15:L22,Y12) -> 0 | AA12: =Z12/(AB4-Z8) -> 0 | AB12: =IF(AA12=0,0,(AA12*((LOG(AA12))/LOG(2)))) -> 0 | AD12: =N12 -> 0 | AE12: =COUNTIF(L23:L31,AD12) -> 0 | AF12: =AE12/(AG4-AE8) -> 0 | AG12: =IF(AF12=0,0,(AF12*((LOG(AF12))/LOG(2)))) -> 0 | AI12: =N12 -> 0 | AJ12: =COUNTIF(L32:L39,AI12) -> 0 | AK12: =AJ12/(AL4-AJ8) ->  | AL12: =IF(AK12=0,0,(AK12*((LOG(AK12))/LOG(2)))) ->  | AN12: =N12 -> 0 | AO12: =COUNTIF(L40:L47,AN12) -> 0 | AP12: =AO12/(AQ4-AO8) -> 0 | AQ12: =IF(AP12=0,0,(AP12*((LOG(AP12))/LOG(2)))) -> 0 | AS12: =N12 -> 0 | AT12: =COUNTIF(L48:L55,AS12) -> 0 | AU12: =AT12/(AV4-AT8) -> 0 | AV12: =IF(AU12=0,0,(AU12*((LOG(AU12))/LOG(2)))) -> 0
A13: 11 | B13: 741 | C13: 21 | D13: 760 | K13: 0 | L13: 12 | T13: =N13 -> 0 | U13: =COUNTIF(L7:L14,T13) -> 0 | V13: =U13/(W4-U8) -> 0 | W13: =IF(V13=0,0,(V13*((LOG(V13))/LOG(2)))) -> 0 | Y13: =N13 -> 0 | Z13: =COUNTIF(L15:L22,Y13) -> 0 | AA13: =Z13/(AB4-Z8) -> 0 | AB13: =IF(AA13=0,0,(AA13*((LOG(AA13))/LOG(2)))) -> 0 | AD13: =N13 -> 0 | AE13: =COUNTIF(L23:L31,AD13) -> 0 | AF13: =AE13/(AG4-AE8) -> 0 | AG13: =IF(AF13=0,0,(AF13*((LOG(AF13))/LOG(2)))) -> 0 | AI13: =N13 -> 0 | AJ13: =COUNTIF(L32:L39,AI13) -> 0 | AK13: =AJ13/(AL4-AJ8) ->  | AL13: =IF(AK13=0,0,(AK13*((LOG(AK13))/LOG(2)))) ->  | AN13: =N13 -> 0 | AO13: =COUNTIF(L40:L47,AN13) -> 0 | AP13: =AO13/(AQ4-AO8) -> 0 | AQ13: =IF(AP13=0,0,(AP13*((LOG(AP13))/LOG(2)))) -> 0 | AS13: =N13 -> 0 | AT13: =COUNTIF(L48:L55,AS13) -> 0 | AU13: =AT13/(AV4-AT8) -> 0 | AV13: =IF(AU13=0,0,(AU13*((LOG(AU13))/LOG(2)))) -> 0
A14: 11 | B14: 846 | C14: 21 | D14: 917 | K14: 0 | L14: 12 | T14: =N14 -> 0 | U14: =COUNTIF(L7:L14,T14) -> 0 | V14: =U14/(W4-U8) -> 0 | W14: =IF(V14=0,0,(V14*((LOG(V14))/LOG(2)))) -> 0 | Y14: =N14 -> 0 | Z14: =COUNTIF(L15:L22,Y14) -> 0 | AA14: =Z14/(AB4-Z8) -> 0 | AB14: =IF(AA14=0,0,(AA14*((LOG(AA14))/LOG(2)))) -> 0 | AD14: =N14 -> 0 | AE14: =COUNTIF(L23:L31,AD14) -> 0 | AF14: =AE14/(AG4-AE8) -> 0 | AG14: =IF(AF14=0,0,(AF14*((LOG(AF14))/LOG(2)))) -> 0 | AI14: =N14 -> 0 | AJ14: =COUNTIF(L32:L39,AI14) -> 0 | AK14: =AJ14/(AL4-AJ8) ->  | AL14: =IF(AK14=0,0,(AK14*((LOG(AK14))/LOG(2)))) ->  | AN14: =N14 -> 0 | AO14: =COUNTIF(L40:L47,AN14) -> 0 | AP14: =AO14/(AQ4-AO8) -> 0 | AQ14: =IF(AP14=0,0,(AP14*((LOG(AP14))/LOG(2)))) -> 0 | AS14: =N14 -> 0 | AT14: =COUNTIF(L48:L55,AS14) -> 0 | AU14: =AT14/(AV4-AT8) -> 0 | AV14: =IF(AU14=0,0,(AU14*((LOG(AU14))/LOG(2)))) -> 0
A15: 11 | B15: 1006 | C15: 21 | D15: 1026 | K15: 0 | L15: 12 | P15: =SUM(P7:P14) -> 1 | Q15: =-SUM(Q7:Q14) -> 0.7682814091 | V15: =SUM(V7:V14) -> 1 | W15: =-SUM(W7:W14) -> 0 | AA15: =SUM(AA7:AA14) -> 1 | AB15: =-SUM(AB7:AB14) -> 0 | AF15: =SUM(AF7:AF14) -> 1 | AG15: =-SUM(AG7:AG14) -> 0 | AK15: =SUM(AK7:AK14) ->  | AL15: =-SUM(AL7:AL14) ->  | AP15: =SUM(AP7:AP14) -> 1 | AQ15: =-SUM(AQ7:AQ14) -> 0 | AU15: =SUM(AU7:AU14) -> 1 | AV15: =-SUM(AV7:AV14) -> 0
A16: 11 | B16: 1112 | C16: 21 | D16: 1127 | K16: 0 | L16: 12 | P16: U= | Q16: =Q15/(LOG(Q4)/LOG(2)) -> 0.1368336798 | V16: U1= | W16: =W15/(LOG(W4)/LOG(2)) -> 0 | AA16: U2= | AB16: =AB15/(LOG(AB4)/LOG(2)) -> 0 | AF16: U3= | AG16: =AG15/(LOG(AG4)/LOG(2)) -> 0 | AK16: U4= | AL16: =AL15/(LOG(AL4)/LOG(2)) ->  | AP16: U5= | AQ16: =AQ15/(LOG(AQ4)/LOG(2)) -> 0 | AU16: U6= | AV16: =AV15/(LOG(AV4)/LOG(2)) -> 0
A17: 11 | B17: 1212 | C17: 21 | D17: 1225 | K17: 0 | L17: 12
A18: 22 | B18: 1336 | C18: 23 | D18: 1359 | K18: 0 | L18: 22
A19: 11 | B19: 1453 | C19: 21 | D19: 1463 | K19: 0 | L19: 12 | N19: Total Target Seq
A20: 22 | B20: 1575 | C20: 23 | D20: 1589 | K20: 0 | L20: 22 | N20: =COUNTIF(L7:L55,G3) -> 38 | P20: 8 | Q20: 8 | R20: 9 | S20: 8 | T20: 8 | U20: 8
A21: 11 | B21: 1678 | C21: 21 | D21: 1694 | K21: 0 | L21: 12 | P21: % of reinforcement given in 6 equal intervals based on number of trials
A22: 11 | B22: 1781 | C22: 21 | D22: 1819 | K22: 0 | L22: 12 | P22: %_1 | Q22: %_2 | R22: %_3 | S22: %_4 | T22: %_5 | U22: %_6
A23: 11 | B23: 1905 | C23: 21 | D23: 1920 | K23: 0 | L23: 12 | O23: target sequence | P23: =$G$3 -> 12 | Q23: =$G$3 -> 12 | R23: =$G$3 -> 12 | S23: =$G$3 -> 12 | T23: =$G$3 -> 12 | U23: =$G$3 -> 12
A24: 11 | B24: 2009 | C24: 21 | D24: 2017 | K24: 0 | L24: 12 | O24: total reinforcement | P24: =U8 -> 4 | Q24: =Z8 -> 6 | R24: =AE8 -> 8 | S24: =AJ8 -> 8 | T24: =AO8 -> 6 | U24: =AT8 -> 6
A25: 11 | B25: 2105 | C25: 21 | D25: 2120 | K25: 0 | L25: 12 | O25: % target
A26: 11 | B26: 2206 | C26: 21 | D26: 2223 | K26: 0 | L26: 12 | O26: CCRF
A27: 22 | B27: 2329 | C27: 23 | D27: 2338 | K27: 0 | L27: 22 | O27: % CCRf
A28: 11 | B28: 2433 | C28: 21 | D28: 2468 | K28: 0 | L28: 12 | O28: average response rate | P28: =D14/P20 -> 114.625 | Q28: =(D22-D14)/Q20 -> 112.75 | R28: =(D31-D22)/R20 -> 109.1111111 | S28: =(D39-D31)/S20 -> 103.125 | T28: =(D47-D39)/T20 -> 112.25 | U28: =(D55-D47)/U20 -> 106.5
A29: 11 | B29: 2566 | C29: 21 | D29: 2584 | K29: 0 | L29: 12
A30: 11 | B30: 2672 | C30: 21 | D30: 2690 | K30: 0 | L30: 12
A31: 11 | B31: 2785 | C31: 21 | D31: 2801 | K31: 0 | L31: 12
A32: 11 | B32: 2886 | C32: 21 | D32: 2896 | K32: 0 | L32: 12
A33: 11 | B33: 2985 | C33: 21 | D33: 2994 | K33: 0 | L33: 12
A34: 11 | B34: 3081 | C34: 21 | D34: 3090 | K34: 0 | L34: 12
A35: 11 | B35: 3175 | C35: 21 | D35: 3204 | K35: 0 | L35: 12
A36: 11 | B36: 3291 | C36: 21 | D36: 3300 | K36: 0 | L36: 12
A37: 11 | B37: 3390 | C37: 21 | D37: 3413 | K37: 0 | L37: 12
A38: 11 | B38: 3510 | C38: 21 | D38: 3527 | K38: 0 | L38: 12
A39: 11 | B39: 3616 | C39: 21 | D39: 3626 | K39: 0 | L39: 12
A40: 11 | B40: 3724 | C40: 21 | D40: 3734 | K40: 0 | L40: 12
A41: 11 | B41: 3819 | C41: 21 | D41: 3836 | K41: 0 | L41: 12
A42: 22 | B42: 3942 | C42: 23 | D42: 3962 | K42: 0 | L42: 22
A43: 11 | B43: 4058 | C43: 21 | D43: 4068 | K43: 0 | L43: 12
A44: 22 | B44: 4170 | C44: 23 | D44: 4180 | K44: 0 | L44: 22
A45: 11 | B45: 4276 | C45: 21 | D45: 4308 | K45: 0 | L45: 12
A46: 11 | B46: 4403 | C46: 21 | D46: 4413 | K46: 0 | L46: 12
A47: 11 | B47: 4508 | C47: 21 | D47: 4524 | K47: 0 | L47: 12
A48: 22 | B48: 4622 | C48: 23 | D48: 4635 | K48: 0 | L48: 22
A49: 22 | B49: 4741 | C49: 23 | D49: 4749 | K49: 0 | L49: 22
A50: 11 | B50: 4847 | C50: 21 | D50: 4869 | K50: 0 | L50: 12
A51: 11 | B51: 4960 | C51: 21 | D51: 4969 | K51: 0 | L51: 12
A52: 11 | B52: 5056 | C52: 21 | D52: 5065 | K52: 0 | L52: 12
A53: 11 | B53: 5154 | C53: 21 | D53: 5170 | K53: 0 | L53: 12
A54: 11 | B54: 5258 | C54: 21 | D54: 5267 | K54: 0 | L54: 12
A55: 11 | B55: 5357 | C55: 21 | D55: 5376 | K55: 1 | L55: 12

Sheet !LB22A10.056
A1: Report for:!LB22A10.056
A2: Date: | B2: <date>
A3: Hen: | B3: <hen> | F3: Correct Sequence | G3: =Start!J2 -> 12 | P3: Total Sequences in Data | Q3: =4994-COUNTBLANK(L7:L5000) -> 50 | V3: Total Sequences in Block Data | W3: =COUNTA(L7:L14) -> 8 | AA3: Total Sequences in Block Data | AB3: =COUNTA(L15:L23) -> 9 | AF3: Total Sequences in Block Data | AG3: =COUNTA(L24:L31) -> 8 | AK3: Total Sequences in Block Data | AL3: =COUNTA(L32:L39) -> 8 | AP3: Total Sequences in Block Data | AQ3: =COUNTA(L40:L48) -> 9 | AU3: Total Sequences in Block Data | AV3: =COUNTA(L49:L56) -> 8
P4: Total Sequences in Summary | Q4: =SUM(O7:O14) -> 50 | V4: Total Sequences in Block Summary | W4: =SUM(U7:U14) -> 8 | AA4: Total Sequences in Block Summary | AB4: =SUM(Z7:Z14) -> 9 | AF4: Total Sequences in Block Summary | AG4: =SUM(AE7:AE14) -> 8 | AK4: Total Sequences in Block Summary | AL4: =SUM(AJ7:AJ14) -> 8 | AP4: Total Sequences in Block Summary | AQ4: =SUM(AO7:AO14) -> 9 | AU4: Total Sequences in Block Summary | AV4: =SUM(AT7:AT14) -> 8
T5: Block 1 | Y5: Block 2 | AD5: Block 3 | AI5: Block 4 | AN5: Block 5 | AS5: Block 6
A6: Sequence Component 1 | B6: Time 1 | C6: Sequence Component 2 | D6: Time 2 | E6: Sequence Component 3 | F6: Time 3 | G6: Sequence Component 4 | H6: Time 4 | I6: Sequence Component 5 | J6: Time 5 | K6: Correct? 0=No 1=Yes | L6: Sequence | N6: Frequency | P6: Relative Frequency | Q6: Variability | T6: Frequency | V6: Relative Frequency | W6: Variability | Y6: Frequency | AA6: Relative Frequency | AB6: Variability | AD6: Frequency | AF6: Relative Frequency | AG6: Variability | AI6: Frequency | AK6: Relative Frequency | AL6: Variability | AN6: Frequency | AP6: Relative Frequency | AQ6: Variability | AS6: Frequency | AU6: Relative Frequency | AV6: Variability
A7: 22 | B7: 21 | C7: 23 | D7: 44 | K7: 0 | L7: 22 | N7: 11 | O7: =COUNTIF($L$7:$L$500,N7) -> 1 | P7: =O7/$Q$4 -> 0.02 | Q7: =IF(P7=0,0,(P7*((LOG(P7))/LOG(2)))) -> -0.1128771238 | T7: =N7 -> 11 | U7: =COUNTIF(L7:L14,T7) -> 0 | V7: =U7/(W4-U8) -> 0 | W7: =IF(V7=0,0,(V7*((LOG(V7))/LOG(2)))) -> 0 | Y7: =N7 -> 11 | Z7: =COUNTIF(L15:L23,Y7) -> 1 | AA7: =Z7/(AB4-Z8) -> 0.3333333333 | AB7: =IF(AA7=0,0,(AA7*((LOG(AA7))/LOG(2)))) -> -0.5283208336 | AD7: =N7 -> 11 | AE7: =COUNTIF(L24:L31,AD7) -> 0 | AF7: =AE7/(AG4-AE8) -> 0 | AG7: =IF(AF7=0,0,(AF7*((LOG(AF7))/LOG(2)))) -> 0 | AI7: =N7 -> 11 | AJ7: =COUNTIF(L32:L39,AI7) -> 0 | AK7: =AJ7/(AL4-AJ8) -> 0 | AL7: =IF(AK7=0,0,(AK7*((LOG(AK7))/LOG(2)))) -> 0 | AN7: =N7 -> 11 | AO7: =COUNTIF(L40:L48,AN7) -> 0 | AP7: =AO7/(AQ4-AO8) -> 0 | AQ7: =IF(AP7=0,0,(AP7*((LOG(AP7))/LOG(2)))) -> 0 | AS7: =N7 -> 11 | AT7: =COUNTIF(L49:L56,AS7) -> 0 | AU7: =AT7/(AV4-AT8) -> 0 | AV7: =IF(AU7=0,0,(AU7*((LOG(AU7))/LOG(2)))) -> 0
A8: 11 | B8: 135 | C8: 21 | D8: 145 | K8: 0 | L8: 12 | N8: 12 | O8: =COUNTIF($L$7:$L$500,N8) -> 38 | P8: =O8/$Q$4 -> 0.76 | Q8: =IF(P8=0,0,(P8*((LOG(P8))/LOG(2)))) -> -0.300905794 | T8: =N8 -> 12 | U8: =COUNTIF(L7:L14,T8) -> 4 | Y8: =N8 -> 12 | Z8: =COUNTIF(L15:L23,Y8) -> 6 | AD8: =N8 -> 12 | AE8: =COUNTIF(L24:L31,AD8) -> 6 | AI8: =N8 -> 12 | AJ8: =COUNTIF(L32:L39,AI8) -> 7 | AN8: =N8 -> 12 | AO8: =COUNTIF(L40:L48,AN8) -> 8 | AS8: =N8 -> 12 | AT8: =COUNTIF(L49:L56,AS8) -> 7
A9: 22 | B9: 237 | C9: 14 | D9: 265 | K9: 0 | L9: 21 | N9: 21 | O9: =COUNTIF($L$7:$L$500,N9) -> 1 | P9: =O9/$Q$4 -> 0.02 | Q9: =IF(P9=0,0,(P9*((LOG(P9))/LOG(2)))) -> -0.1128771238 | T9: =N9 -> 21 | U9: =COUNTIF(L7:L14,T9) -> 1 | V9: =U9/(W4-U8) -> 0.25 | W9: =IF(V9=0,0,(V9*((LOG(V9))/LOG(2)))) -> -0.5 | Y9: =N9 -> 21 | Z9: =COUNTIF(L15:L23,Y9) -> 0 | AA9: =Z9/(AB4-Z8) -> 0 | AB9: =IF(AA9=0,0,(AA9*((LOG(AA9))/LOG(2)))) -> 0 | AD9: =N9 -> 21 | AE9: =COUNTIF(L24:L31,AD9) -> 0 | AF9: =AE9/(AG4-AE8) -> 0 | AG9: =IF(AF9=0,0,(AF9*((LOG(AF9))/LOG(2)))) -> 0 | AI9: =N9 -> 21 | AJ9: =COUNTIF(L32:L39,AI9) -> 0 | AK9: =AJ9/(AL4-AJ8) -> 0 | AL9: =IF(AK9=0,0,(AK9*((LOG(AK9))/LOG(2)))) -> 0 | AN9: =N9 -> 21 | AO9: =COUNTIF(L40:L48,AN9) -> 0 | AP9: =AO9/(AQ4-AO8) -> 0 | AQ9: =IF(AP9=0,0,(AP9*((LOG(AP9))/LOG(2)))) -> 0 | AS9: =N9 -> 21 | AT9: =COUNTIF(L49:L56,AS9) -> 0 | AU9: =AT9/(AV4-AT8) -> 0 | AV9: =IF(AU9=0,0,(AU9*((LOG(AU9))/LOG(2)))) -> 0
A10: 22 | B10: 365 | C10: 23 | D10: 403 | K10: 0 | L10: 22 | N10: 22 | O10: =COUNTIF($L$7:$L$500,N10) -> 10 | P10: =O10/$Q$4 -> 0.2 | Q10: =IF(P10=0,0,(P10*((LOG(P10))/LOG(2)))) -> -0.464385619 | T10: =N10 -> 22 | U10: =COUNTIF(L7:L14,T10) -> 3 | V10: =U10/(W4-U8) -> 0.75 | W10: =IF(V10=0,0,(V10*((LOG(V10))/LOG(2)))) -> -0.3112781245 | Y10: =N10 -> 22 | Z10: =COUNTIF(L15:L23,Y10) -> 2 | AA10: =Z10/(AB4-Z8) -> 0.6666666667 | AB10: =IF(AA10=0,0,(AA10*((LOG(AA10))/LOG(2)))) -> -0.3899750005 | AD10: =N10 -> 22 | AE10: =COUNTIF(L24:L31,AD10) -> 2 | AF10: =AE10/(AG4-AE8) -> 1 | AG10: =IF(AF10=0,0,(AF10*((LOG(AF10))/LOG(2)))) -> 0 | AI10: =N10 -> 22 | AJ10: =COUNTIF(L32:L39,AI10) -> 1 | AK10: =AJ10/(AL4-AJ8) -> 1 | AL10: =IF(AK10=0,0,(AK10*((LOG(AK10))/LOG(2)))) -> 0 | AN10: =N10 -> 22 | AO10: =COUNTIF(L40:L48,AN10) -> 1 | AP10: =AO10/(AQ4-AO8) -> 1 | AQ10: =IF(AP10=0,0,(AP10*((LOG(AP10))/LOG(2)))) -> 0 | AS10: =N10 -> 22 | AT10: =COUNTIF(L49:L56,AS10) -> 1 | AU10: =AT10/(AV4-AT8) -> 1 | AV10: =IF(AU10=0,0,(AU10*((LOG(AU10))/LOG(2)))) -> 0
A11: 11 | B11: 502 | C11: 21 | D11: 512 | K11: 0 | L11: 12 | T11: =N11 -> 0 | U11: =COUNTIF(L7:L14,T11) -> 0 | V11: =U11/(W4-U8) -> 0 | W11: =IF(V11=0,0,(V11*((LOG(V11))/LOG(2)))) -> 0 | Y11: =N11 -> 0 | Z11: =COUNTIF(L15:L23,Y11) -> 0 | AA11: =Z11/(AB4-Z8) -> 0 | AB11: =IF(AA11=0,0,(AA11*((LOG(AA11))/LOG(2)))) -> 0 | AD11: =N11 -> 0 | AE11: =COUNTIF(L24:L31,AD11) -> 0 | AF11: =AE11/(AG4-AE8) -> 0 | AG11: =IF(AF11=0,0,(AF11*((LOG(AF11))/LOG(2)))) -> 0 | AI11: =N11 -> 0 | AJ11: =COUNTIF(L32:L39,AI11) -> 0 | AK11: =AJ11/(AL4-AJ8) -> 0 | AL11: =IF(AK11=0,0,(AK11*((LOG(AK11))/LOG(2)))) -> 0 | AN11: =N11 -> 0 | AO11: =COUNTIF(L40:L48,AN11) -> 0 | AP11: =AO11/(AQ4-AO8) -> 0 | AQ11: =IF(AP11=0,0,(AP11*((LOG(AP11))/LOG(2)))) -> 0 | AS11: =N11 -> 0 | AT11: =COUNTIF(L49:L56,AS11) -> 0 | AU11: =AT11/(AV4-AT8) -> 0 | AV11: =IF(AU11=0,0,(AU11*((LOG(AU11))/LOG(2)))) -> 0
A12: 22 | B12: 613 | C12: 23 | D12: 627 | K12: 0 | L12: 22 | T12: =N12 -> 0 | U12: =COUNTIF(L7:L14,T12) -> 0 | V12: =U12/(W4-U8) -> 0 | W12: =IF(V12=0,0,(V12*((LOG(V12))/LOG(2)))) -> 0 | Y12: =N12 -> 0 | Z12: =COUNTIF(L15:L23,Y12) -> 0 | AA12: =Z12/(AB4-Z8) -> 0 | AB12: =IF(AA12=0,0,(AA12*((LOG(AA12))/LOG(2)))) -> 0 | AD12: =N12 -> 0 | AE12: =COUNTIF(L24:L31,AD12) -> 0 | AF12: =AE12/(AG4-AE8) -> 0 | AG12: =IF(AF12=0,0,(AF12*((LOG(AF12))/LOG(2)))) -> 0 | AI12: =N12 -> 0 | AJ12: =COUNTIF(L32:L39,AI12) -> 0 | AK12: =AJ12/(AL4-AJ8) -> 0 | AL12: =IF(AK12=0,0,(AK12*((LOG(AK12))/LOG(2)))) -> 0 | AN12: =N12 -> 0 | AO12: =COUNTIF(L40:L48,AN12) -> 0 | AP12: =AO12/(AQ4-AO8) -> 0 | AQ12: =IF(AP12=0,0,(AP12*((LOG(AP12))/LOG(2)))) -> 0 | AS12: =N12 -> 0 | AT12: =COUNTIF(L49:L56,AS12) -> 0 | AU12: =AT12/(AV4-AT8) -> 0 | AV12: =IF(AU12=0,0,(AU12*((LOG(AU12))/LOG(2)))) -> 0
A13: 11 | B13: 723 | C13: 21 | D13: 737 | K13: 0 | L13: 12 | T13: =N13 -> 0 | U13: =COUNTIF(L7:L14,T13) -> 0 | V13: =U13/(W4-U8) -> 0 | W13: =IF(V13=0,0,(V13*((LOG(V13))/LOG(2)))) -> 0 | Y13: =N13 -> 0 | Z13: =COUNTIF(L15:L23,Y13) -> 0 | AA13: =Z13/(AB4-Z8) -> 0 | AB13: =IF(AA13=0,0,(AA13*((LOG(AA13))/LOG(2)))) -> 0 | AD13: =N13 -> 0 | AE13: =COUNTIF(L24:L31,AD13) -> 0 | AF13: =AE13/(AG4-AE8) -> 0 | AG13: =IF(AF13=0,0,(AF13*((LOG(AF13))/LOG(2)))) -> 0 | AI13: =N13 -> 0 | AJ13: =COUNTIF(L32:L39,AI13) -> 0 | AK13: =AJ13/(AL4-AJ8) -> 0 | AL13: =IF(AK13=0,0,(AK13*((LOG(AK13))/LOG(2)))) -> 0 | AN13: =N13 -> 0 | AO13: =COUNTIF(L40:L48,AN13) -> 0 | AP13: =AO13/(AQ4-AO8) -> 0 | AQ13: =IF(AP13=0,0,(AP13*((LOG(AP13))/LOG(2)))) -> 0 | AS13: =N13 -> 0 | AT13: =COUNTIF(L49:L56,AS13) -> 0 | AU13: =AT13/(AV4-AT8) -> 0 | AV13: =IF(AU13=0,0,(AU13*((LOG(AU13))/LOG(2)))) -> 0
A14: 11 | B14: 825 | C14: 21 | D14: 834 | K14: 0 | L14: 12 | T14: =N14 -> 0 | U14: =COUNTIF(L7:L14,T14) -> 0 | V14: =U14/(W4-U8) -> 0 | W14: =IF(V14=0,0,(V14*((LOG(V14))/LOG(2)))) -> 0 | Y14: =N14 -> 0 | Z14: =COUNTIF(L15:L23,Y14) -> 0 | AA14: =Z14/(AB4-Z8) -> 0 | AB14: =IF(AA14=0,0,(AA14*((LOG(AA14))/LOG(2)))) -> 0 | AD14: =N14 -> 0 | AE14: =COUNTIF(L24:L31,AD14) -> 0 | AF14: =AE14/(AG4-AE8) -> 0 | AG14: =IF(AF14=0,0,(AF14*((LOG(AF14))/LOG(2)))) -> 0 | AI14: =N14 -> 0 | AJ14: =COUNTIF(L32:L39,AI14) -> 0 | AK14: =AJ14/(AL4-AJ8) -> 0 | AL14: =IF(AK14=0,0,(AK14*((LOG(AK14))/LOG(2)))) -> 0 | AN14: =N14 -> 0 | AO14: =COUNTIF(L40:L48,AN14) -> 0 | AP14: =AO14/(AQ4-AO8) -> 0 | AQ14: =IF(AP14=0,0,(AP14*((LOG(AP14))/LOG(2)))) -> 0 | AS14: =N14 -> 0 | AT14: =COUNTIF(L49:L56,AS14) -> 0 | AU14: =AT14/(AV4-AT8) -> 0 | AV14: =IF(AU14=0,0,(AU14*((LOG(AU14))/LOG(2)))) -> 0
A15: 11 | B15: 922 | C15: 21 | D15: 932 | K15: 0 | L15: 12 | P15: =SUM(P7:P14) -> 1 | Q15: =-SUM(Q7:Q14) -> 0.9910456606 | V15: =SUM(V7:V14) -> 1 | W15: =-SUM(W7:W14) -> 0.8112781245 | AA15: =SUM(AA7:AA14) -> 1 | AB15: =-SUM(AB7:AB14) -> 0.9182958341 | AF15: =SUM(AF7:AF14) -> 1 | AG15: =-SUM(AG7:AG14) -> 0 | AK15: =SUM(AK7:AK14) -> 1 | AL15: =-SUM(AL7:AL14) -> 0 | AP15: =SUM(AP7:AP14) -> 1 | AQ15: =-SUM(AQ7:AQ14) -> 0 | AU15: =SUM(AU7:AU14) -> 1 | AV15: =-SUM(AV7:AV14) -> 0
A16: 11 | B16: 1016 | C16: 12 | D16: 1024 | K16: 0 | L16: 11 | P16: U= | Q16: =Q15/(LOG(Q4)/LOG(2)) -> 0.1755972561 | V16: U1= | W16: =W15/(LOG(W4)/LOG(2)) -> 0.2704260415 | AA16: U2= | AB16: =AB15/(LOG(AB4)/LOG(2)) -> 0.2896900821 | AF16: U3= | AG16: =AG15/(LOG(AG4)/LOG(2)) -> 0 | AK16: U4= | AL16: =AL15/(LOG(AL4)/LOG(2)) -> 0 | AP16: U5= | AQ16: =AQ15/(LOG(AQ4)/LOG(2)) -> 0 | AU16: U6= | AV16: =AV15/(LOG(AV4)/LOG(2)) -> 0
A17: 22 | B17: 1134 | C17: 23 | D17: 1154 | K17: 0 | L17: 22
A18: 11 | B18: 1251 | C18: 21 | D18: 1258 | K18: 0 | L18: 12
A19: 11 | B19: 1351 | C19: 21 | D19: 1361 | K19: 0 | L19: 12 | N19: Total Target Seq
A20: 11 | B20: 1447 | C20: 21 | D20: 1456 | K20: 0 | L20: 12 | N20: =COUNTIF(L7:L56,G3) -> 38 | P20: 8 | Q20: 9 | R20: 8 | S20: 8 | T20: 9 | U20: 8
A21: 11 | B21: 1541 | C21: 21 | D21: 1563 | K21: 0 | L21: 12 | P21: % of reinforcement given in 6 equal intervals based on number of trials
A22: 22 | B22: 1665 | C22: 23 | D22: 1687 | K22: 0 | L22: 22 | P22: %_1 | Q22: %_2 | R22: %_3 | S22: %_4 | T22: %_5 | U22: %_6
A23: 11 | B23: 1783 | C23: 21 | D23: 1808 | K23: 0 | L23: 12 | O23: target sequence | P23: =$G$3 -> 12 | Q23: =$G$3 -> 12 | R23: =$G$3 -> 12 | S23: =$G$3 -> 12 | T23: =$G$3 -> 12 | U23: =$G$3 -> 12
A24: 11 | B24: 1895 | C24: 21 | D24: 1910 | K24: 0 | L24: 12 | O24: total reinforcement | P24: =U8 -> 4 | Q24: =Z8 -> 6 | R24: =AE8 -> 6 | S24: =AJ8 -> 7 | T24: =AO8 -> 8 | U24: =AT8 -> 7
A25: 11 | B25: 1998 | C25: 21 | D25: 2007 | K25: 0 | L25: 12 | O25: % target
A26: 11 | B26: 2094 | C26: 21 | D26: 2103 | K26: 0 | L26: 12 | O26: CCRF
A27: 11 | B27: 2189 | C27: 21 | D27: 2195 | K27: 0 | L27: 12 | O27: % CCRf
A28: 11 | B28: 2284 | C28: 21 | D28: 2294 | K28: 0 | L28: 12 | O28: average response rate | P28: =D14/P20 -> 104.25 | Q28: =(D23-D14)/Q20 -> 108.2222222 | R28: =(D31-D23)/R20 -> 111.875 | S28: =(D39-D31)/S20 -> 111.625 | T28: =(D48-D39)/T20 -> 101.7777778 | U28: =(D56-D48)/U20 -> 105.625
A29: 22 | B29: 2440 | C29: 23 | D29: 2476 | K29: 0 | L29: 22
A30: 11 | B30: 2572 | C30: 21 | D30: 2585 | K30: 0 | L30: 12
A31: 22 | B31: 2683 | C31: 23 | D31: 2703 | K31: 0 | L31: 22
A32: 22 | B32: 2809 | C32: 23 | D32: 2825 | K32: 0 | L32: 22
A33: 11 | B33: 2932 | C33: 21 | D33: 2957 | K33: 0 | L33: 12
A34: 11 | B34: 3045 | C34: 21 | D34: 3054 | K34: 0 | L34: 12
A35: 11 | B35: 3142 | C35: 21 | D35: 3164 | K35: 0 | L35: 12
A36: 11 | B36: 3251 | C36: 21 | D36: 3281 | K36: 0 | L36: 12
A37: 11 | B37: 3366 | C37: 21 | D37: 3377 | K37: 0 | L37: 12
A38: 11 | B38: 3467 | C38: 21 | D38: 3497 | K38: 0 | L38: 12
A39: 11 | B39: 3585 | C39: 21 | D39: 3596 | K39: 0 | L39: 12
A40: 11 | B40: 3682 | C40: 21 | D40: 3701 | K40: 0 | L40: 12
A41: 11 | B41: 3790 | C41: 21 | D41: 3800 | K41: 0 | L41: 12
A42: 11 | B42: 3886 | C42: 21 | D42: 3906 | K42: 0 | L42: 12
A43: 11 | B43: 3991 | C43: 21 | D43: 4007 | K43: 0 | L43: 12
A44: 11 | B44: 4095 | C44: 21 | D44: 4114 | K44: 0 | L44: 12
A45: 11 | B45: 4201 | C45: 21 | D45: 4211 | K45: 0 | L45: 12
A46: 11 | B46: 4297 | C46: 21 | D46: 4307 | K46: 0 | L46: 12
A47: 11 | B47: 4393 | C47: 21 | D47: 4403 | K47: 0 | L47: 12
A48: 22 | B48: 4498 | C48: 23 | D48: 4512 | K48: 0 | L48: 22
A49: 22 | B49: 4647 | C49: 23 | D49: 4660 | K49: 0 | L49: 22
A50: 11 | B50: 4758 | C50: 21 | D50: 4783 | K50: 0 | L50: 12
A51: 11 | B51: 4868 | C51: 21 | D51: 4877 | K51: 0 | L51: 12
A52: 11 | B52: 4966 | C52: 21 | D52: 4975 | K52: 0 | L52: 12
A53: 11 | B53: 5063 | C53: 21 | D53: 5072 | K53: 0 | L53: 12
A54: 11 | B54: 5158 | C54: 21 | D54: 5167 | K54: 0 | L54: 12
A55: 11 | B55: 5253 | C55: 21 | D55: 5262 | K55: 0 | L55: 12
A56: 11 | B56: 5348 | C56: 21 | D56: 5357 | K56: 1 | L56: 12

Sheet !LB23C50.056
A1: Report for:!LB23C50.056
A2: Date: | B2: <date>
A3: Hen: | B3: <hen> | F3: Correct Sequence | G3: =Start!J2 -> 12 | P3: Total Sequences in Data | Q3: =4994-COUNTBLANK(L7:L5000) -> 51 | V3: Total Sequences in Block Data | W3: =COUNTA(L7:L15) -> 9 | AA3: Total Sequences in Block Data | AB3: =COUNTA(L16:L23) -> 8 | AF3: Total Sequences in Block Data | AG3: =COUNTA(L24:L32) -> 9 | AK3: Total Sequences in Block Data | AL3: =COUNTA(L33:L40) -> 8 | AP3: Total Sequences in Block Data | AQ3: =COUNTA(L41:L49) -> 9 | AU3: Total Sequences in Block Data | AV3: =COUNTA(L50:L57) -> 8
P4: Total Sequences in Summary | Q4: =SUM(O7:O14) -> 51 | V4: Total Sequences in Block Summary | W4: =SUM(U7:U14) -> 9 | AA4: Total Sequences in Block Summary | AB4: =SUM(Z7:Z14) -> 8 | AF4: Total Sequences in Block Summary | AG4: =SUM(AE7:AE14) -> 9 | AK4: Total Sequences in Block Summary | AL4: =SUM(AJ7:AJ14) -> 8 | AP4: Total Sequences in Block Summary | AQ4: =SUM(AO7:AO14) -> 9 | AU4: Total Sequences in Block Summary | AV4: =SUM(AT7:AT14) -> 8
T5: Block 1 | Y5: Block 2 | AD5: Block 3 | AI5: Block 4 | AN5: Block 5 | AS5: Block 6
A6: Sequence Component 1 | B6: Time 1 | C6: Sequence Component 2 | D6: Time 2 | E6: Sequence Component 3 | F6: Time 3 | G6: Sequence Component 4 | H6: Time 4 | I6: Sequence Component 5 | J6: Time 5 | K6: Correct? 0=No 1=Yes | L6: Sequence | N6: Frequency | P6: Relative Frequency | Q6: Variability | T6: Frequency | V6: Relative Frequency | W6: Variability | Y6: Frequency | AA6: Relative Frequency | AB6: Variability | AD6: Frequency | AF6: Relative Frequency | AG6: Variability | AI6: Frequency | AK6: Relative Frequency | AL6: Variability | AN6: Frequency | AP6: Relative Frequency | AQ6: Variability | AS6: Frequency | AU6: Relative Frequency | AV6: Variability
A7: 11 | B7: 14 | C7: 21 | D7: 24 | K7: 0 | L7: 12 | N7: 11 | O7: =COUNTIF($L$7:$L$500,N7) -> 1 | P7: =O7/$Q$4 -> 0.01960784314 | Q7: =IF(P7=0,0,(P7*((LOG(P7))/LOG(2)))) -> -0.1112240263 | T7: =N7 -> 11 | U7: =COUNTIF(L7:L15,T7) -> 0 | V7: =U7/(W4-U8) -> 0 | W7: =IF(V7=0,0,(V7*((LOG(V7))/LOG(2)))) -> 0 | Y7: =N7 -> 11 | Z7: =COUNTIF(L16:L23,Y7) -> 0 | AA7: =Z7/(AB4-Z8) -> 0 | AB7: =IF(AA7=0,0,(AA7*((LOG(AA7))/LOG(2)))) -> 0 | AD7: =N7 -> 11 | AE7: =COUNTIF(L24:L32,AD7) -> 0 | AF7: =AE7/(AG4-AE8) -> 0 | AG7: =IF(AF7=0,0,(AF7*((LOG(AF7))/LOG(2)))) -> 0 | AI7: =N7 -> 11 | AJ7: =COUNTIF(L33:L40,AI7) -> 1 | AK7: =AJ7/(AL4-AJ8) -> 0.5 | AL7: =IF(AK7=0,0,(AK7*((LOG(AK7))/LOG(2)))) -> -0.5 | AN7: =N7 -> 11 | AO7: =COUNTIF(L41:L49,AN7) -> 0 | AP7: =AO7/(AQ4-AO8) -> 0 | AQ7: =IF(AP7=0,0,(AP7*((LOG(AP7))/LOG(2)))) -> 0 | AS7: =N7 -> 11 | AT7: =COUNTIF(L50:L57,AS7) -> 0 | AU7: =AT7/(AV4-AT8) -> 0 | AV7: =IF(AU7=0,0,(AU7*((LOG(AU7))/LOG(2)))) -> 0
A8: 11 | B8: 118 | C8: 21 | D8: 132 | K8: 0 | L8: 12 | N8: 12 | O8: =COUNTIF($L$7:$L$500,N8) -> 39 | P8: =O8/$Q$4 -> 0.7647058824 | Q8: =IF(P8=0,0,(P8*((LOG(P8))/LOG(2)))) -> -0.2959588588 | T8: =N8 -> 12 | U8: =COUNTIF(L7:L15,T8) -> 6 | Y8: =N8 -> 12 | Z8: =COUNTIF(L16:L23,Y8) -> 4 | AD8: =N8 -> 12 | AE8: =COUNTIF(L24:L32,AD8) -> 8 | AI8: =N8 -> 12 | AJ8: =COUNTIF(L33:L40,AI8) -> 6 | AN8: =N8 -> 12 | AO8: =COUNTIF(L41:L49,AN8) -> 8 | AS8: =N8 -> 12 | AT8: =COUNTIF(L50:L57,AS8) -> 7
A9: 22 | B9: 221 | C9: 23 | D9: 230 | K9: 0 | L9: 22 | N9: 21 | O9: =COUNTIF($L$7:$L$500,N9) -> 0 | P9: =O9/$Q$4 -> 0 | Q9: =IF(P9=0,0,(P9*((LOG(P9))/LOG(2)))) -> 0 | T9: =N9 -> 21 | U9: =COUNTIF(L7:L15,T9) -> 0 | V9: =U9/(W4-U8) -> 0 | W9: =IF(V9=0,0,(V9*((LOG(V9))/LOG(2)))) -> 0 | Y9: =N9 -> 21 | Z9: =COUNTIF(L16:L23,Y9) -> 0 | AA9: =Z9/(AB4-Z8) -> 0 | AB9: =IF(AA9=0,0,(AA9*((LOG(AA9))/LOG(2)))) -> 0 | AD9: =N9 -> 21 | AE9: =COUNTIF(L24:L32,AD9) -> 0 | AF9: =AE9/(AG4-AE8) -> 0 | AG9: =IF(AF9=0,0,(AF9*((LOG(AF9))/LOG(2)))) -> 0 | AI9: =N9 -> 21 | AJ9: =COUNTIF(L33:L40,AI9) -> 0 | AK9: =AJ9/(AL4-AJ8) -> 0 | AL9: =IF(AK9=0,0,(AK9*((LOG(AK9))/LOG(2)))) -> 0 | AN9: =N9 -> 21 | AO9: =COUNTIF(L41:L49,AN9) -> 0 | AP9: =AO9/(AQ4-AO8) -> 0 | AQ9: =IF(AP9=0,0,(AP9*((LOG(AP9))/LOG(2)))) -> 0 | AS9: =N9 -> 21 | AT9: =COUNTIF(L50:L57,AS9) -> 0 | AU9: =AT9/(AV4-AT8) -> 0 | AV9: =IF(AU9=0,0,(AU9*((LOG(AU9))/LOG(2)))) -> 0
A10: 22 | B10: 337 | C10: 23 | D10: 361 | K10: 0 | L10: 22 | N10: 22 | O10: =COUNTIF($L$7:$L$500,N10) -> 11 | P10: =O10/$Q$4 -> 0.2156862745 | Q10: =IF(P10=0,0,(P10*((LOG(P10))/LOG(2)))) -> -0.4773123717 | T10: =N10 -> 22 | U10: =COUNTIF(L7:L15,T10) -> 3 | V10: =U10/(W4-U8) -> 1 | W10: =IF(V10=0,0,(V10*((LOG(V10))/LOG(2)))) -> 0 | Y10: =N10 -> 22 | Z10: =COUNTIF(L16:L23,Y10) -> 4 | AA10: =Z10/(AB4-Z8) -> 1 | AB10: =IF(AA10=0,0,(AA10*((LOG(AA10))/LOG(2)))) -> 0 | AD10: =N10 -> 22 | AE10: =COUNTIF(L24:L32,AD10) -> 1 | AF10: =AE10/(AG4-AE8) -> 1 | AG10: =IF(AF10=0,0,(AF10*((LOG(AF10))/LOG(2)))) -> 0 | AI10: =N10 -> 22 | AJ10: =COUNTIF(L33:L40,AI10) -> 1 | AK10: =AJ10/(AL4-AJ8) -> 0.5 | AL10: =IF(AK10=0,0,(AK10*((LOG(AK10))/LOG(2)))) -> -0.5 | AN10: =N10 -> 22 | AO10: =COUNTIF(L41:L49,AN10) -> 1 | AP10: =AO10/(AQ4-AO8) -> 1 | AQ10: =IF(AP10=0,0,(AP10*((LOG(AP10))/LOG(2)))) -> 0 | AS10: =N10 -> 22 | AT10: =COUNTIF(L50:L57,AS10) -> 1 | AU10: =AT10/(AV4-AT8) -> 1 | AV10: =IF(AU10=0,0,(AU10*((LOG(AU10))/LOG(2)))) -> 0
A11: 11 | B11: 450 | C11: 21 | D11: 464 | K11: 0 | L11: 12 | T11: =N11 -> 0 | U11: =COUNTIF(L7:L15,T11) -> 0 | V11: =U11/(W4-U8) -> 0 | W11: =IF(V11=0,0,(V11*((LOG(V11))/LOG(2)))) -> 0 | Y11: =N11 -> 0 | Z11: =COUNTIF(L16:L23,Y11) -> 0 | AA11: =Z11/(AB4-Z8) -> 0 | AB11: =IF(AA11=0,0,(AA11*((LOG(AA11))/LOG(2)))) -> 0 | AD11: =N11 -> 0 | AE11: =COUNTIF(L24:L32,AD11) -> 0 | AF11: =AE11/(AG4-AE8) -> 0 | AG11: =IF(AF11=0,0,(AF11*((LOG(AF11))/LOG(2)))) -> 0 | AI11: =N11 -> 0 | AJ11: =COUNTIF(L33:L40,AI11) -> 0 | AK11: =AJ11/(AL4-AJ8) -> 0 | AL11: =IF(AK11=0,0,(AK11*((LOG(AK11))/LOG(2)))) -> 0 | AN11: =N11 -> 0 | AO11: =COUNTIF(L41:L49,AN11) -> 0 | AP11: =AO11/(AQ4-AO8) -> 0 | AQ11: =IF(AP11=0,0,(AP11*((LOG(AP11))/LOG(2)))) -> 0 | AS11: =N11 -> 0 | AT11: =COUNTIF(L50:L57,AS11) -> 0 | AU11: =AT11/(AV4-AT8) -> 0 | AV11: =IF(AU11=0,0,(AU11*((LOG(AU11))/LOG(2)))) -> 0
A12: 11 | B12: 550 | C12: 21 | D12: 564 | K12: 0 | L12: 12 | T12: =N12 -> 0 | U12: =COUNTIF(L7:L15,T12) -> 0 | V12: =U12/(W4-U8) -> 0 | W12: =IF(V12=0,0,(V12*((LOG(V12))/LOG(2)))) -> 0 | Y12: =N12 -> 0 | Z12: =COUNTIF(L16:L23,Y12) -> 0 | AA12: =Z12/(AB4-Z8) -> 0 | AB12: =IF(AA12=0,0,(AA12*((LOG(AA12))/LOG(2)))) -> 0 | AD12: =N12 -> 0 | AE12: =COUNTIF(L24:L32,AD12) -> 0 | AF12: =AE12/(AG4-AE8) -> 0 | AG12: =IF(AF12=0,0,(AF12*((LOG(AF12))/LOG(2)))) -> 0 | AI12: =N12 -> 0 | AJ12: =COUNTIF(L33:L40,AI12) -> 0 | AK12: =AJ12/(AL4-AJ8) -> 0 | AL12: =IF(AK12=0,0,(AK12*((LOG(AK12))/LOG(2)))) -> 0 | AN12: =N12 -> 0 | AO12: =COUNTIF(L41:L49,AN12) -> 0 | AP12: =AO12/(AQ4-AO8) -> 0 | AQ12: =IF(AP12=0,0,(AP12*((LOG(AP12))/LOG(2)))) -> 0 | AS12: =N12 -> 0 | AT12: =COUNTIF(L50:L57,AS12) -> 0 | AU12: =AT12/(AV4-AT8) -> 0 | AV12: =IF(AU12=0,0,(AU12*((LOG(AU12))/LOG(2)))) -> 0
A13: 11 | B13: 649 | C13: 21 | D13: 658 | K13: 0 | L13: 12 | T13: =N13 -> 0 | U13: =COUNTIF(L7:L15,T13) -> 0 | V13: =U13/(W4-U8) -> 0 | W13: =IF(V13=0,0,(V13*((LOG(V13))/LOG(2)))) -> 0 | Y13: =N13 -> 0 | Z13: =COUNTIF(L16:L23,Y13) -> 0 | AA13: =Z13/(AB4-Z8) -> 0 | AB13: =IF(AA13=0,0,(AA13*((LOG(AA13))/LOG(2)))) -> 0 | AD13: =N13 -> 0 | AE13: =COUNTIF(L24:L32,AD13) -> 0 | AF13: =AE13/(AG4-AE8) -> 0 | AG13: =IF(AF13=0,0,(AF13*((LOG(AF13))/LOG(2)))) -> 0 | AI13: =N13 -> 0 | AJ13: =COUNTIF(L33:L40,AI13) -> 0 | AK13: =AJ13/(AL4-AJ8) -> 0 | AL13: =IF(AK13=0,0,(AK13*((LOG(AK13))/LOG(2)))) -> 0 | AN13: =N13 -> 0 | AO13: =COUNTIF(L41:L49,AN13) -> 0 | AP13: =AO13/(AQ4-AO8) -> 0 | AQ13: =IF(AP13=0,0,(AP13*((LOG(AP13))/LOG(2)))) -> 0 | AS13: =N13 -> 0 | AT13: =COUNTIF(L50:L57,AS13) -> 0 | AU13: =AT13/(AV4-AT8) -> 0 | AV13: =IF(AU13=0,0,(AU13*((LOG(AU13))/LOG(2)))) -> 0
A14: 11 | B14: 743 | C14: 21 | D14: 753 | K14: 0 | L14: 12 | T14: =N14 -> 0 | U14: =COUNTIF(L7:L15,T14) -> 0 | V14: =U14/(W4-U8) -> 0 | W14: =IF(V14=0,0,(V14*((LOG(V14))/LOG(2)))) -> 0 | Y14: =N14 -> 0 | Z14: =COUNTIF(L16:L23,Y14) -> 0 | AA14: =Z14/(AB4-Z8) -> 0 | AB14: =IF(AA14=0,0,(AA14*((LOG(AA14))/LOG(2)))) -> 0 | AD14: =N14 -> 0 | AE14: =COUNTIF(L24:L32,AD14) -> 0 | AF14: =AE14/(AG4-AE8) -> 0 | AG14: =IF(AF14=0,0,(AF14*((LOG(AF14))/LOG(2)))) -> 0 | AI14: =N14 -> 0 | AJ14: =COUNTIF(L33:L40,AI14) -> 0 | AK14: =AJ14/(AL4-AJ8) -> 0 | AL14: =IF(AK14=0,0,(AK14*((LOG(AK14))/LOG(2)))) -> 0 | AN14: =N14 -> 0 | AO14: =COUNTIF(L41:L49,AN14) -> 0 | AP14: =AO14/(AQ4-AO8) -> 0 | AQ14: =IF(AP14=0,0,(AP14*((LOG(AP14))/LOG(2)))) -> 0 | AS14: =N14 -> 0 | AT14: =COUNTIF(L50:L57,AS14) -> 0 | AU14: =AT14/(AV4-AT8) -> 0 | AV14: =IF(AU14=0,0,(AU14*((LOG(AU14))/LOG(2)))) -> 0
A15: 22 | B15: 859 | C15: 23 | D15: 878 | K15: 0 | L15: 22 | P15: =SUM(P7:P14) -> 1 | Q15: =-SUM(Q7:Q14) -> 0.8844952569 | V15: =SUM(V7:V14) -> 1 | W15: =-SUM(W7:W14) -> 0 | AA15: =SUM(AA7:AA14) -> 1 | AB15: =-SUM(AB7:AB14) -> 0 | AF15: =SUM(AF7:AF14) -> 1 | AG15: =-SUM(AG7:AG14) -> 0 | AK15: =SUM(AK7:AK14) -> 1 | AL15: =-SUM(AL7:AL14) -> 1 | AP15: =SUM(AP7:AP14) -> 1 | AQ15: =-SUM(AQ7:AQ14) -> 0 | AU15: =SUM(AU7:AU14) -> 1 | AV15: =-SUM(AV7:AV14) -> 0
A16: 22 | B16: 988 | C16: 23 | D16: 1001 | K16: 0 | L16: 22 | P16: U= | Q16: =Q15/(LOG(Q4)/LOG(2)) -> 0.1559289375 | V16: U1= | W16: =W15/(LOG(W4)/LOG(2)) -> 0 | AA16: U2= | AB16: =AB15/(LOG(AB4)/LOG(2)) -> 0 | AF16: U3= | AG16: =AG15/(LOG(AG4)/LOG(2)) -> 0 | AK16: U4= | AL16: =AL15/(LOG(AL4)/LOG(2)) -> 0.3333333333 | AP16: U5= | AQ16: =AQ15/(LOG(AQ4)/LOG(2)) -> 0 | AU16: U6= | AV16: =AV15/(LOG(AV4)/LOG(2)) -> 0
A17: 22 | B17: 1113 | C17: 23 | D17: 1129 | K17: 0 | L17: 22
A18: 11 | B18: 1227 | C18: 21 | D18: 1237 | K18: 0 | L18: 12
A19: 11 | B19: 1340 | C19: 21 | D19: 1351 | K19: 0 | L19: 12 | N19: Total Target Seq
A20: 11 | B20: 1451 | C20: 21 | D20: 1460 | K20: 0 | L20: 12 | N20: =COUNTIF(L7:L57,G3) -> 39 | P20: 9 | Q20: 8 | R20: 9 | S20: 8 | T20: 9 | U20: 8
A21: 11 | B21: 1546 | C21: 21 | D21: 1562 | K21: 0 | L21: 12 | P21: % of reinforcement given in 6 equal intervals based on number of trials
A22: 22 | B22: 1656 | C22: 23 | D22: 1674 | K22: 0 | L22: 22 | P22: %_1 | Q22: %_2 | R22: %_3 | S22: %_4 | T22: %_5 | U22: %_6
A23: 22 | B23: 1794 | C23: 23 | D23: 1811 | K23: 0 | L23: 22 | O23: target sequence | P23: =$G$3 -> 12 | Q23: =$G$3 -> 12 | R23: =$G$3 -> 12 | S23: =$G$3 -> 12 | T23: =$G$3 -> 12 | U23: =$G$3 -> 12
A24: 22 | B24: 1929 | C24: 23 | D24: 1940 | K24: 0 | L24: 22 | O24: total reinforcement | P24: =U8 -> 6 | Q24: =Z8 -> 4 | R24: =AE8 -> 8 | S24: =AJ8 -> 6 | T24: =AO8 -> 8 | U24: =AT8 -> 7
A25: 11 | B25: 2034 | C25: 21 | D25: 2049 | K25: 0 | L25: 12 | O25: % target
A26: 11 | B26: 2134 | C26: 21 | D26: 2148 | K26: 0 | L26: 12 | O26: CCRF
A27: 11 | B27: 2238 | C27: 21 | D27: 2248 | K27: 0 | L27: 12 | O27: % CCRf
A28: 11 | B28: 2336 | C28: 21 | D28: 2346 | K28: 0 | L28: 12 | O28: average response rate | P28: =D15/P20 -> 97.55555556 | Q28: =(D23-D15)/Q20 -> 116.625 | R28: =(D32-D23)/R20 -> 103.2222222 | S28: =(D40-D32)/S20 -> 99.75 | T28: =(D49-D40)/T20 -> 105.2222222 | U28: =(D57-D49)/U20 -> 98.5
A29: 11 | B29: 2436 | C29: 21 | D29: 2447 | K29: 0 | L29: 12
A30: 11 | B30: 2531 | C30: 21 | D30: 2541 | K30: 0 | L30: 12
A31: 11 | B31: 2626 | C31: 21 | D31: 2635 | K31: 0 | L31: 12
A32: 11 | B32: 2725 | C32: 21 | D32: 2740 | K32: 0 | L32: 12
A33: 11 | B33: 2824 | C33: 21 | D33: 2837 | K33: 0 | L33: 12
A34: 11 | B34: 2922 | C34: 21 | D34: 2935 | K34: 0 | L34: 12
A35: 11 | B35: 3019 | C35: 21 | D35: 3028 | K35: 0 | L35: 12
A36: 11 | B36: 3113 | C36: 21 | D36: 3122 | K36: 0 | L36: 12
A37: 11 | B37: 3208 | C37: 21 | D37: 3222 | K37: 0 | L37: 12
A38: 11 | B38: 3306 | C38: 21 | D38: 3315 | K38: 0 | L38: 12
A39: 22 | B39: 3414 | C39: 23 | D39: 3441 | K39: 0 | L39: 22
A40: 11 | B40: 3533 | C40: 12 | D40: 3538 | K40: 0 | L40: 11
A41: 11 | B41: 3635 | C41: 21 | D41: 3645 | K41: 0 | L41: 12
A42: 11 | B42: 3734 | C42: 21 | D42: 3743 | K42: 0 | L42: 12
A43: 22 | B43: 3842 | C43: 23 | D43: 3894 | K43: 0 | L43: 22
A44: 11 | B44: 3988 | C44: 21 | D44: 3998 | K44: 0 | L44: 12
A45: 11 | B45: 4082 | C45: 21 | D45: 4091 | K45: 0 | L45: 12
A46: 11 | B46: 4175 | C46: 21 | D46: 4184 | K46: 0 | L46: 12
A47: 11 | B47: 4268 | C47: 21 | D47: 4278 | K47: 0 | L47: 12
A48: 11 | B48: 4370 | C48: 21 | D48: 4380 | K48: 0 | L48: 12
A49: 11 | B49: 4467 | C49: 21 | D49: 4485 | K49: 0 | L49: 12
A50: 22 | B50: 4585 | C50: 23 | D50: 4601 | K50: 0 | L50: 22
A51: 11 | B51: 4698 | C51: 21 | D51: 4707 | K51: 0 | L51: 12
A52: 11 | B52: 4798 | C52: 21 | D52: 4807 | K52: 0 | L52: 12
A53: 11 | B53: 4891 | C53: 21 | D53: 4899 | K53: 0 | L53: 12
A54: 11 | B54: 4984 | C54: 21 | D54: 4992 | K54: 0 | L54: 12
A55: 11 | B55: 5077 | C55: 21 | D55: 5086 | K55: 0 | L55: 12
A56: 11 | B56: 5171 | C56: 21 | D56: 5179 | K56: 0 | L56: 12
A57: 11 | B57: 5265 | C57: 21 | D57: 5273 | K57: 1 | L57: 12

Sheet !LB24B50.056
A1: Report for:!LB24B50.056
A2: Date: | B2: <date>
A3: Hen: | B3: <hen> | F3: Correct Sequence | G3: =Start!J2 -> 12 | P3: Total Sequences in Data | Q3: =4994-COUNTBLANK(L7:L5000) -> 48 | V3: Total Sequences in Block Data | W3: =COUNTA(L7:L14) -> 8 | AA3: Total Sequences in Block Data | AB3: =COUNTA(L15:L22) -> 8 | AF3: Total Sequences in Block Data | AG3: =COUNTA(L23:L30) -> 8 | AK3: Total Sequences in Block Data | AL3: =COUNTA(L31:L38) -> 8 | AP3: Total Sequences in Block Data | AQ3: =COUNTA(L39:L46) -> 8 | AU3: Total Sequences in Block Data | AV3: =COUNTA(L47:L54) -> 8
P4: Total Sequences in Summary | Q4: =SUM(O7:O14) -> 48 | V4: Total Sequences in Block Summary | W4: =SUM(U7:U14) -> 8 | AA4: Total Sequences in Block Summary | AB4: =SUM(Z7:Z14) -> 8 | AF4: Total Sequences in Block Summary | AG4: =SUM(AE7:AE14) -> 8 | AK4: Total Sequences in Block Summary | AL4: =SUM(AJ7:AJ14) -> 8 | AP4: Total Sequences in Block Summary | AQ4: =SUM(AO7:AO14) -> 8 | AU4: Total Sequences in Block Summary | AV4: =SUM(AT7:AT14) -> 8
T5: Block 1 | Y5: Block 2 | AD5: Block 3 | AI5: Block 4 | AN5: Block 5 | AS5: Block 6
A6: Sequence Component 1 | B6: Time 1 | C6: Sequence Component 2 | D6: Time 2 | E6: Sequence Component 3 | F6: Time 3 | G6: Sequence Component 4 | H6: Time 4 | I6: Sequence Component 5 | J6: Time 5 | K6: Correct? 0=No 1=Yes | L6: Sequence | N6: Frequency | P6: Relative Frequency | Q6: Variability | T6: Frequency | V6: Relative Frequency | W6: Variability | Y6: Frequency | AA6: Relative Frequency | AB6: Variability | AD6: Frequency | AF6: Relative Frequency | AG6: Variability | AI6: Frequency | AK6: Relative Frequency | AL6: Variability | AN6: Frequency | AP6: Relative Frequency | AQ6: Variability | AS6: Frequency | AU6: Relative Frequency | AV6: Variability
A7: 22 | B7: 22 | C7: 14 | D7: 39 | K7: 0 | L7: 21 | N7: 11 | O7: =COUNTIF($L$7:$L$500,N7) -> 1 | P7: =O7/$Q$4 -> 0.02083333333 | Q7: =IF(P7=0,0,(P7*((LOG(P7))/LOG(2)))) -> -0.1163533854 | T7: =N7 -> 11 | U7: =COUNTIF(L7:L14,T7) -> 0 | V7: =U7/(W4-U8) -> 0 | W7: =IF(V7=0,0,(V7*((LOG(V7))/LOG(2)))) -> 0 | Y7: =N7 -> 11 | Z7: =COUNTIF(L15:L22,Y7) -> 0 | AA7: =Z7/(AB4-Z8) ->  | AB7: =IF(AA7=0,0,(AA7*((LOG(AA7))/LOG(2)))) ->  | AD7: =N7 -> 11 | AE7: =COUNTIF(L23:L30,AD7) -> 0 | AF7: =AE7/(AG4-AE8) ->  | AG7: =IF(AF7=0,0,(AF7*((LOG(AF7))/LOG(2)))) ->  | AI7: =N7 -> 11 | AJ7: =COUNTIF(L31:L38,AI7) -> 0 | AK7: =AJ7/(AL4-AJ8) -> 0 | AL7: =IF(AK7=0,0,(AK7*((LOG(AK7))/LOG(2)))) -> 0 | AN7: =N7 -> 11 | AO7: =COUNTIF(L39:L46,AN7) -> 1 | AP7: =AO7/(AQ4-AO8) -> 0.2 | AQ7: =IF(AP7=0,0,(AP7*((LOG(AP7))/LOG(2)))) -> -0.464385619 | AS7: =N7 -> 11 | AT7: =COUNTIF(L47:L54,AS7) -> 0 | AU7: =AT7/(AV4-AT8) ->  | AV7: =IF(AU7=0,0,(AU7*((LOG(AU7))/LOG(2)))) -> 
A8: 11 | B8: 140 | C8: 21 | D8: 149 | K8: 0 | L8: 12 | N8: 12 | O8: =COUNTIF($L$7:$L$500,N8) -> 39 | P8: =O8/$Q$4 -> 0.8125 | Q8: =IF(P8=0,0,(P8*((LOG(P8))/LOG(2)))) -> -0.243392729 | T8: =N8 -> 12 | U8: =COUNTIF(L7:L14,T8) -> 6 | Y8: =N8 -> 12 | Z8: =COUNTIF(L15:L22,Y8) -> 8 | AD8: =N8 -> 12 | AE8: =COUNTIF(L23:L30,AD8) -> 8 | AI8: =N8 -> 12 | AJ8: =COUNTIF(L31:L38,AI8) -> 6 | AN8: =N8 -> 12 | AO8: =COUNTIF(L39:L46,AN8) -> 3 | AS8: =N8 -> 12 | AT8: =COUNTIF(L47:L54,AS8) -> 8
A9: 11 | B9: 235 | C9: 21 | D9: 244 | K9: 0 | L9: 12 | N9: 21 | O9: =COUNTIF($L$7:$L$500,N9) -> 1 | P9: =O9/$Q$4 -> 0.02083333333 | Q9: =IF(P9=0,0,(P9*((LOG(P9))/LOG(2)))) -> -0.1163533854 | T9: =N9 -> 21 | U9: =COUNTIF(L7:L14,T9) -> 1 | V9: =U9/(W4-U8) -> 0.5 | W9: =IF(V9=0,0,(V9*((LOG(V9))/LOG(2)))) -> -0.5 | Y9: =N9 -> 21 | Z9: =COUNTIF(L15:L22,Y9) -> 0 | AA9: =Z9/(AB4-Z8) ->  | AB9: =IF(AA9=0,0,(AA9*((LOG(AA9))/LOG(2)))) ->  | AD9: =N9 -> 21 | AE9: =COUNTIF(L23:L30,AD9) -> 0 | AF9: =AE9/(AG4-AE8) ->  | AG9: =IF(AF9=0,0,(AF9*((LOG(AF9))/LOG(2)))) ->  | AI9: =N9 -> 21 | AJ9: =COUNTIF(L31:L38,AI9) -> 0 | AK9: =AJ9/(AL4-AJ8) -> 0 | AL9: =IF(AK9=0,0,(AK9*((LOG(AK9))/LOG(2)))) -> 0 | AN9: =N9 -> 21 | AO9: =COUNTIF(L39:L46,AN9) -> 0 | AP9: =AO9/(AQ4-AO8) -> 0 | AQ9: =IF(AP9=0,0,(AP9*((LOG(AP9))/LOG(2)))) -> 0 | AS9: =N9 -> 21 | AT9: =COUNTIF(L47:L54,AS9) -> 0 | AU9: =AT9/(AV4-AT8) ->  | AV9: =IF(AU9=0,0,(AU9*((LOG(AU9))/LOG(2)))) -> 
A10: 22 | B10: 340 | C10: 23 | D10: 358 | K10: 0 | L10: 22 | N10: 22 | O10: =COUNTIF($L$7:$L$500,N10) -> 7 | P10: =O10/$Q$4 -> 0.1458333333 | Q10: =IF(P10=0,0,(P10*((LOG(P10))/LOG(2)))) -> -0.4050677719 | T10: =N10 -> 22 | U10: =COUNTIF(L7:L14,T10) -> 1 | V10: =U10/(W4-U8) -> 0.5 | W10: =IF(V10=0,0,(V10*((LOG(V10))/LOG(2)))) -> -0.5 | Y10: =N10 -> 22 | Z10: =COUNTIF(L15:L22,Y10) -> 0 | AA10: =Z10/(AB4-Z8) ->  | AB10: =IF(AA10=0,0,(AA10*((LOG(AA10))/LOG(2)))) ->  | AD10: =N10 -> 22 | AE10: =COUNTIF(L23:L30,AD10) -> 0 | AF10: =AE10/(AG4-AE8) ->  | AG10: =IF(AF10=0,0,(AF10*((LOG(AF10))/LOG(2)))) ->  | AI10: =N10 -> 22 | AJ10: =COUNTIF(L31:L38,AI10) -> 2 | AK10: =AJ10/(AL4-AJ8) -> 1 | AL10: =IF(AK10=0,0,(AK10*((LOG(AK10))/LOG(2)))) -> 0 | AN10: =N10 -> 22 | AO10: =COUNTIF(L39:L46,AN10) -> 4 | AP10: =AO10/(AQ4-AO8) -> 0.8 | AQ10: =IF(AP10=0,0,(AP10*((LOG(AP10))/LOG(2)))) -> -0.2575424759 | AS10: =N10 -> 22 | AT10: =COUNTIF(L47:L54,AS10) -> 0 | AU10: =AT10/(AV4-AT8) ->  | AV10: =IF(AU10=0,0,(AU10*((LOG(AU10))/LOG(2)))) -> 
A11: 11 | B11: 453 | C11: 21 | D11: 468 | K11: 0 | L11: 12 | T11: =N11 -> 0 | U11: =COUNTIF(L7:L14,T11) -> 0 | V11: =U11/(W4-U8) -> 0 | W11: =IF(V11=0,0,(V11*((LOG(V11))/LOG(2)))) -> 0 | Y11: =N11 -> 0 | Z11: =COUNTIF(L15:L22,Y11) -> 0 | AA11: =Z11/(AB4-Z8) ->  | AB11: =IF(AA11=0,0,(AA11*((LOG(AA11))/LOG(2)))) ->  | AD11: =N11 -> 0 | AE11: =COUNTIF(L23:L30,AD11) -> 0 | AF11: =AE11/(AG4-AE8) ->  | AG11: =IF(AF11=0,0,(AF11*((LOG(AF11))/LOG(2)))) ->  | AI11: =N11 -> 0 | AJ11: =COUNTIF(L31:L38,AI11) -> 0 | AK11: =AJ11/(AL4-AJ8) -> 0 | AL11: =IF(AK11=0,0,(AK11*((LOG(AK11))/LOG(2)))) -> 0 | AN11: =N11 -> 0 | AO11: =COUNTIF(L39:L46,AN11) -> 0 | AP11: =AO11/(AQ4-AO8) -> 0 | AQ11: =IF(AP11=0,0,(AP11*((LOG(AP11))/LOG(2)))) -> 0 | AS11: =N11 -> 0 | AT11: =COUNTIF(L47:L54,AS11) -> 0 | AU11: =AT11/(AV4-AT8) ->  | AV11: =IF(AU11=0,0,(AU11*((LOG(AU11))/LOG(2)))) -> 
A12: 11 | B12: 553 | C12: 21 | D12: 567 | K12: 0 | L12: 12 | T12: =N12 -> 0 | U12: =COUNTIF(L7:L14,T12) -> 0 | V12: =U12/(W4-U8) -> 0 | W12: =IF(V12=0,0,(V12*((LOG(V12))/LOG(2)))) -> 0 | Y12: =N12 -> 0 | Z12: =COUNTIF(L15:L22,Y12) -> 0 | AA12: =Z12/(AB4-Z8) ->  | AB12: =IF(AA12=0,0,(AA12*((LOG(AA12))/LOG(2)))) ->  | AD12: =N12 -> 0 | AE12: =COUNTIF(L23:L30,AD12) -> 0 | AF12: =AE12/(AG4-AE8) ->  | AG12: =IF(AF12=0,0,(AF12*((LOG(AF12))/LOG(2)))) ->  | AI12: =N12 -> 0 | AJ12: =COUNTIF(L31:L38,AI12) -> 0 | AK12: =AJ12/(AL4-AJ8) -> 0 | AL12: =IF(AK12=0,0,(AK12*((LOG(AK12))/LOG(2)))) -> 0 | AN12: =N12 -> 0 | AO12: =COUNTIF(L39:L46,AN12) -> 0 | AP12: =AO12/(AQ4-AO8) -> 0 | AQ12: =IF(AP12=0,0,(AP12*((LOG(AP12))/LOG(2)))) -> 0 | AS12: =N12 -> 0 | AT12: =COUNTIF(L47:L54,AS12) -> 0 | AU12: =AT12/(AV4-AT8) ->  | AV12: =IF(AU12=0,0,(AU12*((LOG(AU12))/LOG(2)))) -> 
A13: 11 | B13: 652 | C13: 21 | D13: 662 | K13: 0 | L13: 12 | T13: =N13 -> 0 | U13: =COUNTIF(L7:L14,T13) -> 0 | V13: =U13/(W4-U8) -> 0 | W13: =IF(V13=0,0,(V13*((LOG(V13))/LOG(2)))) -> 0 | Y13: =N13 -> 0 | Z13: =COUNTIF(L15:L22,Y13) -> 0 | AA13: =Z13/(AB4-Z8) ->  | AB13: =IF(AA13=0,0,(AA13*((LOG(AA13))/LOG(2)))) ->  | AD13: =N13 -> 0 | AE13: =COUNTIF(L23:L30,AD13) -> 0 | AF13: =AE13/(AG4-AE8) ->  | AG13: =IF(AF13=0,0,(AF13*((LOG(AF13))/LOG(2)))) ->  | AI13: =N13 -> 0 | AJ13: =COUNTIF(L31:L38,AI13) -> 0 | AK13: =AJ13/(AL4-AJ8) -> 0 | AL13: =IF(AK13=0,0,(AK13*((LOG(AK13))/LOG(2)))) -> 0 | AN13: =N13 -> 0 | AO13: =COUNTIF(L39:L46,AN13) -> 0 | AP13: =AO13/(AQ4-AO8) -> 0 | AQ13: =IF(AP13=0,0,(AP13*((LOG(AP13))/LOG(2)))) -> 0 | AS13: =N13 -> 0 | AT13: =COUNTIF(L47:L54,AS13) -> 0 | AU13: =AT13/(AV4-AT8) ->  | AV13: =IF(AU13=0,0,(AU13*((LOG(AU13))/LOG(2)))) -> 
A14: 11 | B14: 747 | C14: 21 | D14: 753 | K14: 0 | L14: 12 | T14: =N14 -> 0 | U14: =COUNTIF(L7:L14,T14) -> 0 | V14: =U14/(W4-U8) -> 0 | W14: =IF(V14=0,0,(V14*((LOG(V14))/LOG(2)))) -> 0 | Y14: =N14 -> 0 | Z14: =COUNTIF(L15:L22,Y14) -> 0 | AA14: =Z14/(AB4-Z8) ->  | AB14: =IF(AA14=0,0,(AA14*((LOG(AA14))/LOG(2)))) ->  | AD14: =N14 -> 0 | AE14: =COUNTIF(L23:L30,AD14) -> 0 | AF14: =AE14/(AG4-AE8) ->  | AG14: =IF(AF14=0,0,(AF14*((LOG(AF14))/LOG(2)))) ->  | AI14: =N14 -> 0 | AJ14: =COUNTIF(L31:L38,AI14) -> 0 | AK14: =AJ14/(AL4-AJ8) -> 0 | AL14: =IF(AK14=0,0,(AK14*((LOG(AK14))/LOG(2)))) -> 0 | AN14: =N14 -> 0 | AO14: =COUNTIF(L39:L46,AN14) -> 0 | AP14: =AO14/(AQ4-AO8) -> 0 | AQ14: =IF(AP14=0,0,(AP14*((LOG(AP14))/LOG(2)))) -> 0 | AS14: =N14 -> 0 | AT14: =COUNTIF(L47:L54,AS14) -> 0 | AU14: =AT14/(AV4-AT8) ->  | AV14: =IF(AU14=0,0,(AU14*((LOG(AU14))/LOG(2)))) -> 
A15: 11 | B15: 838 | C15: 21 | D15: 853 | K15: 0 | L15: 12 | P15: =SUM(P7:P14) -> 1 | Q15: =-SUM(Q7:Q14) -> 0.8811672718 | V15: =SUM(V7:V14) -> 1 | W15: =-SUM(W7:W14) -> 1 | AA15: =SUM(AA7:AA14) ->  | AB15: =-SUM(AB7:AB14) ->  | AF15: =SUM(AF7:AF14) ->  | AG15: =-SUM(AG7:AG14) ->  | AK15: =SUM(AK7:AK14) -> 1 | AL15: =-SUM(AL7:AL14) -> 0 | AP15: =SUM(AP7:AP14) -> 1 | AQ15: =-SUM(AQ7:AQ14) -> 0.7219280949 | AU15: =SUM(AU7:AU14) ->  | AV15: =-SUM(AV7:AV14) -> 
A16: 11 | B16: 938 | C16: 21 | D16: 948 | K16: 0 | L16: 12 | P16: U= | Q16: =Q15/(LOG(Q4)/LOG(2)) -> 0.1577749666 | V16: U1= | W16: =W15/(LOG(W4)/LOG(2)) -> 0.3333333333 | AA16: U2= | AB16: =AB15/(LOG(AB4)/LOG(2)) ->  | AF16: U3= | AG16: =AG15/(LOG(AG4)/LOG(2)) ->  | AK16: U4= | AL16: =AL15/(LOG(AL4)/LOG(2)) -> 0 | AP16: U5= | AQ16: =AQ15/(LOG(AQ4)/LOG(2)) -> 0.2406426983 | AU16: U6= | AV16: =AV15/(LOG(AV4)/LOG(2)) -> 
A17: 11 | B17: 1033 | C17: 21 | D17: 1039 | K17: 0 | L17: 12
A18: 11 | B18: 1124 | C18: 21 | D18: 1132 | K18: 0 | L18: 12
A19: 11 | B19: 1219 | C19: 21 | D19: 1228 | K19: 0 | L19: 12 | N19: Total Target Seq
A20: 11 | B20: 1315 | C20: 21 | D20: 1328 | K20: 0 | L20: 12 | N20: =COUNTIF(L7:L54,G3) -> 39 | P20: 8 | Q20: 8 | R20: 8 | S20: 8 | T20: 8 | U20: 8
A21: 11 | B21: 1414 | C21: 21 | D21: 1423 | K21: 0 | L21: 12 | P21: % of reinforcement given in 6 equal intervals based on number of trials
A22: 11 | B22: 1508 | C22: 21 | D22: 1522 | K22: 0 | L22: 12 | P22: %_1 | Q22: %_2 | R22: %_3 | S22: %_4 | T22: %_5 | U22: %_6
A23: 11 | B23: 1606 | C23: 21 | D23: 1620 | K23: 0 | L23: 12 | O23: target sequence | P23: =$G$3 -> 12 | Q23: =$G$3 -> 12 | R23: =$G$3 -> 12 | S23: =$G$3 -> 12 | T23: =$G$3 -> 12 | U23: =$G$3 -> 12
A24: 11 | B24: 1704 | C24: 21 | D24: 1714 | K24: 0 | L24: 12 | O24: total reinforcement | P24: =U8 -> 6 | Q24: =Z8 -> 8 | R24: =AE8 -> 8 | S24: =AJ8 -> 6 | T24: =AO8 -> 3 | U24: =AT8 -> 8
A25: 11 | B25: 1799 | C25: 21 | D25: 1813 | K25: 0 | L25: 12 | O25: % target
A26: 11 | B26: 1898 | C26: 21 | D26: 1904 | K26: 0 | L26: 12 | O26: CCRF
A27: 11 | B27: 1989 | C27: 21 | D27: 1995 | K27: 0 | L27: 12 | O27: % CCRf
A28: 11 | B28: 2079 | C28: 21 | D28: 2088 | K28: 0 | L28: 12 | O28: average response rate | P28: =D14/P20 -> 94.125 | Q28: =(D22-D14)/Q20 -> 96.125 | R28: =(D30-D22)/R20 -> 95.75 | S28: =(D38-D30)/S20 -> 100.875 | T28: =(D46-D38)/T20 -> 112.75 | U28: =(D54-D46)/U20 -> 102.5
A29: 11 | B29: 2173 | C29: 21 | D29: 2187 | K29: 0 | L29: 12
A30: 11 | B30: 2274 | C30: 21 | D30: 2288 | K30: 0 | L30: 12
A31: 22 | B31: 2384 | C31: 23 | D31: 2403 | K31: 0 | L31: 22
A32: 11 | B32: 2492 | C32: 21 | D32: 2506 | K32: 0 | L32: 12
A33: 11 | B33: 2593 | C33: 21 | D33: 2603 | K33: 0 | L33: 12
A34: 11 | B34: 2687 | C34: 21 | D34: 2694 | K34: 0 | L34: 12
A35: 11 | B35: 2778 | C35: 21 | D35: 2787 | K35: 0 | L35: 12
A36: 22 | B36: 2882 | C36: 23 | D36: 2895 | K36: 0 | L36: 22
A37: 11 | B37: 2991 | C37: 21 | D37: 3000 | K37: 0 | L37: 12
A38: 11 | B38: 3085 | C38: 21 | D38: 3095 | K38: 0 | L38: 12
A39: 22 | B39: 3192 | C39: 23 | D39: 3209 | K39: 0 | L39: 22
A40: 22 | B40: 3325 | C40: 23 | D40: 3334 | K40: 0 | L40: 22
A41: 22 | B41: 3437 | C41: 23 | D41: 3456 | K41: 0 | L41: 22
A42: 11 | B42: 3548 | C42: 12 | D42: 3557 | K42: 0 | L42: 11
A43: 11 | B43: 3653 | C43: 21 | D43: 3663 | K43: 0 | L43: 12
A44: 11 | B44: 3752 | C44: 21 | D44: 3763 | K44: 0 | L44: 12
A45: 11 | B45: 3872 | C45: 21 | D45: 3882 | K45: 0 | L45: 12
A46: 22 | B46: 3983 | C46: 23 | D46: 3997 | K46: 0 | L46: 22
A47: 11 | B47: 4100 | C47: 21 | D47: 4110 | K47: 0 | L47: 12
A48: 11 | B48: 4195 | C48: 21 | D48: 4205 | K48: 0 | L48: 12
A49: 11 | B49: 4312 | C49: 21 | D49: 4320 | K49: 0 | L49: 12
A50: 11 | B50: 4407 | C50: 21 | D50: 4416 | K50: 0 | L50: 12
A51: 11 | B51: 4504 | C51: 21 | D51: 4513 | K51: 0 | L51: 12
A52: 11 | B52: 4604 | C52: 21 | D52: 4622 | K52: 0 | L52: 12
A53: 11 | B53: 4712 | C53: 21 | D53: 4721 | K53: 0 | L53: 12
A54: 11 | B54: 4808 | C54: 21 | D54: 4817 | K54: 1 | L54: 12

Sheet !LB25D10.056
A1: Report for:!LB25D10.056
A2: Date: | B2: <date>
A3: Hen: | B3: <hen> | F3: Correct Sequence | G3: =Start!J2 -> 12 | P3: Total Sequences in Data | Q3: =4994-COUNTBLANK(L7:L5000) -> 61 | V3: Total Sequences in Block Data | W3: =COUNTA(L7:L16) -> 10 | AA3: Total Sequences in Block Data | AB3: =COUNTA(L17:L26) -> 10 | AF3: Total Sequences in Block Data | AG3: =COUNTA(L27:L37) -> 11 | AK3: Total Sequences in Block Data | AL3: =COUNTA(L38:L47) -> 10 | AP3: Total Sequences in Block Data | AQ3: =COUNTA(L48:L57) -> 10 | AU3: Total Sequences in Block Data | AV3: =COUNTA(L58:L67) -> 10
P4: Total Sequences in Summary | Q4: =SUM(O7:O14) -> 61 | V4: Total Sequences in Block Summary | W4: =SUM(U7:U14) -> 10 | AA4: Total Sequences in Block Summary | AB4: =SUM(Z7:Z14) -> 10 | AF4: Total Sequences in Block Summary | AG4: =SUM(AE7:AE14) -> 11 | AK4: Total Sequences in Block Summary | AL4: =SUM(AJ7:AJ14) -> 10 | AP4: Total Sequences in Block Summary | AQ4: =SUM(AO7:AO14) -> 10 | AU4: Total Sequences in Block Summary | AV4: =SUM(AT7:AT14) -> 10
T5: Block 1 | Y5: Block 2 | AD5: Block 3 | AI5: Block 4 | AN5: Block 5 | AS5: Block 6
A6: Sequence Component 1 | B6: Time 1 | C6: Sequence Component 2 | D6: Time 2 | E6: Sequence Component 3 | F6: Time 3 | G6: Sequence Component 4 | H6: Time 4 | I6: Sequence Component 5 | J6: Time 5 | K6: Correct? 0=No 1=Yes | L6: Sequence | N6: Frequency | P6: Relative Frequency | Q6: Variability | T6: Frequency | V6: Relative Frequency | W6: Variability | Y6: Frequency | AA6: Relative Frequency | AB6: Variability | AD6: Frequency | AF6: Relative Frequency | AG6: Variability | AI6: Frequency | AK6: Relative Frequency | AL6: Variability | AN6: Frequency | AP6: Relative Frequency | AQ6: Variability | AS6: Frequency | AU6: Relative Frequency | AV6: Variability
A7: 11 | B7: 13 | C7: 21 | D7: 23 | K7: 0 | L7: 12 | N7: 11 | O7: =COUNTIF($L$7:$L$500,N7) -> 2 | P7: =O7/$Q$4 -> 0.03278688525 | Q7: =IF(P7=0,0,(P7*((LOG(P7))/LOG(2)))) -> -0.1616635193 | T7: =N7 -> 11 | U7: =COUNTIF(L7:L16,T7) -> 0 | V7: =U7/(W4-U8) -> 0 | W7: =IF(V7=0,0,(V7*((LOG(V7))/LOG(2)))) -> 0 | Y7: =N7 -> 11 | Z7: =COUNTIF(L17:L26,Y7) -> 0 | AA7: =Z7/(AB4-Z8) -> 0 | AB7: =IF(AA7=0,0,(AA7*((LOG(AA7))/LOG(2)))) -> 0 | AD7: =N7 -> 11 | AE7: =COUNTIF(L27:L37,AD7) -> 1 | AF7: =AE7/(AG4-AE8) -> 0.25 | AG7: =IF(AF7=0,0,(AF7*((LOG(AF7))/LOG(2)))) -> -0.5 | AI7: =N7 -> 11 | AJ7: =COUNTIF(L38:L47,AI7) -> 0 | AK7: =AJ7/(AL4-AJ8) -> 0 | AL7: =IF(AK7=0,0,(AK7*((LOG(AK7))/LOG(2)))) -> 0 | AN7: =N7 -> 11 | AO7: =COUNTIF(L48:L57,AN7) -> 0 | AP7: =AO7/(AQ4-AO8) -> 0 | AQ7: =IF(AP7=0,0,(AP7*((LOG(AP7))/LOG(2)))) -> 0 | AS7: =N7 -> 11 | AT7: =COUNTIF(L58:L67,AS7) -> 1 | AU7: =AT7/(AV4-AT8) -> 0.2 | AV7: =IF(AU7=0,0,(AU7*((LOG(AU7))/LOG(2)))) -> -0.464385619
A8: 22 | B8: 115 | C8: 23 | D8: 132 | K8: 0 | L8: 22 | N8: 12 | O8: =COUNTIF($L$7:$L$500,N8) -> 37 | P8: =O8/$Q$4 -> 0.606557377 | Q8: =IF(P8=0,0,(P8*((LOG(P8))/LOG(2)))) -> -0.4375001141 | T8: =N8 -> 12 | U8: =COUNTIF(L7:L16,T8) -> 6 | Y8: =N8 -> 12 | Z8: =COUNTIF(L17:L26,Y8) -> 6 | AD8: =N8 -> 12 | AE8: =COUNTIF(L27:L37,AD8) -> 7 | AI8: =N8 -> 12 | AJ8: =COUNTIF(L38:L47,AI8) -> 6 | AN8: =N8 -> 12 | AO8: =COUNTIF(L48:L57,AN8) -> 7 | AS8: =N8 -> 12 | AT8: =COUNTIF(L58:L67,AS8) -> 5
A9: 11 | B9: 231 | C9: 21 | D9: 242 | K9: 0 | L9: 12 | N9: 21 | O9: =COUNTIF($L$7:$L$500,N9) -> 0 | P9: =O9/$Q$4 -> 0 | Q9: =IF(P9=0,0,(P9*((LOG(P9))/LOG(2)))) -> 0 | T9: =N9 -> 21 | U9: =COUNTIF(L7:L16,T9) -> 0 | V9: =U9/(W4-U8) -> 0 | W9: =IF(V9=0,0,(V9*((LOG(V9))/LOG(2)))) -> 0 | Y9: =N9 -> 21 | Z9: =COUNTIF(L17:L26,Y9) -> 0 | AA9: =Z9/(AB4-Z8) -> 0 | AB9: =IF(AA9=0,0,(AA9*((LOG(AA9))/LOG(2)))) -> 0 | AD9: =N9 -> 21 | AE9: =COUNTIF(L27:L37,AD9) -> 0 | AF9: =AE9/(AG4-AE8) -> 0 | AG9: =IF(AF9=0,0,(AF9*((LOG(AF9))/LOG(2)))) -> 0 | AI9: =N9 -> 21 | AJ9: =COUNTIF(L38:L47,AI9) -> 0 | AK9: =AJ9/(AL4-AJ8) -> 0 | AL9: =IF(AK9=0,0,(AK9*((LOG(AK9))/LOG(2)))) -> 0 | AN9: =N9 -> 21 | AO9: =COUNTIF(L48:L57,AN9) -> 0 | AP9: =AO9/(AQ4-AO8) -> 0 | AQ9: =IF(AP9=0,0,(AP9*((LOG(AP9))/LOG(2)))) -> 0 | AS9: =N9 -> 21 | AT9: =COUNTIF(L58:L67,AS9) -> 0 | AU9: =AT9/(AV4-AT8) -> 0 | AV9: =IF(AU9=0,0,(AU9*((LOG(AU9))/LOG(2)))) -> 0
A10: 22 | B10: 337 | C10: 23 | D10: 349 | K10: 0 | L10: 22 | N10: 22 | O10: =COUNTIF($L$7:$L$500,N10) -> 22 | P10: =O10/$Q$4 -> 0.3606557377 | Q10: =IF(P10=0,0,(P10*((LOG(P10))/LOG(2)))) -> -0.5306348494 | T10: =N10 -> 22 | U10: =COUNTIF(L7:L16,T10) -> 4 | V10: =U10/(W4-U8) -> 1 | W10: =IF(V10=0,0,(V10*((LOG(V10))/LOG(2)))) -> 0 | Y10: =N10 -> 22 | Z10: =COUNTIF(L17:L26,Y10) -> 4 | AA10: =Z10/(AB4-Z8) -> 1 | AB10: =IF(AA10=0,0,(AA10*((LOG(AA10))/LOG(2)))) -> 0 | AD10: =N10 -> 22 | AE10: =COUNTIF(L27:L37,AD10) -> 3 | AF10: =AE10/(AG4-AE8) -> 0.75 | AG10: =IF(AF10=0,0,(AF10*((LOG(AF10))/LOG(2)))) -> -0.3112781245 | AI10: =N10 -> 22 | AJ10: =COUNTIF(L38:L47,AI10) -> 4 | AK10: =AJ10/(AL4-AJ8) -> 1 | AL10: =IF(AK10=0,0,(AK10*((LOG(AK10))/LOG(2)))) -> 0 | AN10: =N10 -> 22 | AO10: =COUNTIF(L48:L57,AN10) -> 3 | AP10: =AO10/(AQ4-AO8) -> 1 | AQ10: =IF(AP10=0,0,(AP10*((LOG(AP10))/LOG(2)))) -> 0 | AS10: =N10 -> 22 | AT10: =COUNTIF(L58:L67,AS10) -> 4 | AU10: =AT10/(AV4-AT8) -> 0.8 | AV10: =IF(AU10=0,0,(AU10*((LOG(AU10))/LOG(2)))) -> -0.2575424759
A11: 11 | B11: 444 | C11: 21 | D11: 463 | K11: 0 | L11: 12 | T11: =N11 -> 0 | U11: =COUNTIF(L7:L16,T11) -> 0 | V11: =U11/(W4-U8) -> 0 | W11: =IF(V11=0,0,(V11*((LOG(V11))/LOG(2)))) -> 0 | Y11: =N11 -> 0 | Z11: =COUNTIF(L17:L26,Y11) -> 0 | AA11: =Z11/(AB4-Z8) -> 0 | AB11: =IF(AA11=0,0,(AA11*((LOG(AA11))/LOG(2)))) -> 0 | AD11: =N11 -> 0 | AE11: =COUNTIF(L27:L37,AD11) -> 0 | AF11: =AE11/(AG4-AE8) -> 0 | AG11: =IF(AF11=0,0,(AF11*((LOG(AF11))/LOG(2)))) -> 0 | AI11: =N11 -> 0 | AJ11: =COUNTIF(L38:L47,AI11) -> 0 | AK11: =AJ11/(AL4-AJ8) -> 0 | AL11: =IF(AK11=0,0,(AK11*((LOG(AK11))/LOG(2)))) -> 0 | AN11: =N11 -> 0 | AO11: =COUNTIF(L48:L57,AN11) -> 0 | AP11: =AO11/(AQ4-AO8) -> 0 | AQ11: =IF(AP11=0,0,(AP11*((LOG(AP11))/LOG(2)))) -> 0 | AS11: =N11 -> 0 | AT11: =COUNTIF(L58:L67,AS11) -> 0 | AU11: =AT11/(AV4-AT8) -> 0 | AV11: =IF(AU11=0,0,(AU11*((LOG(AU11))/LOG(2)))) -> 0
A12: 22 | B12: 567 | C12: 23 | D12: 588 | K12: 0 | L12: 22 | T12: =N12 -> 0 | U12: =COUNTIF(L7:L16,T12) -> 0 | V12: =U12/(W4-U8) -> 0 | W12: =IF(V12=0,0,(V12*((LOG(V12))/LOG(2)))) -> 0 | Y12: =N12 -> 0 | Z12: =COUNTIF(L17:L26,Y12) -> 0 | AA12: =Z12/(AB4-Z8) -> 0 | AB12: =IF(AA12=0,0,(AA12*((LOG(AA12))/LOG(2)))) -> 0 | AD12: =N12 -> 0 | AE12: =COUNTIF(L27:L37,AD12) -> 0 | AF12: =AE12/(AG4-AE8) -> 0 | AG12: =IF(AF12=0,0,(AF12*((LOG(AF12))/LOG(2)))) -> 0 | AI12: =N12 -> 0 | AJ12: =COUNTIF(L38:L47,AI12) -> 0 | AK12: =AJ12/(AL4-AJ8) -> 0 | AL12: =IF(AK12=0,0,(AK12*((LOG(AK12))/LOG(2)))) -> 0 | AN12: =N12 -> 0 | AO12: =COUNTIF(L48:L57,AN12) -> 0 | AP12: =AO12/(AQ4-AO8) -> 0 | AQ12: =IF(AP12=0,0,(AP12*((LOG(AP12))/LOG(2)))) -> 0 | AS12: =N12 -> 0 | AT12: =COUNTIF(L58:L67,AS12) -> 0 | AU12: =AT12/(AV4-AT8) -> 0 | AV12: =IF(AU12=0,0,(AU12*((LOG(AU12))/LOG(2)))) -> 0
A13: 11 | B13: 683 | C13: 21 | D13: 692 | K13: 0 | L13: 12 | T13: =N13 -> 0 | U13: =COUNTIF(L7:L16,T13) -> 0 | V13: =U13/(W4-U8) -> 0 | W13: =IF(V13=0,0,(V13*((LOG(V13))/LOG(2)))) -> 0 | Y13: =N13 -> 0 | Z13: =COUNTIF(L17:L26,Y13) -> 0 | AA13: =Z13/(AB4-Z8) -> 0 | AB13: =IF(AA13=0,0,(AA13*((LOG(AA13))/LOG(2)))) -> 0 | AD13: =N13 -> 0 | AE13: =COUNTIF(L27:L37,AD13) -> 0 | AF13: =AE13/(AG4-AE8) -> 0 | AG13: =IF(AF13=0,0,(AF13*((LOG(AF13))/LOG(2)))) -> 0 | AI13: =N13 -> 0 | AJ13: =COUNTIF(L38:L47,AI13) -> 0 | AK13: =AJ13/(AL4-AJ8) -> 0 | AL13: =IF(AK13=0,0,(AK13*((LOG(AK13))/LOG(2)))) -> 0 | AN13: =N13 -> 0 | AO13: =COUNTIF(L48:L57,AN13) -> 0 | AP13: =AO13/(AQ4-AO8) -> 0 | AQ13: =IF(AP13=0,0,(AP13*((LOG(AP13))/LOG(2)))) -> 0 | AS13: =N13 -> 0 | AT13: =COUNTIF(L58:L67,AS13) -> 0 | AU13: =AT13/(AV4-AT8) -> 0 | AV13: =IF(AU13=0,0,(AU13*((LOG(AU13))/LOG(2)))) -> 0
A14: 11 | B14: 778 | C14: 21 | D14: 789 | K14: 0 | L14: 12 | T14: =N14 -> 0 | U14: =COUNTIF(L7:L16,T14) -> 0 | V14: =U14/(W4-U8) -> 0 | W14: =IF(V14=0,0,(V14*((LOG(V14))/LOG(2)))) -> 0 | Y14: =N14 -> 0 | Z14: =COUNTIF(L17:L26,Y14) -> 0 | AA14: =Z14/(AB4-Z8) -> 0 | AB14: =IF(AA14=0,0,(AA14*((LOG(AA14))/LOG(2)))) -> 0 | AD14: =N14 -> 0 | AE14: =COUNTIF(L27:L37,AD14) -> 0 | AF14: =AE14/(AG4-AE8) -> 0 | AG14: =IF(AF14=0,0,(AF14*((LOG(AF14))/LOG(2)))) -> 0 | AI14: =N14 -> 0 | AJ14: =COUNTIF(L38:L47,AI14) -> 0 | AK14: =AJ14/(AL4-AJ8) -> 0 | AL14: =IF(AK14=0,0,(AK14*((LOG(AK14))/LOG(2)))) -> 0 | AN14: =N14 -> 0 | AO14: =COUNTIF(L48:L57,AN14) -> 0 | AP14: =AO14/(AQ4-AO8) -> 0 | AQ14: =IF(AP14=0,0,(AP14*((LOG(AP14))/LOG(2)))) -> 0 | AS14: =N14 -> 0 | AT14: =COUNTIF(L58:L67,AS14) -> 0 | AU14: =AT14/(AV4-AT8) -> 0 | AV14: =IF(AU14=0,0,(AU14*((LOG(AU14))/LOG(2)))) -> 0
A15: 22 | B15: 883 | C15: 23 | D15: 895 | K15: 0 | L15: 22 | P15: =SUM(P7:P14) -> 1 | Q15: =-SUM(Q7:Q14) -> 1.129798483 | V15: =SUM(V7:V14) -> 1 | W15: =-SUM(W7:W14) -> 0 | AA15: =SUM(AA7:AA14) -> 1 | AB15: =-SUM(AB7:AB14) -> 0 | AF15: =SUM(AF7:AF14) -> 1 | AG15: =-SUM(AG7:AG14) -> 0.8112781245 | AK15: =SUM(AK7:AK14) -> 1 | AL15: =-SUM(AL7:AL14) -> 0 | AP15: =SUM(AP7:AP14) -> 1 | AQ15: =-SUM(AQ7:AQ14) -> 0 | AU15: =SUM(AU7:AU14) -> 1 | AV15: =-SUM(AV7:AV14) -> 0.7219280949
A16: 11 | B16: 978 | C16: 21 | D16: 991 | K16: 0 | L16: 12 | P16: U= | Q16: =Q15/(LOG(Q4)/LOG(2)) -> 0.1904988231 | V16: U1= | W16: =W15/(LOG(W4)/LOG(2)) -> 0 | AA16: U2= | AB16: =AB15/(LOG(AB4)/LOG(2)) -> 0 | AF16: U3= | AG16: =AG15/(LOG(AG4)/LOG(2)) -> 0.2345119701 | AK16: U4= | AL16: =AL15/(LOG(AL4)/LOG(2)) -> 0 | AP16: U5= | AQ16: =AQ15/(LOG(AQ4)/LOG(2)) -> 0 | AU16: U6= | AV16: =AV15/(LOG(AV4)/LOG(2)) -> 0.2173220113
A17: 11 | B17: 1078 | C17: 21 | D17: 1083 | K17: 0 | L17: 12
A18: 11 | B18: 1168 | C18: 21 | D18: 1178 | K18: 0 | L18: 12
A19: 22 | B19: 1275 | C19: 23 | D19: 1327 | K19: 0 | L19: 22 | N19: Total Target Seq
A20: 11 | B20: 1423 | C20: 21 | D20: 1437 | K20: 0 | L20: 12 | N20: =COUNTIF(L7:L67,G3) -> 37 | P20: 10 | Q20: 10 | R20: 11 | S20: 10 | T20: 10 | U20: 10
A21: 22 | B21: 1539 | C21: 23 | D21: 1558 | K21: 0 | L21: 22 | P21: % of reinforcement given in 6 equal intervals based on number of trials
A22: 11 | B22: 1653 | C22: 21 | D22: 1663 | K22: 0 | L22: 12 | P22: %_1 | Q22: %_2 | R22: %_3 | S22: %_4 | T22: %_5 | U22: %_6
A23: 22 | B23: 1758 | C23: 23 | D23: 1785 | K23: 0 | L23: 22 | O23: target sequence | P23: =$G$3 -> 12 | Q23: =$G$3 -> 12 | R23: =$G$3 -> 12 | S23: =$G$3 -> 12 | T23: =$G$3 -> 12 | U23: =$G$3 -> 12
A24: 11 | B24: 1884 | C24: 21 | D24: 1898 | K24: 0 | L24: 12 | O24: total reinforcement | P24: =U8 -> 6 | Q24: =Z8 -> 6 | R24: =AE8 -> 7 | S24: =AJ8 -> 6 | T24: =AO8 -> 7 | U24: =AT8 -> 5
A25: 22 | B25: 2002 | C25: 23 | D25: 2016 | K25: 0 | L25: 22 | O25: % target
A26: 11 | B26: 2111 | C26: 21 | D26: 2121 | K26: 0 | L26: 12 | O26: CCRF
A27: 11 | B27: 2207 | C27: 21 | D27: 2217 | K27: 0 | L27: 12 | O27: % CCRf
A28: 11 | B28: 2307 | C28: 21 | D28: 2315 | K28: 0 | L28: 12 | O28: average response rate | P28: =D16/P20 -> 99.1 | Q28: =(D26-D16)/Q20 -> 113 | R28: =(D37-D26)/R20 -> 104.4545455 | S28: =(D47-D37)/S20 -> 106.5 | T28: =(D57-D47)/T20 -> 106.5 | U28: =(D67-D57)/U20 -> 108.4
A29: 22 | B29: 2423 | C29: 23 | D29: 2431 | K29: 0 | L29: 22
A30: 11 | B30: 2524 | C30: 21 | D30: 2534 | K30: 0 | L30: 12
A31: 11 | B31: 2619 | C31: 21 | D31: 2629 | K31: 0 | L31: 12
A32: 11 | B32: 2710 | C32: 12 | D32: 2716 | K32: 0 | L32: 11
A33: 11 | B33: 2816 | C33: 21 | D33: 2830 | K33: 0 | L33: 12
A34: 22 | B34: 2930 | C34: 23 | D34: 2939 | K34: 0 | L34: 22
A35: 11 | B35: 3036 | C35: 21 | D35: 3050 | K35: 0 | L35: 12
A36: 22 | B36: 3144 | C36: 23 | D36: 3163 | K36: 0 | L36: 22
A37: 11 | B37: 3261 | C37: 21 | D37: 3270 | K37: 0 | L37: 12
A38: 11 | B38: 3355 | C38: 21 | D38: 3365 | K38: 0 | L38: 12
A39: 22 | B39: 3465 | C39: 23 | D39: 3474 | K39: 0 | L39: 22
A40: 11 | B40: 3569 | C40: 21 | D40: 3579 | K40: 0 | L40: 12
A41: 11 | B41: 3663 | C41: 21 | D41: 3672 | K41: 0 | L41: 12
A42: 22 | B42: 3773 | C42: 23 | D42: 3782 | K42: 0 | L42: 22
A43: 11 | B43: 3879 | C43: 21 | D43: 3888 | K43: 0 | L43: 12
A44: 22 | B44: 3997 | C44: 23 | D44: 4006 | K44: 0 | L44: 22
A45: 11 | B45: 4101 | C45: 21 | D45: 4110 | K45: 0 | L45: 12
A46: 22 | B46: 4230 | C46: 23 | D46: 4239 | K46: 0 | L46: 22
A47: 11 | B47: 4325 | C47: 21 | D47: 4335 | K47: 0 | L47: 12
A48: 11 | B48: 4422 | C48: 21 | D48: 4431 | K48: 0 | L48: 12
A49: 11 | B49: 4515 | C49: 21 | D49: 4525 | K49: 0 | L49: 12
A50: 11 | B50: 4615 | C50: 21 | D50: 4627 | K50: 0 | L50: 12
A51: 22 | B51: 4726 | C51: 23 | D51: 4739 | K51: 0 | L51: 22
A52: 11 | B52: 4836 | C52: 21 | D52: 4845 | K52: 0 | L52: 12
A53: 11 | B53: 4947 | C53: 21 | D53: 4956 | K53: 0 | L53: 12
A54: 11 | B54: 5043 | C54: 21 | D54: 5052 | K54: 0 | L54: 12
A55: 22 | B55: 5151 | C55: 23 | D55: 5165 | K55: 0 | L55: 22
A56: 22 | B56: 5272 | C56: 23 | D56: 5291 | K56: 0 | L56: 22
A57: 11 | B57: 5387 | C57: 21 | D57: 5400 | K57: 0 | L57: 12
A58: 22 | B58: 5513 | C58: 23 | D58: 5523 | K58: 0 | L58: 22
A59: 11 | B59: 5621 | C59: 21 | D59: 5630 | K59: 0 | L59: 12
A60: 11 | B60: 5715 | C60: 21 | D60: 5725 | K60: 0 | L60: 12
A61: 11 | B61: 5813 | C61: 21 | D61: 5836 | K61: 0 | L61: 12
A62: 11 | B62: 5922 | C62: 21 | D62: 5931 | K62: 0 | L62: 12
A63: 11 | B63: 6013 | C63: 12 | D63: 6018 | K63: 0 | L63: 11
A64: 22 | B64: 6126 | C64: 23 | D64: 6140 | K64: 0 | L64: 22
A65: 22 | B65: 6247 | C65: 23 | D65: 6262 | K65: 0 | L65: 22
A66: 22 | B66: 6369 | C66: 23 | D66: 6378 | K66: 0 | L66: 22
A67: 11 | B67: 6475 | C67: 21 | D67: 6484 | K67: 1 | L67: 12

Sheet !LB26C10.056
A1: Report for:!LB26C10.056
A2: Date: | B2: <date>
A3: Hen: | B3: <hen> | F3: Correct Sequence | G3: =Start!J2 -> 12 | P3: Total Sequences in Data | Q3: =4994-COUNTBLANK(L7:L5000) -> 44 | V3: Total Sequences in Block Data | W3: =COUNTA(L7:L13) -> 7 | AA3: Total Sequences in Block Data | AB3: =COUNTA(L14:L21) -> 8 | AF3: Total Sequences in Block Data | AG3: =COUNTA(L22:L28) -> 7 | AK3: Total Sequences in Block Data | AL3: =COUNTA(L29:L35) -> 7 | AP3: Total Sequences in Block Data | AQ3: =COUNTA(L36:L43) -> 8 | AU3: Total Sequences in Block Data | AV3: =COUNTA(L44:L50) -> 7
P4: Total Sequences in Summary | Q4: =SUM(O7:O14) -> 44 | V4: Total Sequences in Block Summary | W4: =SUM(U7:U14) -> 7 | AA4: Total Sequences in Block Summary | AB4: =SUM(Z7:Z14) -> 8 | AF4: Total Sequences in Block Summary | AG4: =SUM(AE7:AE14) -> 7 | AK4: Total Sequences in Block Summary | AL4: =SUM(AJ7:AJ14) -> 7 | AP4: Total Sequences in Block Summary | AQ4: =SUM(AO7:AO14) -> 8 | AU4: Total Sequences in Block Summary | AV4: =SUM(AT7:AT14) -> 7
T5: Block 1 | Y5: Block 2 | AD5: Block 3 | AI5: Block 4 | AN5: Block 5 | AS5: Block 6
A6: Sequence Component 1 | B6: Time 1 | C6: Sequence Component 2 | D6: Time 2 | E6: Sequence Component 3 | F6: Time 3 | G6: Sequence Component 4 | H6: Time 4 | I6: Sequence Component 5 | J6: Time 5 | K6: Correct? 0=No 1=Yes | L6: Sequence | N6: Frequency | P6: Relative Frequency | Q6: Variability | T6: Frequency | V6: Relative Frequency | W6: Variability | Y6: Frequency | AA6: Relative Frequency | AB6: Variability | AD6: Frequency | AF6: Relative Frequency | AG6: Variability | AI6: Frequency | AK6: Relative Frequency | AL6: Variability | AN6: Frequency | AP6: Relative Frequency | AQ6: Variability | AS6: Frequency | AU6: Relative Frequency | AV6: Variability
A7: 11 | B7: 14 | C7: 21 | D7: 39 | K7: 0 | L7: 12 | N7: 11 | O7: =COUNTIF($L$7:$L$500,N7) -> 1 | P7: =O7/$Q$4 -> 0.02272727273 | Q7: =IF(P7=0,0,(P7*((LOG(P7))/LOG(2)))) -> -0.1240779913 | T7: =N7 -> 11 | U7: =COUNTIF(L7:L13,T7) -> 1 | V7: =U7/(W4-U8) -> 0.5 | W7: =IF(V7=0,0,(V7*((LOG(V7))/LOG(2)))) -> -0.5 | Y7: =N7 -> 11 | Z7: =COUNTIF(L14:L21,Y7) -> 0 | AA7: =Z7/(AB4-Z8) -> 0 | AB7: =IF(AA7=0,0,(AA7*((LOG(AA7))/LOG(2)))) -> 0 | AD7: =N7 -> 11 | AE7: =COUNTIF(L22:L28,AD7) -> 0 | AF7: =AE7/(AG4-AE8) ->  | AG7: =IF(AF7=0,0,(AF7*((LOG(AF7))/LOG(2)))) ->  | AI7: =N7 -> 11 | AJ7: =COUNTIF(L29:L35,AI7) -> 0 | AK7: =AJ7/(AL4-AJ8) -> 0 | AL7: =IF(AK7=0,0,(AK7*((LOG(AK7))/LOG(2)))) -> 0 | AN7: =N7 -> 11 | AO7: =COUNTIF(L36:L43,AN7) -> 0 | AP7: =AO7/(AQ4-AO8) ->  | AQ7: =IF(AP7=0,0,(AP7*((LOG(AP7))/LOG(2)))) ->  | AS7: =N7 -> 11 | AT7: =COUNTIF(L44:L50,AS7) -> 0 | AU7: =AT7/(AV4-AT8) ->  | AV7: =IF(AU7=0,0,(AU7*((LOG(AU7))/LOG(2)))) -> 
A8: 22 | B8: 138 | C8: 23 | D8: 154 | K8: 0 | L8: 22 | N8: 12 | O8: =COUNTIF($L$7:$L$500,N8) -> 39 | P8: =O8/$Q$4 -> 0.8863636364 | Q8: =IF(P8=0,0,(P8*((LOG(P8))/LOG(2)))) -> -0.1542533316 | T8: =N8 -> 12 | U8: =COUNTIF(L7:L13,T8) -> 5 | Y8: =N8 -> 12 | Z8: =COUNTIF(L14:L21,Y8) -> 7 | AD8: =N8 -> 12 | AE8: =COUNTIF(L22:L28,AD8) -> 7 | AI8: =N8 -> 12 | AJ8: =COUNTIF(L29:L35,AI8) -> 5 | AN8: =N8 -> 12 | AO8: =COUNTIF(L36:L43,AN8) -> 8 | AS8: =N8 -> 12 | AT8: =COUNTIF(L44:L50,AS8) -> 7
A9: 11 | B9: 243 | C9: 21 | D9: 254 | K9: 0 | L9: 12 | N9: 21 | O9: =COUNTIF($L$7:$L$500,N9) -> 0 | P9: =O9/$Q$4 -> 0 | Q9: =IF(P9=0,0,(P9*((LOG(P9))/LOG(2)))) -> 0 | T9: =N9 -> 21 | U9: =COUNTIF(L7:L13,T9) -> 0 | V9: =U9/(W4-U8) -> 0 | W9: =IF(V9=0,0,(V9*((LOG(V9))/LOG(2)))) -> 0 | Y9: =N9 -> 21 | Z9: =COUNTIF(L14:L21,Y9) -> 0 | AA9: =Z9/(AB4-Z8) -> 0 | AB9: =IF(AA9=0,0,(AA9*((LOG(AA9))/LOG(2)))) -> 0 | AD9: =N9 -> 21 | AE9: =COUNTIF(L22:L28,AD9) -> 0 | AF9: =AE9/(AG4-AE8) ->  | AG9: =IF(AF9=0,0,(AF9*((LOG(AF9))/LOG(2)))) ->  | AI9: =N9 -> 21 | AJ9: =COUNTIF(L29:L35,AI9) -> 0 | AK9: =AJ9/(AL4-AJ8) -> 0 | AL9: =IF(AK9=0,0,(AK9*((LOG(AK9))/LOG(2)))) -> 0 | AN9: =N9 -> 21 | AO9: =COUNTIF(L36:L43,AN9) -> 0 | AP9: =AO9/(AQ4-AO8) ->  | AQ9: =IF(AP9=0,0,(AP9*((LOG(AP9))/LOG(2)))) ->  | AS9: =N9 -> 21 | AT9: =COUNTIF(L44:L50,AS9) -> 0 | AU9: =AT9/(AV4-AT8) ->  | AV9: =IF(AU9=0,0,(AU9*((LOG(AU9))/LOG(2)))) -> 
A10: 11 | B10: 342 | C10: 21 | D10: 351 | K10: 0 | L10: 12 | N10: 22 | O10: =COUNTIF($L$7:$L$500,N10) -> 4 | P10: =O10/$Q$4 -> 0.09090909091 | Q10: =IF(P10=0,0,(P10*((LOG(P10))/LOG(2)))) -> -0.3144937835 | T10: =N10 -> 22 | U10: =COUNTIF(L7:L13,T10) -> 1 | V10: =U10/(W4-U8) -> 0.5 | W10: =IF(V10=0,0,(V10*((LOG(V10))/LOG(2)))) -> -0.5 | Y10: =N10 -> 22 | Z10: =COUNTIF(L14:L21,Y10) -> 1 | AA10: =Z10/(AB4-Z8) -> 1 | AB10: =IF(AA10=0,0,(AA10*((LOG(AA10))/LOG(2)))) -> 0 | AD10: =N10 -> 22 | AE10: =COUNTIF(L22:L28,AD10) -> 0 | AF10: =AE10/(AG4-AE8) ->  | AG10: =IF(AF10=0,0,(AF10*((LOG(AF10))/LOG(2)))) ->  | AI10: =N10 -> 22 | AJ10: =COUNTIF(L29:L35,AI10) -> 2 | AK10: =AJ10/(AL4-AJ8) -> 1 | AL10: =IF(AK10=0,0,(AK10*((LOG(AK10))/LOG(2)))) -> 0 | AN10: =N10 -> 22 | AO10: =COUNTIF(L36:L43,AN10) -> 0 | AP10: =AO10/(AQ4-AO8) ->  | AQ10: =IF(AP10=0,0,(AP10*((LOG(AP10))/LOG(2)))) ->  | AS10: =N10 -> 22 | AT10: =COUNTIF(L44:L50,AS10) -> 0 | AU10: =AT10/(AV4-AT8) ->  | AV10: =IF(AU10=0,0,(AU10*((LOG(AU10))/LOG(2)))) -> 
A11: 11 | B11: 433 | C11: 12 | D11: 438 | K11: 0 | L11: 11 | T11: =N11 -> 0 | U11: =COUNTIF(L7:L13,T11) -> 0 | V11: =U11/(W4-U8) -> 0 | W11: =IF(V11=0,0,(V11*((LOG(V11))/LOG(2)))) -> 0 | Y11: =N11 -> 0 | Z11: =COUNTIF(L14:L21,Y11) -> 0 | AA11: =Z11/(AB4-Z8) -> 0 | AB11: =IF(AA11=0,0,(AA11*((LOG(AA11))/LOG(2)))) -> 0 | AD11: =N11 -> 0 | AE11: =COUNTIF(L22:L28,AD11) -> 0 | AF11: =AE11/(AG4-AE8) ->  | AG11: =IF(AF11=0,0,(AF11*((LOG(AF11))/LOG(2)))) ->  | AI11: =N11 -> 0 | AJ11: =COUNTIF(L29:L35,AI11) -> 0 | AK11: =AJ11/(AL4-AJ8) -> 0 | AL11: =IF(AK11=0,0,(AK11*((LOG(AK11))/LOG(2)))) -> 0 | AN11: =N11 -> 0 | AO11: =COUNTIF(L36:L43,AN11) -> 0 | AP11: =AO11/(AQ4-AO8) ->  | AQ11: =IF(AP11=0,0,(AP11*((LOG(AP11))/LOG(2)))) ->  | AS11: =N11 -> 0 | AT11: =COUNTIF(L44:L50,AS11) -> 0 | AU11: =AT11/(AV4-AT8) ->  | AV11: =IF(AU11=0,0,(AU11*((LOG(AU11))/LOG(2)))) -> 
A12: 11 | B12: 533 | C12: 21 | D12: 545 | K12: 0 | L12: 12 | T12: =N12 -> 0 | U12: =COUNTIF(L7:L13,T12) -> 0 | V12: =U12/(W4-U8) -> 0 | W12: =IF(V12=0,0,(V12*((LOG(V12))/LOG(2)))) -> 0 | Y12: =N12 -> 0 | Z12: =COUNTIF(L14:L21,Y12) -> 0 | AA12: =Z12/(AB4-Z8) -> 0 | AB12: =IF(AA12=0,0,(AA12*((LOG(AA12))/LOG(2)))) -> 0 | AD12: =N12 -> 0 | AE12: =COUNTIF(L22:L28,AD12) -> 0 | AF12: =AE12/(AG4-AE8) ->  | AG12: =IF(AF12=0,0,(AF12*((LOG(AF12))/LOG(2)))) ->  | AI12: =N12 -> 0 | AJ12: =COUNTIF(L29:L35,AI12) -> 0 | AK12: =AJ12/(AL4-AJ8) -> 0 | AL12: =IF(AK12=0,0,(AK12*((LOG(AK12))/LOG(2)))) -> 0 | AN12: =N12 -> 0 | AO12: =COUNTIF(L36:L43,AN12) -> 0 | AP12: =AO12/(AQ4-AO8) ->  | AQ12: =IF(AP12=0,0,(AP12*((LOG(AP12))/LOG(2)))) ->  | AS12: =N12 -> 0 | AT12: =COUNTIF(L44:L50,AS12) -> 0 | AU12: =AT12/(AV4-AT8) ->  | AV12: =IF(AU12=0,0,(AU12*((LOG(AU12))/LOG(2)))) -> 
A13: 11 | B13: 630 | C13: 21 | D13: 641 | K13: 0 | L13: 12 | T13: =N13 -> 0 | U13: =COUNTIF(L7:L13,T13) -> 0 | V13: =U13/(W4-U8) -> 0 | W13: =IF(V13=0,0,(V13*((LOG(V13))/LOG(2)))) -> 0 | Y13: =N13 -> 0 | Z13: =COUNTIF(L14:L21,Y13) -> 0 | AA13: =Z13/(AB4-Z8) -> 0 | AB13: =IF(AA13=0,0,(AA13*((LOG(AA13))/LOG(2)))) -> 0 | AD13: =N13 -> 0 | AE13: =COUNTIF(L22:L28,AD13) -> 0 | AF13: =AE13/(AG4-AE8) ->  | AG13: =IF(AF13=0,0,(AF13*((LOG(AF13))/LOG(2)))) ->  | AI13: =N13 -> 0 | AJ13: =COUNTIF(L29:L35,AI13) -> 0 | AK13: =AJ13/(AL4-AJ8) -> 0 | AL13: =IF(AK13=0,0,(AK13*((LOG(AK13))/LOG(2)))) -> 0 | AN13: =N13 -> 0 | AO13: =COUNTIF(L36:L43,AN13) -> 0 | AP13: =AO13/(AQ4-AO8) ->  | AQ13: =IF(AP13=0,0,(AP13*((LOG(AP13))/LOG(2)))) ->  | AS13: =N13 -> 0 | AT13: =COUNTIF(L44:L50,AS13) -> 0 | AU13: =AT13/(AV4-AT8) ->  | AV13: =IF(AU13=0,0,(AU13*((LOG(AU13))/LOG(2)))) -> 
A14: 11 | B14: 725 | C14: 21 | D14: 735 | K14: 0 | L14: 12 | T14: =N14 -> 0 | U14: =COUNTIF(L7:L13,T14) -> 0 | V14: =U14/(W4-U8) -> 0 | W14: =IF(V14=0,0,(V14*((LOG(V14))/LOG(2)))) -> 0 | Y14: =N14 -> 0 | Z14: =COUNTIF(L14:L21,Y14) -> 0 | AA14: =Z14/(AB4-Z8) -> 0 | AB14: =IF(AA14=0,0,(AA14*((LOG(AA14))/LOG(2)))) -> 0 | AD14: =N14 -> 0 | AE14: =COUNTIF(L22:L28,AD14) -> 0 | AF14: =AE14/(AG4-AE8) ->  | AG14: =IF(AF14=0,0,(AF14*((LOG(AF14))/LOG(2)))) ->  | AI14: =N14 -> 0 | AJ14: =COUNTIF(L29:L35,AI14) -> 0 | AK14: =AJ14/(AL4-AJ8) -> 0 | AL14: =IF(AK14=0,0,(AK14*((LOG(AK14))/LOG(2)))) -> 0 | AN14: =N14 -> 0 | AO14: =COUNTIF(L36:L43,AN14) -> 0 | AP14: =AO14/(AQ4-AO8) ->  | AQ14: =IF(AP14=0,0,(AP14*((LOG(AP14))/LOG(2)))) ->  | AS14: =N14 -> 0 | AT14: =COUNTIF(L44:L50,AS14) -> 0 | AU14: =AT14/(AV4-AT8) ->  | AV14: =IF(AU14=0,0,(AU14*((LOG(AU14))/LOG(2)))) -> 
A15: 11 | B15: 821 | C15: 21 | D15: 831 | K15: 0 | L15: 12 | P15: =SUM(P7:P14) -> 1 | Q15: =-SUM(Q7:Q14) -> 0.5928251065 | V15: =SUM(V7:V14) -> 1 | W15: =-SUM(W7:W14) -> 1 | AA15: =SUM(AA7:AA14) -> 1 | AB15: =-SUM(AB7:AB14) -> 0 | AF15: =SUM(AF7:AF14) ->  | AG15: =-SUM(AG7:AG14) ->  | AK15: =SUM(AK7:AK14) -> 1 | AL15: =-SUM(AL7:AL14) -> 0 | AP15: =SUM(AP7:AP14) ->  | AQ15: =-SUM(AQ7:AQ14) ->  | AU15: =SUM(AU7:AU14) ->  | AV15: =-SUM(AV7:AV14) -> 
A16: 22 | B16: 947 | C16: 23 | D16: 966 | K16: 0 | L16: 22 | P16: U= | Q16: =Q15/(LOG(Q4)/LOG(2)) -> 0.1085873307 | V16: U1= | W16: =W15/(LOG(W4)/LOG(2)) -> 0.3562071871 | AA16: U2= | AB16: =AB15/(LOG(AB4)/LOG(2)) -> 0 | AF16: U3= | AG16: =AG15/(LOG(AG4)/LOG(2)) ->  | AK16: U4= | AL16: =AL15/(LOG(AL4)/LOG(2)) -> 0 | AP16: U5= | AQ16: =AQ15/(LOG(AQ4)/LOG(2)) ->  | AU16: U6= | AV16: =AV15/(LOG(AV4)/LOG(2)) -> 
A17: 11 | B17: 1076 | C17: 21 | D17: 1086 | K17: 0 | L17: 12
A18: 11 | B18: 1191 | C18: 21 | D18: 1202 | K18: 0 | L18: 12
A19: 11 | B19: 1286 | C19: 21 | D19: 1296 | K19: 0 | L19: 12 | N19: Total Target Seq
A20: 11 | B20: 1385 | C20: 21 | D20: 1394 | K20: 0 | L20: 12 | N20: =COUNTIF(L7:L50,G3) -> 39 | P20: 7 | Q20: 8 | R20: 7 | S20: 7 | T20: 8 | U20: 7
A21: 11 | B21: 1479 | C21: 21 | D21: 1494 | K21: 0 | L21: 12 | P21: % of reinforcement given in 6 equal intervals based on number of trials
A22: 11 | B22: 1578 | C22: 21 | D22: 1593 | K22: 0 | L22: 12 | P22: %_1 | Q22: %_2 | R22: %_3 | S22: %_4 | T22: %_5 | U22: %_6
A23: 11 | B23: 1680 | C23: 21 | D23: 1690 | K23: 0 | L23: 12 | O23: target sequence | P23: =$G$3 -> 12 | Q23: =$G$3 -> 12 | R23: =$G$3 -> 12 | S23: =$G$3 -> 12 | T23: =$G$3 -> 12 | U23: =$G$3 -> 12
A24: 11 | B24: 1778 | C24: 21 | D24: 1790 | K24: 0 | L24: 12 | O24: total reinforcement | P24: =U8 -> 5 | Q24: =Z8 -> 7 | R24: =AE8 -> 7 | S24: =AJ8 -> 5 | T24: =AO8 -> 8 | U24: =AT8 -> 7
A25: 11 | B25: 1877 | C25: 21 | D25: 1887 | K25: 0 | L25: 12 | O25: % target
A26: 11 | B26: 1974 | C26: 21 | D26: 1984 | K26: 0 | L26: 12 | O26: CCRF
A27: 11 | B27: 2070 | C27: 21 | D27: 2079 | K27: 0 | L27: 12 | O27: % CCRf
A28: 11 | B28: 2164 | C28: 21 | D28: 2187 | K28: 0 | L28: 12 | O28: average response rate | P28: =D13/P20 -> 91.57142857 | Q28: =(D21-D13)/Q20 -> 106.625 | R28: =(D28-D21)/R20 -> 99 | S28: =(D35-D28)/S20 -> 115.8571429 | T28: =(D43-D35)/T20 -> 104.25 | U28: =(D50-D43)/U20 -> 96.71428571
A29: 11 | B29: 2286 | C29: 21 | D29: 2296 | K29: 0 | L29: 12
A30: 11 | B30: 2385 | C30: 21 | D30: 2396 | K30: 0 | L30: 12
A31: 11 | B31: 2481 | C31: 21 | D31: 2494 | K31: 0 | L31: 12
A32: 22 | B32: 2599 | C32: 23 | D32: 2653 | K32: 0 | L32: 22
A33: 22 | B33: 2767 | C33: 23 | D33: 2783 | K33: 0 | L33: 22
A34: 11 | B34: 2877 | C34: 21 | D34: 2888 | K34: 0 | L34: 12
A35: 11 | B35: 2987 | C35: 21 | D35: 2998 | K35: 0 | L35: 12
A36: 11 | B36: 3085 | C36: 21 | D36: 3095 | K36: 0 | L36: 12
A37: 11 | B37: 3185 | C37: 21 | D37: 3195 | K37: 0 | L37: 12
A38: 11 | B38: 3287 | C38: 21 | D38: 3297 | K38: 0 | L38: 12
A39: 11 | B39: 3383 | C39: 21 | D39: 3398 | K39: 0 | L39: 12
A40: 11 | B40: 3485 | C40: 21 | D40: 3496 | K40: 0 | L40: 12
A41: 11 | B41: 3588 | C41: 21 | D41: 3598 | K41: 0 | L41: 12
A42: 11 | B42: 3693 | C42: 21 | D42: 3713 | K42: 0 | L42: 12
A43: 11 | B43: 3824 | C43: 21 | D43: 3832 | K43: 0 | L43: 12
A44: 11 | B44: 3921 | C44: 21 | D44: 3935 | K44: 0 | L44: 12
A45: 11 | B45: 4020 | C45: 21 | D45: 4030 | K45: 0 | L45: 12
A46: 11 | B46: 4115 | C46: 21 | D46: 4123 | K46: 0 | L46: 12
A47: 11 | B47: 4210 | C47: 21 | D47: 4220 | K47: 0 | L47: 12
A48: 11 | B48: 4304 | C48: 21 | D48: 4314 | K48: 0 | L48: 12
A49: 11 | B49: 4401 | C49: 21 | D49: 4415 | K49: 0 | L49: 12
A50: 11 | B50: 4500 | C50: 21 | D50: 4509 | K50: 1 | L50: 12

Sheet !LB27C00.056
A1: Report for:!LB27C00.056
A2: Date: | B2: <date>
A3: Hen: | B3: <hen> | F3: Correct Sequence | G3: =Start!J2 -> 12 | P3: Total Sequences in Data | Q3: =4994-COUNTBLANK(L7:L5000) -> 49 | V3: Total Sequences in Block Data | W3: =COUNTA(L7:L14) -> 8 | AA3: Total Sequences in Block Data | AB3: =COUNTA(L15:L22) -> 8 | AF3: Total Sequences in Block Data | AG3: =COUNTA(L23:L31) -> 9 | AK3: Total Sequences in Block Data | AL3: =COUNTA(L32:L39) -> 8 | AP3: Total Sequences in Block Data | AQ3: =COUNTA(L40:L47) -> 8 | AU3: Total Sequences in Block Data | AV3: =COUNTA(L48:L55) -> 8
P4: Total Sequences in Summary | Q4: =SUM(O7:O14) -> 49 | V4: Total Sequences in Block Summary | W4: =SUM(U7:U14) -> 8 | AA4: Total Sequences in Block Summary | AB4: =SUM(Z7:Z14) -> 8 | AF4: Total Sequences in Block Summary | AG4: =SUM(AE7:AE14) -> 9 | AK4: Total Sequences in Block Summary | AL4: =SUM(AJ7:AJ14) -> 8 | AP4: Total Sequences in Block Summary | AQ4: =SUM(AO7:AO14) -> 8 | AU4: Total Sequences in Block Summary | AV4: =SUM(AT7:AT14) -> 8
T5: Block 1 | Y5: Block 2 | AD5: Block 3 | AI5: Block 4 | AN5: Block 5 | AS5: Block 6
A6: Sequence Component 1 | B6: Time 1 | C6: Sequence Component 2 | D6: Time 2 | E6: Sequence Component 3 | F6: Time 3 | G6: Sequence Component 4 | H6: Time 4 | I6: Sequence Component 5 | J6: Time 5 | K6: Correct? 0=No 1=Yes | L6: Sequence | N6: Frequency | P6: Relative Frequency | Q6: Variability | T6: Frequency | V6: Relative Frequency | W6: Variability | Y6: Frequency | AA6: Relative Frequency | AB6: Variability | AD6: Frequency | AF6: Relative Frequency | AG6: Variability | AI6: Frequency | AK6: Relative Frequency | AL6: Variability | AN6: Frequency | AP6: Relative Frequency | AQ6: Variability | AS6: Frequency | AU6: Relative Frequency | AV6: Variability
A7: 22 | B7: 15 | C7: 23 | D7: 39 | K7: 0 | L7: 22 | N7: 11 | O7: =COUNTIF($L$7:$L$500,N7) -> 2 | P7: =O7/$Q$4 -> 0.04081632653 | Q7: =IF(P7=0,0,(P7*((LOG(P7))/LOG(2)))) -> -0.1883555038 | T7: =N7 -> 11 | U7: =COUNTIF(L7:L14,T7) -> 0 | V7: =U7/(W4-U8) -> 0 | W7: =IF(V7=0,0,(V7*((LOG(V7))/LOG(2)))) -> 0 | Y7: =N7 -> 11 | Z7: =COUNTIF(L15:L22,Y7) -> 0 | AA7: =Z7/(AB4-Z8) -> 0 | AB7: =IF(AA7=0,0,(AA7*((LOG(AA7))/LOG(2)))) -> 0 | AD7: =N7 -> 11 | AE7: =COUNTIF(L23:L31,AD7) -> 0 | AF7: =AE7/(AG4-AE8) ->  | AG7: =IF(AF7=0,0,(AF7*((LOG(AF7))/LOG(2)))) ->  | AI7: =N7 -> 11 | AJ7: =COUNTIF(L32:L39,AI7) -> 1 | AK7: =AJ7/(AL4-AJ8) -> 0.5 | AL7: =IF(AK7=0,0,(AK7*((LOG(AK7))/LOG(2)))) -> -0.5 | AN7: =N7 -> 11 | AO7: =COUNTIF(L40:L47,AN7) -> 1 | AP7: =AO7/(AQ4-AO8) -> 1 | AQ7: =IF(AP7=0,0,(AP7*((LOG(AP7))/LOG(2)))) -> 0 | AS7: =N7 -> 11 | AT7: =COUNTIF(L48:L55,AS7) -> 0 | AU7: =AT7/(AV4-AT8) -> 0 | AV7: =IF(AU7=0,0,(AU7*((LOG(AU7))/LOG(2)))) -> 0
A8: 22 | B8: 136 | C8: 23 | D8: 146 | K8: 0 | L8: 22 | N8: 12 | O8: =COUNTIF($L$7:$L$500,N8) -> 38 | P8: =O8/$Q$4 -> 0.7755102041 | Q8: =IF(P8=0,0,(P8*((LOG(P8))/LOG(2)))) -> -0.2844434401 | T8: =N8 -> 12 | U8: =COUNTIF(L7:L14,T8) -> 5 | Y8: =N8 -> 12 | Z8: =COUNTIF(L15:L22,Y8) -> 7 | AD8: =N8 -> 12 | AE8: =COUNTIF(L23:L31,AD8) -> 9 | AI8: =N8 -> 12 | AJ8: =COUNTIF(L32:L39,AI8) -> 6 | AN8: =N8 -> 12 | AO8: =COUNTIF(L40:L47,AN8) -> 7 | AS8: =N8 -> 12 | AT8: =COUNTIF(L48:L55,AS8) -> 4
A9: 22 | B9: 245 | C9: 23 | D9: 259 | K9: 0 | L9: 22 | N9: 21 | O9: =COUNTIF($L$7:$L$500,N9) -> 0 | P9: =O9/$Q$4 -> 0 | Q9: =IF(P9=0,0,(P9*((LOG(P9))/LOG(2)))) -> 0 | T9: =N9 -> 21 | U9: =COUNTIF(L7:L14,T9) -> 0 | V9: =U9/(W4-U8) -> 0 | W9: =IF(V9=0,0,(V9*((LOG(V9))/LOG(2)))) -> 0 | Y9: =N9 -> 21 | Z9: =COUNTIF(L15:L22,Y9) -> 0 | AA9: =Z9/(AB4-Z8) -> 0 | AB9: =IF(AA9=0,0,(AA9*((LOG(AA9))/LOG(2)))) -> 0 | AD9: =N9 -> 21 | AE9: =COUNTIF(L23:L31,AD9) -> 0 | AF9: =AE9/(AG4-AE8) ->  | AG9: =IF(AF9=0,0,(AF9*((LOG(AF9))/LOG(2)))) ->  | AI9: =N9 -> 21 | AJ9: =COUNTIF(L32:L39,AI9) -> 0 | AK9: =AJ9/(AL4-AJ8) -> 0 | AL9: =IF(AK9=0,0,(AK9*((LOG(AK9))/LOG(2)))) -> 0 | AN9: =N9 -> 21 | AO9: =COUNTIF(L40:L47,AN9) -> 0 | AP9: =AO9/(AQ4-AO8) -> 0 | AQ9: =IF(AP9=0,0,(AP9*((LOG(AP9))/LOG(2)))) -> 0 | AS9: =N9 -> 21 | AT9: =COUNTIF(L48:L55,AS9) -> 0 | AU9: =AT9/(AV4-AT8) -> 0 | AV9: =IF(AU9=0,0,(AU9*((LOG(AU9))/LOG(2)))) -> 0
A10: 11 | B10: 357 | C10: 21 | D10: 368 | K10: 0 | L10: 12 | N10: 22 | O10: =COUNTIF($L$7:$L$500,N10) -> 9 | P10: =O10/$Q$4 -> 0.1836734694 | Q10: =IF(P10=0,0,(P10*((LOG(P10))/LOG(2)))) -> -0.449042114 | T10: =N10 -> 22 | U10: =COUNTIF(L7:L14,T10) -> 3 | V10: =U10/(W4-U8) -> 1 | W10: =IF(V10=0,0,(V10*((LOG(V10))/LOG(2)))) -> 0 | Y10: =N10 -> 22 | Z10: =COUNTIF(L15:L22,Y10) -> 1 | AA10: =Z10/(AB4-Z8) -> 1 | AB10: =IF(AA10=0,0,(AA10*((LOG(AA10))/LOG(2)))) -> 0 | AD10: =N10 -> 22 | AE10: =COUNTIF(L23:L31,AD10) -> 0 | AF10: =AE10/(AG4-AE8) ->  | AG10: =IF(AF10=0,0,(AF10*((LOG(AF10))/LOG(2)))) ->  | AI10: =N10 -> 22 | AJ10: =COUNTIF(L32:L39,AI10) -> 1 | AK10: =AJ10/(AL4-AJ8) -> 0.5 | AL10: =IF(AK10=0,0,(AK10*((LOG(AK10))/LOG(2)))) -> -0.5 | AN10: =N10 -> 22 | AO10: =COUNTIF(L40:L47,AN10) -> 0 | AP10: =AO10/(AQ4-AO8) -> 0 | AQ10: =IF(AP10=0,0,(AP10*((LOG(AP10))/LOG(2)))) -> 0 | AS10: =N10 -> 22 | AT10: =COUNTIF(L48:L55,AS10) -> 4 | AU10: =AT10/(AV4-AT8) -> 1 | AV10: =IF(AU10=0,0,(AU10*((LOG(AU10))/LOG(2)))) -> 0
A11: 11 | B11: 453 | C11: 21 | D11: 467 | K11: 0 | L11: 12 | T11: =N11 -> 0 | U11: =COUNTIF(L7:L14,T11) -> 0 | V11: =U11/(W4-U8) -> 0 | W11: =IF(V11=0,0,(V11*((LOG(V11))/LOG(2)))) -> 0 | Y11: =N11 -> 0 | Z11: =COUNTIF(L15:L22,Y11) -> 0 | AA11: =Z11/(AB4-Z8) -> 0 | AB11: =IF(AA11=0,0,(AA11*((LOG(AA11))/LOG(2)))) -> 0 | AD11: =N11 -> 0 | AE11: =COUNTIF(L23:L31,AD11) -> 0 | AF11: =AE11/(AG4-AE8) ->  | AG11: =IF(AF11=0,0,(AF11*((LOG(AF11))/LOG(2)))) ->  | AI11: =N11 -> 0 | AJ11: =COUNTIF(L32:L39,AI11) -> 0 | AK11: =AJ11/(AL4-AJ8) -> 0 | AL11: =IF(AK11=0,0,(AK11*((LOG(AK11))/LOG(2)))) -> 0 | AN11: =N11 -> 0 | AO11: =COUNTIF(L40:L47,AN11) -> 0 | AP11: =AO11/(AQ4-AO8) -> 0 | AQ11: =IF(AP11=0,0,(AP11*((LOG(AP11))/LOG(2)))) -> 0 | AS11: =N11 -> 0 | AT11: =COUNTIF(L48:L55,AS11) -> 0 | AU11: =AT11/(AV4-AT8) -> 0 | AV11: =IF(AU11=0,0,(AU11*((LOG(AU11))/LOG(2)))) -> 0
A12: 11 | B12: 553 | C12: 21 | D12: 562 | K12: 0 | L12: 12 | T12: =N12 -> 0 | U12: =COUNTIF(L7:L14,T12) -> 0 | V12: =U12/(W4-U8) -> 0 | W12: =IF(V12=0,0,(V12*((LOG(V12))/LOG(2)))) -> 0 | Y12: =N12 -> 0 | Z12: =COUNTIF(L15:L22,Y12) -> 0 | AA12: =Z12/(AB4-Z8) -> 0 | AB12: =IF(AA12=0,0,(AA12*((LOG(AA12))/LOG(2)))) -> 0 | AD12: =N12 -> 0 | AE12: =COUNTIF(L23:L31,AD12) -> 0 | AF12: =AE12/(AG4-AE8) ->  | AG12: =IF(AF12=0,0,(AF12*((LOG(AF12))/LOG(2)))) ->  | AI12: =N12 -> 0 | AJ12: =COUNTIF(L32:L39,AI12) -> 0 | AK12: =AJ12/(AL4-AJ8) -> 0 | AL12: =IF(AK12=0,0,(AK12*((LOG(AK12))/LOG(2)))) -> 0 | AN12: =N12 -> 0 | AO12: =COUNTIF(L40:L47,AN12) -> 0 | AP12: =AO12/(AQ4-AO8) -> 0 | AQ12: =IF(AP12=0,0,(AP12*((LOG(AP12))/LOG(2)))) -> 0 | AS12: =N12 -> 0 | AT12: =COUNTIF(L48:L55,AS12) -> 0 | AU12: =AT12/(AV4-AT8) -> 0 | AV12: =IF(AU12=0,0,(AU12*((LOG(AU12))/LOG(2)))) -> 0
A13: 11 | B13: 647 | C13: 21 | D13: 662 | K13: 0 | L13: 12 | T13: =N13 -> 0 | U13: =COUNTIF(L7:L14,T13) -> 0 | V13: =U13/(W4-U8) -> 0 | W13: =IF(V13=0,0,(V13*((LOG(V13))/LOG(2)))) -> 0 | Y13: =N13 -> 0 | Z13: =COUNTIF(L15:L22,Y13) -> 0 | AA13: =Z13/(AB4-Z8) -> 0 | AB13: =IF(AA13=0,0,(AA13*((LOG(AA13))/LOG(2)))) -> 0 | AD13: =N13 -> 0 | AE13: =COUNTIF(L23:L31,AD13) -> 0 | AF13: =AE13/(AG4-AE8) ->  | AG13: =IF(AF13=0,0,(AF13*((LOG(AF13))/LOG(2)))) ->  | AI13: =N13 -> 0 | AJ13: =COUNTIF(L32:L39,AI13) -> 0 | AK13: =AJ13/(AL4-AJ8) -> 0 | AL13: =IF(AK13=0,0,(AK13*((LOG(AK13))/LOG(2)))) -> 0 | AN13: =N13 -> 0 | AO13: =COUNTIF(L40:L47,AN13) -> 0 | AP13: =AO13/(AQ4-AO8) -> 0 | AQ13: =IF(AP13=0,0,(AP13*((LOG(AP13))/LOG(2)))) -> 0 | AS13: =N13 -> 0 | AT13: =COUNTIF(L48:L55,AS13) -> 0 | AU13: =AT13/(AV4-AT8) -> 0 | AV13: =IF(AU13=0,0,(AU13*((LOG(AU13))/LOG(2)))) -> 0
A14: 11 | B14: 748 | C14: 21 | D14: 757 | K14: 0 | L14: 12 | T14: =N14 -> 0 | U14: =COUNTIF(L7:L14,T14) -> 0 | V14: =U14/(W4-U8) -> 0 | W14: =IF(V14=0,0,(V14*((LOG(V14))/LOG(2)))) -> 0 | Y14: =N14 -> 0 | Z14: =COUNTIF(L15:L22,Y14) -> 0 | AA14: =Z14/(AB4-Z8) -> 0 | AB14: =IF(AA14=0,0,(AA14*((LOG(AA14))/LOG(2)))) -> 0 | AD14: =N14 -> 0 | AE14: =COUNTIF(L23:L31,AD14) -> 0 | AF14: =AE14/(AG4-AE8) ->  | AG14: =IF(AF14=0,0,(AF14*((LOG(AF14))/LOG(2)))) ->  | AI14: =N14 -> 0 | AJ14: =COUNTIF(L32:L39,AI14) -> 0 | AK14: =AJ14/(AL4-AJ8) -> 0 | AL14: =IF(AK14=0,0,(AK14*((LOG(AK14))/LOG(2)))) -> 0 | AN14: =N14 -> 0 | AO14: =COUNTIF(L40:L47,AN14) -> 0 | AP14: =AO14/(AQ4-AO8) -> 0 | AQ14: =IF(AP14=0,0,(AP14*((LOG(AP14))/LOG(2)))) -> 0 | AS14: =N14 -> 0 | AT14: =COUNTIF(L48:L55,AS14) -> 0 | AU14: =AT14/(AV4-AT8) -> 0 | AV14: =IF(AU14=0,0,(AU14*((LOG(AU14))/LOG(2)))) -> 0
A15: 11 | B15: 841 | C15: 21 | D15: 856 | K15: 0 | L15: 12 | P15: =SUM(P7:P14) -> 1 | Q15: =-SUM(Q7:Q14) -> 0.9218410579 | V15: =SUM(V7:V14) -> 1 | W15: =-SUM(W7:W14) -> 0 | AA15: =SUM(AA7:AA14) -> 1 | AB15: =-SUM(AB7:AB14) -> 0 | AF15: =SUM(AF7:AF14) ->  | AG15: =-SUM(AG7:AG14) ->  | AK15: =SUM(AK7:AK14) -> 1 | AL15: =-SUM(AL7:AL14) -> 1 | AP15: =SUM(AP7:AP14) -> 1 | AQ15: =-SUM(AQ7:AQ14) -> 0 | AU15: =SUM(AU7:AU14) -> 1 | AV15: =-SUM(AV7:AV14) -> 0
A16: 11 | B16: 940 | C16: 21 | D16: 949 | K16: 0 | L16: 12 | P16: U= | Q16: =Q15/(LOG(Q4)/LOG(2)) -> 0.1641832051 | V16: U1= | W16: =W15/(LOG(W4)/LOG(2)) -> 0 | AA16: U2= | AB16: =AB15/(LOG(AB4)/LOG(2)) -> 0 | AF16: U3= | AG16: =AG15/(LOG(AG4)/LOG(2)) ->  | AK16: U4= | AL16: =AL15/(LOG(AL4)/LOG(2)) -> 0.3333333333 | AP16: U5= | AQ16: =AQ15/(LOG(AQ4)/LOG(2)) -> 0 | AU16: U6= | AV16: =AV15/(LOG(AV4)/LOG(2)) -> 0
A17: 11 | B17: 1035 | C17: 21 | D17: 1044 | K17: 0 | L17: 12
A18: 11 | B18: 1129 | C18: 21 | D18: 1135 | K18: 0 | L18: 12
A19: 11 | B19: 1220 | C19: 21 | D19: 1229 | K19: 0 | L19: 12 | N19: Total Target Seq
A20: 11 | B20: 1328 | C20: 21 | D20: 1338 | K20: 0 | L20: 12 | N20: =COUNTIF(L7:L55,G3) -> 38 | P20: 8 | Q20: 8 | R20: 9 | S20: 8 | T20: 8 | U20: 8
A21: 22 | B21: 1434 | C21: 23 | D21: 1446 | K21: 0 | L21: 22 | P21: % of reinforcement given in 6 equal intervals based on number of trials
A22: 11 | B22: 1531 | C22: 21 | D22: 1540 | K22: 0 | L22: 12 | P22: %_1 | Q22: %_2 | R22: %_3 | S22: %_4 | T22: %_5 | U22: %_6
A23: 11 | B23: 1624 | C23: 21 | D23: 1631 | K23: 0 | L23: 12 | O23: target sequence | P23: =$G$3 -> 12 | Q23: =$G$3 -> 12 | R23: =$G$3 -> 12 | S23: =$G$3 -> 12 | T23: =$G$3 -> 12 | U23: =$G$3 -> 12
A24: 11 | B24: 1717 | C24: 21 | D24: 1726 | K24: 0 | L24: 12 | O24: total reinforcement | P24: =U8 -> 5 | Q24: =Z8 -> 7 | R24: =AE8 -> 9 | S24: =AJ8 -> 6 | T24: =AO8 -> 7 | U24: =AT8 -> 4
A25: 11 | B25: 1816 | C25: 21 | D25: 1829 | K25: 0 | L25: 12 | O25: % target
A26: 11 | B26: 1918 | C26: 21 | D26: 1927 | K26: 0 | L26: 12 | O26: CCRF
A27: 11 | B27: 2010 | C27: 21 | D27: 2020 | K27: 0 | L27: 12 | O27: % CCRf
A28: 11 | B28: 2106 | C28: 21 | D28: 2112 | K28: 0 | L28: 12 | O28: average response rate | P28: =D14/P20 -> 94.625 | Q28: =(D22-D14)/Q20 -> 97.875 | R28: =(D31-D22)/R20 -> 96.11111111 | S28: =(D39-D31)/S20 -> 100.375 | T28: =(D47-D39)/T20 -> 98.625 | U28: =(D55-D47)/U20 -> 116.75
A29: 11 | B29: 2200 | C29: 21 | D29: 2209 | K29: 0 | L29: 12
A30: 11 | B30: 2296 | C30: 21 | D30: 2305 | K30: 0 | L30: 12
A31: 11 | B31: 2396 | C31: 21 | D31: 2405 | K31: 0 | L31: 12
A32: 11 | B32: 2494 | C32: 21 | D32: 2508 | K32: 0 | L32: 12
A33: 11 | B33: 2596 | C33: 21 | D33: 2605 | K33: 0 | L33: 12
A34: 11 | B34: 2691 | C34: 21 | D34: 2700 | K34: 0 | L34: 12
A35: 11 | B35: 2787 | C35: 21 | D35: 2797 | K35: 0 | L35: 12
A36: 22 | B36: 2893 | C36: 23 | D36: 2907 | K36: 0 | L36: 22
A37: 11 | B37: 2994 | C37: 12 | D37: 3002 | K37: 0 | L37: 11
A38: 11 | B38: 3097 | C38: 21 | D38: 3107 | K38: 0 | L38: 12
A39: 11 | B39: 3198 | C39: 21 | D39: 3208 | K39: 0 | L39: 12
A40: 11 | B40: 3293 | C40: 21 | D40: 3303 | K40: 0 | L40: 12
A41: 11 | B41: 3390 | C41: 21 | D41: 3400 | K41: 0 | L41: 12
A42: 11 | B42: 3484 | C42: 21 | D42: 3494 | K42: 0 | L42: 12
A43: 11 | B43: 3580 | C43: 21 | D43: 3589 | K43: 0 | L43: 12
A44: 11 | B44: 3674 | C44: 21 | D44: 3688 | K44: 0 | L44: 12
A45: 11 | B45: 3774 | C45: 12 | D45: 3783 | K45: 0 | L45: 11
A46: 11 | B46: 3878 | C46: 21 | D46: 3887 | K46: 0 | L46: 12
A47: 11 | B47: 3975 | C47: 21 | D47: 3997 | K47: 0 | L47: 12
A48: 22 | B48: 4099 | C48: 23 | D48: 4121 | K48: 0 | L48: 22
A49: 11 | B49: 4221 | C49: 21 | D49: 4231 | K49: 0 | L49: 12
A50: 22 | B50: 4328 | C50: 23 | D50: 4345 | K50: 0 | L50: 22
A51: 22 | B51: 4459 | C51: 23 | D51: 4470 | K51: 0 | L51: 22
A52: 11 | B52: 4567 | C52: 21 | D52: 4577 | K52: 0 | L52: 12
A53: 22 | B53: 4694 | C53: 23 | D53: 4708 | K53: 0 | L53: 22
A54: 11 | B54: 4805 | C54: 21 | D54: 4815 | K54: 0 | L54: 12
A55: 11 | B55: 4903 | C55: 21 | D55: 4931 | K55: 1 | L55: 12

Sheet !LB28B50.056
A1: Report for:!LB28B50.056
A2: Date: | B2: <date>
A3: Hen: | B3: <hen> | F3: Correct Sequence | G3: =Start!J2 -> 12 | P3: Total Sequences in Data | Q3: =4994-COUNTBLANK(L7:L5000) -> 48 | V3: Total Sequences in Block Data | W3: =COUNTA(L7:L14) -> 8 | AA3: Total Sequences in Block Data | AB3: =COUNTA(L15:L22) -> 8 | AF3: Total Sequences in Block Data | AG3: =COUNTA(L23:L30) -> 8 | AK3: Total Sequences in Block Data | AL3: =COUNTA(L31:L38) -> 8 | AP3: Total Sequences in Block Data | AQ3: =COUNTA(L39:L46) -> 8 | AU3: Total Sequences in Block Data | AV3: =COUNTA(L47:L54) -> 8
P4: Total Sequences in Summary | Q4: =SUM(O7:O14) -> 48 | V4: Total Sequences in Block Summary | W4: =SUM(U7:U14) -> 8 | AA4: Total Sequences in Block Summary | AB4: =SUM(Z7:Z14) -> 8 | AF4: Total Sequences in Block Summary | AG4: =SUM(AE7:AE14) -> 8 | AK4: Total Sequences in Block Summary | AL4: =SUM(AJ7:AJ14) -> 8 | AP4: Total Sequences in Block Summary | AQ4: =SUM(AO7:AO14) -> 8 | AU4: Total Sequences in Block Summary | AV4: =SUM(AT7:AT14) -> 8
T5: Block 1 | Y5: Block 2 | AD5: Block 3 | AI5: Block 4 | AN5: Block 5 | AS5: Block 6
A6: Sequence Component 1 | B6: Time 1 | C6: Sequence Component 2 | D6: Time 2 | E6: Sequence Component 3 | F6: Time 3 | G6: Sequence Component 4 | H6: Time 4 | I6: Sequence Component 5 | J6: Time 5 | K6: Correct? 0=No 1=Yes | L6: Sequence | N6: Frequency | P6: Relative Frequency | Q6: Variability | T6: Frequency | V6: Relative Frequency | W6: Variability | Y6: Frequency | AA6: Relative Frequency | AB6: Variability | AD6: Frequency | AF6: Relative Frequency | AG6: Variability | AI6: Frequency | AK6: Relative Frequency | AL6: Variability | AN6: Frequency | AP6: Relative Frequency | AQ6: Variability | AS6: Frequency | AU6: Relative Frequency | AV6: Variability
A7: 11 | B7: 7 | C7: 12 | D7: 13 | K7: 0 | L7: 11 | N7: 11 | O7: =COUNTIF($L$7:$L$500,N7) -> 3 | P7: =O7/$Q$4 -> 0.0625 | Q7: =IF(P7=0,0,(P7*((LOG(P7))/LOG(2)))) -> -0.25 | T7: =N7 -> 11 | U7: =COUNTIF(L7:L14,T7) -> 2 | V7: =U7/(W4-U8) -> 1 | W7: =IF(V7=0,0,(V7*((LOG(V7))/LOG(2)))) -> 0 | Y7: =N7 -> 11 | Z7: =COUNTIF(L15:L22,Y7) -> 0 | AA7: =Z7/(AB4-Z8) -> 0 | AB7: =IF(AA7=0,0,(AA7*((LOG(AA7))/LOG(2)))) -> 0 | AD7: =N7 -> 11 | AE7: =COUNTIF(L23:L30,AD7) -> 0 | AF7: =AE7/(AG4-AE8) -> 0 | AG7: =IF(AF7=0,0,(AF7*((LOG(AF7))/LOG(2)))) -> 0 | AI7: =N7 -> 11 | AJ7: =COUNTIF(L31:L38,AI7) -> 0 | AK7: =AJ7/(AL4-AJ8) -> 0 | AL7: =IF(AK7=0,0,(AK7*((LOG(AK7))/LOG(2)))) -> 0 | AN7: =N7 -> 11 | AO7: =COUNTIF(L39:L46,AN7) -> 0 | AP7: =AO7/(AQ4-AO8) -> 0 | AQ7: =IF(AP7=0,0,(AP7*((LOG(AP7))/LOG(2)))) -> 0 | AS7: =N7 -> 11 | AT7: =COUNTIF(L47:L54,AS7) -> 1 | AU7: =AT7/(AV4-AT8) -> 0.5 | AV7: =IF(AU7=0,0,(AU7*((LOG(AU7))/LOG(2)))) -> -0.5
A8: 11 | B8: 111 | C8: 12 | D8: 121 | K8: 0 | L8: 11 | N8: 12 | O8: =COUNTIF($L$7:$L$500,N8) -> 39 | P8: =O8/$Q$4 -> 0.8125 | Q8: =IF(P8=0,0,(P8*((LOG(P8))/LOG(2)))) -> -0.243392729 | T8: =N8 -> 12 | U8: =COUNTIF(L7:L14,T8) -> 6 | Y8: =N8 -> 12 | Z8: =COUNTIF(L15:L22,Y8) -> 7 | AD8: =N8 -> 12 | AE8: =COUNTIF(L23:L30,AD8) -> 6 | AI8: =N8 -> 12 | AJ8: =COUNTIF(L31:L38,AI8) -> 7 | AN8: =N8 -> 12 | AO8: =COUNTIF(L39:L46,AN8) -> 7 | AS8: =N8 -> 12 | AT8: =COUNTIF(L47:L54,AS8) -> 6
A9: 11 | B9: 222 | C9: 21 | D9: 251 | K9: 0 | L9: 12 | N9: 21 | O9: =COUNTIF($L$7:$L$500,N9) -> 0 | P9: =O9/$Q$4 -> 0 | Q9: =IF(P9=0,0,(P9*((LOG(P9))/LOG(2)))) -> 0 | T9: =N9 -> 21 | U9: =COUNTIF(L7:L14,T9) -> 0 | V9: =U9/(W4-U8) -> 0 | W9: =IF(V9=0,0,(V9*((LOG(V9))/LOG(2)))) -> 0 | Y9: =N9 -> 21 | Z9: =COUNTIF(L15:L22,Y9) -> 0 | AA9: =Z9/(AB4-Z8) -> 0 | AB9: =IF(AA9=0,0,(AA9*((LOG(AA9))/LOG(2)))) -> 0 | AD9: =N9 -> 21 | AE9: =COUNTIF(L23:L30,AD9) -> 0 | AF9: =AE9/(AG4-AE8) -> 0 | AG9: =IF(AF9=0,0,(AF9*((LOG(AF9))/LOG(2)))) -> 0 | AI9: =N9 -> 21 | AJ9: =COUNTIF(L31:L38,AI9) -> 0 | AK9: =AJ9/(AL4-AJ8) -> 0 | AL9: =IF(AK9=0,0,(AK9*((LOG(AK9))/LOG(2)))) -> 0 | AN9: =N9 -> 21 | AO9: =COUNTIF(L39:L46,AN9) -> 0 | AP9: =AO9/(AQ4-AO8) -> 0 | AQ9: =IF(AP9=0,0,(AP9*((LOG(AP9))/LOG(2)))) -> 0 | AS9: =N9 -> 21 | AT9: =COUNTIF(L47:L54,AS9) -> 0 | AU9: =AT9/(AV4-AT8) -> 0 | AV9: =IF(AU9=0,0,(AU9*((LOG(AU9))/LOG(2)))) -> 0
A10: 11 | B10: 341 | C10: 21 | D10: 349 | K10: 0 | L10: 12 | N10: 22 | O10: =COUNTIF($L$7:$L$500,N10) -> 6 | P10: =O10/$Q$4 -> 0.125 | Q10: =IF(P10=0,0,(P10*((LOG(P10))/LOG(2)))) -> -0.375 | T10: =N10 -> 22 | U10: =COUNTIF(L7:L14,T10) -> 0 | V10: =U10/(W4-U8) -> 0 | W10: =IF(V10=0,0,(V10*((LOG(V10))/LOG(2)))) -> 0 | Y10: =N10 -> 22 | Z10: =COUNTIF(L15:L22,Y10) -> 1 | AA10: =Z10/(AB4-Z8) -> 1 | AB10: =IF(AA10=0,0,(AA10*((LOG(AA10))/LOG(2)))) -> 0 | AD10: =N10 -> 22 | AE10: =COUNTIF(L23:L30,AD10) -> 2 | AF10: =AE10/(AG4-AE8) -> 1 | AG10: =IF(AF10=0,0,(AF10*((LOG(AF10))/LOG(2)))) -> 0 | AI10: =N10 -> 22 | AJ10: =COUNTIF(L31:L38,AI10) -> 1 | AK10: =AJ10/(AL4-AJ8) -> 1 | AL10: =IF(AK10=0,0,(AK10*((LOG(AK10))/LOG(2)))) -> 0 | AN10: =N10 -> 22 | AO10: =COUNTIF(L39:L46,AN10) -> 1 | AP10: =AO10/(AQ4-AO8) -> 1 | AQ10: =IF(AP10=0,0,(AP10*((LOG(AP10))/LOG(2)))) -> 0 | AS10: =N10 -> 22 | AT10: =COUNTIF(L47:L54,AS10) -> 1 | AU10: =AT10/(AV4-AT8) -> 0.5 | AV10: =IF(AU10=0,0,(AU10*((LOG(AU10))/LOG(2)))) -> -0.5
A11: 11 | B11: 438 | C11: 21 | D11: 448 | K11: 0 | L11: 12 | T11: =N11 -> 0 | U11: =COUNTIF(L7:L14,T11) -> 0 | V11: =U11/(W4-U8) -> 0 | W11: =IF(V11=0,0,(V11*((LOG(V11))/LOG(2)))) -> 0 | Y11: =N11 -> 0 | Z11: =COUNTIF(L15:L22,Y11) -> 0 | AA11: =Z11/(AB4-Z8) -> 0 | AB11: =IF(AA11=0,0,(AA11*((LOG(AA11))/LOG(2)))) -> 0 | AD11: =N11 -> 0 | AE11: =COUNTIF(L23:L30,AD11) -> 0 | AF11: =AE11/(AG4-AE8) -> 0 | AG11: =IF(AF11=0,0,(AF11*((LOG(AF11))/LOG(2)))) -> 0 | AI11: =N11 -> 0 | AJ11: =COUNTIF(L31:L38,AI11) -> 0 | AK11: =AJ11/(AL4-AJ8) -> 0 | AL11: =IF(AK11=0,0,(AK11*((LOG(AK11))/LOG(2)))) -> 0 | AN11: =N11 -> 0 | AO11: =COUNTIF(L39:L46,AN11) -> 0 | AP11: =AO11/(AQ4-AO8) -> 0 | AQ11: =IF(AP11=0,0,(AP11*((LOG(AP11))/LOG(2)))) -> 0 | AS11: =N11 -> 0 | AT11: =COUNTIF(L47:L54,AS11) -> 0 | AU11: =AT11/(AV4-AT8) -> 0 | AV11: =IF(AU11=0,0,(AU11*((LOG(AU11))/LOG(2)))) -> 0
A12: 11 | B12: 536 | C12: 21 | D12: 546 | K12: 0 | L12: 12 | T12: =N12 -> 0 | U12: =COUNTIF(L7:L14,T12) -> 0 | V12: =U12/(W4-U8) -> 0 | W12: =IF(V12=0,0,(V12*((LOG(V12))/LOG(2)))) -> 0 | Y12: =N12 -> 0 | Z12: =COUNTIF(L15:L22,Y12) -> 0 | AA12: =Z12/(AB4-Z8) -> 0 | AB12: =IF(AA12=0,0,(AA12*((LOG(AA12))/LOG(2)))) -> 0 | AD12: =N12 -> 0 | AE12: =COUNTIF(L23:L30,AD12) -> 0 | AF12: =AE12/(AG4-AE8) -> 0 | AG12: =IF(AF12=0,0,(AF12*((LOG(AF12))/LOG(2)))) -> 0 | AI12: =N12 -> 0 | AJ12: =COUNTIF(L31:L38,AI12) -> 0 | AK12: =AJ12/(AL4-AJ8) -> 0 | AL12: =IF(AK12=0,0,(AK12*((LOG(AK12))/LOG(2)))) -> 0 | AN12: =N12 -> 0 | AO12: =COUNTIF(L39:L46,AN12) -> 0 | AP12: =AO12/(AQ4-AO8) -> 0 | AQ12: =IF(AP12=0,0,(AP12*((LOG(AP12))/LOG(2)))) -> 0 | AS12: =N12 -> 0 | AT12: =COUNTIF(L47:L54,AS12) -> 0 | AU12: =AT12/(AV4-AT8) -> 0 | AV12: =IF(AU12=0,0,(AU12*((LOG(AU12))/LOG(2)))) -> 0
A13: 11 | B13: 633 | C13: 21 | D13: 647 | K13: 0 | L13: 12 | T13: =N13 -> 0 | U13: =COUNTIF(L7:L14,T13) -> 0 | V13: =U13/(W4-U8) -> 0 | W13: =IF(V13=0,0,(V13*((LOG(V13))/LOG(2)))) -> 0 | Y13: =N13 -> 0 | Z13: =COUNTIF(L15:L22,Y13) -> 0 | AA13: =Z13/(AB4-Z8) -> 0 | AB13: =IF(AA13=0,0,(AA13*((LOG(AA13))/LOG(2)))) -> 0 | AD13: =N13 -> 0 | AE13: =COUNTIF(L23:L30,AD13) -> 0 | AF13: =AE13/(AG4-AE8) -> 0 | AG13: =IF(AF13=0,0,(AF13*((LOG(AF13))/LOG(2)))) -> 0 | AI13: =N13 -> 0 | AJ13: =COUNTIF(L31:L38,AI13) -> 0 | AK13: =AJ13/(AL4-AJ8) -> 0 | AL13: =IF(AK13=0,0,(AK13*((LOG(AK13))/LOG(2)))) -> 0 | AN13: =N13 -> 0 | AO13: =COUNTIF(L39:L46,AN13) -> 0 | AP13: =AO13/(AQ4-AO8) -> 0 | AQ13: =IF(AP13=0,0,(AP13*((LOG(AP13))/LOG(2)))) -> 0 | AS13: =N13 -> 0 | AT13: =COUNTIF(L47:L54,AS13) -> 0 | AU13: =AT13/(AV4-AT8) -> 0 | AV13: =IF(AU13=0,0,(AU13*((LOG(AU13))/LOG(2)))) -> 0
A14: 11 | B14: 733 | C14: 21 | D14: 743 | K14: 0 | L14: 12 | T14: =N14 -> 0 | U14: =COUNTIF(L7:L14,T14) -> 0 | V14: =U14/(W4-U8) -> 0 | W14: =IF(V14=0,0,(V14*((LOG(V14))/LOG(2)))) -> 0 | Y14: =N14 -> 0 | Z14: =COUNTIF(L15:L22,Y14) -> 0 | AA14: =Z14/(AB4-Z8) -> 0 | AB14: =IF(AA14=0,0,(AA14*((LOG(AA14))/LOG(2)))) -> 0 | AD14: =N14 -> 0 | AE14: =COUNTIF(L23:L30,AD14) -> 0 | AF14: =AE14/(AG4-AE8) -> 0 | AG14: =IF(AF14=0,0,(AF14*((LOG(AF14))/LOG(2)))) -> 0 | AI14: =N14 -> 0 | AJ14: =COUNTIF(L31:L38,AI14) -> 0 | AK14: =AJ14/(AL4-AJ8) -> 0 | AL14: =IF(AK14=0,0,(AK14*((LOG(AK14))/LOG(2)))) -> 0 | AN14: =N14 -> 0 | AO14: =COUNTIF(L39:L46,AN14) -> 0 | AP14: =AO14/(AQ4-AO8) -> 0 | AQ14: =IF(AP14=0,0,(AP14*((LOG(AP14))/LOG(2)))) -> 0 | AS14: =N14 -> 0 | AT14: =COUNTIF(L47:L54,AS14) -> 0 | AU14: =AT14/(AV4-AT8) -> 0 | AV14: =IF(AU14=0,0,(AU14*((LOG(AU14))/LOG(2)))) -> 0
A15: 11 | B15: 833 | C15: 21 | D15: 842 | K15: 0 | L15: 12 | P15: =SUM(P7:P14) -> 1 | Q15: =-SUM(Q7:Q14) -> 0.868392729 | V15: =SUM(V7:V14) -> 1 | W15: =-SUM(W7:W14) -> 0 | AA15: =SUM(AA7:AA14) -> 1 | AB15: =-SUM(AB7:AB14) -> 0 | AF15: =SUM(AF7:AF14) -> 1 | AG15: =-SUM(AG7:AG14) -> 0 | AK15: =SUM(AK7:AK14) -> 1 | AL15: =-SUM(AL7:AL14) -> 0 | AP15: =SUM(AP7:AP14) -> 1 | AQ15: =-SUM(AQ7:AQ14) -> 0 | AU15: =SUM(AU7:AU14) -> 1 | AV15: =-SUM(AV7:AV14) -> 1
A16: 11 | B16: 934 | C16: 21 | D16: 946 | K16: 0 | L16: 12 | P16: U= | Q16: =Q15/(LOG(Q4)/LOG(2)) -> 0.1554876562 | V16: U1= | W16: =W15/(LOG(W4)/LOG(2)) -> 0 | AA16: U2= | AB16: =AB15/(LOG(AB4)/LOG(2)) -> 0 | AF16: U3= | AG16: =AG15/(LOG(AG4)/LOG(2)) -> 0 | AK16: U4= | AL16: =AL15/(LOG(AL4)/LOG(2)) -> 0 | AP16: U5= | AQ16: =AQ15/(LOG(AQ4)/LOG(2)) -> 0 | AU16: U6= | AV16: =AV15/(LOG(AV4)/LOG(2)) -> 0.3333333333
A17: 11 | B17: 1031 | C17: 21 | D17: 1040 | K17: 0 | L17: 12
A18: 22 | B18: 1144 | C18: 23 | D18: 1157 | K18: 0 | L18: 22
A19: 11 | B19: 1246 | C19: 21 | D19: 1263 | K19: 0 | L19: 12 | N19: Total Target Seq
A20: 11 | B20: 1356 | C20: 21 | D20: 1367 | K20: 0 | L20: 12 | N20: =COUNTIF(L7:L54,G3) -> 39 | P20: 8 | Q20: 8 | R20: 8 | S20: 8 | T20: 8 | U20: 8
A21: 11 | B21: 1461 | C21: 21 | D21: 1469 | K21: 0 | L21: 12 | P21: % of reinforcement given in 6 equal intervals based on number of trials
A22: 11 | B22: 1554 | C22: 21 | D22: 1563 | K22: 0 | L22: 12 | P22: %_1 | Q22: %_2 | R22: %_3 | S22: %_4 | T22: %_5 | U22: %_6
A23: 11 | B23: 1652 | C23: 21 | D23: 1660 | K23: 0 | L23: 12 | O23: target sequence | P23: =$G$3 -> 12 | Q23: =$G$3 -> 12 | R23: =$G$3 -> 12 | S23: =$G$3 -> 12 | T23: =$G$3 -> 12 | U23: =$G$3 -> 12
A24: 22 | B24: 1761 | C24: 23 | D24: 1778 | K24: 0 | L24: 22 | O24: total reinforcement | P24: =U8 -> 6 | Q24: =Z8 -> 7 | R24: =AE8 -> 6 | S24: =AJ8 -> 7 | T24: =AO8 -> 7 | U24: =AT8 -> 6
A25: 11 | B25: 1880 | C25: 21 | D25: 1888 | K25: 0 | L25: 12 | O25: % target
A26: 22 | B26: 1993 | C26: 23 | D26: 2002 | K26: 0 | L26: 22 | O26: CCRF
A27: 11 | B27: 2106 | C27: 21 | D27: 2119 | K27: 0 | L27: 12 | O27: % CCRf
A28: 11 | B28: 2210 | C28: 21 | D28: 2222 | K28: 0 | L28: 12 | O28: average response rate | P28: =D14/P20 -> 92.875 | Q28: =(D22-D14)/Q20 -> 102.5 | R28: =(D30-D22)/R20 -> 107.25 | S28: =(D38-D30)/S20 -> 106.75 | T28: =(D46-D38)/T20 -> 108.375 | U28: =(D54-D46)/U20 -> 105.625
A29: 11 | B29: 2309 | C29: 21 | D29: 2327 | K29: 0 | L29: 12
A30: 11 | B30: 2411 | C30: 21 | D30: 2421 | K30: 0 | L30: 12
A31: 11 | B31: 2528 | C31: 21 | D31: 2537 | K31: 0 | L31: 12
A32: 11 | B32: 2633 | C32: 21 | D32: 2643 | K32: 0 | L32: 12
A33: 11 | B33: 2733 | C33: 21 | D33: 2742 | K33: 0 | L33: 12
A34: 11 | B34: 2839 | C34: 21 | D34: 2850 | K34: 0 | L34: 12
A35: 11 | B35: 2938 | C35: 21 | D35: 2953 | K35: 0 | L35: 12
A36: 11 | B36: 3040 | C36: 21 | D36: 3053 | K36: 0 | L36: 12
A37: 22 | B37: 3152 | C37: 23 | D37: 3169 | K37: 0 | L37: 22
A38: 11 | B38: 3264 | C38: 21 | D38: 3275 | K38: 0 | L38: 12
A39: 11 | B39: 3367 | C39: 21 | D39: 3376 | K39: 0 | L39: 12
A40: 22 | B40: 3488 | C40: 23 | D40: 3522 | K40: 0 | L40: 22
A41: 11 | B41: 3621 | C41: 21 | D41: 3630 | K41: 0 | L41: 12
A42: 11 | B42: 3716 | C42: 21 | D42: 3729 | K42: 0 | L42: 12
A43: 11 | B43: 3827 | C43: 21 | D43: 3847 | K43: 0 | L43: 12
A44: 11 | B44: 3937 | C44: 21 | D44: 3947 | K44: 0 | L44: 12
A45: 11 | B45: 4032 | C45: 21 | D45: 4043 | K45: 0 | L45: 12
A46: 11 | B46: 4133 | C46: 21 | D46: 4142 | K46: 0 | L46: 12
A47: 11 | B47: 4234 | C47: 21 | D47: 4243 | K47: 0 | L47: 12
A48: 11 | B48: 4329 | C48: 21 | D48: 4338 | K48: 0 | L48: 12
A49: 11 | B49: 4429 | C49: 21 | D49: 4438 | K49: 0 | L49: 12
A50: 11 | B50: 4523 | C50: 12 | D50: 4532 | K50: 0 | L50: 11
A51: 22 | B51: 4645 | C51: 23 | D51: 4658 | K51: 0 | L51: 22
A52: 11 | B52: 4772 | C52: 21 | D52: 4781 | K52: 0 | L52: 12
A53: 11 | B53: 4870 | C53: 21 | D53: 4879 | K53: 0 | L53: 12
A54: 11 | B54: 4977 | C54: 21 | D54: 4987 | K54: 1 | L54: 12

Sheet !LB30C10.056
A1: Report for:!LB30C10.056
A2: Date: | B2: <date>
A3: Hen: | B3: <hen> | F3: Correct Sequence | G3: =Start!J2 -> 12 | P3: Total Sequences in Data | Q3: =4994-COUNTBLANK(L7:L5000) -> 41 | V3: Total Sequences in Block Data | W3: =COUNTA(L7:L13) -> 7 | AA3: Total Sequences in Block Data | AB3: =COUNTA(L14:L20) -> 7 | AF3: Total Sequences in Block Data | AG3: =COUNTA(L21:L26) -> 6 | AK3: Total Sequences in Block Data | AL3: =COUNTA(L27:L33) -> 7 | AP3: Total Sequences in Block Data | AQ3: =COUNTA(L34:L40) -> 7 | AU3: Total Sequences in Block Data | AV3: =COUNTA(L41:L47) -> 7
P4: Total Sequences in Summary | Q4: =SUM(O7:O14) -> 41 | V4: Total Sequences in Block Summary | W4: =SUM(U7:U14) -> 7 | AA4: Total Sequences in Block Summary | AB4: =SUM(Z7:Z14) -> 7 | AF4: Total Sequences in Block Summary | AG4: =SUM(AE7:AE14) -> 6 | AK4: Total Sequences in Block Summary | AL4: =SUM(AJ7:AJ14) -> 7 | AP4: Total Sequences in Block Summary | AQ4: =SUM(AO7:AO14) -> 7 | AU4: Total Sequences in Block Summary | AV4: =SUM(AT7:AT14) -> 7
T5: Block 1 | Y5: Block 2 | AD5: Block 3 | AI5: Block 4 | AN5: Block 5 | AS5: Block 6
A6: Sequence Component 1 | B6: Time 1 | C6: Sequence Component 2 | D6: Time 2 | E6: Sequence Component 3 | F6: Time 3 | G6: Sequence Component 4 | H6: Time 4 | I6: Sequence Component 5 | J6: Time 5 | K6: Correct? 0=No 1=Yes | L6: Sequence | N6: Frequency | P6: Relative Frequency | Q6: Variability | T6: Frequency | V6: Relative Frequency | W6: Variability | Y6: Frequency | AA6: Relative Frequency | AB6: Variability | AD6: Frequency | AF6: Relative Frequency | AG6: Variability | AI6: Frequency | AK6: Relative Frequency | AL6: Variability | AN6: Frequency | AP6: Relative Frequency | AQ6: Variability | AS6: Frequency | AU6: Relative Frequency | AV6: Variability
A7: 22 | B7: 9 | C7: 23 | D7: 29 | K7: 0 | L7: 22 | N7: 11 | O7: =COUNTIF($L$7:$L$500,N7) -> 1 | P7: =O7/$Q$4 -> 0.0243902439 | Q7: =IF(P7=0,0,(P7*((LOG(P7))/LOG(2)))) -> -0.1306720001 | T7: =N7 -> 11 | U7: =COUNTIF(L7:L13,T7) -> 0 | V7: =U7/(W4-U8) -> 0 | W7: =IF(V7=0,0,(V7*((LOG(V7))/LOG(2)))) -> 0 | Y7: =N7 -> 11 | Z7: =COUNTIF(L14:L20,Y7) -> 0 | AA7: =Z7/(AB4-Z8) ->  | AB7: =IF(AA7=0,0,(AA7*((LOG(AA7))/LOG(2)))) ->  | AD7: =N7 -> 11 | AE7: =COUNTIF(L21:L26,AD7) -> 0 | AF7: =AE7/(AG4-AE8) ->  | AG7: =IF(AF7=0,0,(AF7*((LOG(AF7))/LOG(2)))) ->  | AI7: =N7 -> 11 | AJ7: =COUNTIF(L27:L33,AI7) -> 1 | AK7: =AJ7/(AL4-AJ8) -> 1 | AL7: =IF(AK7=0,0,(AK7*((LOG(AK7))/LOG(2)))) -> 0 | AN7: =N7 -> 11 | AO7: =COUNTIF(L34:L40,AN7) -> 0 | AP7: =AO7/(AQ4-AO8) ->  | AQ7: =IF(AP7=0,0,(AP7*((LOG(AP7))/LOG(2)))) ->  | AS7: =N7 -> 11 | AT7: =COUNTIF(L41:L47,AS7) -> 0 | AU7: =AT7/(AV4-AT8) ->  | AV7: =IF(AU7=0,0,(AU7*((LOG(AU7))/LOG(2)))) -> 
A8: 11 | B8: 124 | C8: 21 | D8: 134 | K8: 0 | L8: 12 | N8: 12 | O8: =COUNTIF($L$7:$L$500,N8) -> 39 | P8: =O8/$Q$4 -> 0.9512195122 | Q8: =IF(P8=0,0,(P8*((LOG(P8))/LOG(2)))) -> -0.06863028401 | T8: =N8 -> 12 | U8: =COUNTIF(L7:L13,T8) -> 6 | Y8: =N8 -> 12 | Z8: =COUNTIF(L14:L20,Y8) -> 7 | AD8: =N8 -> 12 | AE8: =COUNTIF(L21:L26,AD8) -> 6 | AI8: =N8 -> 12 | AJ8: =COUNTIF(L27:L33,AI8) -> 6 | AN8: =N8 -> 12 | AO8: =COUNTIF(L34:L40,AN8) -> 7 | AS8: =N8 -> 12 | AT8: =COUNTIF(L41:L47,AS8) -> 7
A9: 11 | B9: 220 | C9: 21 | D9: 230 | K9: 0 | L9: 12 | N9: 21 | O9: =COUNTIF($L$7:$L$500,N9) -> 0 | P9: =O9/$Q$4 -> 0 | Q9: =IF(P9=0,0,(P9*((LOG(P9))/LOG(2)))) -> 0 | T9: =N9 -> 21 | U9: =COUNTIF(L7:L13,T9) -> 0 | V9: =U9/(W4-U8) -> 0 | W9: =IF(V9=0,0,(V9*((LOG(V9))/LOG(2)))) -> 0 | Y9: =N9 -> 21 | Z9: =COUNTIF(L14:L20,Y9) -> 0 | AA9: =Z9/(AB4-Z8) ->  | AB9: =IF(AA9=0,0,(AA9*((LOG(AA9))/LOG(2)))) ->  | AD9: =N9 -> 21 | AE9: =COUNTIF(L21:L26,AD9) -> 0 | AF9: =AE9/(AG4-AE8) ->  | AG9: =IF(AF9=0,0,(AF9*((LOG(AF9))/LOG(2)))) ->  | AI9: =N9 -> 21 | AJ9: =COUNTIF(L27:L33,AI9) -> 0 | AK9: =AJ9/(AL4-AJ8) -> 0 | AL9: =IF(AK9=0,0,(AK9*((LOG(AK9))/LOG(2)))) -> 0 | AN9: =N9 -> 21 | AO9: =COUNTIF(L34:L40,AN9) -> 0 | AP9: =AO9/(AQ4-AO8) ->  | AQ9: =IF(AP9=0,0,(AP9*((LOG(AP9))/LOG(2)))) ->  | AS9: =N9 -> 21 | AT9: =COUNTIF(L41:L47,AS9) -> 0 | AU9: =AT9/(AV4-AT8) ->  | AV9: =IF(AU9=0,0,(AU9*((LOG(AU9))/LOG(2)))) -> 
A10: 11 | B10: 324 | C10: 21 | D10: 333 | K10: 0 | L10: 12 | N10: 22 | O10: =COUNTIF($L$7:$L$500,N10) -> 1 | P10: =O10/$Q$4 -> 0.0243902439 | Q10: =IF(P10=0,0,(P10*((LOG(P10))/LOG(2)))) -> -0.1306720001 | T10: =N10 -> 22 | U10: =COUNTIF(L7:L13,T10) -> 1 | V10: =U10/(W4-U8) -> 1 | W10: =IF(V10=0,0,(V10*((LOG(V10))/LOG(2)))) -> 0 | Y10: =N10 -> 22 | Z10: =COUNTIF(L14:L20,Y10) -> 0 | AA10: =Z10/(AB4-Z8) ->  | AB10: =IF(AA10=0,0,(AA10*((LOG(AA10))/LOG(2)))) ->  | AD10: =N10 -> 22 | AE10: =COUNTIF(L21:L26,AD10) -> 0 | AF10: =AE10/(AG4-AE8) ->  | AG10: =IF(AF10=0,0,(AF10*((LOG(AF10))/LOG(2)))) ->  | AI10: =N10 -> 22 | AJ10: =COUNTIF(L27:L33,AI10) -> 0 | AK10: =AJ10/(AL4-AJ8) -> 0 | AL10: =IF(AK10=0,0,(AK10*((LOG(AK10))/LOG(2)))) -> 0 | AN10: =N10 -> 22 | AO10: =COUNTIF(L34:L40,AN10) -> 0 | AP10: =AO10/(AQ4-AO8) ->  | AQ10: =IF(AP10=0,0,(AP10*((LOG(AP10))/LOG(2)))) ->  | AS10: =N10 -> 22 | AT10: =COUNTIF(L41:L47,AS10) -> 0 | AU10: =AT10/(AV4-AT8) ->  | AV10: =IF(AU10=0,0,(AU10*((LOG(AU10))/LOG(2)))) -> 
A11: 11 | B11: 418 | C11: 21 | D11: 428 | K11: 0 | L11: 12 | T11: =N11 -> 0 | U11: =COUNTIF(L7:L13,T11) -> 0 | V11: =U11/(W4-U8) -> 0 | W11: =IF(V11=0,0,(V11*((LOG(V11))/LOG(2)))) -> 0 | Y11: =N11 -> 0 | Z11: =COUNTIF(L14:L20,Y11) -> 0 | AA11: =Z11/(AB4-Z8) ->  | AB11: =IF(AA11=0,0,(AA11*((LOG(AA11))/LOG(2)))) ->  | AD11: =N11 -> 0 | AE11: =COUNTIF(L21:L26,AD11) -> 0 | AF11: =AE11/(AG4-AE8) ->  | AG11: =IF(AF11=0,0,(AF11*((LOG(AF11))/LOG(2)))) ->  | AI11: =N11 -> 0 | AJ11: =COUNTIF(L27:L33,AI11) -> 0 | AK11: =AJ11/(AL4-AJ8) -> 0 | AL11: =IF(AK11=0,0,(AK11*((LOG(AK11))/LOG(2)))) -> 0 | AN11: =N11 -> 0 | AO11: =COUNTIF(L34:L40,AN11) -> 0 | AP11: =AO11/(AQ4-AO8) ->  | AQ11: =IF(AP11=0,0,(AP11*((LOG(AP11))/LOG(2)))) ->  | AS11: =N11 -> 0 | AT11: =COUNTIF(L41:L47,AS11) -> 0 | AU11: =AT11/(AV4-AT8) ->  | AV11: =IF(AU11=0,0,(AU11*((LOG(AU11))/LOG(2)))) -> 
A12: 11 | B12: 514 | C12: 21 | D12: 524 | K12: 0 | L12: 12 | T12: =N12 -> 0 | U12: =COUNTIF(L7:L13,T12) -> 0 | V12: =U12/(W4-U8) -> 0 | W12: =IF(V12=0,0,(V12*((LOG(V12))/LOG(2)))) -> 0 | Y12: =N12 -> 0 | Z12: =COUNTIF(L14:L20,Y12) -> 0 | AA12: =Z12/(AB4-Z8) ->  | AB12: =IF(AA12=0,0,(AA12*((LOG(AA12))/LOG(2)))) ->  | AD12: =N12 -> 0 | AE12: =COUNTIF(L21:L26,AD12) -> 0 | AF12: =AE12/(AG4-AE8) ->  | AG12: =IF(AF12=0,0,(AF12*((LOG(AF12))/LOG(2)))) ->  | AI12: =N12 -> 0 | AJ12: =COUNTIF(L27:L33,AI12) -> 0 | AK12: =AJ12/(AL4-AJ8) -> 0 | AL12: =IF(AK12=0,0,(AK12*((LOG(AK12))/LOG(2)))) -> 0 | AN12: =N12 -> 0 | AO12: =COUNTIF(L34:L40,AN12) -> 0 | AP12: =AO12/(AQ4-AO8) ->  | AQ12: =IF(AP12=0,0,(AP12*((LOG(AP12))/LOG(2)))) ->  | AS12: =N12 -> 0 | AT12: =COUNTIF(L41:L47,AS12) -> 0 | AU12: =AT12/(AV4-AT8) ->  | AV12: =IF(AU12=0,0,(AU12*((LOG(AU12))/LOG(2)))) -> 
A13: 11 | B13: 608 | C13: 21 | D13: 622 | K13: 0 | L13: 12 | T13: =N13 -> 0 | U13: =COUNTIF(L7:L13,T13) -> 0 | V13: =U13/(W4-U8) -> 0 | W13: =IF(V13=0,0,(V13*((LOG(V13))/LOG(2)))) -> 0 | Y13: =N13 -> 0 | Z13: =COUNTIF(L14:L20,Y13) -> 0 | AA13: =Z13/(AB4-Z8) ->  | AB13: =IF(AA13=0,0,(AA13*((LOG(AA13))/LOG(2)))) ->  | AD13: =N13 -> 0 | AE13: =COUNTIF(L21:L26,AD13) -> 0 | AF13: =AE13/(AG4-AE8) ->  | AG13: =IF(AF13=0,0,(AF13*((LOG(AF13))/LOG(2)))) ->  | AI13: =N13 -> 0 | AJ13: =COUNTIF(L27:L33,AI13) -> 0 | AK13: =AJ13/(AL4-AJ8) -> 0 | AL13: =IF(AK13=0,0,(AK13*((LOG(AK13))/LOG(2)))) -> 0 | AN13: =N13 -> 0 | AO13: =COUNTIF(L34:L40,AN13) -> 0 | AP13: =AO13/(AQ4-AO8) ->  | AQ13: =IF(AP13=0,0,(AP13*((LOG(AP13))/LOG(2)))) ->  | AS13: =N13 -> 0 | AT13: =COUNTIF(L41:L47,AS13) -> 0 | AU13: =AT13/(AV4-AT8) ->  | AV13: =IF(AU13=0,0,(AU13*((LOG(AU13))/LOG(2)))) -> 
A14: 11 | B14: 707 | C14: 21 | D14: 716 | K14: 0 | L14: 12 | T14: =N14 -> 0 | U14: =COUNTIF(L7:L13,T14) -> 0 | V14: =U14/(W4-U8) -> 0 | W14: =IF(V14=0,0,(V14*((LOG(V14))/LOG(2)))) -> 0 | Y14: =N14 -> 0 | Z14: =COUNTIF(L14:L20,Y14) -> 0 | AA14: =Z14/(AB4-Z8) ->  | AB14: =IF(AA14=0,0,(AA14*((LOG(AA14))/LOG(2)))) ->  | AD14: =N14 -> 0 | AE14: =COUNTIF(L21:L26,AD14) -> 0 | AF14: =AE14/(AG4-AE8) ->  | AG14: =IF(AF14=0,0,(AF14*((LOG(AF14))/LOG(2)))) ->  | AI14: =N14 -> 0 | AJ14: =COUNTIF(L27:L33,AI14) -> 0 | AK14: =AJ14/(AL4-AJ8) -> 0 | AL14: =IF(AK14=0,0,(AK14*((LOG(AK14))/LOG(2)))) -> 0 | AN14: =N14 -> 0 | AO14: =COUNTIF(L34:L40,AN14) -> 0 | AP14: =AO14/(AQ4-AO8) ->  | AQ14: =IF(AP14=0,0,(AP14*((LOG(AP14))/LOG(2)))) ->  | AS14: =N14 -> 0 | AT14: =COUNTIF(L41:L47,AS14) -> 0 | AU14: =AT14/(AV4-AT8) ->  | AV14: =IF(AU14=0,0,(AU14*((LOG(AU14))/LOG(2)))) -> 
A15: 11 | B15: 801 | C15: 21 | D15: 810 | K15: 0 | L15: 12 | P15: =SUM(P7:P14) -> 1 | Q15: =-SUM(Q7:Q14) -> 0.3299742842 | V15: =SUM(V7:V14) -> 1 | W15: =-SUM(W7:W14) -> 0 | AA15: =SUM(AA7:AA14) ->  | AB15: =-SUM(AB7:AB14) ->  | AF15: =SUM(AF7:AF14) ->  | AG15: =-SUM(AG7:AG14) ->  | AK15: =SUM(AK7:AK14) -> 1 | AL15: =-SUM(AL7:AL14) -> 0 | AP15: =SUM(AP7:AP14) ->  | AQ15: =-SUM(AQ7:AQ14) ->  | AU15: =SUM(AU7:AU14) ->  | AV15: =-SUM(AV7:AV14) -> 
A16: 11 | B16: 901 | C16: 21 | D16: 910 | K16: 0 | L16: 12 | P16: U= | Q16: =Q15/(LOG(Q4)/LOG(2)) -> 0.0615904958 | V16: U1= | W16: =W15/(LOG(W4)/LOG(2)) -> 0 | AA16: U2= | AB16: =AB15/(LOG(AB4)/LOG(2)) ->  | AF16: U3= | AG16: =AG15/(LOG(AG4)/LOG(2)) ->  | AK16: U4= | AL16: =AL15/(LOG(AL4)/LOG(2)) -> 0 | AP16: U5= | AQ16: =AQ15/(LOG(AQ4)/LOG(2)) ->  | AU16: U6= | AV16: =AV15/(LOG(AV4)/LOG(2)) -> 
A17: 11 | B17: 999 | C17: 21 | D17: 1009 | K17: 0 | L17: 12
A18: 11 | B18: 1096 | C18: 21 | D18: 1106 | K18: 0 | L18: 12
A19: 11 | B19: 1191 | C19: 21 | D19: 1201 | K19: 0 | L19: 12 | N19: Total Target Seq
A20: 11 | B20: 1290 | C20: 21 | D20: 1299 | K20: 0 | L20: 12 | N20: =COUNTIF(L7:L47,G3) -> 39 | P20: 7 | Q20: 7 | R20: 6 | S20: 7 | T20: 7 | U20: 7
A21: 11 | B21: 1384 | C21: 21 | D21: 1397 | K21: 0 | L21: 12 | P21: % of reinforcement given in 6 equal intervals based on number of trials
A22: 11 | B22: 1485 | C22: 21 | D22: 1494 | K22: 0 | L22: 12 | P22: %_1 | Q22: %_2 | R22: %_3 | S22: %_4 | T22: %_5 | U22: %_6
A23: 11 | B23: 1579 | C23: 21 | D23: 1588 | K23: 0 | L23: 12 | O23: target sequence | P23: =$G$3 -> 12 | Q23: =$G$3 -> 12 | R23: =$G$3 -> 12 | S23: =$G$3 -> 12 | T23: =$G$3 -> 12 | U23: =$G$3 -> 12
A24: 11 | B24: 1675 | C24: 21 | D24: 1685 | K24: 0 | L24: 12 | O24: total reinforcement | P24: =U8 -> 6 | Q24: =Z8 -> 7 | R24: =AE8 -> 6 | S24: =AJ8 -> 6 | T24: =AO8 -> 7 | U24: =AT8 -> 7
A25: 11 | B25: 1773 | C25: 21 | D25: 1784 | K25: 0 | L25: 12 | O25: % target
A26: 11 | B26: 1873 | C26: 21 | D26: 1883 | K26: 0 | L26: 12 | O26: CCRF
A27: 11 | B27: 1970 | C27: 21 | D27: 1979 | K27: 0 | L27: 12 | O27: % CCRf
A28: 11 | B28: 2065 | C28: 21 | D28: 2074 | K28: 0 | L28: 12 | O28: average response rate | P28: =D13/P20 -> 88.85714286 | Q28: =(D20-D13)/Q20 -> 96.71428571 | R28: =(D26-D20)/R20 -> 97.33333333 | S28: =(D33-D26)/S20 -> 96.71428571 | T28: =(D40-D33)/T20 -> 99.85714286 | U28: =(D47-D40)/U20 -> 95.57142857
A29: 11 | B29: 2165 | C29: 21 | D29: 2179 | K29: 0 | L29: 12
A30: 11 | B30: 2265 | C30: 21 | D30: 2274 | K30: 0 | L30: 12
A31: 11 | B31: 2356 | C31: 12 | D31: 2362 | K31: 0 | L31: 11
A32: 11 | B32: 2453 | C32: 21 | D32: 2462 | K32: 0 | L32: 12
A33: 11 | B33: 2551 | C33: 21 | D33: 2560 | K33: 0 | L33: 12
A34: 11 | B34: 2658 | C34: 21 | D34: 2668 | K34: 0 | L34: 12
A35: 11 | B35: 2754 | C35: 21 | D35: 2763 | K35: 0 | L35: 12
A36: 11 | B36: 2854 | C36: 21 | D36: 2864 | K36: 0 | L36: 12
A37: 11 | B37: 2949 | C37: 21 | D37: 2964 | K37: 0 | L37: 12
A38: 11 | B38: 3048 | C38: 21 | D38: 3057 | K38: 0 | L38: 12
A39: 11 | B39: 3144 | C39: 21 | D39: 3153 | K39: 0 | L39: 12
A40: 11 | B40: 3249 | C40: 21 | D40: 3259 | K40: 0 | L40: 12
A41: 11 | B41: 3344 | C41: 21 | D41: 3354 | K41: 0 | L41: 12
A42: 11 | B42: 3439 | C42: 21 | D42: 3448 | K42: 0 | L42: 12
A43: 11 | B43: 3537 | C43: 21 | D43: 3546 | K43: 0 | L43: 12
A44: 11 | B44: 3632 | C44: 21 | D44: 3642 | K44: 0 | L44: 12
A45: 11 | B45: 3727 | C45: 21 | D45: 3736 | K45: 0 | L45: 12
A46: 11 | B46: 3823 | C46: 21 | D46: 3833 | K46: 0 | L46: 12
A47: 11 | B47: 3917 | C47: 21 | D47: 3928 | K47: 1 | L47: 12

Sheet !LC01B50.056
A1: Report for:!LC01B50.056
A2: Date: | B2: <date>
A3: Hen: | B3: <hen> | F3: Correct Sequence | G3: =Start!J2 -> 12 | P3: Total Sequences in Data | Q3: =4994-COUNTBLANK(L7:L5000) -> 41 | V3: Total Sequences in Block Data | W3: =COUNTA(L7:L13) -> 7 | AA3: Total Sequences in Block Data | AB3: =COUNTA(L14:L20) -> 7 | AF3: Total Sequences in Block Data | AG3: =COUNTA(L21:L26) -> 6 | AK3: Total Sequences in Block Data | AL3: =COUNTA(L27:L33) -> 7 | AP3: Total Sequences in Block Data | AQ3: =COUNTA(L34:L40) -> 7 | AU3: Total Sequences in Block Data | AV3: =COUNTA(L41:L47) -> 7
P4: Total Sequences in Summary | Q4: =SUM(O7:O14) -> 41 | V4: Total Sequences in Block Summary | W4: =SUM(U7:U14) -> 7 | AA4: Total Sequences in Block Summary | AB4: =SUM(Z7:Z14) -> 7 | AF4: Total Sequences in Block Summary | AG4: =SUM(AE7:AE14) -> 6 | AK4: Total Sequences in Block Summary | AL4: =SUM(AJ7:AJ14) -> 7 | AP4: Total Sequences in Block Summary | AQ4: =SUM(AO7:AO14) -> 7 | AU4: Total Sequences in Block Summary | AV4: =SUM(AT7:AT14) -> 7
T5: Block 1 | Y5: Block 2 | AD5: Block 3 | AI5: Block 4 | AN5: Block 5 | AS5: Block 6
A6: Sequence Component 1 | B6: Time 1 | C6: Sequence Component 2 | D6: Time 2 | E6: Sequence Component 3 | F6: Time 3 | G6: Sequence Component 4 | H6: Time 4 | I6: Sequence Component 5 | J6: Time 5 | K6: Correct? 0=No 1=Yes | L6: Sequence | N6: Frequency | P6: Relative Frequency | Q6: Variability | T6: Frequency | V6: Relative Frequency | W6: Variability | Y6: Frequency | AA6: Relative Frequency | AB6: Variability | AD6: Frequency | AF6: Relative Frequency | AG6: Variability | AI6: Frequency | AK6: Relative Frequency | AL6: Variability | AN6: Frequency | AP6: Relative Frequency | AQ6: Variability | AS6: Frequency | AU6: Relative Frequency | AV6: Variability
A7: 11 | B7: 5 | C7: 21 | D7: 15 | K7: 0 | L7: 12 | N7: 11 | O7: =COUNTIF($L$7:$L$500,N7) -> 1 | P7: =O7/$Q$4 -> 0.0243902439 | Q7: =IF(P7=0,0,(P7*((LOG(P7))/LOG(2)))) -> -0.1306720001 | T7: =N7 -> 11 | U7: =COUNTIF(L7:L13,T7) -> 0 | V7: =U7/(W4-U8) -> 0 | W7: =IF(V7=0,0,(V7*((LOG(V7))/LOG(2)))) -> 0 | Y7: =N7 -> 11 | Z7: =COUNTIF(L14:L20,Y7) -> 1 | AA7: =Z7/(AB4-Z8) -> 1 | AB7: =IF(AA7=0,0,(AA7*((LOG(AA7))/LOG(2)))) -> 0 | AD7: =N7 -> 11 | AE7: =COUNTIF(L21:L26,AD7) -> 0 | AF7: =AE7/(AG4-AE8) ->  | AG7: =IF(AF7=0,0,(AF7*((LOG(AF7))/LOG(2)))) ->  | AI7: =N7 -> 11 | AJ7: =COUNTIF(L27:L33,AI7) -> 0 | AK7: =AJ7/(AL4-AJ8) ->  | AL7: =IF(AK7=0,0,(AK7*((LOG(AK7))/LOG(2)))) ->  | AN7: =N7 -> 11 | AO7: =COUNTIF(L34:L40,AN7) -> 0 | AP7: =AO7/(AQ4-AO8) ->  | AQ7: =IF(AP7=0,0,(AP7*((LOG(AP7))/LOG(2)))) ->  | AS7: =N7 -> 11 | AT7: =COUNTIF(L41:L47,AS7) -> 0 | AU7: =AT7/(AV4-AT8) ->  | AV7: =IF(AU7=0,0,(AU7*((LOG(AU7))/LOG(2)))) -> 
A8: 11 | B8: 101 | C8: 21 | D8: 116 | K8: 0 | L8: 12 | N8: 12 | O8: =COUNTIF($L$7:$L$500,N8) -> 39 | P8: =O8/$Q$4 -> 0.9512195122 | Q8: =IF(P8=0,0,(P8*((LOG(P8))/LOG(2)))) -> -0.06863028401 | T8: =N8 -> 12 | U8: =COUNTIF(L7:L13,T8) -> 6 | Y8: =N8 -> 12 | Z8: =COUNTIF(L14:L20,Y8) -> 6 | AD8: =N8 -> 12 | AE8: =COUNTIF(L21:L26,AD8) -> 6 | AI8: =N8 -> 12 | AJ8: =COUNTIF(L27:L33,AI8) -> 7 | AN8: =N8 -> 12 | AO8: =COUNTIF(L34:L40,AN8) -> 7 | AS8: =N8 -> 12 | AT8: =COUNTIF(L41:L47,AS8) -> 7
A9: 11 | B9: 203 | C9: 21 | D9: 212 | K9: 0 | L9: 12 | N9: 21 | O9: =COUNTIF($L$7:$L$500,N9) -> 0 | P9: =O9/$Q$4 -> 0 | Q9: =IF(P9=0,0,(P9*((LOG(P9))/LOG(2)))) -> 0 | T9: =N9 -> 21 | U9: =COUNTIF(L7:L13,T9) -> 0 | V9: =U9/(W4-U8) -> 0 | W9: =IF(V9=0,0,(V9*((LOG(V9))/LOG(2)))) -> 0 | Y9: =N9 -> 21 | Z9: =COUNTIF(L14:L20,Y9) -> 0 | AA9: =Z9/(AB4-Z8) -> 0 | AB9: =IF(AA9=0,0,(AA9*((LOG(AA9))/LOG(2)))) -> 0 | AD9: =N9 -> 21 | AE9: =COUNTIF(L21:L26,AD9) -> 0 | AF9: =AE9/(AG4-AE8) ->  | AG9: =IF(AF9=0,0,(AF9*((LOG(AF9))/LOG(2)))) ->  | AI9: =N9 -> 21 | AJ9: =COUNTIF(L27:L33,AI9) -> 0 | AK9: =AJ9/(AL4-AJ8) ->  | AL9: =IF(AK9=0,0,(AK9*((LOG(AK9))/LOG(2)))) ->  | AN9: =N9 -> 21 | AO9: =COUNTIF(L34:L40,AN9) -> 0 | AP9: =AO9/(AQ4-AO8) ->  | AQ9: =IF(AP9=0,0,(AP9*((LOG(AP9))/LOG(2)))) ->  | AS9: =N9 -> 21 | AT9: =COUNTIF(L41:L47,AS9) -> 0 | AU9: =AT9/(AV4-AT8) ->  | AV9: =IF(AU9=0,0,(AU9*((LOG(AU9))/LOG(2)))) -> 
A10: 22 | B10: 303 | C10: 23 | D10: 316 | K10: 0 | L10: 22 | N10: 22 | O10: =COUNTIF($L$7:$L$500,N10) -> 1 | P10: =O10/$Q$4 -> 0.0243902439 | Q10: =IF(P10=0,0,(P10*((LOG(P10))/LOG(2)))) -> -0.1306720001 | T10: =N10 -> 22 | U10: =COUNTIF(L7:L13,T10) -> 1 | V10: =U10/(W4-U8) -> 1 | W10: =IF(V10=0,0,(V10*((LOG(V10))/LOG(2)))) -> 0 | Y10: =N10 -> 22 | Z10: =COUNTIF(L14:L20,Y10) -> 0 | AA10: =Z10/(AB4-Z8) -> 0 | AB10: =IF(AA10=0,0,(AA10*((LOG(AA10))/LOG(2)))) -> 0 | AD10: =N10 -> 22 | AE10: =COUNTIF(L21:L26,AD10) -> 0 | AF10: =AE10/(AG4-AE8) ->  | AG10: =IF(AF10=0,0,(AF10*((LOG(AF10))/LOG(2)))) ->  | AI10: =N10 -> 22 | AJ10: =COUNTIF(L27:L33,AI10) -> 0 | AK10: =AJ10/(AL4-AJ8) ->  | AL10: =IF(AK10=0,0,(AK10*((LOG(AK10))/LOG(2)))) ->  | AN10: =N10 -> 22 | AO10: =COUNTIF(L34:L40,AN10) -> 0 | AP10: =AO10/(AQ4-AO8) ->  | AQ10: =IF(AP10=0,0,(AP10*((LOG(AP10))/LOG(2)))) ->  | AS10: =N10 -> 22 | AT10: =COUNTIF(L41:L47,AS10) -> 0 | AU10: =AT10/(AV4-AT8) ->  | AV10: =IF(AU10=0,0,(AU10*((LOG(AU10))/LOG(2)))) -> 
A11: 11 | B11: 408 | C11: 21 | D11: 418 | K11: 0 | L11: 12 | T11: =N11 -> 0 | U11: =COUNTIF(L7:L13,T11) -> 0 | V11: =U11/(W4-U8) -> 0 | W11: =IF(V11=0,0,(V11*((LOG(V11))/LOG(2)))) -> 0 | Y11: =N11 -> 0 | Z11: =COUNTIF(L14:L20,Y11) -> 0 | AA11: =Z11/(AB4-Z8) -> 0 | AB11: =IF(AA11=0,0,(AA11*((LOG(AA11))/LOG(2)))) -> 0 | AD11: =N11 -> 0 | AE11: =COUNTIF(L21:L26,AD11) -> 0 | AF11: =AE11/(AG4-AE8) ->  | AG11: =IF(AF11=0,0,(AF11*((LOG(AF11))/LOG(2)))) ->  | AI11: =N11 -> 0 | AJ11: =COUNTIF(L27:L33,AI11) -> 0 | AK11: =AJ11/(AL4-AJ8) ->  | AL11: =IF(AK11=0,0,(AK11*((LOG(AK11))/LOG(2)))) ->  | AN11: =N11 -> 0 | AO11: =COUNTIF(L34:L40,AN11) -> 0 | AP11: =AO11/(AQ4-AO8) ->  | AQ11: =IF(AP11=0,0,(AP11*((LOG(AP11))/LOG(2)))) ->  | AS11: =N11 -> 0 | AT11: =COUNTIF(L41:L47,AS11) -> 0 | AU11: =AT11/(AV4-AT8) ->  | AV11: =IF(AU11=0,0,(AU11*((LOG(AU11))/LOG(2)))) -> 
A12: 11 | B12: 503 | C12: 21 | D12: 512 | K12: 0 | L12: 12 | T12: =N12 -> 0 | U12: =COUNTIF(L7:L13,T12) -> 0 | V12: =U12/(W4-U8) -> 0 | W12: =IF(V12=0,0,(V12*((LOG(V12))/LOG(2)))) -> 0 | Y12: =N12 -> 0 | Z12: =COUNTIF(L14:L20,Y12) -> 0 | AA12: =Z12/(AB4-Z8) -> 0 | AB12: =IF(AA12=0,0,(AA12*((LOG(AA12))/LOG(2)))) -> 0 | AD12: =N12 -> 0 | AE12: =COUNTIF(L21:L26,AD12) -> 0 | AF12: =AE12/(AG4-AE8) ->  | AG12: =IF(AF12=0,0,(AF12*((LOG(AF12))/LOG(2)))) ->  | AI12: =N12 -> 0 | AJ12: =COUNTIF(L27:L33,AI12) -> 0 | AK12: =AJ12/(AL4-AJ8) ->  | AL12: =IF(AK12=0,0,(AK12*((LOG(AK12))/LOG(2)))) ->  | AN12: =N12 -> 0 | AO12: =COUNTIF(L34:L40,AN12) -> 0 | AP12: =AO12/(AQ4-AO8) ->  | AQ12: =IF(AP12=0,0,(AP12*((LOG(AP12))/LOG(2)))) ->  | AS12: =N12 -> 0 | AT12: =COUNTIF(L41:L47,AS12) -> 0 | AU12: =AT12/(AV4-AT8) ->  | AV12: =IF(AU12=0,0,(AU12*((LOG(AU12))/LOG(2)))) -> 
A13: 11 | B13: 597 | C13: 21 | D13: 605 | K13: 0 | L13: 12 | T13: =N13 -> 0 | U13: =COUNTIF(L7:L13,T13) -> 0 | V13: =U13/(W4-U8) -> 0 | W13: =IF(V13=0,0,(V13*((LOG(V13))/LOG(2)))) -> 0 | Y13: =N13 -> 0 | Z13: =COUNTIF(L14:L20,Y13) -> 0 | AA13: =Z13/(AB4-Z8) -> 0 | AB13: =IF(AA13=0,0,(AA13*((LOG(AA13))/LOG(2)))) -> 0 | AD13: =N13 -> 0 | AE13: =COUNTIF(L21:L26,AD13) -> 0 | AF13: =AE13/(AG4-AE8) ->  | AG13: =IF(AF13=0,0,(AF13*((LOG(AF13))/LOG(2)))) ->  | AI13: =N13 -> 0 | AJ13: =COUNTIF(L27:L33,AI13) -> 0 | AK13: =AJ13/(AL4-AJ8) ->  | AL13: =IF(AK13=0,0,(AK13*((LOG(AK13))/LOG(2)))) ->  | AN13: =N13 -> 0 | AO13: =COUNTIF(L34:L40,AN13) -> 0 | AP13: =AO13/(AQ4-AO8) ->  | AQ13: =IF(AP13=0,0,(AP13*((LOG(AP13))/LOG(2)))) ->  | AS13: =N13 -> 0 | AT13: =COUNTIF(L41:L47,AS13) -> 0 | AU13: =AT13/(AV4-AT8) ->  | AV13: =IF(AU13=0,0,(AU13*((LOG(AU13))/LOG(2)))) -> 
A14: 11 | B14: 691 | C14: 21 | D14: 699 | K14: 0 | L14: 12 | T14: =N14 -> 0 | U14: =COUNTIF(L7:L13,T14) -> 0 | V14: =U14/(W4-U8) -> 0 | W14: =IF(V14=0,0,(V14*((LOG(V14))/LOG(2)))) -> 0 | Y14: =N14 -> 0 | Z14: =COUNTIF(L14:L20,Y14) -> 0 | AA14: =Z14/(AB4-Z8) -> 0 | AB14: =IF(AA14=0,0,(AA14*((LOG(AA14))/LOG(2)))) -> 0 | AD14: =N14 -> 0 | AE14: =COUNTIF(L21:L26,AD14) -> 0 | AF14: =AE14/(AG4-AE8) ->  | AG14: =IF(AF14=0,0,(AF14*((LOG(AF14))/LOG(2)))) ->  | AI14: =N14 -> 0 | AJ14: =COUNTIF(L27:L33,AI14) -> 0 | AK14: =AJ14/(AL4-AJ8) ->  | AL14: =IF(AK14=0,0,(AK14*((LOG(AK14))/LOG(2)))) ->  | AN14: =N14 -> 0 | AO14: =COUNTIF(L34:L40,AN14) -> 0 | AP14: =AO14/(AQ4-AO8) ->  | AQ14: =IF(AP14=0,0,(AP14*((LOG(AP14))/LOG(2)))) ->  | AS14: =N14 -> 0 | AT14: =COUNTIF(L41:L47,AS14) -> 0 | AU14: =AT14/(AV4-AT8) ->  | AV14: =IF(AU14=0,0,(AU14*((LOG(AU14))/LOG(2)))) -> 
A15: 11 | B15: 787 | C15: 21 | D15: 793 | K15: 0 | L15: 12 | P15: =SUM(P7:P14) -> 1 | Q15: =-SUM(Q7:Q14) -> 0.3299742842 | V15: =SUM(V7:V14) -> 1 | W15: =-SUM(W7:W14) -> 0 | AA15: =SUM(AA7:AA14) -> 1 | AB15: =-SUM(AB7:AB14) -> 0 | AF15: =SUM(AF7:AF14) ->  | AG15: =-SUM(AG7:AG14) ->  | AK15: =SUM(AK7:AK14) ->  | AL15: =-SUM(AL7:AL14) ->  | AP15: =SUM(AP7:AP14) ->  | AQ15: =-SUM(AQ7:AQ14) ->  | AU15: =SUM(AU7:AU14) ->  | AV15: =-SUM(AV7:AV14) -> 
A16: 11 | B16: 880 | C16: 21 | D16: 890 | K16: 0 | L16: 12 | P16: U= | Q16: =Q15/(LOG(Q4)/LOG(2)) -> 0.0615904958 | V16: U1= | W16: =W15/(LOG(W4)/LOG(2)) -> 0 | AA16: U2= | AB16: =AB15/(LOG(AB4)/LOG(2)) -> 0 | AF16: U3= | AG16: =AG15/(LOG(AG4)/LOG(2)) ->  | AK16: U4= | AL16: =AL15/(LOG(AL4)/LOG(2)) ->  | AP16: U5= | AQ16: =AQ15/(LOG(AQ4)/LOG(2)) ->  | AU16: U6= | AV16: =AV15/(LOG(AV4)/LOG(2)) -> 
A17: 11 | B17: 974 | C17: 12 | D17: 989 | K17: 0 | L17: 11
A18: 11 | B18: 1085 | C18: 21 | D18: 1094 | K18: 0 | L18: 12
A19: 11 | B19: 1188 | C19: 21 | D19: 1197 | K19: 0 | L19: 12 | N19: Total Target Seq
A20: 11 | B20: 1282 | C20: 21 | D20: 1306 | K20: 0 | L20: 12 | N20: =COUNTIF(L7:L47,G3) -> 39 | P20: 7 | Q20: 7 | R20: 6 | S20: 7 | T20: 7 | U20: 7
A21: 11 | B21: 1394 | C21: 21 | D21: 1410 | K21: 0 | L21: 12 | P21: % of reinforcement given in 6 equal intervals based on number of trials
A22: 11 | B22: 1497 | C22: 21 | D22: 1505 | K22: 0 | L22: 12 | P22: %_1 | Q22: %_2 | R22: %_3 | S22: %_4 | T22: %_5 | U22: %_6
A23: 11 | B23: 1591 | C23: 21 | D23: 1600 | K23: 0 | L23: 12 | O23: target sequence | P23: =$G$3 -> 12 | Q23: =$G$3 -> 12 | R23: =$G$3 -> 12 | S23: =$G$3 -> 12 | T23: =$G$3 -> 12 | U23: =$G$3 -> 12
A24: 11 | B24: 1685 | C24: 21 | D24: 1693 | K24: 0 | L24: 12 | O24: total reinforcement | P24: =U8 -> 6 | Q24: =Z8 -> 6 | R24: =AE8 -> 6 | S24: =AJ8 -> 7 | T24: =AO8 -> 7 | U24: =AT8 -> 7
A25: 11 | B25: 1777 | C25: 21 | D25: 1786 | K25: 0 | L25: 12 | O25: % target
A26: 11 | B26: 1871 | C26: 21 | D26: 1880 | K26: 0 | L26: 12 | O26: CCRF
A27: 11 | B27: 1966 | C27: 21 | D27: 1975 | K27: 0 | L27: 12 | O27: % CCRf
A28: 11 | B28: 2063 | C28: 21 | D28: 2074 | K28: 0 | L28: 12 | O28: average response rate | P28: =D13/P20 -> 86.42857143 | Q28: =(D20-D13)/Q20 -> 100.1428571 | R28: =(D26-D20)/R20 -> 95.66666667 | S28: =(D33-D26)/S20 -> 97.71428571 | T28: =(D40-D33)/T20 -> 97.71428571 | U28: =(D47-D40)/U20 -> 101.7142857
A29: 11 | B29: 2166 | C29: 21 | D29: 2176 | K29: 0 | L29: 12
A30: 11 | B30: 2272 | C30: 21 | D30: 2281 | K30: 0 | L30: 12
A31: 11 | B31: 2368 | C31: 21 | D31: 2376 | K31: 0 | L31: 12
A32: 11 | B32: 2460 | C32: 21 | D32: 2469 | K32: 0 | L32: 12
A33: 11 | B33: 2555 | C33: 21 | D33: 2564 | K33: 0 | L33: 12
A34: 11 | B34: 2651 | C34: 21 | D34: 2659 | K34: 0 | L34: 12
A35: 11 | B35: 2747 | C35: 21 | D35: 2756 | K35: 0 | L35: 12
A36: 11 | B36: 2845 | C36: 21 | D36: 2854 | K36: 0 | L36: 12
A37: 11 | B37: 2941 | C37: 21 | D37: 2950 | K37: 0 | L37: 12
A38: 11 | B38: 3034 | C38: 21 | D38: 3044 | K38: 0 | L38: 12
A39: 11 | B39: 3130 | C39: 21 | D39: 3152 | K39: 0 | L39: 12
A40: 11 | B40: 3239 | C40: 21 | D40: 3248 | K40: 0 | L40: 12
A41: 11 | B41: 3332 | C41: 21 | D41: 3350 | K41: 0 | L41: 12
A42: 11 | B42: 3438 | C42: 21 | D42: 3446 | K42: 0 | L42: 12
A43: 11 | B43: 3532 | C43: 21 | D43: 3541 | K43: 0 | L43: 12
A44: 11 | B44: 3626 | C44: 21 | D44: 3634 | K44: 0 | L44: 12
A45: 11 | B45: 3718 | C45: 21 | D45: 3741 | K45: 0 | L45: 12
A46: 11 | B46: 3827 | C46: 21 | D46: 3852 | K46: 0 | L46: 12
A47: 11 | B47: 3938 | C47: 21 | D47: 3960 | K47: 1 | L47: 12

Sheet !LC02B00.056
A1: Report for:!LC02B00.056
A2: Date: | B2: <date>
A3: Hen: | B3: <hen> | F3: Correct Sequence | G3: =Start!J2 -> 12 | P3: Total Sequences in Data | Q3: =4994-COUNTBLANK(L7:L5000) -> 48 | V3: Total Sequences in Block Data | W3: =COUNTA(L7:L14) -> 8 | AA3: Total Sequences in Block Data | AB3: =COUNTA(L15:L22) -> 8 | AF3: Total Sequences in Block Data | AG3: =COUNTA(L23:L30) -> 8 | AK3: Total Sequences in Block Data | AL3: =COUNTA(L31:L38) -> 8 | AP3: Total Sequences in Block Data | AQ3: =COUNTA(L39:L46) -> 8 | AU3: Total Sequences in Block Data | AV3: =COUNTA(L47:L54) -> 8
P4: Total Sequences in Summary | Q4: =SUM(O7:O14) -> 48 | V4: Total Sequences in Block Summary | W4: =SUM(U7:U14) -> 8 | AA4: Total Sequences in Block Summary | AB4: =SUM(Z7:Z14) -> 8 | AF4: Total Sequences in Block Summary | AG4: =SUM(AE7:AE14) -> 8 | AK4: Total Sequences in Block Summary | AL4: =SUM(AJ7:AJ14) -> 8 | AP4: Total Sequences in Block Summary | AQ4: =SUM(AO7:AO14) -> 8 | AU4: Total Sequences in Block Summary | AV4: =SUM(AT7:AT14) -> 8
T5: Block 1 | Y5: Block 2 | AD5: Block 3 | AI5: Block 4 | AN5: Block 5 | AS5: Block 6
A6: Sequence Component 1 | B6: Time 1 | C6: Sequence Component 2 | D6: Time 2 | E6: Sequence Component 3 | F6: Time 3 | G6: Sequence Component 4 | H6: Time 4 | I6: Sequence Component 5 | J6: Time 5 | K6: Correct? 0=No 1=Yes | L6: Sequence | N6: Frequency | P6: Relative Frequency | Q6: Variability | T6: Frequency | V6: Relative Frequency | W6: Variability | Y6: Frequency | AA6: Relative Frequency | AB6: Variability | AD6: Frequency | AF6: Relative Frequency | AG6: Variability | AI6: Frequency | AK6: Relative Frequency | AL6: Variability | AN6: Frequency | AP6: Relative Frequency | AQ6: Variability | AS6: Frequency | AU6: Relative Frequency | AV6: Variability
A7: 11 | B7: 11 | C7: 21 | D7: 18 | K7: 0 | L7: 12 | N7: 11 | O7: =COUNTIF($L$7:$L$500,N7) -> 3 | P7: =O7/$Q$4 -> 0.0625 | Q7: =IF(P7=0,0,(P7*((LOG(P7))/LOG(2)))) -> -0.25 | T7: =N7 -> 11 | U7: =COUNTIF(L7:L14,T7) -> 0 | V7: =U7/(W4-U8) -> 0 | W7: =IF(V7=0,0,(V7*((LOG(V7))/LOG(2)))) -> 0 | Y7: =N7 -> 11 | Z7: =COUNTIF(L15:L22,Y7) -> 0 | AA7: =Z7/(AB4-Z8) -> 0 | AB7: =IF(AA7=0,0,(AA7*((LOG(AA7))/LOG(2)))) -> 0 | AD7: =N7 -> 11 | AE7: =COUNTIF(L23:L30,AD7) -> 1 | AF7: =AE7/(AG4-AE8) -> 0.5 | AG7: =IF(AF7=0,0,(AF7*((LOG(AF7))/LOG(2)))) -> -0.5 | AI7: =N7 -> 11 | AJ7: =COUNTIF(L31:L38,AI7) -> 0 | AK7: =AJ7/(AL4-AJ8) -> 0 | AL7: =IF(AK7=0,0,(AK7*((LOG(AK7))/LOG(2)))) -> 0 | AN7: =N7 -> 11 | AO7: =COUNTIF(L39:L46,AN7) -> 0 | AP7: =AO7/(AQ4-AO8) -> 0 | AQ7: =IF(AP7=0,0,(AP7*((LOG(AP7))/LOG(2)))) -> 0 | AS7: =N7 -> 11 | AT7: =COUNTIF(L47:L54,AS7) -> 2 | AU7: =AT7/(AV4-AT8) -> 0.6666666667 | AV7: =IF(AU7=0,0,(AU7*((LOG(AU7))/LOG(2)))) -> -0.3899750005
A8: 11 | B8: 108 | C8: 21 | D8: 117 | K8: 0 | L8: 12 | N8: 12 | O8: =COUNTIF($L$7:$L$500,N8) -> 39 | P8: =O8/$Q$4 -> 0.8125 | Q8: =IF(P8=0,0,(P8*((LOG(P8))/LOG(2)))) -> -0.243392729 | T8: =N8 -> 12 | U8: =COUNTIF(L7:L14,T8) -> 7 | Y8: =N8 -> 12 | Z8: =COUNTIF(L15:L22,Y8) -> 7 | AD8: =N8 -> 12 | AE8: =COUNTIF(L23:L30,AD8) -> 6 | AI8: =N8 -> 12 | AJ8: =COUNTIF(L31:L38,AI8) -> 7 | AN8: =N8 -> 12 | AO8: =COUNTIF(L39:L46,AN8) -> 7 | AS8: =N8 -> 12 | AT8: =COUNTIF(L47:L54,AS8) -> 5
A9: 22 | B9: 213 | C9: 14 | D9: 242 | K9: 0 | L9: 21 | N9: 21 | O9: =COUNTIF($L$7:$L$500,N9) -> 1 | P9: =O9/$Q$4 -> 0.02083333333 | Q9: =IF(P9=0,0,(P9*((LOG(P9))/LOG(2)))) -> -0.1163533854 | T9: =N9 -> 21 | U9: =COUNTIF(L7:L14,T9) -> 1 | V9: =U9/(W4-U8) -> 1 | W9: =IF(V9=0,0,(V9*((LOG(V9))/LOG(2)))) -> 0 | Y9: =N9 -> 21 | Z9: =COUNTIF(L15:L22,Y9) -> 0 | AA9: =Z9/(AB4-Z8) -> 0 | AB9: =IF(AA9=0,0,(AA9*((LOG(AA9))/LOG(2)))) -> 0 | AD9: =N9 -> 21 | AE9: =COUNTIF(L23:L30,AD9) -> 0 | AF9: =AE9/(AG4-AE8) -> 0 | AG9: =IF(AF9=0,0,(AF9*((LOG(AF9))/LOG(2)))) -> 0 | AI9: =N9 -> 21 | AJ9: =COUNTIF(L31:L38,AI9) -> 0 | AK9: =AJ9/(AL4-AJ8) -> 0 | AL9: =IF(AK9=0,0,(AK9*((LOG(AK9))/LOG(2)))) -> 0 | AN9: =N9 -> 21 | AO9: =COUNTIF(L39:L46,AN9) -> 0 | AP9: =AO9/(AQ4-AO8) -> 0 | AQ9: =IF(AP9=0,0,(AP9*((LOG(AP9))/LOG(2)))) -> 0 | AS9: =N9 -> 21 | AT9: =COUNTIF(L47:L54,AS9) -> 0 | AU9: =AT9/(AV4-AT8) -> 0 | AV9: =IF(AU9=0,0,(AU9*((LOG(AU9))/LOG(2)))) -> 0
A10: 11 | B10: 334 | C10: 21 | D10: 343 | K10: 0 | L10: 12 | N10: 22 | O10: =COUNTIF($L$7:$L$500,N10) -> 5 | P10: =O10/$Q$4 -> 0.1041666667 | Q10: =IF(P10=0,0,(P10*((LOG(P10))/LOG(2)))) -> -0.3398994173 | T10: =N10 -> 22 | U10: =COUNTIF(L7:L14,T10) -> 0 | V10: =U10/(W4-U8) -> 0 | W10: =IF(V10=0,0,(V10*((LOG(V10))/LOG(2)))) -> 0 | Y10: =N10 -> 22 | Z10: =COUNTIF(L15:L22,Y10) -> 1 | AA10: =Z10/(AB4-Z8) -> 1 | AB10: =IF(AA10=0,0,(AA10*((LOG(AA10))/LOG(2)))) -> 0 | AD10: =N10 -> 22 | AE10: =COUNTIF(L23:L30,AD10) -> 1 | AF10: =AE10/(AG4-AE8) -> 0.5 | AG10: =IF(AF10=0,0,(AF10*((LOG(AF10))/LOG(2)))) -> -0.5 | AI10: =N10 -> 22 | AJ10: =COUNTIF(L31:L38,AI10) -> 1 | AK10: =AJ10/(AL4-AJ8) -> 1 | AL10: =IF(AK10=0,0,(AK10*((LOG(AK10))/LOG(2)))) -> 0 | AN10: =N10 -> 22 | AO10: =COUNTIF(L39:L46,AN10) -> 1 | AP10: =AO10/(AQ4-AO8) -> 1 | AQ10: =IF(AP10=0,0,(AP10*((LOG(AP10))/LOG(2)))) -> 0 | AS10: =N10 -> 22 | AT10: =COUNTIF(L47:L54,AS10) -> 1 | AU10: =AT10/(AV4-AT8) -> 0.3333333333 | AV10: =IF(AU10=0,0,(AU10*((LOG(AU10))/LOG(2)))) -> -0.5283208336
A11: 11 | B11: 428 | C11: 21 | D11: 436 | K11: 0 | L11: 12 | T11: =N11 -> 0 | U11: =COUNTIF(L7:L14,T11) -> 0 | V11: =U11/(W4-U8) -> 0 | W11: =IF(V11=0,0,(V11*((LOG(V11))/LOG(2)))) -> 0 | Y11: =N11 -> 0 | Z11: =COUNTIF(L15:L22,Y11) -> 0 | AA11: =Z11/(AB4-Z8) -> 0 | AB11: =IF(AA11=0,0,(AA11*((LOG(AA11))/LOG(2)))) -> 0 | AD11: =N11 -> 0 | AE11: =COUNTIF(L23:L30,AD11) -> 0 | AF11: =AE11/(AG4-AE8) -> 0 | AG11: =IF(AF11=0,0,(AF11*((LOG(AF11))/LOG(2)))) -> 0 | AI11: =N11 -> 0 | AJ11: =COUNTIF(L31:L38,AI11) -> 0 | AK11: =AJ11/(AL4-AJ8) -> 0 | AL11: =IF(AK11=0,0,(AK11*((LOG(AK11))/LOG(2)))) -> 0 | AN11: =N11 -> 0 | AO11: =COUNTIF(L39:L46,AN11) -> 0 | AP11: =AO11/(AQ4-AO8) -> 0 | AQ11: =IF(AP11=0,0,(AP11*((LOG(AP11))/LOG(2)))) -> 0 | AS11: =N11 -> 0 | AT11: =COUNTIF(L47:L54,AS11) -> 0 | AU11: =AT11/(AV4-AT8) -> 0 | AV11: =IF(AU11=0,0,(AU11*((LOG(AU11))/LOG(2)))) -> 0
A12: 11 | B12: 523 | C12: 21 | D12: 537 | K12: 0 | L12: 12 | T12: =N12 -> 0 | U12: =COUNTIF(L7:L14,T12) -> 0 | V12: =U12/(W4-U8) -> 0 | W12: =IF(V12=0,0,(V12*((LOG(V12))/LOG(2)))) -> 0 | Y12: =N12 -> 0 | Z12: =COUNTIF(L15:L22,Y12) -> 0 | AA12: =Z12/(AB4-Z8) -> 0 | AB12: =IF(AA12=0,0,(AA12*((LOG(AA12))/LOG(2)))) -> 0 | AD12: =N12 -> 0 | AE12: =COUNTIF(L23:L30,AD12) -> 0 | AF12: =AE12/(AG4-AE8) -> 0 | AG12: =IF(AF12=0,0,(AF12*((LOG(AF12))/LOG(2)))) -> 0 | AI12: =N12 -> 0 | AJ12: =COUNTIF(L31:L38,AI12) -> 0 | AK12: =AJ12/(AL4-AJ8) -> 0 | AL12: =IF(AK12=0,0,(AK12*((LOG(AK12))/LOG(2)))) -> 0 | AN12: =N12 -> 0 | AO12: =COUNTIF(L39:L46,AN12) -> 0 | AP12: =AO12/(AQ4-AO8) -> 0 | AQ12: =IF(AP12=0,0,(AP12*((LOG(AP12))/LOG(2)))) -> 0 | AS12: =N12 -> 0 | AT12: =COUNTIF(L47:L54,AS12) -> 0 | AU12: =AT12/(AV4-AT8) -> 0 | AV12: =IF(AU12=0,0,(AU12*((LOG(AU12))/LOG(2)))) -> 0
A13: 11 | B13: 628 | C13: 21 | D13: 637 | K13: 0 | L13: 12 | T13: =N13 -> 0 | U13: =COUNTIF(L7:L14,T13) -> 0 | V13: =U13/(W4-U8) -> 0 | W13: =IF(V13=0,0,(V13*((LOG(V13))/LOG(2)))) -> 0 | Y13: =N13 -> 0 | Z13: =COUNTIF(L15:L22,Y13) -> 0 | AA13: =Z13/(AB4-Z8) -> 0 | AB13: =IF(AA13=0,0,(AA13*((LOG(AA13))/LOG(2)))) -> 0 | AD13: =N13 -> 0 | AE13: =COUNTIF(L23:L30,AD13) -> 0 | AF13: =AE13/(AG4-AE8) -> 0 | AG13: =IF(AF13=0,0,(AF13*((LOG(AF13))/LOG(2)))) -> 0 | AI13: =N13 -> 0 | AJ13: =COUNTIF(L31:L38,AI13) -> 0 | AK13: =AJ13/(AL4-AJ8) -> 0 | AL13: =IF(AK13=0,0,(AK13*((LOG(AK13))/LOG(2)))) -> 0 | AN13: =N13 -> 0 | AO13: =COUNTIF(L39:L46,AN13) -> 0 | AP13: =AO13/(AQ4-AO8) -> 0 | AQ13: =IF(AP13=0,0,(AP13*((LOG(AP13))/LOG(2)))) -> 0 | AS13: =N13 -> 0 | AT13: =COUNTIF(L47:L54,AS13) -> 0 | AU13: =AT13/(AV4-AT8) -> 0 | AV13: =IF(AU13=0,0,(AU13*((LOG(AU13))/LOG(2)))) -> 0
A14: 11 | B14: 724 | C14: 21 | D14: 733 | K14: 0 | L14: 12 | T14: =N14 -> 0 | U14: =COUNTIF(L7:L14,T14) -> 0 | V14: =U14/(W4-U8) -> 0 | W14: =IF(V14=0,0,(V14*((LOG(V14))/LOG(2)))) -> 0 | Y14: =N14 -> 0 | Z14: =COUNTIF(L15:L22,Y14) -> 0 | AA14: =Z14/(AB4-Z8) -> 0 | AB14: =IF(AA14=0,0,(AA14*((LOG(AA14))/LOG(2)))) -> 0 | AD14: =N14 -> 0 | AE14: =COUNTIF(L23:L30,AD14) -> 0 | AF14: =AE14/(AG4-AE8) -> 0 | AG14: =IF(AF14=0,0,(AF14*((LOG(AF14))/LOG(2)))) -> 0 | AI14: =N14 -> 0 | AJ14: =COUNTIF(L31:L38,AI14) -> 0 | AK14: =AJ14/(AL4-AJ8) -> 0 | AL14: =IF(AK14=0,0,(AK14*((LOG(AK14))/LOG(2)))) -> 0 | AN14: =N14 -> 0 | AO14: =COUNTIF(L39:L46,AN14) -> 0 | AP14: =AO14/(AQ4-AO8) -> 0 | AQ14: =IF(AP14=0,0,(AP14*((LOG(AP14))/LOG(2)))) -> 0 | AS14: =N14 -> 0 | AT14: =COUNTIF(L47:L54,AS14) -> 0 | AU14: =AT14/(AV4-AT8) -> 0 | AV14: =IF(AU14=0,0,(AU14*((LOG(AU14))/LOG(2)))) -> 0
A15: 11 | B15: 818 | C15: 21 | D15: 827 | K15: 0 | L15: 12 | P15: =SUM(P7:P14) -> 1 | Q15: =-SUM(Q7:Q14) -> 0.9496455317 | V15: =SUM(V7:V14) -> 1 | W15: =-SUM(W7:W14) -> 0 | AA15: =SUM(AA7:AA14) -> 1 | AB15: =-SUM(AB7:AB14) -> 0 | AF15: =SUM(AF7:AF14) -> 1 | AG15: =-SUM(AG7:AG14) -> 1 | AK15: =SUM(AK7:AK14) -> 1 | AL15: =-SUM(AL7:AL14) -> 0 | AP15: =SUM(AP7:AP14) -> 1 | AQ15: =-SUM(AQ7:AQ14) -> 0 | AU15: =SUM(AU7:AU14) -> 1 | AV15: =-SUM(AV7:AV14) -> 0.9182958341
A16: 11 | B16: 913 | C16: 21 | D16: 921 | K16: 0 | L16: 12 | P16: U= | Q16: =Q15/(LOG(Q4)/LOG(2)) -> 0.1700361518 | V16: U1= | W16: =W15/(LOG(W4)/LOG(2)) -> 0 | AA16: U2= | AB16: =AB15/(LOG(AB4)/LOG(2)) -> 0 | AF16: U3= | AG16: =AG15/(LOG(AG4)/LOG(2)) -> 0.3333333333 | AK16: U4= | AL16: =AL15/(LOG(AL4)/LOG(2)) -> 0 | AP16: U5= | AQ16: =AQ15/(LOG(AQ4)/LOG(2)) -> 0 | AU16: U6= | AV16: =AV15/(LOG(AV4)/LOG(2)) -> 0.3060986114
A17: 11 | B17: 1007 | C17: 21 | D17: 1025 | K17: 0 | L17: 12
A18: 11 | B18: 1112 | C18: 21 | D18: 1120 | K18: 0 | L18: 12
A19: 11 | B19: 1215 | C19: 21 | D19: 1224 | K19: 0 | L19: 12 | N19: Total Target Seq
A20: 11 | B20: 1315 | C20: 21 | D20: 1327 | K20: 0 | L20: 12 | N20: =COUNTIF(L7:L54,G3) -> 39 | P20: 8 | Q20: 8 | R20: 8 | S20: 8 | T20: 8 | U20: 8
A21: 22 | B21: 1426 | C21: 23 | D21: 1439 | K21: 0 | L21: 22 | P21: % of reinforcement given in 6 equal intervals based on number of trials
A22: 11 | B22: 1534 | C22: 21 | D22: 1543 | K22: 0 | L22: 12 | P22: %_1 | Q22: %_2 | R22: %_3 | S22: %_4 | T22: %_5 | U22: %_6
A23: 11 | B23: 1628 | C23: 21 | D23: 1637 | K23: 0 | L23: 12 | O23: target sequence | P23: =$G$3 -> 12 | Q23: =$G$3 -> 12 | R23: =$G$3 -> 12 | S23: =$G$3 -> 12 | T23: =$G$3 -> 12 | U23: =$G$3 -> 12
